Workbook

Sheet Cover and overview
A1: Overview of the model and processes
A4: Purpose
A5: The purpose of the DC Project and Price model is to perform the calculations necessary to set the development contributions price and revenue forecast.
A7: Overview
A8: 1. The development contributions price charged to developers is calculated by dividing the cost of growth-related infrastructure by the amount of growth the infrastructure is supporting.
A9: 2. Interest costs incurred on the capital expenditure and credit interest when council receives development contribution revenue ahead of incurring the expenditure is included in the DC price paid by developers.
A10: 3. Inputs to the model are explained in separate documents. The inputs are:
A11: a. Growth forecasts
A12: b. Growth-related infrastructure projects and related information
A13: c. Funding area master list
A14: 5. Calculating for the amount of capex cost that may be funded from DCs is performed in the Project_and_capex_costs sheet. Calculations are performed from left to right.
A15: 6. For each project, a goalseek is used in the DC_price_calc tab to calculate the CAPEX costs that may be funded by DC by calculating the DC price, DC revenue and DC interest, so the balance is zero at the end of the capacity period. The results for the DC price, DC revenue and DC interest are copied the the relevant data tables (DC_Price_table, Revenue_forecast_table, and Interest_forecast_table).
A16: 7. The goalseek incorporates the length of time the planned infrastructure will cater for the expected growth, referred to as the capacity of a project.
A18: 8. The following tab colouring has been used to identify the content of each sheet
A30: Input files
A31: 9. Growth forecasts are entered into the HUEs_by_funding_area sheet.
A32: a. This data is used in the goalseek to calculate the DC price
A34: Calculating the capital expenditure recoverable by DCs
A35: 10. Infrastructure projects included in the DC calculation are listed on the Project_and_capex_costs sheet.
A36: a. Columns A:AW are inputs to the model which are explained in the supporting information documents accompanying the consultation
A37: b. Columns BE:CH calculate the costs recoverable from development contributions.
A38: Notes
A39: · Projects may be listed more than once if they have been allocated against more than one funding area. Only the share of the projects that benefit the funding area are included. This will enable the cost and price for each funding area to be calculated separately.
A40: · Some transport related projects may be listed more than once to show the funding from Waka Kotahi NZ Transport Agency.
A41: 11. The goalseek is performed for each project and the DC price, DC revenue, and DC interest calculations are done in the DC_price_calc tab.
A42: a. data for each project is calculated individually
A43: b. the results of the calculations are copied to the relevant DC_Price, Revenue_forecast and Interest_forecast table tabs
A44: c. once the goalseek has been completed for one project, the goalseek is repated for the next project until the goalseeks have been completed for all of the projects
A45: d. the data displayed on the DC_price_calc sheet is the data for the final project listed on the Project_and_capex_costs
A46: e. the DC_price (cell G32) times Annual Growth HUE (D16 to AQ16) times incremental DC price increase factor (D14 to AQ14) gives the annual revenue forecast
A47: f. the total revenue forecast needs to fund the Capital expenditure costs (D19 to AQ19) and interest cost forecast (D20 to AQ20) so the balance at the end of the recovery/capacity year shown in B16 is zero for the relevant year along D30 to AQ30.
A48: 12. The goalseek brings data from:
A49: a. Annual growth (Row 16) from the HUEs_by_funding_area sheet for the funding area nad capacity year noted in cells A16 and B16 respectively.
A50: b. Capital expenditure costs (Row 19) from DC fundable amounts (columns BE to CH) from the Project_and_capex_costs tab.
A51: c. Interest rate data (row 13) is from the rate provided by the council treasury team for financial planning. The rate is entered in the Static_data sheet for use in the goalseek.
A52: d. Individual project data is from the Project_and_capex_costs sheet.
A53: e. Incremental DC price increase factor (compounded) is been included in the goalseek. However, the adopted DC policy for Drury does not include the an annual incremental price increase.
A55: Further information has been provided in the document How we set development contributions document which can be found on the council's website
A56: Development Contributions Policy 2022 - Variation A: Cost allocation methodology (aucklandcouncil.govt.nz)

Sheet Audit_and_version_control
A1: Audit and version control to ensure data used for the adopted DC policy is not changed
A6: Key data
A8: Funding area description | B8: Funding area code | C8: Hard coded capex (excludes Waka Kotahi funding) | D8: Sum of gross capex (excludes Waka Kotahi funding) | E8: Difference | F8: Hard coded Cost DC fundable | G8: Sum of costs DC fundable | H8: Difference | I8: Hard coded DC price | J8: Sum of DC price | K8: Difference | L8: Hard coded DC revenue forecast | M8: Sum of DC revenue forecast | N8: Difference | O8: Hard coded DC interest forecast | P8: Sum of DC interest forecast | Q8: Difference
A9: Auckland wide | B9: TRA A1 | C9: 31578589.07 | D9: =SUMIFS(Project_and_capex_costs!AW$8:AW$580,Project_and_capex_costs!$AW$8:$AW$580,">0",Project_and_capex_costs!$BB$8:$BB$580,$B9) -> 31578589.07 | E9: =+D9-C9 -> 0 | F9: 5548207.215 | G9: =SUMIFS(Project_and_capex_costs!CI$8:CI$580,Project_and_capex_costs!$BB$8:$BB$580,$B9) -> 5548207.215 | H9: =+G9-F9 -> 0 | I9: 14.19748277 | J9: =SUMIFS(DC_Price_table!$F$5:$F$577,DC_Price_table!$C$5:$C$577,$B9) -> 14.19748277 | K9: =+J9-I9 -> 0 | L9: 4307402.694 | M9: =SUMIFS(Revenue_forecast_table!$AS$5:$AS$577,Revenue_forecast_table!$C$5:$C$577,$B9) -> 4307402.694 | N9: =+M9-L9 -> 0 | O9: -1240804.521 | P9: =SUMIFS(Interest_forecast_table!$AS$5:$AS$577,Interest_forecast_table!$C$5:$C$577,$B9) -> -1240804.521 | Q9: =+P9-O9 -> 0
A10: Drury East | B10: TRA A23 | C10: 414187098.2 | D10: =SUMIFS(Project_and_capex_costs!AW$8:AW$580,Project_and_capex_costs!$AW$8:$AW$580,">0",Project_and_capex_costs!$BB$8:$BB$580,$B10) -> 414187098.2 | E10: =+D10-C10 -> 0 | F10: 244900094.6 | G10: =SUMIFS(Project_and_capex_costs!CI$8:CI$580,Project_and_capex_costs!$BB$8:$BB$580,$B10) -> 244900094.6 | H10: =+G10-F10 -> 0 | I10: 41496.65787 | J10: =SUMIFS(DC_Price_table!$F$5:$F$577,DC_Price_table!$C$5:$C$577,$B10) -> 41496.65787 | K10: =+J10-I10 -> 0 | L10: 269562289.5 | M10: =SUMIFS(Revenue_forecast_table!$AS$5:$AS$577,Revenue_forecast_table!$C$5:$C$577,$B10) -> 269562289.5 | N10: =+M10-L10 -> 0 | O10: 24662194.93 | P10: =SUMIFS(Interest_forecast_table!$AS$5:$AS$577,Interest_forecast_table!$C$5:$C$577,$B10) -> 24662194.93 | Q10: =+P10-O10 -> 0
A11: Drury West 1 | B11: TRA A24 | C11: 395226067.3 | D11: =SUMIFS(Project_and_capex_costs!AW$8:AW$580,Project_and_capex_costs!$AW$8:$AW$580,">0",Project_and_capex_costs!$BB$8:$BB$580,$B11) -> 395226067.3 | E11: 0 | F11: 213458653 | G11: =SUMIFS(Project_and_capex_costs!CI$8:CI$580,Project_and_capex_costs!$BB$8:$BB$580,$B11) -> 213458653 | H11: 0 | I11: 26183.64364 | J11: =SUMIFS(DC_Price_table!$F$5:$F$577,DC_Price_table!$C$5:$C$577,$B11) -> 26183.64364 | K11: 0 | L11: 165087873.2 | M11: =SUMIFS(Revenue_forecast_table!$AS$5:$AS$577,Revenue_forecast_table!$C$5:$C$577,$B11) -> 165087873.2 | N11: 0 | O11: -48370779.85 | P11: =SUMIFS(Interest_forecast_table!$AS$5:$AS$577,Interest_forecast_table!$C$5:$C$577,$B11) -> -48370779.85 | Q11: 0
A12: Drury West 2 | B12: TRA A25 | C12: 155774193.4 | D12: =SUMIFS(Project_and_capex_costs!AW$8:AW$580,Project_and_capex_costs!$AW$8:$AW$580,">0",Project_and_capex_costs!$BB$8:$BB$580,$B12) -> 155774193.4 | E12: 0 | F12: 76429431.54 | G12: =SUMIFS(Project_and_capex_costs!CI$8:CI$580,Project_and_capex_costs!$BB$8:$BB$580,$B12) -> 76429431.54 | H12: 0 | I12: 16976.80364 | J12: =SUMIFS(DC_Price_table!$F$5:$F$577,DC_Price_table!$C$5:$C$577,$B12) -> 16976.80364 | K12: 0 | L12: 80928422.96 | M12: =SUMIFS(Revenue_forecast_table!$AS$5:$AS$577,Revenue_forecast_table!$C$5:$C$577,$B12) -> 80928422.96 | N12: 0 | O12: 4498991.428 | P12: =SUMIFS(Interest_forecast_table!$AS$5:$AS$577,Interest_forecast_table!$C$5:$C$577,$B12) -> 4498991.428 | Q12: 0
A13: Opaheke | B13: TRA A26 | C13: 270753988.4 | D13: =SUMIFS(Project_and_capex_costs!AW$8:AW$580,Project_and_capex_costs!$AW$8:$AW$580,">0",Project_and_capex_costs!$BB$8:$BB$580,$B13) -> 270753988.4 | E13: 0 | F13: 100404387.9 | G13: =SUMIFS(Project_and_capex_costs!CI$8:CI$580,Project_and_capex_costs!$BB$8:$BB$580,$B13) -> 100404387.9 | H13: 0 | I13: 23569.37533 | J13: =SUMIFS(DC_Price_table!$F$5:$F$577,DC_Price_table!$C$5:$C$577,$B13) -> 23569.37533 | K13: 0 | L13: 77991062.97 | M13: =SUMIFS(Revenue_forecast_table!$AS$5:$AS$577,Revenue_forecast_table!$C$5:$C$577,$B13) -> 77991062.97 | N13: 0 | O13: -22413324.91 | P13: =SUMIFS(Interest_forecast_table!$AS$5:$AS$577,Interest_forecast_table!$C$5:$C$577,$B13) -> -22413324.91 | Q13: 0
A14: Drury South | B14: TRA A27 | C14: 2420365.392 | D14: =SUMIFS(Project_and_capex_costs!AW$8:AW$580,Project_and_capex_costs!$AW$8:$AW$580,">0",Project_and_capex_costs!$BB$8:$BB$580,$B14) -> 2420365.392 | E14: 0 | F14: 2019102.62 | G14: =SUMIFS(Project_and_capex_costs!CI$8:CI$580,Project_and_capex_costs!$BB$8:$BB$580,$B14) -> 2019102.62 | H14: 0 | I14: 1432.651202 | J14: =SUMIFS(DC_Price_table!$F$5:$F$577,DC_Price_table!$C$5:$C$577,$B14) -> 1432.651202 | K14: 0 | L14: 2044393.265 | M14: =SUMIFS(Revenue_forecast_table!$AS$5:$AS$577,Revenue_forecast_table!$C$5:$C$577,$B14) -> 2044393.265 | N14: 0 | O14: 25290.64562 | P14: =SUMIFS(Interest_forecast_table!$AS$5:$AS$577,Interest_forecast_table!$C$5:$C$577,$B14) -> 25290.64562 | Q14: 0
A15: Paerata / Pukekohe | B15: TRA A28 | C15: 26705169.98 | D15: =SUMIFS(Project_and_capex_costs!AW$8:AW$580,Project_and_capex_costs!$AW$8:$AW$580,">0",Project_and_capex_costs!$BB$8:$BB$580,$B15) -> 26705169.98 | E15: 0 | F15: 4756503.467 | G15: =SUMIFS(Project_and_capex_costs!CI$8:CI$580,Project_and_capex_costs!$BB$8:$BB$580,$B15) -> 4756503.467 | H15: 0 | I15: 234.1768368 | J15: =SUMIFS(DC_Price_table!$F$5:$F$577,DC_Price_table!$C$5:$C$577,$B15) -> 234.1768368 | K15: 0 | L15: 3301190.869 | M15: =SUMIFS(Revenue_forecast_table!$AS$5:$AS$577,Revenue_forecast_table!$C$5:$C$577,$B15) -> 3301190.869 | N15: 0 | O15: -1455312.599 | P15: =SUMIFS(Interest_forecast_table!$AS$5:$AS$577,Interest_forecast_table!$C$5:$C$577,$B15) -> -1455312.599 | Q15: 0
A16: Papakura / Takaanini | B16: TRA A29 | C16: 78998332.46 | D16: =SUMIFS(Project_and_capex_costs!AW$8:AW$580,Project_and_capex_costs!$AW$8:$AW$580,">0",Project_and_capex_costs!$BB$8:$BB$580,$B16) -> 78998332.46 | E16: 0 | F16: 23630943.11 | G16: =SUMIFS(Project_and_capex_costs!CI$8:CI$580,Project_and_capex_costs!$BB$8:$BB$580,$B16) -> 23630943.11 | H16: 0 | I16: 2332.556496 | J16: =SUMIFS(DC_Price_table!$F$5:$F$577,DC_Price_table!$C$5:$C$577,$B16) -> 2332.556496 | K16: 0 | L16: 23922699.42 | M16: =SUMIFS(Revenue_forecast_table!$AS$5:$AS$577,Revenue_forecast_table!$C$5:$C$577,$B16) -> 23922699.42 | N16: 0 | O16: 291756.3061 | P16: =SUMIFS(Interest_forecast_table!$AS$5:$AS$577,Interest_forecast_table!$C$5:$C$577,$B16) -> 291756.3061 | Q16: 0
A17: Transport total | C17: =SUM(C9:C16) -> 1375643804 | D17: =SUM(D9:D16) -> 1375643804 | E17: 0 | F17: 671147323.5 | G17: 671147323.5 | H17: 0 | I17: 112240.0625 | J17: 112240.0625 | K17: =SUM(K9:K16) -> 0 | L17: =SUM(L9:L16) -> 627145334.9 | M17: =SUM(M9:M16) -> 627145334.9 | N17: =SUM(N9:N16) -> 0 | O17: =SUM(O9:O16) -> -44001988.57 | P17: -44001988.57 | Q17: =SUM(Q9:Q16) -> 0
A19: Reserve Acquisition - Drury IPA | B19: OSL A28 | C19: 147198117 | D19: =SUMIFS(Project_and_capex_costs!AW$8:AW$580,Project_and_capex_costs!$AW$8:$AW$580,">0",Project_and_capex_costs!$BB$8:$BB$580,$B19) -> 147198117 | G19: =SUMIFS(Project_and_capex_costs!CI$8:CI$580,Project_and_capex_costs!$BB$8:$BB$580,$B19) -> 142265307.6 | I19: 8713.500215 | J19: =SUMIFS(DC_Price_table!$F$5:$F$577,DC_Price_table!$C$5:$C$577,$B19) -> 8713.500215 | L19: 165024980.6 | M19: =SUMIFS(Revenue_forecast_table!$AS$5:$AS$577,Revenue_forecast_table!$C$5:$C$577,$B19) -> 165024980.6 | O19: 22759672.94 | P19: =SUMIFS(Interest_forecast_table!$AS$5:$AS$577,Interest_forecast_table!$C$5:$C$577,$B19) -> 22759672.94
A20: Reserve Development - Drury / Opaheke | B20: OSD A28 | C20: 205067103.4 | D20: =SUMIFS(Project_and_capex_costs!AW$8:AW$580,Project_and_capex_costs!$AW$8:$AW$580,">0",Project_and_capex_costs!$BB$8:$BB$580,$B20) -> 205067103.4 | G20: =SUMIFS(Project_and_capex_costs!CI$8:CI$580,Project_and_capex_costs!$BB$8:$BB$580,$B20) -> 198195025.4 | I20: 8176.985239 | J20: =SUMIFS(DC_Price_table!$F$5:$F$577,DC_Price_table!$C$5:$C$577,$B20) -> 8176.985239 | L20: 154863923.4 | M20: =SUMIFS(Revenue_forecast_table!$AS$5:$AS$577,Revenue_forecast_table!$C$5:$C$577,$B20) -> 154863923.4 | O20: -43331102 | P20: =SUMIFS(Interest_forecast_table!$AS$5:$AS$577,Interest_forecast_table!$C$5:$C$577,$B20) -> -43331102
A21: Reserve total | C21: =SUM(C19:C20) -> 352265220.4 | D21: =SUM(D19:D20) -> 352265220.4 | E21: =SUM(E19:E20) -> 0 | F21: 0 | G21: 340460333.1 | H21: 0 | I21: 16890.48545 | J21: 16890.48545 | K21: =SUM(K19:K20) -> 0 | L21: =SUM(L19:L20) -> 319888904 | M21: =SUM(M19:M20) -> 319888904 | N21: =SUM(N19:N20) -> 0 | O21: =SUM(O19:O20) -> -20571429.05 | P21: -20571429.05 | Q21: =SUM(Q19:Q20) -> 0
A23: Community infrastructure - Auckland wide | B23: CI A1 | C23: 40455424.18 | D23: =SUMIFS(Project_and_capex_costs!AW$8:AW$580,Project_and_capex_costs!$AW$8:$AW$580,">0",Project_and_capex_costs!$BB$8:$BB$580,$B23) -> 40455424.18 | G23: =SUMIFS(Project_and_capex_costs!CI$8:CI$580,Project_and_capex_costs!$BB$8:$BB$580,$B23) -> 12803208.01 | I23: 48.38851854 | J23: =SUMIFS(DC_Price_table!$F$5:$F$577,DC_Price_table!$C$5:$C$577,$B23) -> 48.38851854 | L23: 12843377.37 | M23: =SUMIFS(Revenue_forecast_table!$AS$5:$AS$577,Revenue_forecast_table!$C$5:$C$577,$B23) -> 12843377.37 | O23: 40169.35493 | P23: =SUMIFS(Interest_forecast_table!$AS$5:$AS$577,Interest_forecast_table!$C$5:$C$577,$B23) -> 40169.35493
A24: Community infrastructure - Drury IPA (Community spaces) | B24: CI A34 | C24: 142208613.4 | D24: =SUMIFS(Project_and_capex_costs!AW$8:AW$580,Project_and_capex_costs!$AW$8:$AW$580,">0",Project_and_capex_costs!$BB$8:$BB$580,$B24) -> 142208613.4 | G24: =SUMIFS(Project_and_capex_costs!CI$8:CI$580,Project_and_capex_costs!$BB$8:$BB$580,$B24) -> 132242276.7 | I24: 8098.621799 | J24: =SUMIFS(DC_Price_table!$F$5:$F$577,DC_Price_table!$C$5:$C$577,$B24) -> 8098.621799 | L24: 143361803.1 | M24: =SUMIFS(Revenue_forecast_table!$AS$5:$AS$577,Revenue_forecast_table!$C$5:$C$577,$B24) -> 143361803.1 | O24: 11119526.4 | P24: =SUMIFS(Interest_forecast_table!$AS$5:$AS$577,Interest_forecast_table!$C$5:$C$577,$B24) -> 11119526.4
A25: Community infrastructure total | C25: =SUM(C23:C24) -> 182664037.6 | D25: 182664037.6 | E25: 0 | F25: 0 | G25: 145045484.7 | H25: 0 | I25: 8147.010318 | J25: =SUM(J23:J24) -> 8147.010318 | K25: =SUM(K23:K24) -> 0 | L25: =SUM(L23:L24) -> 156205180.5 | M25: =SUM(M23:M24) -> 156205180.5 | N25: =SUM(N23:N24) -> 0 | O25: =SUM(O23:O24) -> 11159695.76 | P25: 11159695.76 | Q25: =SUM(Q23:Q24) -> 0
A27: Total for all infrastructure types | C27: =+C25+C21+C17 -> 1910573062 | D27: =+D25+D21+D17 -> 1910573062 | E27: 0 | F27: 671147323.5 | G27: 1156653141 | H27: 0 | I27: 137277.5583 | J27: 137277.5583 | K27: 0 | L27: =+L25+L21+L17 -> 1103239419 | M27: 1103239419 | N27: 0 | O27: -53413721.87 | P27: =+P25+P21+P17 -> -53413721.87 | Q27: 0
A28: Check to total in relevant tab (check should be 0) | D28: =+D27-Project_and_capex_costs!AW597 -> 0 | G28: =+G27-Project_and_capex_costs!CI590 -> 0 | J28: =+J27-DC_Price_table!F578 -> 0 | M28: =+M27-Revenue_forecast_table!AS578 -> 0 | P28: =+P27-Interest_forecast_table!AS578 -> -5.960464478e-08
B30: File size | C30: Date last saved | D30: Time last saved
A31: File size and date last saved (if date save changes, it should correspond to an change in the log of changes below) | B31: 13,659KB | C31: 2023-05-20 | D31: 3:19pm
A33: DC_price table checks are still zero | B33: =+DC_Price_table!K578 -> -2.014203346e-07
A35: Log of changes to spreadsheet since adoption, ensuring no change to key data
A37: Description of change | B37: Date of change | C37: Who did the change | D37: Did the key data change as result of this change
A38: Funding area name from Reserve Acquisition - Drury IPA (civic park) to Reserve Acquisition - Drury IPA | B38: 2023-05-30 | C38: MY | D38: No
A39: Funding area name from Reserve Development - Drury IPA (civic park) to Reserve Development - Drury /Opaheke | B39: 2023-05-30 | C39: MY | D39: No

Sheet Summaries
B2: Summary of costs recoverable by DCs - by funding area
A4: Funding area code | B4: Infrastructure type | C4: Funding area | D4: CAPEX project costs | E4: Recoverable from DCs | F4: Expenditure to be funded by external sources (Waka Kotahi) | G4: DC price per HUE
A5: CI A1 | B5: =VLOOKUP($A5,Funding_area_table!$D$2:$J$237,7,FALSE) -> Community infrastructure | C5: =VLOOKUP($A5,Funding_area_table!$D$2:$J$237,3,FALSE) -> Auckland wide | D5: =SUMIFS(Project_and_capex_costs!$AW$8:$AW$580,Project_and_capex_costs!$BB$8:$BB$580,$A5,Project_and_capex_costs!$AW$8:$AW$580,">0") -> 40455424.18 | E5: =SUMIF(Project_and_capex_costs!$BB$8:$BB$580,$A5,Project_and_capex_costs!$CI$8:$CI$580) -> 12803208.01 | F5: =SUMIFS(Project_and_capex_costs!$AW$8:$AW$580,Project_and_capex_costs!$BB$8:$BB$580,$A5,Project_and_capex_costs!$AW$8:$AW$580,"<0") -> 0 | G5: =SUMIF(DC_Price_table!$C$5:$C$776,Summaries!$A5,DC_Price_table!$F$5:$F$776) -> 48.38851854
A6: CI A34 | B6: =VLOOKUP($A6,Funding_area_table!$D$2:$J$237,7,FALSE) -> Community infrastructure | C6: =VLOOKUP($A6,Funding_area_table!$D$2:$J$237,3,FALSE) -> Drury IPA (Community spaces) | D6: =SUMIFS(Project_and_capex_costs!$AW$8:$AW$580,Project_and_capex_costs!$BB$8:$BB$580,$A6,Project_and_capex_costs!$AW$8:$AW$580,">0") -> 142208613.4 | E6: =SUMIF(Project_and_capex_costs!$BB$8:$BB$580,$A6,Project_and_capex_costs!$CI$8:$CI$580) -> 132242276.7 | F6: =SUMIFS(Project_and_capex_costs!$AW$8:$AW$580,Project_and_capex_costs!$BB$8:$BB$580,$A6,Project_and_capex_costs!$AW$8:$AW$580,"<0") -> 0 | G6: =SUMIF(DC_Price_table!$C$5:$C$776,Summaries!$A6,DC_Price_table!$F$5:$F$776) -> 8098.621799
A7: OSD A28 | B7: =VLOOKUP($A7,Funding_area_table!$D$2:$J$237,7,FALSE) -> Reserve Development | C7: =VLOOKUP($A7,Funding_area_table!$D$2:$J$237,3,FALSE) -> Drury / Opaheke | D7: =SUMIFS(Project_and_capex_costs!$AW$8:$AW$580,Project_and_capex_costs!$BB$8:$BB$580,$A7,Project_and_capex_costs!$AW$8:$AW$580,">0") -> 205067103.4 | E7: =SUMIF(Project_and_capex_costs!$BB$8:$BB$580,$A7,Project_and_capex_costs!$CI$8:$CI$580) -> 198195025.4 | F7: =SUMIFS(Project_and_capex_costs!$AW$8:$AW$580,Project_and_capex_costs!$BB$8:$BB$580,$A7,Project_and_capex_costs!$AW$8:$AW$580,"<0") -> 0 | G7: =SUMIF(DC_Price_table!$C$5:$C$776,Summaries!$A7,DC_Price_table!$F$5:$F$776) -> 8176.985239
A8: OSL A28 | B8: =VLOOKUP($A8,Funding_area_table!$D$2:$J$237,7,FALSE) -> Reserve Acquisition | C8: =VLOOKUP($A8,Funding_area_table!$D$2:$J$237,3,FALSE) -> Drury IPA | D8: =SUMIFS(Project_and_capex_costs!$AW$8:$AW$580,Project_and_capex_costs!$BB$8:$BB$580,$A8,Project_and_capex_costs!$AW$8:$AW$580,">0") -> 147198117 | E8: =SUMIF(Project_and_capex_costs!$BB$8:$BB$580,$A8,Project_and_capex_costs!$CI$8:$CI$580) -> 142265307.6 | F8: =SUMIFS(Project_and_capex_costs!$AW$8:$AW$580,Project_and_capex_costs!$BB$8:$BB$580,$A8,Project_and_capex_costs!$AW$8:$AW$580,"<0") -> 0 | G8: =SUMIF(DC_Price_table!$C$5:$C$776,Summaries!$A8,DC_Price_table!$F$5:$F$776) -> 8713.500215
A9: TRA A1 | B9: =VLOOKUP($A9,Funding_area_table!$D$2:$J$237,7,FALSE) -> Transport | C9: =VLOOKUP($A9,Funding_area_table!$D$2:$J$237,3,FALSE) -> Auckland wide | D9: =SUMIFS(Project_and_capex_costs!$AW$8:$AW$580,Project_and_capex_costs!$BB$8:$BB$580,$A9,Project_and_capex_costs!$AW$8:$AW$580,">0") -> 31578589.07 | E9: =SUMIF(Project_and_capex_costs!$BB$8:$BB$580,$A9,Project_and_capex_costs!$CI$8:$CI$580) -> 5548207.215 | F9: =SUMIFS(Project_and_capex_costs!$AW$8:$AW$580,Project_and_capex_costs!$BB$8:$BB$580,$A9,Project_and_capex_costs!$AW$8:$AW$580,"<0") -> -14700371.46 | G9: =SUMIF(DC_Price_table!$C$5:$C$776,Summaries!$A9,DC_Price_table!$F$5:$F$776) -> 14.19748277
A10: TRA A23 | B10: =VLOOKUP($A10,Funding_area_table!$D$2:$J$237,7,FALSE) -> Transport | C10: =VLOOKUP($A10,Funding_area_table!$D$2:$J$237,3,FALSE) -> Drury East IPA | D10: =SUMIFS(Project_and_capex_costs!$AW$8:$AW$580,Project_and_capex_costs!$BB$8:$BB$580,$A10,Project_and_capex_costs!$AW$8:$AW$580,">0") -> 414187098.2 | E10: =SUMIF(Project_and_capex_costs!$BB$8:$BB$580,$A10,Project_and_capex_costs!$CI$8:$CI$580) -> 244900094.6 | F10: =SUMIFS(Project_and_capex_costs!$AW$8:$AW$580,Project_and_capex_costs!$BB$8:$BB$580,$A10,Project_and_capex_costs!$AW$8:$AW$580,"<0") -> -158262383.8 | G10: =SUMIF(DC_Price_table!$C$5:$C$776,Summaries!$A10,DC_Price_table!$F$5:$F$776) -> 41496.65787
A11: TRA A27 | B11: =VLOOKUP($A11,Funding_area_table!$D$2:$J$237,7,FALSE) -> Transport | C11: =VLOOKUP($A11,Funding_area_table!$D$2:$J$237,3,FALSE) -> Southern Growth Area 3 | D11: =SUMIFS(Project_and_capex_costs!$AW$8:$AW$580,Project_and_capex_costs!$BB$8:$BB$580,$A11,Project_and_capex_costs!$AW$8:$AW$580,">0") -> 2420365.392 | E11: =SUMIF(Project_and_capex_costs!$BB$8:$BB$580,$A11,Project_and_capex_costs!$CI$8:$CI$580) -> 2019102.62 | F11: =SUMIFS(Project_and_capex_costs!$AW$8:$AW$580,Project_and_capex_costs!$BB$8:$BB$580,$A11,Project_and_capex_costs!$AW$8:$AW$580,"<0") -> 0 | G11: =SUMIF(DC_Price_table!$C$5:$C$776,Summaries!$A11,DC_Price_table!$F$5:$F$776) -> 1432.651202
A12: TRA A24 | B12: =VLOOKUP($A12,Funding_area_table!$D$2:$J$237,7,FALSE) -> Transport | C12: =VLOOKUP($A12,Funding_area_table!$D$2:$J$237,3,FALSE) -> Drury West 1 IPA | D12: =SUMIFS(Project_and_capex_costs!$AW$8:$AW$580,Project_and_capex_costs!$BB$8:$BB$580,$A12,Project_and_capex_costs!$AW$8:$AW$580,">0") -> 395226067.3 | E12: =SUMIF(Project_and_capex_costs!$BB$8:$BB$580,$A12,Project_and_capex_costs!$CI$8:$CI$580) -> 213458653 | F12: =SUMIFS(Project_and_capex_costs!$AW$8:$AW$580,Project_and_capex_costs!$BB$8:$BB$580,$A12,Project_and_capex_costs!$AW$8:$AW$580,"<0") -> -162206851.7 | G12: =SUMIF(DC_Price_table!$C$5:$C$776,Summaries!$A12,DC_Price_table!$F$5:$F$776) -> 26183.64364
A13: TRA A25 | B13: =VLOOKUP($A13,Funding_area_table!$D$2:$J$237,7,FALSE) -> Transport | C13: =VLOOKUP($A13,Funding_area_table!$D$2:$J$237,3,FALSE) -> Drury West 2 IPA | D13: =SUMIFS(Project_and_capex_costs!$AW$8:$AW$580,Project_and_capex_costs!$BB$8:$BB$580,$A13,Project_and_capex_costs!$AW$8:$AW$580,">0") -> 155774193.4 | E13: =SUMIF(Project_and_capex_costs!$BB$8:$BB$580,$A13,Project_and_capex_costs!$CI$8:$CI$580) -> 76429431.54 | F13: =SUMIFS(Project_and_capex_costs!$AW$8:$AW$580,Project_and_capex_costs!$BB$8:$BB$580,$A13,Project_and_capex_costs!$AW$8:$AW$580,"<0") -> -74110545.27 | G13: =SUMIF(DC_Price_table!$C$5:$C$776,Summaries!$A13,DC_Price_table!$F$5:$F$776) -> 16976.80364
A14: TRA A26 | B14: =VLOOKUP($A14,Funding_area_table!$D$2:$J$237,7,FALSE) -> Transport | C14: =VLOOKUP($A14,Funding_area_table!$D$2:$J$237,3,FALSE) -> Opaheke IPA | D14: =SUMIFS(Project_and_capex_costs!$AW$8:$AW$580,Project_and_capex_costs!$BB$8:$BB$580,$A14,Project_and_capex_costs!$AW$8:$AW$580,">0") -> 270753988.4 | E14: =SUMIF(Project_and_capex_costs!$BB$8:$BB$580,$A14,Project_and_capex_costs!$CI$8:$CI$580) -> 100404387.9 | F14: =SUMIFS(Project_and_capex_costs!$AW$8:$AW$580,Project_and_capex_costs!$BB$8:$BB$580,$A14,Project_and_capex_costs!$AW$8:$AW$580,"<0") -> -138084534.1 | G14: =SUMIF(DC_Price_table!$C$5:$C$776,Summaries!$A14,DC_Price_table!$F$5:$F$776) -> 23569.37533
A15: TRA A28 | B15: =VLOOKUP($A15,Funding_area_table!$D$2:$J$237,7,FALSE) -> Transport | C15: =VLOOKUP($A15,Funding_area_table!$D$2:$J$237,3,FALSE) -> Southern Growth Area 1 | D15: =SUMIFS(Project_and_capex_costs!$AW$8:$AW$580,Project_and_capex_costs!$BB$8:$BB$580,$A15,Project_and_capex_costs!$AW$8:$AW$580,">0") -> 26705169.98 | E15: =SUMIF(Project_and_capex_costs!$BB$8:$BB$580,$A15,Project_and_capex_costs!$CI$8:$CI$580) -> 4756503.467 | F15: =SUMIFS(Project_and_capex_costs!$AW$8:$AW$580,Project_and_capex_costs!$BB$8:$BB$580,$A15,Project_and_capex_costs!$AW$8:$AW$580,"<0") -> -13619636.69 | G15: =SUMIF(DC_Price_table!$C$5:$C$776,Summaries!$A15,DC_Price_table!$F$5:$F$776) -> 234.1768368
A16: TRA A29 | B16: =VLOOKUP($A16,Funding_area_table!$D$2:$J$237,7,FALSE) -> Transport | C16: =VLOOKUP($A16,Funding_area_table!$D$2:$J$237,3,FALSE) -> Southern Growth Area 2 | D16: =SUMIFS(Project_and_capex_costs!$AW$8:$AW$580,Project_and_capex_costs!$BB$8:$BB$580,$A16,Project_and_capex_costs!$AW$8:$AW$580,">0") -> 78998332.46 | E16: =SUMIF(Project_and_capex_costs!$BB$8:$BB$580,$A16,Project_and_capex_costs!$CI$8:$CI$580) -> 23630943.11 | F16: =SUMIFS(Project_and_capex_costs!$AW$8:$AW$580,Project_and_capex_costs!$BB$8:$BB$580,$A16,Project_and_capex_costs!$AW$8:$AW$580,"<0") -> -40289149.56 | G16: =SUMIF(DC_Price_table!$C$5:$C$776,Summaries!$A16,DC_Price_table!$F$5:$F$776) -> 2332.556496
C18: Total | D18: =SUM(D5:D16) -> 1910573062 | E18: =SUM(E5:E16) -> 1156653141 | F18: =SUM(F5:F17) -> -601273472.6 | G18: =SUM(G5:G17) -> 137277.5583
C20: Check (should be zero) | D20: =+D18-Project_and_capex_costs!AW586 -> 0 | E20: =+E18-Project_and_capex_costs!CI591 -> 0 | F20: =+F18-Project_and_capex_costs!AW589 -> 0 | G20: =+G18-Schedule_3_DC_prices!E17 -> 0
B22: Summary of costs recoverable by DCs - by infrastructure type
C24: CAPEX project costs | D24: Recoverable from DCs
A25: CI | B25: Community infrastructure | C25: =SUMIFS(Project_and_capex_costs!$AW$8:$AW$580,Project_and_capex_costs!$CM$8:$CM$580,$A25,Project_and_capex_costs!$AW$8:$AW$580,">0") -> 182664037.6 | D25: =SUMIF(Project_and_capex_costs!$CM$8:$CM$580,$A25,Project_and_capex_costs!$CI$8:$CI$580) -> 145045484.7
A26: OSD | B26: Reserve Development | C26: =SUMIFS(Project_and_capex_costs!$AW$8:$AW$580,Project_and_capex_costs!$CM$8:$CM$580,$A26,Project_and_capex_costs!$AW$8:$AW$580,">0") -> 205067103.4 | D26: =SUMIF(Project_and_capex_costs!$CM$8:$CM$580,$A26,Project_and_capex_costs!$CI$8:$CI$580) -> 198195025.4
A27: OSL | B27: Reserve Acquisition | C27: =SUMIFS(Project_and_capex_costs!$AW$8:$AW$580,Project_and_capex_costs!$CM$8:$CM$580,$A27,Project_and_capex_costs!$AW$8:$AW$580,">0") -> 147198117 | D27: =SUMIF(Project_and_capex_costs!$CM$8:$CM$580,$A27,Project_and_capex_costs!$CI$8:$CI$580) -> 142265307.6
A28: TRA | B28: Transport | C28: =SUMIFS(Project_and_capex_costs!$AW$8:$AW$580,Project_and_capex_costs!$CM$8:$CM$580,$A28,Project_and_capex_costs!$AW$8:$AW$580,">0") -> 1375643804 | D28: =SUMIF(Project_and_capex_costs!$CM$8:$CM$580,$A28,Project_and_capex_costs!$CI$8:$CI$580) -> 671147323.5
B30: Total | C30: =SUM(C25:C28) -> 1910573062 | D30: =SUM(D25:D28) -> 1156653141
B35: Balance check by infrastructure type to ensure DC revenue funds the capex costs recoverable by DCs and the DC interest
C37: CAPEX project costs | D37: Capex costs recoverable from DCs | E37: DC interest | F37: DC revenue | G37: DC balance check should be zero
A38: CI | B38: Community infrastructure | C38: =SUMIFS(Project_and_capex_costs!$AW$8:$AW$580,Project_and_capex_costs!$CM$8:$CM$580,$A38,Project_and_capex_costs!$AW$8:$AW$580,">0") -> 182664037.6 | D38: =SUMIF(Project_and_capex_costs!$CM$8:$CM$580,$A38,Project_and_capex_costs!$CI$8:$CI$580) -> 145045484.7 | E38: =SUMIF(Interest_forecast_table!$AU$5:$AU$577,$A38,Interest_forecast_table!$AS$5:$AS$577) -> 11159695.76 | F38: =SUMIF(Revenue_forecast_table!$AV$5:$AV$577,$A38,Revenue_forecast_table!$AS$5:$AS$577) -> 156205180.5 | G38: =+D38+E38-F38 -> 0
A39: OSD | B39: Reserve Development | C39: =SUMIFS(Project_and_capex_costs!$AW$8:$AW$580,Project_and_capex_costs!$CM$8:$CM$580,$A39,Project_and_capex_costs!$AW$8:$AW$580,">0") -> 205067103.4 | D39: =SUMIF(Project_and_capex_costs!$CM$8:$CM$580,$A39,Project_and_capex_costs!$CI$8:$CI$580) -> 198195025.4 | E39: =SUMIF(Interest_forecast_table!$AU$5:$AU$577,$A39,Interest_forecast_table!$AS$5:$AS$577) -> -43331102 | F39: =SUMIF(Revenue_forecast_table!$AV$5:$AV$577,$A39,Revenue_forecast_table!$AS$5:$AS$577) -> 154863923.4 | G39: =+D39+E39-F39 -> 0
A40: OSL | B40: Reserve Acquisition | C40: =SUMIFS(Project_and_capex_costs!$AW$8:$AW$580,Project_and_capex_costs!$CM$8:$CM$580,$A40,Project_and_capex_costs!$AW$8:$AW$580,">0") -> 147198117 | D40: =SUMIF(Project_and_capex_costs!$CM$8:$CM$580,$A40,Project_and_capex_costs!$CI$8:$CI$580) -> 142265307.6 | E40: =SUMIF(Interest_forecast_table!$AU$5:$AU$577,$A40,Interest_forecast_table!$AS$5:$AS$577) -> 22759672.94 | F40: =SUMIF(Revenue_forecast_table!$AV$5:$AV$577,$A40,Revenue_forecast_table!$AS$5:$AS$577) -> 165024980.6 | G40: 0
A41: TRA | B41: Transport | C41: =SUMIFS(Project_and_capex_costs!$AW$8:$AW$580,Project_and_capex_costs!$CM$8:$CM$580,$A41,Project_and_capex_costs!$AW$8:$AW$580,">0") -> 1375643804 | D41: =SUMIF(Project_and_capex_costs!$CM$8:$CM$580,$A41,Project_and_capex_costs!$CI$8:$CI$580) -> 671147323.5 | E41: =SUMIF(Interest_forecast_table!$AU$5:$AU$577,$A41,Interest_forecast_table!$AS$5:$AS$577) -> -44001988.57 | F41: =SUMIF(Revenue_forecast_table!$AV$5:$AV$577,$A41,Revenue_forecast_table!$AS$5:$AS$577) -> 627145334.9 | G41: 0
B43: Total | C43: =SUM(C38:C41) -> 1910573062 | D43: =SUM(D38:D41) -> 1156653141 | E43: -53413721.87 | F43: 1103239419 | G43: =SUM(G38:G41) -> 0

Sheet Assumptions
B1: List of assumptions used in the Project and price model
A4: Assumption reference number | B4: Assumption | C4: Description | D4: Where the assumption is used | E4: Updated
B5: Interest rates | C5: 10 year interest rates provided for Council's Treasury Group. The tenth year is flatlined out to 2060. Based on memo from Treasury Group 7 Feb 2023 | D5: Static_data tab and in the DC_price_calc tab to calculate the DC price, revenue and interest. | E5: 2023-02-10

Sheet Static_data
A1: Data used for the caclulations in the model
B3: Assumption or data type
A4: Assumption | B4: Capex phasing adjustment assuming capex is weighted slightly to the second half of the financial year | C4: 0.4
A5: Static data | B5: Start year for Policy update | C5: 2021
A7: Formating | B7: Year format 1 | C7: 1 | D7: =C7+1 -> 2 | E7: =D7+1 -> 3 | F7: 4 | G7: 5 | H7: 6 | I7: 7 | J7: 8 | K7: 9 | L7: 10 | M7: 11 | N7: 12 | O7: 13 | P7: 14 | Q7: 15 | R7: 16 | S7: 17 | T7: 18 | U7: 19 | V7: 20 | W7: 21 | X7: 22 | Y7: 23 | Z7: 24 | AA7: 25 | AB7: 26 | AC7: 27 | AD7: 28 | AE7: 29 | AF7: 30 | AG7: 31 | AH7: 32 | AI7: 33 | AJ7: 34 | AK7: 35 | AL7: 36 | AM7: 37 | AN7: 38 | AO7: 39 | AP7: 40
A8: Formating | B8: Year format 2 | C8: 2022 | D8: =+C8+1 -> 2023 | E8: =+D8+1 -> 2024 | F8: 2025 | G8: 2026 | H8: 2027 | I8: 2028 | J8: 2029 | K8: 2030 | L8: 2031 | M8: 2032 | N8: 2033 | O8: 2034 | P8: 2035 | Q8: 2036 | R8: 2037 | S8: 2038 | T8: 2039 | U8: 2040 | V8: 2041 | W8: 2042 | X8: 2043 | Y8: 2044 | Z8: 2045 | AA8: 2046 | AB8: 2047 | AC8: 2048 | AD8: 2049 | AE8: 2050 | AF8: 2051 | AG8: 2052 | AH8: 2053 | AI8: 2054 | AJ8: 2055 | AK8: 2056 | AL8: 2057 | AM8: 2058 | AN8: 2059 | AO8: 2060 | AP8: 2061
A9: Formating | B9: Year format 3 | C9: FY22 | D9: FY23 | E9: FY24 | F9: FY25 | G9: FY26 | H9: FY27 | I9: FY28 | J9: FY29 | K9: FY30 | L9: FY31 | M9: FY32 | N9: FY33 | O9: FY34 | P9: FY35 | Q9: FY36 | R9: FY37 | S9: FY38 | T9: FY39 | U9: FY40 | V9: FY41 | W9: FY42 | X9: FY43 | Y9: FY44 | Z9: FY45 | AA9: FY46 | AB9: FY47 | AC9: FY48 | AD9: FY49 | AE9: FY50 | AF9: FY51 | AG9: FY52 | AH9: FY53 | AI9: FY54 | AJ9: FY55 | AK9: FY56 | AL9: FY57 | AM9: FY58 | AN9: FY59 | AO9: FY60 | AP9: FY61
A10: Formating | B10: Year format 4 | C10: 2021/22 | D10: 2022/23 | E10: 2023/24 | F10: 2024/25 | G10: 2025/26 | H10: 2026/27 | I10: 2027/28 | J10: 2028/29 | K10: 2029/30 | L10: 2030/31 | M10: 2031/32 | N10: 2032/33 | O10: 2033/34 | P10: 2034/35 | Q10: 2035/36 | R10: 2036/37 | S10: 2037/38 | T10: 2038/39 | U10: 2039/40 | V10: 2040/41 | W10: 2041/42 | X10: 2042/43 | Y10: 2043/44 | Z10: 2044/45 | AA10: 2045/46 | AB10: 2046/47 | AC10: 2047/48 | AD10: 2048/49 | AE10: 2049/50 | AF10: 2050/51 | AG10: 2051/52 | AH10: 2052/53 | AI10: 2053/54 | AJ10: 2054/55 | AK10: 2055/56 | AL10: 2056/57 | AM10: 2057/58 | AN10: 2058/59 | AO10: 2059/60 | AP10: 2060/61
A11: Assumption | B11: Interest rates | C11: 0.0426 | D11: 0.0455 | E11: 0.0456 | F11: 0.0457 | G11: 0.0459 | H11: 0.0463 | I11: 0.0469 | J11: 0.0472 | K11: 0.0479 | L11: 0.0484 | M11: =+L11 -> 0.0484 | N11: =+M11 -> 0.0484 | O11: 0.0484 | P11: 0.0484 | Q11: 0.0484 | R11: 0.0484 | S11: 0.0484 | T11: 0.0484 | U11: 0.0484 | V11: 0.0484 | W11: 0.0484 | X11: 0.0484 | Y11: 0.0484 | Z11: 0.0484 | AA11: 0.0484 | AB11: 0.0484 | AC11: 0.0484 | AD11: 0.0484 | AE11: 0.0484 | AF11: 0.0484 | AG11: 0.0484 | AH11: 0.0484 | AI11: 0.0484 | AJ11: 0.0484 | AK11: 0.0484 | AL11: 0.0484 | AM11: 0.0484 | AN11: 0.0484 | AO11: 0.0484 | AP11: 0.0484 | AQ11: =AVERAGE(C11:AP11) -> 0.04785
A12: Assumption | B12: LTP Interest rates | C12: 0.0405 | D12: 0.04 | E12: 0.04 | F12: 0.0395 | G12: 0.0393 | H12: 0.0395 | I12: 0.0393 | J12: 0.0384 | K12: 0.0375 | L12: 0.0364 | M12: 0.0364 | N12: 0.0364 | O12: 0.0364 | P12: 0.0364 | Q12: 0.0364 | R12: 0.0364 | S12: 0.0364 | T12: 0.0364 | U12: 0.0364 | V12: 0.0364 | W12: 0.0364 | X12: 0.0364 | Y12: 0.0364 | Z12: 0.0364 | AA12: 0.0364 | AB12: 0.0364 | AC12: 0.0364 | AD12: 0.0364 | AE12: 0.0364 | AF12: 0.0364 | AG12: 0.0364 | AH12: 0.0364 | AI12: 0.0364 | AJ12: 0.0364 | AK12: 0.0364 | AL12: 0.0364 | AM12: 0.0364 | AN12: 0.0364 | AO12: 0.0364 | AP12: 0.0364 | AQ12: =AVERAGE(C12:AP12) -> 0.03706 | AR12: =1-AQ12/AQ11 -> 0.2254963427
A13: Assumption | B13: Incremental DC price increase factor | D13: 0 | E13: 0 | F13: 0 | G13: 0 | H13: 0 | I13: 0 | J13: 0 | K13: 0 | L13: 0 | M13: 0 | N13: 0 | O13: 0 | P13: 0 | Q13: 0 | R13: 0 | S13: 0 | T13: 0 | U13: 0 | V13: 0 | W13: 0 | X13: 0 | Y13: 0 | Z13: 0 | AA13: 0 | AB13: 0 | AC13: 0 | AD13: 0 | AE13: 0 | AF13: 0 | AG13: 0 | AH13: 0 | AI13: 0 | AJ13: 0 | AK13: 0 | AL13: 0 | AM13: 0 | AN13: 0 | AO13: 0 | AP13: 0
A14: Assumption | B14: Incremental DC price increase factor (compounded) | C14: =+C13+1 -> 1 | D14: =+C14*(1+D13) -> 1 | E14: =+D14*(1+E13) -> 1 | F14: 1 | G14: 1 | H14: 1 | I14: 1 | J14: 1 | K14: 1 | L14: 1 | M14: 1 | N14: 1 | O14: 1 | P14: 1 | Q14: 1 | R14: 1 | S14: 1 | T14: 1 | U14: 1 | V14: 1 | W14: 1 | X14: 1 | Y14: 1 | Z14: 1 | AA14: 1 | AB14: 1 | AC14: 1 | AD14: 1 | AE14: 1 | AF14: 1 | AG14: 1 | AH14: 1 | AI14: 1 | AJ14: 1 | AK14: 1 | AL14: 1 | AM14: 1 | AN14: 1 | AO14: 1 | AP14: 1
A15: Assumption | B15: LTP incremental DC price increase factor | C15: 0 | D15: 0 | E15: 0 | F15: 0 | G15: 0 | H15: 0 | I15: 0 | J15: 0 | K15: 0 | L15: 0 | M15: 0 | N15: 0 | O15: 0 | P15: 0 | Q15: 0 | R15: 0 | S15: 0 | T15: 0 | U15: 0 | V15: 0 | W15: 0 | X15: 0 | Y15: 0 | Z15: 0 | AA15: 0 | AB15: 0 | AC15: 0 | AD15: 0 | AE15: 0 | AF15: 0 | AG15: 0 | AH15: 0 | AI15: 0 | AJ15: 0 | AK15: 0 | AL15: 0 | AM15: 0 | AN15: 0 | AO15: 0 | AP15: 0
A16: Assumption | B16: Incremental DC price increase factor (compounded) | C16: =+C15+1 -> 1 | D16: =+C16*(1+D15) -> 1 | E16: =+D16*(1+E15) -> 1 | F16: =+E16*(1+F15) -> 1 | G16: =+F16*(1+G15) -> 1 | H16: =+G16*(1+H15) -> 1 | I16: =+H16*(1+I15) -> 1 | J16: =+I16*(1+J15) -> 1 | K16: =+J16*(1+K15) -> 1 | L16: =+K16*(1+L15) -> 1 | M16: =+L16*(1+M15) -> 1 | N16: =+M16*(1+N15) -> 1 | O16: =+N16*(1+O15) -> 1 | P16: =+O16*(1+P15) -> 1 | Q16: =+P16*(1+Q15) -> 1 | R16: =+Q16*(1+R15) -> 1 | S16: =+R16*(1+S15) -> 1 | T16: =+S16*(1+T15) -> 1 | U16: =+T16*(1+U15) -> 1 | V16: =+U16*(1+V15) -> 1 | W16: =+V16*(1+W15) -> 1 | X16: =+W16*(1+X15) -> 1 | Y16: =+X16*(1+Y15) -> 1 | Z16: =+Y16*(1+Z15) -> 1 | AA16: =+Z16*(1+AA15) -> 1 | AB16: =+AA16*(1+AB15) -> 1 | AC16: =+AB16*(1+AC15) -> 1 | AD16: =+AC16*(1+AD15) -> 1 | AE16: =+AD16*(1+AE15) -> 1 | AF16: =+AE16*(1+AF15) -> 1 | AG16: =+AF16*(1+AG15) -> 1 | AH16: =+AG16*(1+AH15) -> 1 | AI16: =+AH16*(1+AI15) -> 1 | AJ16: =+AI16*(1+AJ15) -> 1 | AK16: =+AJ16*(1+AK15) -> 1 | AL16: =+AK16*(1+AL15) -> 1 | AM16: =+AL16*(1+AM15) -> 1 | AN16: =+AM16*(1+AN15) -> 1 | AO16: =+AN16*(1+AO15) -> 1 | AP16: =+AO16*(1+AP15) -> 1

Sheet Project_and_capex_costs
A1: Planned capex for projects beyond 2031
A3: Groups populate the data under the blue highlighted header. The fields under the green highlighted header are calculated automatically
E5: 1 | F5: =+E5+1 -> 2 | G5: =+F5+1 -> 3 | H5: 4 | I5: 5 | J5: 6 | K5: 7 | L5: 8 | M5: 9 | N5: 10 | O5: 11 | P5: 12 | Q5: 13 | R5: 14 | S5: 15 | T5: 16 | U5: 17 | V5: 18 | W5: 19 | X5: 20 | Y5: 21 | Z5: 22 | AA5: 23 | AB5: 24 | AC5: 25 | AD5: 26 | AE5: 27 | AF5: 28 | AG5: 29 | AH5: 30 | AI5: 31 | AJ5: 32 | AK5: 33 | AL5: 34 | AM5: 35 | AN5: 36 | AO5: 37 | AP5: 38 | AQ5: 39 | AR5: 40 | AS5: 41 | AT5: 42 | AU5: 43 | AV5: 44 | AW5: 45 | AX5: 46 | AY5: 47 | AZ5: 48 | BA5: 49 | BB5: 50 | BC5: 51 | BD5: 52 | BE5: 53 | BF5: 54 | BG5: 55 | BH5: 56 | BI5: 57 | BJ5: 58 | BK5: 59 | BL5: 60 | BM5: 61 | BN5: 62 | BO5: 63 | BP5: 64 | BQ5: 65 | BR5: 66 | BS5: =+BR5+1 -> 67 | BT5: 68 | BU5: 69 | BV5: 70 | BW5: 71 | BX5: 72 | BY5: 73 | BZ5: 74 | CA5: 75 | CB5: 76 | CC5: 77 | CD5: 78 | CE5: 79 | CF5: 80 | CG5: 81 | CH5: 82 | CI5: 83 | CJ5: 84 | CK5: 85 | CL5: 86 | CM5: 87 | CN5: 88 | CO5: 89
A6: Set starting year for LTP: | B6: 2021
A7: Department | B7: Infrastructure type | C7: Hyperion code | D7: WBS code | E7: Unique identifier | F7: Project / programme name | G7: Project/Programme description | H7: LTP activity | I7: LTP Group of activities | J7: Funding area description | K7: Growth % | L7: Level of Service % | M7: Renewal % | N7: Benefit considerations % benefit to growth s101(3)(a)(ii) | O7: Cause considerations % caused by growth s101(3)(a)(iv) | P7: DC growth % (O12+P12)/2 | Q7: In which FY will the asset reach full capacity? s101(3)(a)(iii) | R7: Does this project f revenue from external source (not included in inflated costs) Yes / No | S7: ="Inflated cost "&Static_data!C10 -> Inflated cost 2021/22 | T7: ="Inflated cost "&Static_data!D10 -> Inflated cost 2022/23 | U7: ="Inflated cost "&Static_data!E10 -> Inflated cost 2023/24 | V7: ="Inflated cost "&Static_data!F10 -> Inflated cost 2024/25 | W7: ="Inflated cost "&Static_data!G10 -> Inflated cost 2025/26 | X7: ="Inflated cost "&Static_data!H10 -> Inflated cost 2026/27 | Y7: ="Inflated cost "&Static_data!I10 -> Inflated cost 2027/28 | Z7: ="Inflated cost "&Static_data!J10 -> Inflated cost 2028/29 | AA7: ="Inflated cost "&Static_data!K10 -> Inflated cost 2029/30 | AB7: ="Inflated cost "&Static_data!L10 -> Inflated cost 2030/31 | AC7: ="Inflated cost "&Static_data!M10 -> Inflated cost 2031/32 | AD7: ="Inflated cost "&Static_data!N10 -> Inflated cost 2032/33 | AE7: ="Inflated cost "&Static_data!O10 -> Inflated cost 2033/34 | AF7: ="Inflated cost "&Static_data!P10 -> Inflated cost 2034/35 | AG7: ="Inflated cost "&Static_data!Q10 -> Inflated cost 2035/36 | AH7: ="Inflated cost "&Static_data!R10 -> Inflated cost 2036/37 | AI7: ="Inflated cost "&Static_data!S10 -> Inflated cost 2037/38 | AJ7: ="Inflated cost "&Static_data!T10 -> Inflated cost 2038/39 | AK7: ="Inflated cost "&Static_data!U10 -> Inflated cost 2039/40 | AL7: ="Inflated cost "&Static_data!V10 -> Inflated cost 2040/41 | AM7: ="Inflated cost "&Static_data!W10 -> Inflated cost 2041/42 | AN7: ="Inflated cost "&Static_data!X10 -> Inflated cost 2042/43 | AO7: ="Inflated cost "&Static_data!Y10 -> Inflated cost 2043/44 | AP7: ="Inflated cost "&Static_data!Z10 -> Inflated cost 2044/45 | AQ7: ="Inflated cost "&Static_data!AA10 -> Inflated cost 2045/46 | AR7: ="Inflated cost "&Static_data!AB10 -> Inflated cost 2046/47 | AS7: ="Inflated cost "&Static_data!AC10 -> Inflated cost 2047/48 | AT7: ="Inflated cost "&Static_data!AD10 -> Inflated cost 2048/49 | AU7: ="Inflated cost "&Static_data!AE10 -> Inflated cost 2049/50 | AV7: ="Inflated cost "&Static_data!AF10 -> Inflated cost 2050/51 | AW7: Total Inflated capital expenditure | AX7: Total cost incurred to start of new LTP from SAP | AY7: External revenue received for costs already incurred | AZ7: Project status | BA7: x | BB7: Funding area code and validation (also used to link projects for FA) | BC7: Non growth costs (cost funded by non DCs) | BD7: DC recoverable for capital expenditure actuals | BE7: =Static_data!C10 -> 2021/22 | BF7: =Static_data!D10 -> 2022/23 | BG7: =Static_data!E10 -> 2023/24 | BH7: =Static_data!F10 -> 2024/25 | BI7: =Static_data!G10 -> 2025/26 | BJ7: =Static_data!H10 -> 2026/27 | BK7: =Static_data!I10 -> 2027/28 | BL7: =Static_data!J10 -> 2028/29 | BM7: =Static_data!K10 -> 2029/30 | BN7: =Static_data!L10 -> 2030/31 | BO7: =Static_data!M10 -> 2031/32 | BP7: =Static_data!N10 -> 2032/33 | BQ7: =Static_data!O10 -> 2033/34 | BR7: =Static_data!P10 -> 2034/35 | BS7: =Static_data!Q10 -> 2035/36 | BT7: =Static_data!R10 -> 2036/37 | BU7: =Static_data!S10 -> 2037/38 | BV7: =Static_data!T10 -> 2038/39 | BW7: =Static_data!U10 -> 2039/40 | BX7: =Static_data!V10 -> 2040/41 | BY7: =Static_data!W10 -> 2041/42 | BZ7: =Static_data!X10 -> 2042/43 | CA7: =Static_data!Y10 -> 2043/44 | CB7: =Static_data!Z10 -> 2044/45 | CC7: =Static_data!AA10 -> 2045/46 | CD7: =Static_data!AB10 -> 2046/47 | CE7: =Static_data!AC10 -> 2047/48 | CF7: =Static_data!AD10 -> 2048/49 | CG7: =Static_data!AE10 -> 2049/50 | CH7: =Static_data!AF10 -> 2050/51 | CI7: Total forecast DC CAPEX for delivery Total capital expenditure forecast for DC recovery | CJ7: Total cost to be recovered (Forecast and actual costs) | CK7: Annual incremental increase (Yes / No) | CL7: Funded from other sources % | CM7: Activity code | CN7: Remove WK from unquie identifier | CO7: Transport project to identify whether the project is a collector road or an arterial road upgrade
B8: Reserve acquisition | E8: OS 1 | F8: Acquisition of neighbourhood, suburb, and civic parks for Drury | G8: Acquisition of land for civic space to support new growth in accordance with the Open Space Provision Policy | J8: Reserve Acquisition - Drury IPA | P8: 0.9664886381 | Q8: 2060 | AC8: 14963184.88 | AD8: 16131483.4 | AE8: 26259672.46 | AF8: 15343472.2 | AG8: 16429447.11 | AH8: 10204803.11 | AI8: 18102192.87 | AJ8: 19384727.99 | AK8: 10379132.98 | AL8: 0 | AM8: 0 | AW8: =SUM(S8:AV8) -> 147198117 | AX8: 0 | AY8: 0 | AZ8: 0 | BB8: =IFERROR(VLOOKUP(J8,Funding_area_table!C:F,2,FALSE),"CHECK") -> OSL A28 | BC8: =$AW8*(1-P8) -> 4932809.371 | BE8: =S8*$P8*(1-$CL8) -> 0 | BF8: =T8*$P8*(1-$CL8) -> 0 | BG8: =U8*$P8*(1-$CL8) -> 0 | BH8: =V8*$P8*(1-$CL8) -> 0 | BI8: =W8*$P8*(1-$CL8) -> 0 | BJ8: =X8*$P8*(1-$CL8) -> 0 | BK8: =Y8*$P8*(1-$CL8) -> 0 | BL8: =Z8*$P8*(1-$CL8) -> 0 | BM8: =AA8*$P8*(1-$CL8) -> 0 | BN8: =AB8*$P8*(1-$CL8) -> 0 | BO8: =AC8*$P8*(1-$CL8) -> 14461748.17 | BP8: =AD8*$P8*(1-$CL8) -> 15590895.42 | BQ8: =AE8*$P8*(1-$CL8) -> 25379675.08 | BR8: =AF8*$P8*(1-$CL8) -> 14829291.55 | BS8: =AG8*$P8*(1-$CL8) -> 15878873.97 | BT8: =AH8*$P8*(1-$CL8) -> 9862826.262 | BU8: =AI8*$P8*(1-$CL8) -> 17495563.73 | BV8: =AJ8*$P8*(1-$CL8) -> 18735119.35 | BW8: =AK8*$P8*(1-$CL8) -> 10031314.1 | BX8: =AL8*$P8*(1-$CL8) -> 0 | BY8: =AM8*$P8*(1-$CL8) -> 0 | BZ8: =AN8*$P8*(1-$CL8) -> 0 | CA8: =AO8*$P8*(1-$CL8) -> 0 | CB8: =AP8*$P8*(1-$CL8) -> 0 | CC8: =AQ8*$P8*(1-$CL8) -> 0 | CD8: =AR8*$P8*(1-$CL8) -> 0 | CE8: =AS8*$P8*(1-$CL8) -> 0 | CF8: =AT8*$P8*(1-$CL8) -> 0 | CG8: =AU8*$P8*(1-$CL8) -> 0 | CH8: =AV8*$P8*(1-$CL8) -> 0 | CI8: =SUM(BE8:CH8) -> 142265307.6 | CJ8: =+CI8+AX8*P8 -> 142265307.6 | CK8: No | CL8: =IFERROR(#REF!/AW8,0) -> 0 | CM8: =TRIM(LEFT(BB8,3)) -> OSL | CN8: =IF(RIGHT(E8,11)=" WK subsidy",LEFT(E8,LEN(E8)-11),E8) -> OS 1
B9: Reserve Development | E9: OD 1 | F9: Development of neighbourhood and suburb parks for Drury | G9: Development of land for civic space to support new growth in accordance with the Open Space Provision Policy | J9: Reserve Development - Drury / Opaheke | P9: 0.9664886381 | Q9: 2060 | AC9: 0 | AD9: 0 | AE9: 0 | AF9: 0 | AG9: 0 | AH9: 0 | AI9: 0 | AJ9: 5346781.709 | AK9: 37131583.08 | AL9: 6434060.867 | AM9: 6633516.754 | AN9: 4046500.499 | AO9: 34198172.57 | AP9: 37378661.38 | AQ9: 54339607.61 | AR9: 11591200.44 | AS9: 7967018.434 | AW9: 205067103.4 | AX9: 0 | AY9: 0 | AZ9: 0 | BB9: =IFERROR(VLOOKUP(J9,Funding_area_table!C:F,2,FALSE),"CHECK") -> OSD A28 | BC9: 6872077.916 | BE9: 0 | BF9: 0 | BG9: 0 | BH9: 0 | BI9: 0 | BJ9: 0 | BK9: 0 | BL9: 0 | BM9: 0 | BN9: 0 | BO9: 0 | BP9: 0 | BQ9: 0 | BR9: 0 | BS9: 0 | BT9: 0 | BU9: 0 | BV9: 5167603.773 | BW9: 35887253.16 | BX9: 6218446.725 | BY9: 6411218.573 | BZ9: 3910896.757 | CA9: 33052145.23 | CB9: 36126051.53 | CC9: 52518613.36 | CD9: 11202763.53 | CE9: 7700032.796 | CF9: 0 | CG9: 0 | CH9: 0 | CI9: 198195025.4 | CJ9: 198195025.4 | CK9: No | CL9: =IFERROR(#REF!/AW9,0) -> 0 | CM9: OSD | CN9: OD 1
B10: Community spaces | E10: CI 1 | F10: Llibrary | G10: Acquisition of land and construction for Community Spaces (library), to cater for new growth according to the Community Facilities Network Plan | J10: Community infrastructure - Auckland wide | L10: 0 | M10: 0 | P10: 0.3164769193 | Q10: 2060 | R10: No | T10: 0 | U10: 0 | V10: 0 | W10: 0 | X10: 0 | Y10: 0 | Z10: 0 | AA10: 0 | AB10: 0 | AC10: 2531202.784 | AD10: 3263457.29 | AE10: 3472763.075 | AF10: 587626.1939 | AG10: 605842.6059 | AH10: 1873871.18 | AI10: 13845721.84 | AJ10: 14274939.21 | AK10: 0 | AL10: 0 | AM10: 0 | AN10: 0 | AO10: 0 | AP10: 0 | AQ10: 0 | AR10: 0 | AS10: 0 | AT10: 0 | AW10: 40455424.18 | AX10: 0 | AY10: 0 | AZ10: 0 | BB10: =IFERROR(VLOOKUP(J10,Funding_area_table!C:F,2,FALSE),"CHECK") -> CI A1 | BC10: 27652216.16 | BE10: 0 | BF10: 0 | BG10: 0 | BH10: 0 | BI10: 0 | BJ10: 0 | BK10: 0 | BL10: 0 | BM10: 0 | BN10: 0 | BO10: 801067.2592 | BP10: 1032808.91 | BQ10: 1099049.359 | BR10: 185970.1275 | BS10: 191735.2015 | BT10: 593036.9782 | BU10: 4381851.393 | BV10: 4517688.786 | BW10: 0 | BX10: 0 | BY10: 0 | BZ10: 0 | CA10: 0 | CB10: 0 | CC10: 0 | CD10: 0 | CE10: 0 | CF10: 0 | CG10: 0 | CH10: 0 | CI10: 12803208.01 | CJ10: 12803208.01 | CK10: No | CL10: =IFERROR(#REF!/AW10,0) -> 0 | CM10: CI | CN10: CI 1
B11: Community spaces | E11: CI 2 | F11: Community venue | G11: Acquisition of land and construction for Community Spaces to cater for new growth according to the Community Facilities Network Plan | J11: Community infrastructure - Drury IPA (Community spaces) | P11: 0.9680054134 | Q11: 2060 | R11: No | T11: 0 | U11: 0 | V11: 0 | W11: 0 | X11: 0 | Y11: 0 | Z11: 0 | AA11: 0 | AB11: 0 | AC11: 785088.1457 | AD11: 1012207.18 | AE11: 1077126.313 | AF11: 182260.5292 | AG11: 187910.6056 | AH11: 581207.5031 | AI11: 4294445.373 | AJ11: 4427573.179 | AK11: 0 | AL11: 0 | AM11: 0 | AN11: 0 | AO11: 0 | AP11: 0 | AQ11: 0 | AR11: 0 | AS11: 0 | AT11: 0 | AW11: 12547818.83 | AX11: 0 | AY11: 0 | AZ11: 0 | BB11: =IFERROR(VLOOKUP(J11,Funding_area_table!C:F,2,FALSE),"CHECK") -> CI A34 | BC11: 401462.2764 | BE11: 0 | BF11: 0 | BG11: 0 | BH11: 0 | BI11: 0 | BJ11: 0 | BK11: 0 | BL11: 0 | BM11: 0 | BN11: 0 | BO11: 759969.575 | BP11: 979822.03 | BQ11: 1042664.102 | BR11: 176429.1789 | BS11: 181898.4835 | BT11: 562612.0093 | BU11: 4157046.368 | BV11: 4285914.806 | BW11: 0 | BX11: 0 | BY11: 0 | BZ11: 0 | CA11: 0 | CB11: 0 | CC11: 0 | CD11: 0 | CE11: 0 | CF11: 0 | CG11: 0 | CH11: 0 | CI11: 12146356.55 | CJ11: 12146356.55 | CK11: No | CL11: =IFERROR(#REF!/AW11,0) -> 0 | CM11: CI | CN11: CI 2
B12: Community spaces | E12: CI 3 | F12: Pool and leisure | G12: Acquisition of land and construction for Community Spaces to cater for new growth according to the Community Facilities Network Plan | J12: Community infrastructure - Drury IPA (Community spaces) | P12: 0.9262315609 | Q12: 2060 | R12: No | T12: 0 | U12: 0 | V12: 0 | W12: 0 | X12: 0 | Y12: 0 | Z12: 0 | AA12: 0 | AB12: 0 | AC12: 8112577.505 | AD12: 10459474.2 | AE12: 11130305.24 | AF12: 1883358.802 | AG12: 1941742.925 | AH12: 6005810.866 | AI12: 44375935.52 | AJ12: 45751589.52 | AK12: 0 | AL12: 0 | AM12: 0 | AN12: 0 | AO12: 0 | AP12: 0 | AQ12: 0 | AR12: 0 | AS12: 0 | AT12: 0 | AW12: 129660794.6 | AX12: 0 | AY12: 0 | AZ12: 0 | BB12: =IFERROR(VLOOKUP(J12,Funding_area_table!C:F,2,FALSE),"CHECK") -> CI A34 | BC12: 9564874.431 | BE12: 0 | BF12: 0 | BG12: 0 | BH12: 0 | BI12: 0 | BJ12: 0 | BK12: 0 | BL12: 0 | BM12: 0 | BN12: 0 | BO12: 7514125.325 | BP12: 9687895.111 | BQ12: 10309239.99 | BR12: 1744426.363 | BS12: 1798503.58 | BT12: 5562771.572 | BU12: 41102392.02 | BV12: 42376566.17 | BW12: 0 | BX12: 0 | BY12: 0 | BZ12: 0 | CA12: 0 | CB12: 0 | CC12: 0 | CD12: 0 | CE12: 0 | CF12: 0 | CG12: 0 | CH12: 0 | CI12: 120095920.1 | CJ12: 120095920.1 | CK12: No | CL12: =IFERROR(#REF!/AW12,0) -> 0 | CM12: CI | CN12: CI 3
B13: Transport | E13: 7 TRA A23 | F13: Fitzgerald Rd upgrades (from Waihoehoe Rd to development boundary) | G13: 2-lane urban - upgrade existing road layout with active modes on both sides | J13: Transport - Drury East IPA | P13: 0.9569224105 | Q13: 2060 | R13: No | AC13: 43288.28031 | AD13: 430073.0002 | AE13: 0 | AF13: 0 | AG13: 0 | AH13: 0 | AI13: 0 | AJ13: 0 | AK13: 0 | AL13: 0 | AM13: 0 | AN13: 0 | AO13: 0 | AP13: 0 | AQ13: 0 | AR13: 0 | AS13: 0 | AT13: 0 | AU13: 0 | AW13: 473361.2805 | AX13: 0 | AY13: 0 | AZ13: 0 | BB13: =IFERROR(VLOOKUP(J13,Funding_area_table!C:F,2,FALSE),"CHECK") -> TRA A23 | BC13: 20391.26291 | BE13: 0 | BF13: 0 | BG13: 0 | BH13: 0 | BI13: 0 | BJ13: 0 | BK13: 0 | BL13: 0 | BM13: 0 | BN13: 0 | BO13: 41423.52555 | BP13: 411546.4921 | BQ13: 0 | BR13: 0 | BS13: 0 | BT13: 0 | BU13: 0 | BV13: 0 | BW13: 0 | BX13: 0 | BY13: 0 | BZ13: 0 | CA13: 0 | CB13: 0 | CC13: 0 | CD13: 0 | CE13: 0 | CF13: 0 | CG13: 0 | CH13: 0 | CI13: 452970.0176 | CJ13: 452970.0176 | CK13: No | CL13: =IFERROR(#REF!/AW13,0) -> 0 | CM13: TRA | CN13: 7 TRA A23 | CO13: Collector
B14: Transport | E14: 8 TRA A23 | F14: Fielding Rd upgrades ( from Waihoehoe Rd to development boundary ) | G14: 2-lane urban - upgrade existing road layout with active modes on both sides | J14: Transport - Drury East IPA | P14: 0.9569224105 | Q14: 2060 | R14: No | AC14: 44398.23622 | AD14: 441100.5131 | AE14: 0 | AF14: 0 | AG14: 0 | AH14: 0 | AI14: 0 | AJ14: 0 | AK14: 0 | AL14: 0 | AM14: 0 | AN14: 0 | AO14: 0 | AP14: 0 | AQ14: 0 | AR14: 0 | AS14: 0 | AT14: 0 | AU14: 0 | AW14: 485498.7493 | AX14: 0 | AY14: 0 | AZ14: 0 | BB14: =IFERROR(VLOOKUP(J14,Funding_area_table!C:F,2,FALSE),"CHECK") -> TRA A23 | BC14: 20914.11581 | BE14: 0 | BF14: 0 | BG14: 0 | BH14: 0 | BI14: 0 | BJ14: 0 | BK14: 0 | BL14: 0 | BM14: 0 | BN14: 0 | BO14: 42485.66723 | BP14: 422098.9662 | BQ14: 0 | BR14: 0 | BS14: 0 | BT14: 0 | BU14: 0 | BV14: 0 | BW14: 0 | BX14: 0 | BY14: 0 | BZ14: 0 | CA14: 0 | CB14: 0 | CC14: 0 | CD14: 0 | CE14: 0 | CF14: 0 | CG14: 0 | CH14: 0 | CI14: 464584.6335 | CJ14: 464584.6335 | CK14: No | CL14: =IFERROR(#REF!/AW14,0) -> 0 | CM14: TRA | CN14: 8 TRA A23 | CO14: Collector
B15: Transport | E15: 12 TRA A23 | F15: Interim walking, cycling and bus connections within Drury Centre (includes Bremner/Norrie/Firth Intersection upgrades, active mode on Norrie) -overlap with project 36 and 46 | G15: Intersection improvements on Bremner-Firth Rd, Norrie-Firth Rd, GSR-Firth Rd, Active mode facilities on both sides of Firth & Norrie Rd | J15: Transport - Drury East IPA | P15: 0.9569224105 | Q15: 2060 | R15: No | AC15: 1279937.944 | AD15: 12716299.84 | AE15: 0 | AF15: 0 | AG15: 0 | AH15: 0 | AI15: 0 | AJ15: 0 | AK15: 0 | AL15: 0 | AM15: 0 | AN15: 0 | AO15: 0 | AP15: 0 | AQ15: 0 | AR15: 0 | AS15: 0 | AT15: 0 | AU15: 0 | AW15: 13996237.78 | AX15: 0 | AY15: 0 | AZ15: 0 | BB15: =IFERROR(VLOOKUP(J15,Funding_area_table!C:F,2,FALSE),"CHECK") -> TRA A23 | BC15: 602924.1852 | BE15: 0 | BF15: 0 | BG15: 0 | BH15: 0 | BI15: 0 | BJ15: 0 | BK15: 0 | BL15: 0 | BM15: 0 | BN15: 0 | BO15: 1224801.303 | BP15: 12168512.29 | BQ15: 0 | BR15: 0 | BS15: 0 | BT15: 0 | BU15: 0 | BV15: 0 | BW15: 0 | BX15: 0 | BY15: 0 | BZ15: 0 | CA15: 0 | CB15: 0 | CC15: 0 | CD15: 0 | CE15: 0 | CF15: 0 | CG15: 0 | CH15: 0 | CI15: 13393313.59 | CJ15: 13393313.59 | CK15: No | CL15: =IFERROR(#REF!/AW15,0) -> 0 | CM15: TRA | CN15: 12 TRA A23 | CO15: Collector
B16: Transport | E16: 14a TRA A23 | F16: Western end of Brookefield Road Extension tie in with Quarry Rd | G16: 2-lane urban (New Road connection to Quarry Road with active modes on both sides + intersection improvements) | J16: Transport - Drury East IPA | P16: 0.9569224105 | Q16: 2060 | R16: No | AC16: 0 | AD16: 4096643.317 | AE16: 2430633.432 | AF16: 24148564.11 | AG16: 0 | AH16: 0 | AI16: 0 | AJ16: 0 | AK16: 0 | AL16: 0 | AM16: 0 | AN16: 0 | AO16: 0 | AP16: 0 | AQ16: 0 | AR16: 0 | AS16: 0 | AT16: 0 | AU16: 0 | AW16: 30675840.86 | AX16: 0 | AY16: 0 | AZ16: 0 | BB16: =IFERROR(VLOOKUP(J16,Funding_area_table!C:F,2,FALSE),"CHECK") -> TRA A23 | BC16: 1321441.279 | BE16: 0 | BF16: 0 | BG16: 0 | BH16: 0 | BI16: 0 | BJ16: 0 | BK16: 0 | BL16: 0 | BM16: 0 | BN16: 0 | BO16: 0 | BP16: 3920169.798 | BQ16: 2325927.603 | BR16: 23108302.18 | BS16: 0 | BT16: 0 | BU16: 0 | BV16: 0 | BW16: 0 | BX16: 0 | BY16: 0 | BZ16: 0 | CA16: 0 | CB16: 0 | CC16: 0 | CD16: 0 | CE16: 0 | CF16: 0 | CG16: 0 | CH16: 0 | CI16: 29354399.58 | CJ16: 29354399.58 | CK16: No | CL16: =IFERROR(#REF!/AW16,0) -> 0 | CM16: TRA | CN16: 14a TRA A23 | CO16: Collector
B17: Transport | E17: 14b TRA A23 | F17: Brookefield Road Upgrade | G17: 2-lane urban (upgrade existing road layout with active modes on both sides + intersection improvements) | J17: Transport - Drury East IPA | P17: 0.9569224105 | Q17: 2060 | R17: No | AC17: 217773.3823 | AD17: 2163598.351 | AE17: 0 | AF17: 0 | AG17: 0 | AH17: 0 | AI17: 0 | AJ17: 0 | AK17: 0 | AL17: 0 | AM17: 0 | AN17: 0 | AO17: 0 | AP17: 0 | AQ17: 0 | AR17: 0 | AS17: 0 | AT17: 0 | AU17: 0 | AW17: 2381371.733 | AX17: 0 | AY17: 0 | AZ17: 0 | BB17: =IFERROR(VLOOKUP(J17,Funding_area_table!C:F,2,FALSE),"CHECK") -> TRA A23 | BC17: 102583.7539 | BE17: 0 | BF17: 0 | BG17: 0 | BH17: 0 | BI17: 0 | BJ17: 0 | BK17: 0 | BL17: 0 | BM17: 0 | BN17: 0 | BO17: 208392.23 | BP17: 2070395.75 | BQ17: 0 | BR17: 0 | BS17: 0 | BT17: 0 | BU17: 0 | BV17: 0 | BW17: 0 | BX17: 0 | BY17: 0 | BZ17: 0 | CA17: 0 | CB17: 0 | CC17: 0 | CD17: 0 | CE17: 0 | CF17: 0 | CG17: 0 | CH17: 0 | CI17: 2278787.979 | CJ17: 2278787.979 | CK17: No | CL17: =IFERROR(#REF!/AW17,0) -> 0 | CM17: TRA | CN17: 14b TRA A23 | CO17: Collector
B18: Transport | E18: 20a TRA A23 | F18: Upgrade Fitzgerald Rd from Brookefield to Cossey Rd for active modes | G18: Active mode upgrades- existing road layout with active modes on both sides + intersection upgrades for active mode crossing | J18: Transport - Drury East IPA | P18: 0.9569224105 | Q18: 2060 | R18: No | AC18: 0 | AD18: 0 | AE18: 755674.932 | AF18: 7507699.147 | AG18: 0 | AH18: 0 | AI18: 0 | AJ18: 0 | AK18: 0 | AL18: 0 | AM18: 0 | AN18: 0 | AO18: 0 | AP18: 0 | AQ18: 0 | AR18: 0 | AS18: 0 | AT18: 0 | AU18: 0 | AW18: 8263374.079 | AX18: 0 | AY18: 0 | AZ18: 0 | BB18: =IFERROR(VLOOKUP(J18,Funding_area_table!C:F,2,FALSE),"CHECK") -> TRA A23 | BC18: 355966.2362 | BE18: 0 | BF18: 0 | BG18: 0 | BH18: 0 | BI18: 0 | BJ18: 0 | BK18: 0 | BL18: 0 | BM18: 0 | BN18: 0 | BO18: 0 | BP18: 0 | BQ18: 723122.2775 | BR18: 7184285.565 | BS18: 0 | BT18: 0 | BU18: 0 | BV18: 0 | BW18: 0 | BX18: 0 | BY18: 0 | BZ18: 0 | CA18: 0 | CB18: 0 | CC18: 0 | CD18: 0 | CE18: 0 | CF18: 0 | CG18: 0 | CH18: 0 | CI18: 7907407.843 | CJ18: 7907407.843 | CK18: No | CL18: =IFERROR(#REF!/AW18,0) -> 0 | CM18: TRA | CN18: 20a TRA A23 | CO18: Collector
B19: Transport | E19: 21 TRA A23 | F19: Fielding Rd upgrades for active modes ( from Fitzgerald Rd to development boundary ) | G19: Active mode upgrades- existing road layout with active modes on both sides + intersection upgrades for active mode crossing | J19: Transport - Drury East IPA | P19: 0.9569224105 | Q19: 2060 | R19: No | AC19: 0 | AD19: 0 | AE19: 26743.03636 | AF19: 265694.4974 | AG19: 0 | AH19: 0 | AI19: 0 | AJ19: 0 | AK19: 0 | AL19: 0 | AM19: 0 | AN19: 0 | AO19: 0 | AP19: 0 | AQ19: 0 | AR19: 0 | AS19: 0 | AT19: 0 | AU19: 0 | AW19: 292437.5337 | AX19: 0 | AY19: 0 | AZ19: 0 | BB19: =IFERROR(VLOOKUP(J19,Funding_area_table!C:F,2,FALSE),"CHECK") -> TRA A23 | BC19: 12597.50402 | BE19: 0 | BF19: 0 | BG19: 0 | BH19: 0 | BI19: 0 | BJ19: 0 | BK19: 0 | BL19: 0 | BM19: 0 | BN19: 0 | BO19: 0 | BP19: 0 | BQ19: 25591.01082 | BR19: 254249.0189 | BS19: 0 | BT19: 0 | BU19: 0 | BV19: 0 | BW19: 0 | BX19: 0 | BY19: 0 | BZ19: 0 | CA19: 0 | CB19: 0 | CC19: 0 | CD19: 0 | CE19: 0 | CF19: 0 | CG19: 0 | CH19: 0 | CI19: 279840.0297 | CJ19: 279840.0297 | CK19: No | CL19: =IFERROR(#REF!/AW19,0) -> 0 | CM19: TRA | CN19: 21 TRA A23 | CO19: Collector
B20: Transport | E20: 22 TRA A23 | F20: Upgrade Intersection at Quarry/ GSR | G20: Upgrade intersection with active modes facilities(TDM) | J20: Transport - Drury East IPA | P20: 0.9569224105 | Q20: 2060 | R20: No | AC20: 146819.5642 | AD20: 1458665.718 | AE20: 0 | AF20: 0 | AG20: 0 | AH20: 0 | AI20: 0 | AJ20: 0 | AK20: 0 | AL20: 0 | AM20: 0 | AN20: 0 | AO20: 0 | AP20: 0 | AQ20: 0 | AR20: 0 | AS20: 0 | AT20: 0 | AU20: 0 | AW20: 1605485.282 | AX20: 0 | AY20: 0 | AZ20: 0 | BB20: =IFERROR(VLOOKUP(J20,Funding_area_table!C:F,2,FALSE),"CHECK") -> TRA A23 | BC20: 69160.43588 | BE20: 0 | BF20: 0 | BG20: 0 | BH20: 0 | BI20: 0 | BJ20: 0 | BK20: 0 | BL20: 0 | BM20: 0 | BN20: 0 | BO20: 140494.9313 | BP20: 1395829.915 | BQ20: 0 | BR20: 0 | BS20: 0 | BT20: 0 | BU20: 0 | BV20: 0 | BW20: 0 | BX20: 0 | BY20: 0 | BZ20: 0 | CA20: 0 | CB20: 0 | CC20: 0 | CD20: 0 | CE20: 0 | CF20: 0 | CG20: 0 | CH20: 0 | CI20: 1536324.846 | CJ20: 1536324.846 | CK20: No | CL20: =IFERROR(#REF!/AW20,0) -> 0 | CM20: TRA | CN20: 22 TRA A23 | CO20: Collector
B21: Transport | E21: 25 TRA A23 | F21: Upgrades on Drury Hills from Waihoehoe Rd to Macwhinney Dr | G21: 2-lane urban- upgrade existing road layout to 2-lane urban with active modes on both sides | J21: Transport - Drury East IPA | P21: 0.9569224105 | Q21: 2060 | R21: No | AC21: 0 | AD21: 0 | AE21: 0 | AF21: 0 | AG21: 0 | AH21: 0 | AI21: 506572.1556 | AJ21: 5032840.418 | AK21: 0 | AL21: 0 | AM21: 0 | AN21: 0 | AO21: 0 | AP21: 0 | AQ21: 0 | AR21: 0 | AS21: 0 | AT21: 0 | AU21: 0 | AW21: 5539412.573 | AX21: 0 | AY21: 0 | AZ21: 0 | BB21: =IFERROR(VLOOKUP(J21,Funding_area_table!C:F,2,FALSE),"CHECK") -> TRA A23 | BC21: 238624.5407 | BE21: 0 | BF21: 0 | BG21: 0 | BH21: 0 | BI21: 0 | BJ21: 0 | BK21: 0 | BL21: 0 | BM21: 0 | BN21: 0 | BO21: 0 | BP21: 0 | BQ21: 0 | BR21: 0 | BS21: 0 | BT21: 0 | BU21: 484750.2482 | BV21: 4816037.784 | BW21: 0 | BX21: 0 | BY21: 0 | BZ21: 0 | CA21: 0 | CB21: 0 | CC21: 0 | CD21: 0 | CE21: 0 | CF21: 0 | CG21: 0 | CH21: 0 | CI21: 5300788.032 | CJ21: 5300788.032 | CK21: No | CL21: =IFERROR(#REF!/AW21,0) -> 0 | CM21: TRA | CN21: 25 TRA A23 | CO21: Collector
B22: Transport | E22: 27a TRA A23 | F22: Active mode facilities from Drury hills and Fitzgerald to Quarry Rd (2 links and intersections) | G22: Active mode upgrades- existing road layout with active modes on both sides + intersection upgrades for active mode crossing | J22: Transport - Drury East IPA | P22: 0.9569224105 | Q22: 2060 | R22: No | AC22: 0 | AD22: 0 | AE22: 0 | AF22: 0 | AG22: 0 | AH22: 0 | AI22: 880501.5098 | AJ22: 8747862.545 | AK22: 0 | AL22: 0 | AM22: 0 | AN22: 0 | AO22: 0 | AP22: 0 | AQ22: 0 | AR22: 0 | AS22: 0 | AT22: 0 | AU22: 0 | AW22: 9628364.055 | AX22: 0 | AY22: 0 | AZ22: 0 | BB22: =IFERROR(VLOOKUP(J22,Funding_area_table!C:F,2,FALSE),"CHECK") -> TRA A23 | BC22: 414766.714 | BE22: 0 | BF22: 0 | BG22: 0 | BH22: 0 | BI22: 0 | BJ22: 0 | BK22: 0 | BL22: 0 | BM22: 0 | BN22: 0 | BO22: 0 | BP22: 0 | BQ22: 0 | BR22: 0 | BS22: 0 | BT22: 0 | BU22: 842571.6272 | BV22: 8371025.714 | BW22: 0 | BX22: 0 | BY22: 0 | BZ22: 0 | CA22: 0 | CB22: 0 | CC22: 0 | CD22: 0 | CE22: 0 | CF22: 0 | CG22: 0 | CH22: 0 | CI22: 9213597.341 | CJ22: 9213597.341 | CK22: No | CL22: =IFERROR(#REF!/AW22,0) -> 0 | CM22: TRA | CN22: 27a TRA A23 | CO22: Collector
B23: Transport | E23: 28a TRA A23 | F23: Northern Section of new collector in N-S direction parallel to Fitzgerald Rd | G23: 2-lane collector to connect with Drury Central Station, including bridge over streamM) | J23: Transport - Drury East IPA | P23: 0.9569224105 | Q23: 2060 | R23: No | AC23: 0 | AD23: 6942637.384 | AE23: 1421486.433 | AF23: 14122596.94 | AG23: 0 | AH23: 0 | AI23: 0 | AJ23: 0 | AK23: 0 | AL23: 0 | AM23: 0 | AN23: 0 | AO23: 0 | AP23: 0 | AQ23: 0 | AR23: 0 | AS23: 0 | AT23: 0 | AU23: 0 | AW23: 22486720.76 | AX23: 0 | AY23: 0 | AZ23: 0 | BB23: =IFERROR(VLOOKUP(J23,Funding_area_table!C:F,2,FALSE),"CHECK") -> TRA A23 | BC23: 968673.7253 | BE23: 0 | BF23: 0 | BG23: 0 | BH23: 0 | BI23: 0 | BJ23: 0 | BK23: 0 | BL23: 0 | BM23: 0 | BN23: 0 | BO23: 0 | BP23: 6643565.301 | BQ23: 1360252.224 | BR23: 13514229.51 | BS23: 0 | BT23: 0 | BU23: 0 | BV23: 0 | BW23: 0 | BX23: 0 | BY23: 0 | BZ23: 0 | CA23: 0 | CB23: 0 | CC23: 0 | CD23: 0 | CE23: 0 | CF23: 0 | CG23: 0 | CH23: 0 | CI23: 21518047.03 | CJ23: 21518047.03 | CK23: No | CL23: =IFERROR(#REF!/AW23,0) -> 0 | CM23: TRA | CN23: 28a TRA A23 | CO23: Collector
B24: Transport | E24: 31 TRA A23 | F24: Upgrades on Cossey Rd between Fitzgerald & Waihoehoe Rd | G24: 2-lane urban - upgrade existing roadwith active modes on both sides / Mill Road design ? | J24: Transport - Drury East IPA | P24: 0.9569224105 | Q24: 2060 | R24: No | AC24: 0 | AD24: 0 | AE24: 0 | AF24: 0 | AG24: 0 | AH24: 0 | AI24: 82651.24643 | AJ24: 821147.6471 | AK24: 0 | AL24: 0 | AM24: 0 | AN24: 0 | AO24: 0 | AP24: 0 | AQ24: 0 | AR24: 0 | AS24: 0 | AT24: 0 | AU24: 0 | AW24: 903798.8935 | AX24: 0 | AY24: 0 | AZ24: 0 | BB24: =IFERROR(VLOOKUP(J24,Funding_area_table!C:F,2,FALSE),"CHECK") -> TRA A23 | BC24: 38933.4777 | BE24: 0 | BF24: 0 | BG24: 0 | BH24: 0 | BI24: 0 | BJ24: 0 | BK24: 0 | BL24: 0 | BM24: 0 | BN24: 0 | BO24: 0 | BP24: 0 | BQ24: 0 | BR24: 0 | BS24: 0 | BT24: 0 | BU24: 79090.82997 | BV24: 785774.5858 | BW24: 0 | BX24: 0 | BY24: 0 | BZ24: 0 | CA24: 0 | CB24: 0 | CC24: 0 | CD24: 0 | CE24: 0 | CF24: 0 | CG24: 0 | CH24: 0 | CI24: 864865.4158 | CJ24: 864865.4158 | CK24: No | CL24: =IFERROR(#REF!/AW24,0) -> 0 | CM24: TRA | CN24: 31 TRA A23 | CO24: Collector
B25: Transport | E25: 33 TRA A23 | F25: Upgrade Fitzgerald Rd from project 7 to Brookefield Rd | G25: 2-lane urban- upgrade existing road layout to 2-lane urban with active modes on both sides (TDM ) | J25: Transport - Drury East IPA | P25: 0.9569224105 | Q25: 2060 | R25: No | AC25: 28118.88294 | AD25: 279363.6583 | AE25: 0 | AF25: 0 | AG25: 0 | AH25: 0 | AI25: 0 | AJ25: 0 | AK25: 0 | AL25: 0 | AM25: 0 | AN25: 0 | AO25: 0 | AP25: 0 | AQ25: 0 | AR25: 0 | AS25: 0 | AT25: 0 | AU25: 0 | AW25: 307482.5412 | AX25: 0 | AY25: 0 | AZ25: 0 | BB25: =IFERROR(VLOOKUP(J25,Funding_area_table!C:F,2,FALSE),"CHECK") -> TRA A23 | BC25: 13245.60668 | BE25: 0 | BF25: 0 | BG25: 0 | BH25: 0 | BI25: 0 | BJ25: 0 | BK25: 0 | BL25: 0 | BM25: 0 | BN25: 0 | BO25: 26907.58924 | BP25: 267329.3453 | BQ25: 0 | BR25: 0 | BS25: 0 | BT25: 0 | BU25: 0 | BV25: 0 | BW25: 0 | BX25: 0 | BY25: 0 | BZ25: 0 | CA25: 0 | CB25: 0 | CC25: 0 | CD25: 0 | CE25: 0 | CF25: 0 | CG25: 0 | CH25: 0 | CI25: 294236.9345 | CJ25: 294236.9345 | CK25: No | CL25: =IFERROR(#REF!/AW25,0) -> 0 | CM25: TRA | CN25: 33 TRA A23 | CO25: Collector
B26: Transport | E26: 55a TRA A23 | F26: New E-W collector Jesmond Rd to Burberry Rd | G26: 2-lane urban- new collector with active mode on both sides + intersection improvements (TDM) | J26: Transport - Drury East IPA | P26: 0.9569224105 | Q26: 2060 | R26: No | AC26: 0 | AD26: 0 | AE26: 0 | AF26: 0 | AG26: 0 | AH26: 0 | AI26: 0 | AJ26: 0 | AK26: 0 | AL26: 0 | AM26: 0 | AN26: 0 | AO26: 0 | AP26: 0 | AQ26: 0 | AR26: 0 | AS26: 0 | AT26: 0 | AU26: 0 | AW26: 0 | AX26: 0 | AY26: 0 | AZ26: 0 | BB26: =IFERROR(VLOOKUP(J26,Funding_area_table!C:F,2,FALSE),"CHECK") -> TRA A23 | BC26: 0 | BE26: 0 | BF26: 0 | BG26: 0 | BH26: 0 | BI26: 0 | BJ26: 0 | BK26: 0 | BL26: 0 | BM26: 0 | BN26: 0 | BO26: 0 | BP26: 0 | BQ26: 0 | BR26: 0 | BS26: 0 | BT26: 0 | BU26: 0 | BV26: 0 | BW26: 0 | BX26: 0 | BY26: 0 | BZ26: 0 | CA26: 0 | CB26: 0 | CC26: 0 | CD26: 0 | CE26: 0 | CF26: 0 | CG26: 0 | CH26: 0 | CI26: 0 | CJ26: 0 | CK26: No | CL26: =IFERROR(#REF!/AW26,0) -> 0 | CM26: TRA | CN26: 55a TRA A23 | CO26: Collector
B27: Transport | E27: 58 TRA A23 | F27: Oira Rd upgrades from SH22 to proposed east-west collector | G27: 2-lane urban- upgrade existing road layout with active modes on both sides + intersection improvements (TDM) | J27: Transport - Drury East IPA | P27: 0.9569224105 | Q27: 2060 | R27: No | AC27: 0 | AD27: 0 | AE27: 0 | AF27: 0 | AG27: 0 | AH27: 0 | AI27: 0 | AJ27: 0 | AK27: 0 | AL27: 0 | AM27: 0 | AN27: 0 | AO27: 0 | AP27: 0 | AQ27: 0 | AR27: 0 | AS27: 0 | AT27: 0 | AU27: 0 | AW27: 0 | AX27: 0 | AY27: 0 | AZ27: 0 | BB27: =IFERROR(VLOOKUP(J27,Funding_area_table!C:F,2,FALSE),"CHECK") -> TRA A23 | BC27: 0 | BE27: 0 | BF27: 0 | BG27: 0 | BH27: 0 | BI27: 0 | BJ27: 0 | BK27: 0 | BL27: 0 | BM27: 0 | BN27: 0 | BO27: 0 | BP27: 0 | BQ27: 0 | BR27: 0 | BS27: 0 | BT27: 0 | BU27: 0 | BV27: 0 | BW27: 0 | BX27: 0 | BY27: 0 | BZ27: 0 | CA27: 0 | CB27: 0 | CC27: 0 | CD27: 0 | CE27: 0 | CF27: 0 | CG27: 0 | CH27: 0 | CI27: 0 | CJ27: 0 | CK27: No | CL27: =IFERROR(#REF!/AW27,0) -> 0 | CM27: TRA | CN27: 58 TRA A23 | CO27: Collector
B28: Transport | E28: 59 TRA A23 | F28: New Intersection on Jesmond Rd/collector (PC61) | G28: 2-lane intersection (new intersection + active mode crossings) | J28: Transport - Drury East IPA | P28: 0.9569224105 | Q28: 2060 | R28: No | AC28: 0 | AD28: 0 | AE28: 0 | AF28: 0 | AG28: 0 | AH28: 0 | AI28: 0 | AJ28: 0 | AK28: 0 | AL28: 0 | AM28: 0 | AN28: 0 | AO28: 0 | AP28: 0 | AQ28: 0 | AR28: 0 | AS28: 0 | AT28: 0 | AU28: 0 | AW28: 0 | AX28: 0 | AY28: 0 | AZ28: 0 | BB28: =IFERROR(VLOOKUP(J28,Funding_area_table!C:F,2,FALSE),"CHECK") -> TRA A23 | BC28: 0 | BE28: 0 | BF28: 0 | BG28: 0 | BH28: 0 | BI28: 0 | BJ28: 0 | BK28: 0 | BL28: 0 | BM28: 0 | BN28: 0 | BO28: 0 | BP28: 0 | BQ28: 0 | BR28: 0 | BS28: 0 | BT28: 0 | BU28: 0 | BV28: 0 | BW28: 0 | BX28: 0 | BY28: 0 | BZ28: 0 | CA28: 0 | CB28: 0 | CC28: 0 | CD28: 0 | CE28: 0 | CF28: 0 | CG28: 0 | CH28: 0 | CI28: 0 | CJ28: 0 | CK28: No | CL28: =IFERROR(#REF!/AW28,0) -> 0 | CM28: TRA | CN28: 59 TRA A23 | CO28: Collector
B29: Transport | E29: 69 TRA A23 | F29: walk/cycle bridges on Quarry Road bridge (oiver SH1) | G29: New cycle bridge 5m wide, 90m long, approach lengths 200m total for both sides. No property required | J29: Transport - Drury East IPA | P29: 0.9569224105 | Q29: 2060 | R29: No | AC29: 0 | AD29: 0 | AE29: 624531.8399 | AF29: 6204780.605 | AG29: 0 | AH29: 0 | AI29: 0 | AJ29: 0 | AK29: 0 | AL29: 0 | AM29: 0 | AN29: 0 | AO29: 0 | AP29: 0 | AQ29: 0 | AR29: 0 | AS29: 0 | AT29: 0 | AU29: 0 | AW29: 6829312.445 | AX29: 0 | AY29: 0 | AZ29: 0 | BB29: =IFERROR(VLOOKUP(J29,Funding_area_table!C:F,2,FALSE),"CHECK") -> TRA A23 | BC29: 294190.3178 | BE29: 0 | BF29: 0 | BG29: 0 | BH29: 0 | BI29: 0 | BJ29: 0 | BK29: 0 | BL29: 0 | BM29: 0 | BN29: 0 | BO29: 0 | BP29: 0 | BQ29: 597628.5137 | BR29: 5937493.613 | BS29: 0 | BT29: 0 | BU29: 0 | BV29: 0 | BW29: 0 | BX29: 0 | BY29: 0 | BZ29: 0 | CA29: 0 | CB29: 0 | CC29: 0 | CD29: 0 | CE29: 0 | CF29: 0 | CG29: 0 | CH29: 0 | CI29: 6535122.127 | CJ29: 6535122.127 | CK29: No | CL29: =IFERROR(#REF!/AW29,0) -> 0 | CM29: TRA | CN29: 69 TRA A23 | CO29: Collector
B30: Transport | E30: 1b TRA A23 | F30: GSR improvements - Waihoehoe Rd to Drury Interchange | G30: 4-lane urban- existing road layout with active modes on both sides + intersection improvements (TDM) | J30: Transport - Drury East IPA | P30: 0.9569224105 | Q30: 2060 | R30: Yes | AC30: 0 | AD30: 0 | AE30: 0 | AF30: 0 | AG30: 0 | AH30: 0 | AI30: 0 | AJ30: 0 | AK30: 0 | AL30: 0 | AM30: 0 | AN30: 0 | AO30: 0 | AP30: 0 | AQ30: 0 | AR30: 0 | AS30: 0 | AT30: 0 | AU30: 0 | AW30: 0 | AX30: 0 | AY30: 0 | AZ30: 0 | BB30: =IFERROR(VLOOKUP(J30,Funding_area_table!C:F,2,FALSE),"CHECK") -> TRA A23 | BC30: 0 | BE30: 0 | BF30: 0 | BG30: 0 | BH30: 0 | BI30: 0 | BJ30: 0 | BK30: 0 | BL30: 0 | BM30: 0 | BN30: 0 | BO30: 0 | BP30: 0 | BQ30: 0 | BR30: 0 | BS30: 0 | BT30: 0 | BU30: 0 | BV30: 0 | BW30: 0 | BX30: 0 | BY30: 0 | BZ30: 0 | CA30: 0 | CB30: 0 | CC30: 0 | CD30: 0 | CE30: 0 | CF30: 0 | CG30: 0 | CH30: 0 | CI30: 0 | CJ30: 0 | CK30: No | CL30: =IFERROR(#REF!/AW30,0) -> 0 | CM30: TRA | CN30: 1b TRA A23 | CO30: Arterial
B31: Transport | E31: 2b TRA A23 | F31: GSR improvements - From Drury School to Waihoehoe Rd | G31: 4-lane urban- existing road layout with active modes on both sides + intersection improvements (TDM) | J31: Transport - Drury East IPA | P31: 0.9569224105 | Q31: 2060 | R31: Yes | AC31: 0 | AD31: 0 | AE31: 0 | AF31: 0 | AG31: 0 | AH31: 0 | AI31: 12791699.5 | AJ31: 2951236.937 | AK31: 29320807.26 | AL31: 0 | AM31: 0 | AN31: 0 | AO31: 0 | AP31: 0 | AQ31: 0 | AR31: 0 | AS31: 0 | AT31: 0 | AU31: 0 | AW31: 45063743.7 | AX31: 0 | AY31: 0 | AZ31: 0 | BB31: =IFERROR(VLOOKUP(J31,Funding_area_table!C:F,2,FALSE),"CHECK") -> TRA A23 | BC31: 1941237.451 | BE31: 0 | BF31: 0 | BG31: 0 | BH31: 0 | BI31: 0 | BJ31: 0 | BK31: 0 | BL31: 0 | BM31: 0 | BN31: 0 | BO31: 0 | BP31: 0 | BQ31: 0 | BR31: 0 | BS31: 0 | BT31: 0 | BU31: 12240663.92 | BV31: 2824104.763 | BW31: 28057737.56 | BX31: 0 | BY31: 0 | BZ31: 0 | CA31: 0 | CB31: 0 | CC31: 0 | CD31: 0 | CE31: 0 | CF31: 0 | CG31: 0 | CH31: 0 | CI31: 43122506.25 | CJ31: 43122506.25 | CK31: No | CL31: =IFERROR(#REF!/AW31,0) -> 0 | CM31: TRA | CN31: 2b TRA A23 | CO31: Arterial
B32: Transport | E32: 4b TRA A23 | F32: Waihoehoe Rd East upgrades- from Fitzgerald Rd to before Cossey Rd (development boundary) | G32: Expand to 24m cross section | J32: Transport - Drury East IPA | P32: 0.9569224105 | Q32: 2060 | R32: Yes | AC32: 0 | AD32: 0 | AE32: 0 | AF32: 0 | AG32: 0 | AH32: 0 | AI32: 0 | AJ32: 0 | AK32: 0 | AL32: 0 | AM32: 0 | AN32: 0 | AO32: 0 | AP32: 0 | AQ32: 0 | AR32: 0 | AS32: 0 | AT32: 0 | AU32: 0 | AW32: 0 | AX32: 0 | AY32: 0 | AZ32: 0 | BB32: =IFERROR(VLOOKUP(J32,Funding_area_table!C:F,2,FALSE),"CHECK") -> TRA A23 | BC32: 0 | BE32: 0 | BF32: 0 | BG32: 0 | BH32: 0 | BI32: 0 | BJ32: 0 | BK32: 0 | BL32: 0 | BM32: 0 | BN32: 0 | BO32: 0 | BP32: 0 | BQ32: 0 | BR32: 0 | BS32: 0 | BT32: 0 | BU32: 0 | BV32: 0 | BW32: 0 | BX32: 0 | BY32: 0 | BZ32: 0 | CA32: 0 | CB32: 0 | CC32: 0 | CD32: 0 | CE32: 0 | CF32: 0 | CG32: 0 | CH32: 0 | CI32: 0 | CJ32: 0 | CK32: No | CL32: =IFERROR(#REF!/AW32,0) -> 0 | CM32: TRA | CN32: 4b TRA A23 | CO32: Arterial
B33: Transport | E33: 9b TRA A23 | F33: Upgrade in Norrie Rd/GSR/Waihoehoe intersection | G33: multi-lane signalised intersection with active mode crossings, SGA design | J33: Transport - Drury East IPA | P33: 0.9569224105 | Q33: 2060 | R33: Yes | AC33: 0 | AD33: 0 | AE33: 0 | AF33: 0 | AG33: 0 | AH33: 0 | AI33: 0 | AJ33: 0 | AK33: 0 | AL33: 0 | AM33: 0 | AN33: 0 | AO33: 0 | AP33: 0 | AQ33: 0 | AR33: 0 | AS33: 0 | AT33: 0 | AU33: 0 | AW33: 0 | AX33: 0 | AY33: 0 | AZ33: 0 | BB33: =IFERROR(VLOOKUP(J33,Funding_area_table!C:F,2,FALSE),"CHECK") -> TRA A23 | BC33: 0 | BE33: 0 | BF33: 0 | BG33: 0 | BH33: 0 | BI33: 0 | BJ33: 0 | BK33: 0 | BL33: 0 | BM33: 0 | BN33: 0 | BO33: 0 | BP33: 0 | BQ33: 0 | BR33: 0 | BS33: 0 | BT33: 0 | BU33: 0 | BV33: 0 | BW33: 0 | BX33: 0 | BY33: 0 | BZ33: 0 | CA33: 0 | CB33: 0 | CC33: 0 | CD33: 0 | CE33: 0 | CF33: 0 | CG33: 0 | CH33: 0 | CI33: 0 | CJ33: 0 | CK33: No | CL33: =IFERROR(#REF!/AW33,0) -> 0 | CM33: TRA | CN33: 9b TRA A23 | CO33: Arterial
B34: Transport | E34: 10b TRA A23 | F34: New intersection on Waihoehoe Rd/Fitzgerald Rd( including approach cross-sections) | G34: multi-lane roundabout with active mode crossings, SGA design | J34: Transport - Drury East IPA | P34: 0.9569224105 | Q34: 2060 | R34: Yes | AC34: 0 | AD34: 0 | AE34: 0 | AF34: 0 | AG34: 0 | AH34: 0 | AI34: 0 | AJ34: 0 | AK34: 0 | AL34: 0 | AM34: 0 | AN34: 0 | AO34: 0 | AP34: 0 | AQ34: 0 | AR34: 0 | AS34: 0 | AT34: 0 | AU34: 0 | AW34: 0 | AX34: 0 | AY34: 0 | AZ34: 0 | BB34: =IFERROR(VLOOKUP(J34,Funding_area_table!C:F,2,FALSE),"CHECK") -> TRA A23 | BC34: 0 | BE34: 0 | BF34: 0 | BG34: 0 | BH34: 0 | BI34: 0 | BJ34: 0 | BK34: 0 | BL34: 0 | BM34: 0 | BN34: 0 | BO34: 0 | BP34: 0 | BQ34: 0 | BR34: 0 | BS34: 0 | BT34: 0 | BU34: 0 | BV34: 0 | BW34: 0 | BX34: 0 | BY34: 0 | BZ34: 0 | CA34: 0 | CB34: 0 | CC34: 0 | CD34: 0 | CE34: 0 | CF34: 0 | CG34: 0 | CH34: 0 | CI34: 0 | CJ34: 0 | CK34: No | CL34: =IFERROR(#REF!/AW34,0) -> 0 | CM34: TRA | CN34: 10b TRA A23 | CO34: Arterial
B35: Transport | E35: 13b TRA A23 | F35: N-S Opaheke Arterial across development (upto Waihoihoi Stream) | G35: 4-lane urban- upgrade 2-lane arterial with SGA design + intersection improvements (TDM) | J35: Transport - Drury East IPA | P35: 0.9569224105 | Q35: 2060 | R35: Yes | AC35: 0 | AD35: 0 | AE35: 0 | AF35: 0 | AG35: 0 | AH35: 0 | AI35: 0 | AJ35: 0 | AK35: 0 | AL35: 0 | AM35: 0 | AN35: 0 | AO35: 0 | AP35: 0 | AQ35: 0 | AR35: 0 | AS35: 0 | AT35: 1098616.523 | AU35: 10914855.03 | AW35: 12013471.56 | AX35: 0 | AY35: 0 | AZ35: 0 | BB35: =IFERROR(VLOOKUP(J35,Funding_area_table!C:F,2,FALSE),"CHECK") -> TRA A23 | BC35: 517511.3958 | BE35: 0 | BF35: 0 | BG35: 0 | BH35: 0 | BI35: 0 | BJ35: 0 | BK35: 0 | BL35: 0 | BM35: 0 | BN35: 0 | BO35: 0 | BP35: 0 | BQ35: 0 | BR35: 0 | BS35: 0 | BT35: 0 | BU35: 0 | BV35: 0 | BW35: 0 | BX35: 0 | BY35: 0 | BZ35: 0 | CA35: 0 | CB35: 0 | CC35: 0 | CD35: 0 | CE35: 0 | CF35: 1051290.772 | CG35: 10444669.39 | CH35: 0 | CI35: 11495960.16 | CJ35: 11495960.16 | CK35: No | CL35: =IFERROR(#REF!/AW35,0) -> 0 | CM35: TRA | CN35: 13b TRA A23 | CO35: Arterial
B36: Transport | E36: 16b TRA A23 | F36: Widen Bremner Road Bridge ove SH1 to 4-lanes | G36: 4-lane urban- upgrade 2-lane urban with active modes on both sides (SGA design) | J36: Transport - Drury East IPA | P36: 0.9569224105 | Q36: 2060 | R36: Yes | AC36: 0 | AD36: 0 | AE36: 0 | AF36: 0 | AG36: 0 | AH36: 0 | AI36: 0 | AJ36: 0 | AK36: 0 | AL36: 0 | AM36: 0 | AN36: 0 | AO36: 0 | AP36: 0 | AQ36: 0 | AR36: 0 | AS36: 0 | AT36: 458591.0623 | AU36: 4556143.894 | AW36: 5014734.956 | AX36: 0 | AY36: 0 | AZ36: 0 | BB36: =IFERROR(VLOOKUP(J36,Funding_area_table!C:F,2,FALSE),"CHECK") -> TRA A23 | BC36: 216022.6937 | BE36: 0 | BF36: 0 | BG36: 0 | BH36: 0 | BI36: 0 | BJ36: 0 | BK36: 0 | BL36: 0 | BM36: 0 | BN36: 0 | BO36: 0 | BP36: 0 | BQ36: 0 | BR36: 0 | BS36: 0 | BT36: 0 | BU36: 0 | BV36: 0 | BW36: 0 | BX36: 0 | BY36: 0 | BZ36: 0 | CA36: 0 | CB36: 0 | CC36: 0 | CD36: 0 | CE36: 0 | CF36: 438836.0648 | CG36: 4359876.198 | CH36: 0 | CI36: 4798712.262 | CJ36: 4798712.262 | CK36: No | CL36: =IFERROR(#REF!/AW36,0) -> 0 | CM36: TRA | CN36: 16b TRA A23 | CO36: Arterial
B37: Transport | E37: 23b TRA A23 | F37: Waihoehoe Rd West upgrades- between GSR & Kath Henry Lane | G37: Final 4-lane - following interim option, upgrade Road corridor to provide four lanes with additional turning lanes at intersections where required (as indicated in SGA Design | J37: Transport - Drury East IPA | P37: 0.9569224105 | Q37: 2060 | R37: Yes | AC37: 0 | AD37: 0 | AE37: 0 | AF37: 0 | AG37: 0 | AH37: 0 | AI37: 0 | AJ37: 0 | AK37: 0 | AL37: 0 | AM37: 0 | AN37: 0 | AO37: 0 | AP37: 0 | AQ37: 0 | AR37: 0 | AS37: 0 | AT37: 0 | AU37: 0 | AW37: 0 | AX37: 0 | AY37: 0 | AZ37: 0 | BB37: =IFERROR(VLOOKUP(J37,Funding_area_table!C:F,2,FALSE),"CHECK") -> TRA A23 | BC37: 0 | BE37: 0 | BF37: 0 | BG37: 0 | BH37: 0 | BI37: 0 | BJ37: 0 | BK37: 0 | BL37: 0 | BM37: 0 | BN37: 0 | BO37: 0 | BP37: 0 | BQ37: 0 | BR37: 0 | BS37: 0 | BT37: 0 | BU37: 0 | BV37: 0 | BW37: 0 | BX37: 0 | BY37: 0 | BZ37: 0 | CA37: 0 | CB37: 0 | CC37: 0 | CD37: 0 | CE37: 0 | CF37: 0 | CG37: 0 | CH37: 0 | CI37: 0 | CJ37: 0 | CK37: No | CL37: =IFERROR(#REF!/AW37,0) -> 0 | CM37: TRA | CN37: 23b TRA A23 | CO37: Arterial
B38: Transport | E38: 24 TRA A23 | F38: Upgrades on Waihoehoe Rd east- from project 4 to Drury Hills + Drury Hills Intersection | G38: 2-lane urban - upgrade existing road layout with active modes on both sides, 20m cross-section | J38: Transport - Drury East IPA | P38: 0.9569224105 | Q38: 2060 | R38: Yes | AC38: 0 | AD38: 0 | AE38: 0 | AF38: 0 | AG38: 1444044.437 | AH38: 891200.7007 | AI38: 8854159.979 | AJ38: 0 | AK38: 0 | AL38: 0 | AM38: 0 | AN38: 0 | AO38: 0 | AP38: 0 | AQ38: 0 | AR38: 0 | AS38: 0 | AT38: 0 | AU38: 0 | AW38: 11189405.12 | AX38: 0 | AY38: 0 | AZ38: 0 | BB38: =IFERROR(VLOOKUP(J38,Funding_area_table!C:F,2,FALSE),"CHECK") -> TRA A23 | BC38: 482012.6 | BE38: 0 | BF38: 0 | BG38: 0 | BH38: 0 | BI38: 0 | BJ38: 0 | BK38: 0 | BL38: 0 | BM38: 0 | BN38: 0 | BO38: 0 | BP38: 0 | BQ38: 0 | BR38: 0 | BS38: 1381838.484 | BT38: 852809.9228 | BU38: 8472744.111 | BV38: 0 | BW38: 0 | BX38: 0 | BY38: 0 | BZ38: 0 | CA38: 0 | CB38: 0 | CC38: 0 | CD38: 0 | CE38: 0 | CF38: 0 | CG38: 0 | CH38: 0 | CI38: 10707392.52 | CJ38: 10707392.52 | CK38: No | CL38: =IFERROR(#REF!/AW38,0) -> 0 | CM38: TRA | CN38: 24 TRA A23 | CO38: Arterial
B39: Transport | E39: 32 TRA A23 | F39: New Intersection on Cossey Rd/Waihoehoe Rd | G39: Assume 1 simple roundabout intesection | J39: Transport - Drury East IPA | P39: 0.9569224105 | Q39: 2060 | R39: Yes | AC39: 0 | AD39: 0 | AE39: 0 | AF39: 0 | AG39: 232672.3248 | AH39: 877289.6322 | AI39: 99187.84374 | AJ39: 1471940.76 | AK39: 0 | AL39: 0 | AM39: 0 | AN39: 0 | AO39: 0 | AP39: 0 | AQ39: 0 | AR39: 0 | AS39: 0 | AT39: 0 | AU39: 0 | AW39: 2681090.561 | AX39: 0 | AY39: 0 | AZ39: 0 | BB39: =IFERROR(VLOOKUP(J39,Funding_area_table!C:F,2,FALSE),"CHECK") -> TRA A23 | BC39: 115494.9185 | BE39: 0 | BF39: 0 | BG39: 0 | BH39: 0 | BI39: 0 | BJ39: 0 | BK39: 0 | BL39: 0 | BM39: 0 | BN39: 0 | BO39: 0 | BP39: 0 | BQ39: 0 | BR39: 0 | BS39: 222649.3619 | BT39: 839498.1095 | BU39: 94915.07053 | BV39: 1408533.1 | BW39: 0 | BX39: 0 | BY39: 0 | BZ39: 0 | CA39: 0 | CB39: 0 | CC39: 0 | CD39: 0 | CE39: 0 | CF39: 0 | CG39: 0 | CH39: 0 | CI39: 2565595.642 | CJ39: 2565595.642 | CK39: No | CL39: =IFERROR(#REF!/AW39,0) -> 0 | CM39: TRA | CN39: 32 TRA A23 | CO39: Arterial
B40: Transport | E40: 36a TRA A23 | F40: Bremner-Norrie Road east of SH1 up to GSR (overlap with project 12) | G40: 2-lane urban- upgrade existing road layout with active modes on both sides (Under construction) | J40: Transport - Drury East IPA | P40: 0.9569224105 | Q40: 2060 | R40: Yes | AC40: 1583884.838 | AD40: 15961074.08 | AE40: 0 | AF40: 0 | AG40: 0 | AH40: 0 | AI40: 0 | AJ40: 0 | AK40: 0 | AL40: 0 | AM40: 0 | AN40: 0 | AO40: 0 | AP40: 0 | AQ40: 0 | AR40: 0 | AS40: 0 | AT40: 0 | AU40: 0 | AW40: 17544958.92 | AX40: 0 | AY40: 0 | AZ40: 0 | BB40: =IFERROR(VLOOKUP(J40,Funding_area_table!C:F,2,FALSE),"CHECK") -> TRA A23 | BC40: 755794.5375 | BE40: 0 | BF40: 0 | BG40: 0 | BH40: 0 | BI40: 0 | BJ40: 0 | BK40: 0 | BL40: 0 | BM40: 0 | BN40: 0 | BO40: 1515654.898 | BP40: 15273509.48 | BQ40: 0 | BR40: 0 | BS40: 0 | BT40: 0 | BU40: 0 | BV40: 0 | BW40: 0 | BX40: 0 | BY40: 0 | BZ40: 0 | CA40: 0 | CB40: 0 | CC40: 0 | CD40: 0 | CE40: 0 | CF40: 0 | CG40: 0 | CH40: 0 | CI40: 16789164.38 | CJ40: 16789164.38 | CK40: No | CL40: =IFERROR(#REF!/AW40,0) -> 0 | CM40: TRA | CN40: 36a TRA A23 | CO40: Arterial
B41: Transport | E41: 36b TRA A23 | F41: Complete Bremner-Norrie Road connection from SH1 up to GSR excluding Bridge (overlap with project 12) | G41: 4-lane urban- upgrade interim 2-lane urban corridor to a 4-lane corridor with active modes on both sides (SGA design) | J41: Transport - Drury East IPA | P41: 0.9569224105 | Q41: 2060 | R41: Yes | AC41: 0 | AD41: 0 | AE41: 0 | AF41: 0 | AG41: 0 | AH41: 0 | AI41: 0 | AJ41: 0 | AK41: 0 | AL41: 0 | AM41: 0 | AN41: 0 | AO41: 0 | AP41: 0 | AQ41: 0 | AR41: 0 | AS41: 25056423.33 | AT41: 2563585.345 | AU41: 25469453.45 | AW41: 53089462.13 | AX41: 0 | AY41: 0 | AZ41: 0 | BB41: =IFERROR(VLOOKUP(J41,Funding_area_table!C:F,2,FALSE),"CHECK") -> TRA A23 | BC41: 2286966.055 | BE41: 0 | BF41: 0 | BG41: 0 | BH41: 0 | BI41: 0 | BJ41: 0 | BK41: 0 | BL41: 0 | BM41: 0 | BN41: 0 | BO41: 0 | BP41: 0 | BQ41: 0 | BR41: 0 | BS41: 0 | BT41: 0 | BU41: 0 | BV41: 0 | BW41: 0 | BX41: 0 | BY41: 0 | BZ41: 0 | CA41: 0 | CB41: 0 | CC41: 0 | CD41: 0 | CE41: 23977053.01 | CF41: 2453152.268 | CG41: 24372290.79 | CH41: 0 | CI41: 50802496.07 | CJ41: 50802496.07 | CK41: No | CL41: =IFERROR(#REF!/AW41,0) -> 0 | CM41: TRA | CN41: 36b TRA A23 | CO41: Arterial
B42: Transport | E42: 36c TRA A23 | F42: Complete Bremner-Norrie Road connection from SH1 up to GSR - Bridge structure (overlap with project 12) | G42: Upgrade interim 2-lane bridges (3No. to 4 lane bridges with active modes on both sides (SGA design) | J42: Transport - Drury East IPA | P42: 0.9569224105 | Q42: 2060 | R42: Yes | AC42: 0 | AD42: 0 | AE42: 0 | AF42: 0 | AG42: 0 | AH42: 0 | AI42: 0 | AJ42: 0 | AK42: 0 | AL42: 0 | AM42: 0 | AN42: 0 | AO42: 0 | AP42: 0 | AQ42: 0 | AR42: 0 | AS42: 0 | AT42: 2697739.606 | AU42: 26802288.23 | AW42: 29500027.84 | AX42: 0 | AY42: 0 | AZ42: 0 | BB42: =IFERROR(VLOOKUP(J42,Funding_area_table!C:F,2,FALSE),"CHECK") -> TRA A23 | BC42: 1270790.089 | BE42: 0 | BF42: 0 | BG42: 0 | BH42: 0 | BI42: 0 | BJ42: 0 | BK42: 0 | BL42: 0 | BM42: 0 | BN42: 0 | BO42: 0 | BP42: 0 | BQ42: 0 | BR42: 0 | BS42: 0 | BT42: 0 | BU42: 0 | BV42: 0 | BW42: 0 | BX42: 0 | BY42: 0 | BZ42: 0 | CA42: 0 | CB42: 0 | CC42: 0 | CD42: 0 | CE42: 0 | CF42: 2581527.486 | CG42: 25647710.26 | CH42: 0 | CI42: 28229237.75 | CJ42: 28229237.75 | CK42: No | CL42: =IFERROR(#REF!/AW42,0) -> 0 | CM42: TRA | CN42: 36c TRA A23 | CO42: Arterial
B43: Transport | E43: 37a(i) TRA A23 | F43: N-S Opaheke Arterial from development to Ponga Rd | G43: 2-lane urban- new road layout with active modes on both sides (TDM) | J43: Transport - Drury East IPA | P43: 0.9569224105 | Q43: 2060 | R43: Yes | AC43: 0 | AD43: 0 | AE43: 0 | AF43: 0 | AG43: 0 | AH43: 0 | AI43: 0 | AJ43: 0 | AK43: 0 | AL43: 0 | AM43: 38440253.25 | AN43: 1046865.726 | AO43: 12422530.14 | AP43: 0 | AQ43: 0 | AR43: 0 | AS43: 0 | AT43: 0 | AU43: 0 | AW43: 51909649.11 | AX43: 0 | AY43: 0 | AZ43: 0 | BB43: =IFERROR(VLOOKUP(J43,Funding_area_table!C:F,2,FALSE),"CHECK") -> TRA A23 | BC43: 2236142.554 | BE43: 0 | BF43: 0 | BG43: 0 | BH43: 0 | BI43: 0 | BJ43: 0 | BK43: 0 | BL43: 0 | BM43: 0 | BN43: 0 | BO43: 0 | BP43: 0 | BQ43: 0 | BR43: 0 | BS43: 0 | BT43: 0 | BU43: 0 | BV43: 0 | BW43: 0 | BX43: 0 | BY43: 36784339.8 | BZ43: 1001769.274 | CA43: 11887397.48 | CB43: 0 | CC43: 0 | CD43: 0 | CE43: 0 | CF43: 0 | CG43: 0 | CH43: 0 | CI43: 49673506.56 | CJ43: 49673506.56 | CK43: No | CL43: =IFERROR(#REF!/AW43,0) -> 0 | CM43: TRA | CN43: 37a(i) TRA A23 | CO43: Arterial
B44: Transport | E44: 37a(ii) TRA A23 | F44: N-S Opaheke Arterial from development to Ponga Rd | G44: 2-lane urban- bridge construction | J44: Transport - Drury East IPA | P44: 0.9569224105 | Q44: 2060 | R44: Yes | AC44: 0 | AD44: 0 | AE44: 0 | AF44: 0 | AG44: 0 | AH44: 0 | AI44: 0 | AJ44: 0 | AK44: 0 | AL44: 0 | AM44: 0 | AN44: 2873972.944 | AO44: 28553182.47 | AP44: 0 | AQ44: 0 | AR44: 0 | AS44: 0 | AT44: 0 | AU44: 0 | AW44: 31427155.41 | AX44: 0 | AY44: 0 | AZ44: 0 | BB44: =IFERROR(VLOOKUP(J44,Funding_area_table!C:F,2,FALSE),"CHECK") -> TRA A23 | BC44: 1353806.099 | BE44: 0 | BF44: 0 | BG44: 0 | BH44: 0 | BI44: 0 | BJ44: 0 | BK44: 0 | BL44: 0 | BM44: 0 | BN44: 0 | BO44: 0 | BP44: 0 | BQ44: 0 | BR44: 0 | BS44: 0 | BT44: 0 | BU44: 0 | BV44: 0 | BW44: 0 | BX44: 0 | BY44: 0 | BZ44: 2750169.117 | CA44: 27323180.19 | CB44: 0 | CC44: 0 | CD44: 0 | CE44: 0 | CF44: 0 | CG44: 0 | CH44: 0 | CI44: 30073349.31 | CJ44: 30073349.31 | CK44: No | CL44: =IFERROR(#REF!/AW44,0) -> 0 | CM44: TRA | CN44: 37a(ii) TRA A23 | CO44: Arterial
B45: Transport | E45: 37b(i) TRA A23 | F45: N-S Opaheke Arterial from development to Ponga Rd | G45: 4-lane urban- upgrade 2-lane urban with active modes on both sides (SGA design) | J45: Transport - Drury East IPA | P45: 0.9569224105 | Q45: 2060 | R45: Yes | AC45: 0 | AD45: 0 | AE45: 0 | AF45: 0 | AG45: 0 | AH45: 0 | AI45: 0 | AJ45: 0 | AK45: 0 | AL45: 0 | AM45: 0 | AN45: 0 | AO45: 0 | AP45: 0 | AQ45: 0 | AR45: 0 | AS45: 1425568.988 | AT45: 14163157.49 | AU45: 0 | AW45: 15588726.48 | AX45: 0 | AY45: 0 | AZ45: 0 | BB45: =IFERROR(VLOOKUP(J45,Funding_area_table!C:F,2,FALSE),"CHECK") -> TRA A23 | BC45: 671524.7596 | BE45: 0 | BF45: 0 | BG45: 0 | BH45: 0 | BI45: 0 | BJ45: 0 | BK45: 0 | BL45: 0 | BM45: 0 | BN45: 0 | BO45: 0 | BP45: 0 | BQ45: 0 | BR45: 0 | BS45: 0 | BT45: 0 | BU45: 0 | BV45: 0 | BW45: 0 | BX45: 0 | BY45: 0 | BZ45: 0 | CA45: 0 | CB45: 0 | CC45: 0 | CD45: 0 | CE45: 1364158.912 | CF45: 13553042.81 | CG45: 0 | CH45: 0 | CI45: 14917201.72 | CJ45: 14917201.72 | CK45: No | CL45: =IFERROR(#REF!/AW45,0) -> 0 | CM45: TRA | CN45: 37b(i) TRA A23 | CO45: Arterial
B46: Transport | E46: 37b(ii) TRA A23 | F46: N-S Opaheke Arterial from development to Ponga Rd | G46: 4-lane urban- Bridge Widening | J46: Transport - Drury East IPA | P46: 0.9569224105 | Q46: 2060 | R46: Yes | AC46: 0 | AD46: 0 | AE46: 0 | AF46: 0 | AG46: 0 | AH46: 0 | AI46: 0 | AJ46: 0 | AK46: 0 | AL46: 0 | AM46: 0 | AN46: 0 | AO46: 0 | AP46: 0 | AQ46: 0 | AR46: 0 | AS46: 1844329.878 | AT46: 18323585 | AU46: 0 | AW46: 20167914.88 | AX46: 0 | AY46: 0 | AZ46: 0 | BB46: =IFERROR(VLOOKUP(J46,Funding_area_table!C:F,2,FALSE),"CHECK") -> TRA A23 | BC46: 868785.1578 | BE46: 0 | BF46: 0 | BG46: 0 | BH46: 0 | BI46: 0 | BJ46: 0 | BK46: 0 | BL46: 0 | BM46: 0 | BN46: 0 | BO46: 0 | BP46: 0 | BQ46: 0 | BR46: 0 | BS46: 0 | BT46: 0 | BU46: 0 | BV46: 0 | BW46: 0 | BX46: 0 | BY46: 0 | BZ46: 0 | CA46: 0 | CB46: 0 | CC46: 0 | CD46: 0 | CE46: 1764880.593 | CF46: 17534249.13 | CG46: 0 | CH46: 0 | CI46: 19299129.72 | CJ46: 19299129.72 | CK46: No | CL46: =IFERROR(#REF!/AW46,0) -> 0 | CM46: TRA | CN46: 37b(ii) TRA A23 | CO46: Arterial
B47: Transport | E47: 39b TRA A23 | F47: New Bremner Rd arterial from SH1 to Auranga development | G47: 4-lane urban- upgrade 2-lane urban excl bridge | J47: Transport - Drury East IPA | P47: 0.9569224105 | Q47: 2060 | R47: Yes | AC47: 0 | AD47: 0 | AE47: 0 | AF47: 0 | AG47: 0 | AH47: 0 | AI47: 0 | AJ47: 0 | AK47: 0 | AL47: 0 | AM47: 0 | AN47: 0 | AO47: 0 | AP47: 0 | AQ47: 43616.11265 | AR47: 433330.0443 | AS47: 0 | AT47: 0 | AU47: 0 | AW47: 476946.1569 | AX47: 0 | AY47: 0 | AZ47: 0 | BB47: =IFERROR(VLOOKUP(J47,Funding_area_table!C:F,2,FALSE),"CHECK") -> TRA A23 | BC47: 20545.69075 | BE47: 0 | BF47: 0 | BG47: 0 | BH47: 0 | BI47: 0 | BJ47: 0 | BK47: 0 | BL47: 0 | BM47: 0 | BN47: 0 | BO47: 0 | BP47: 0 | BQ47: 0 | BR47: 0 | BS47: 0 | BT47: 0 | BU47: 0 | BV47: 0 | BW47: 0 | BX47: 0 | BY47: 0 | BZ47: 0 | CA47: 0 | CB47: 0 | CC47: 41737.23566 | CD47: 414663.2305 | CE47: 0 | CF47: 0 | CG47: 0 | CH47: 0 | CI47: 456400.4662 | CJ47: 456400.4662 | CK47: No | CL47: =IFERROR(#REF!/AW47,0) -> 0 | CM47: TRA | CN47: 39b TRA A23 | CO47: Arterial
B48: Transport | E48: 39c TRA A23 | F48: New Bremner Rd arterial from SH1 to Auranga development | G48: 4-lane urban- upgrade 2-lane bridge widening | J48: Transport - Drury East IPA | P48: 0.9569224105 | Q48: 2060 | R48: Yes | AC48: 0 | AD48: 0 | AE48: 0 | AF48: 0 | AG48: 0 | AH48: 0 | AI48: 0 | AJ48: 0 | AK48: 0 | AL48: 0 | AM48: 0 | AN48: 0 | AO48: 0 | AP48: 0 | AQ48: 30390.58172 | AR48: 301933.1921 | AS48: 0 | AT48: 0 | AU48: 0 | AW48: 332323.7739 | AX48: 0 | AY48: 0 | AZ48: 0 | BB48: =IFERROR(VLOOKUP(J48,Funding_area_table!C:F,2,FALSE),"CHECK") -> TRA A23 | BC48: 14315.7071 | BE48: 0 | BF48: 0 | BG48: 0 | BH48: 0 | BI48: 0 | BJ48: 0 | BK48: 0 | BL48: 0 | BM48: 0 | BN48: 0 | BO48: 0 | BP48: 0 | BQ48: 0 | BR48: 0 | BS48: 0 | BT48: 0 | BU48: 0 | BV48: 0 | BW48: 0 | BX48: 0 | BY48: 0 | BZ48: 0 | CA48: 0 | CB48: 0 | CC48: 29081.42872 | CD48: 288926.6381 | CE48: 0 | CF48: 0 | CG48: 0 | CH48: 0 | CI48: 318008.0668 | CJ48: 318008.0668 | CK48: No | CL48: =IFERROR(#REF!/AW48,0) -> 0 | CM48: TRA | CN48: 39c TRA A23 | CO48: Arterial
B49: Transport | E49: 41b TRA A23 | F49: Jesmond Rd from SH22 to Waipupuke development boundary | G49: 4-lane urban- upgrade 2-lane urban to 4-lane with active modes on both sides, (TDM) | J49: Transport - Drury East IPA | P49: 0.9569224105 | Q49: 2060 | R49: Yes | AC49: 0 | AD49: 0 | AE49: 0 | AF49: 0 | AG49: 0 | AH49: 0 | AI49: 0 | AJ49: 0 | AK49: 0 | AL49: 0 | AM49: 0 | AN49: 0 | AO49: 0 | AP49: 0 | AQ49: 0 | AR49: 0 | AS49: 0 | AT49: 0 | AU49: 0 | AW49: 0 | AX49: 0 | AY49: 0 | AZ49: 0 | BB49: =IFERROR(VLOOKUP(J49,Funding_area_table!C:F,2,FALSE),"CHECK") -> TRA A23 | BC49: 0 | BE49: 0 | BF49: 0 | BG49: 0 | BH49: 0 | BI49: 0 | BJ49: 0 | BK49: 0 | BL49: 0 | BM49: 0 | BN49: 0 | BO49: 0 | BP49: 0 | BQ49: 0 | BR49: 0 | BS49: 0 | BT49: 0 | BU49: 0 | BV49: 0 | BW49: 0 | BX49: 0 | BY49: 0 | BZ49: 0 | CA49: 0 | CB49: 0 | CC49: 0 | CD49: 0 | CE49: 0 | CF49: 0 | CG49: 0 | CH49: 0 | CI49: 0 | CJ49: 0 | CK49: No | CL49: =IFERROR(#REF!/AW49,0) -> 0 | CM49: TRA | CN49: 41b TRA A23 | CO49: Arterial
B50: Transport | E50: 42c TRA A23 | F50: Jesmond Rd upgrades from project 41 to New Bremner Rd | G50: 4-lane urban FTN- upgrade 2-lane urban to 4-lane with active modes on both sides, (TDM) | J50: Transport - Drury East IPA | P50: 0.9569224105 | Q50: 2060 | R50: Yes | AC50: 0 | AD50: 0 | AE50: 0 | AF50: 0 | AG50: 0 | AH50: 0 | AI50: 0 | AJ50: 0 | AK50: 0 | AL50: 0 | AM50: 0 | AN50: 0 | AO50: 0 | AP50: 0 | AQ50: 0 | AR50: 0 | AS50: 0 | AT50: 0 | AU50: 0 | AW50: 0 | AX50: 0 | AY50: 0 | AZ50: 0 | BB50: =IFERROR(VLOOKUP(J50,Funding_area_table!C:F,2,FALSE),"CHECK") -> TRA A23 | BC50: 0 | BE50: 0 | BF50: 0 | BG50: 0 | BH50: 0 | BI50: 0 | BJ50: 0 | BK50: 0 | BL50: 0 | BM50: 0 | BN50: 0 | BO50: 0 | BP50: 0 | BQ50: 0 | BR50: 0 | BS50: 0 | BT50: 0 | BU50: 0 | BV50: 0 | BW50: 0 | BX50: 0 | BY50: 0 | BZ50: 0 | CA50: 0 | CB50: 0 | CC50: 0 | CD50: 0 | CE50: 0 | CF50: 0 | CG50: 0 | CH50: 0 | CI50: 0 | CJ50: 0 | CK50: No | CL50: =IFERROR(#REF!/AW50,0) -> 0 | CM50: TRA | CN50: 42c TRA A23 | CO50: Arterial
B51: Transport | E51: 65a(ii) TRA A23 | F51: New Bremner Rd arterial from Auranga development to Jesmond Rd (bridge only) | G51: 2-lane urban- new road layout with active modes on both sides (TDM) | J51: Transport - Drury East IPA | P51: 0.9569224105 | Q51: 2060 | R51: Yes | AC51: 0 | AD51: 0 | AE51: 0 | AF51: 0 | AG51: 0 | AH51: 0 | AI51: 0 | AJ51: 0 | AK51: 0 | AL51: 0 | AM51: 0 | AN51: 0 | AO51: 0 | AP51: 0 | AQ51: 0 | AR51: 0 | AS51: 0 | AT51: 0 | AU51: 0 | AW51: 0 | AX51: 0 | AY51: 0 | AZ51: 0 | BB51: =IFERROR(VLOOKUP(J51,Funding_area_table!C:F,2,FALSE),"CHECK") -> TRA A23 | BC51: 0 | BE51: 0 | BF51: 0 | BG51: 0 | BH51: 0 | BI51: 0 | BJ51: 0 | BK51: 0 | BL51: 0 | BM51: 0 | BN51: 0 | BO51: 0 | BP51: 0 | BQ51: 0 | BR51: 0 | BS51: 0 | BT51: 0 | BU51: 0 | BV51: 0 | BW51: 0 | BX51: 0 | BY51: 0 | BZ51: 0 | CA51: 0 | CB51: 0 | CC51: 0 | CD51: 0 | CE51: 0 | CF51: 0 | CG51: 0 | CH51: 0 | CI51: 0 | CJ51: 0 | CK51: No | CL51: =IFERROR(#REF!/AW51,0) -> 0 | CM51: TRA | CN51: 65a(ii) TRA A23 | CO51: Arterial
B52: Transport | E52: 65b(i) TRA A23 | F52: New Bremner Rd arterial from Auranga development to Jesmond Rd (excl bridge) | G52: 4-lane urban- upgrade 2-lane urban to 4-lane with active modes on both sides, (TDM) | J52: Transport - Drury East IPA | P52: 0.9569224105 | Q52: 2060 | R52: Yes | AC52: 0 | AD52: 0 | AE52: 0 | AF52: 0 | AG52: 0 | AH52: 0 | AI52: 0 | AJ52: 0 | AK52: 0 | AL52: 0 | AM52: 0 | AN52: 0 | AO52: 0 | AP52: 0 | AQ52: 45726.56971 | AR52: 454297.6271 | AS52: 0 | AT52: 0 | AU52: 0 | AW52: 500024.1968 | AX52: 0 | AY52: 0 | AZ52: 0 | BB52: =IFERROR(VLOOKUP(J52,Funding_area_table!C:F,2,FALSE),"CHECK") -> TRA A23 | BC52: 21539.83707 | BE52: 0 | BF52: 0 | BG52: 0 | BH52: 0 | BI52: 0 | BJ52: 0 | BK52: 0 | BL52: 0 | BM52: 0 | BN52: 0 | BO52: 0 | BP52: 0 | BQ52: 0 | BR52: 0 | BS52: 0 | BT52: 0 | BU52: 0 | BV52: 0 | BW52: 0 | BX52: 0 | BY52: 0 | BZ52: 0 | CA52: 0 | CB52: 0 | CC52: 43756.77932 | CD52: 434727.5804 | CE52: 0 | CF52: 0 | CG52: 0 | CH52: 0 | CI52: 478484.3597 | CJ52: 478484.3597 | CK52: No | CL52: =IFERROR(#REF!/AW52,0) -> 0 | CM52: TRA | CN52: 65b(i) TRA A23 | CO52: Arterial
B53: Transport | E53: 65b(ii) TRA A23 | F53: New Bremner Rd arterial from Auranga development to Jesmond Rd (bridge widening) | G53: 4-lane urban- upgrade 2-lane urban to 4-lane with active modes on both sides, (TDM) | J53: Transport - Drury East IPA | P53: 0.9569224105 | Q53: 2060 | R53: Yes | AC53: 0 | AD53: 0 | AE53: 0 | AF53: 0 | AG53: 0 | AH53: 0 | AI53: 0 | AJ53: 0 | AK53: 0 | AL53: 0 | AM53: 0 | AN53: 0 | AO53: 0 | AP53: 0 | AQ53: 11396.46814 | AR53: 113224.9471 | AS53: 0 | AT53: 0 | AU53: 0 | AW53: 124621.4152 | AX53: 0 | AY53: 0 | AZ53: 0 | BB53: =IFERROR(VLOOKUP(J53,Funding_area_table!C:F,2,FALSE),"CHECK") -> TRA A23 | BC53: 5368.390163 | BE53: 0 | BF53: 0 | BG53: 0 | BH53: 0 | BI53: 0 | BJ53: 0 | BK53: 0 | BL53: 0 | BM53: 0 | BN53: 0 | BO53: 0 | BP53: 0 | BQ53: 0 | BR53: 0 | BS53: 0 | BT53: 0 | BU53: 0 | BV53: 0 | BW53: 0 | BX53: 0 | BY53: 0 | BZ53: 0 | CA53: 0 | CB53: 0 | CC53: 10905.53577 | CD53: 108347.4893 | CE53: 0 | CF53: 0 | CG53: 0 | CH53: 0 | CI53: 119253.025 | CJ53: 119253.025 | CK53: No | CL53: =IFERROR(#REF!/AW53,0) -> 0 | CM53: TRA | CN53: 65b(ii) TRA A23 | CO53: Arterial
B54: Transport | E54: 67 TRA A23 | F54: Active Mode Corridor Drury Central to GSR | G54: 0 | J54: Transport - Drury East IPA | P54: 0.9569224105 | Q54: 2060 | R54: Yes | AC54: 1252311.804 | AD54: 12441831.62 | AE54: 0 | AF54: 0 | AG54: 0 | AH54: 0 | AI54: 0 | AJ54: 0 | AK54: 0 | AL54: 0 | AM54: 0 | AN54: 0 | AO54: 0 | AP54: 0 | AQ54: 0 | AR54: 0 | AS54: 0 | AT54: 0 | AU54: 0 | AW54: 13694143.42 | AX54: 0 | AY54: 0 | AZ54: 0 | BB54: =IFERROR(VLOOKUP(J54,Funding_area_table!C:F,2,FALSE),"CHECK") -> TRA A23 | BC54: 589910.6886 | BE54: 0 | BF54: 0 | BG54: 0 | BH54: 0 | BI54: 0 | BJ54: 0 | BK54: 0 | BL54: 0 | BM54: 0 | BN54: 0 | BO54: 1198365.23 | BP54: 11905867.51 | BQ54: 0 | BR54: 0 | BS54: 0 | BT54: 0 | BU54: 0 | BV54: 0 | BW54: 0 | BX54: 0 | BY54: 0 | BZ54: 0 | CA54: 0 | CB54: 0 | CC54: 0 | CD54: 0 | CE54: 0 | CF54: 0 | CG54: 0 | CH54: 0 | CI54: 13104232.74 | CJ54: 13104232.74 | CK54: No | CL54: =IFERROR(#REF!/AW54,0) -> 0 | CM54: TRA | CN54: 67 TRA A23 | CO54: Arterial
B55: Transport | E55: 68 TRA A23 | F55: Active Mode Corridor GSR to Drury West | G55: 0 | J55: Transport - Drury East IPA | P55: 0.9569224105 | Q55: 2060 | R55: Yes | AC55: 0 | AD55: 0 | AE55: 0 | AF55: 0 | AG55: 0 | AH55: 0 | AI55: 0 | AJ55: 0 | AK55: 0 | AL55: 0 | AM55: 0 | AN55: 0 | AO55: 0 | AP55: 0 | AQ55: 0 | AR55: 0 | AS55: 0 | AT55: 0 | AU55: 0 | AW55: 0 | AX55: 0 | AY55: 0 | AZ55: 0 | BB55: =IFERROR(VLOOKUP(J55,Funding_area_table!C:F,2,FALSE),"CHECK") -> TRA A23 | BC55: 0 | BE55: 0 | BF55: 0 | BG55: 0 | BH55: 0 | BI55: 0 | BJ55: 0 | BK55: 0 | BL55: 0 | BM55: 0 | BN55: 0 | BO55: 0 | BP55: 0 | BQ55: 0 | BR55: 0 | BS55: 0 | BT55: 0 | BU55: 0 | BV55: 0 | BW55: 0 | BX55: 0 | BY55: 0 | BZ55: 0 | CA55: 0 | CB55: 0 | CC55: 0 | CD55: 0 | CE55: 0 | CF55: 0 | CG55: 0 | CH55: 0 | CI55: 0 | CJ55: 0 | CK55: No | CL55: =IFERROR(#REF!/AW55,0) -> 0 | CM55: TRA | CN55: 68 TRA A23 | CO55: Arterial
B56: Transport | E56: 70 TRA A23 | F56: walk/cycle bridges on GSR Road bridge over the rail corridor | G56: New cycle bridge 5m wide, 80m long, approach lengths 270m total for both sides. No property required | J56: Transport - Drury East IPA | P56: 0.9569224105 | Q56: 2060 | R56: Yes | AC56: 0 | AD56: 0 | AE56: 0 | AF56: 0 | AG56: 0 | AH56: 0 | AI56: 0 | AJ56: 0 | AK56: 0 | AL56: 0 | AM56: 0 | AN56: 0 | AO56: 0 | AP56: 0 | AQ56: 0 | AR56: 0 | AS56: 0 | AT56: 0 | AU56: 0 | AW56: 0 | AX56: 0 | AY56: 0 | AZ56: 0 | BB56: =IFERROR(VLOOKUP(J56,Funding_area_table!C:F,2,FALSE),"CHECK") -> TRA A23 | BC56: 0 | BE56: 0 | BF56: 0 | BG56: 0 | BH56: 0 | BI56: 0 | BJ56: 0 | BK56: 0 | BL56: 0 | BM56: 0 | BN56: 0 | BO56: 0 | BP56: 0 | BQ56: 0 | BR56: 0 | BS56: 0 | BT56: 0 | BU56: 0 | BV56: 0 | BW56: 0 | BX56: 0 | BY56: 0 | BZ56: 0 | CA56: 0 | CB56: 0 | CC56: 0 | CD56: 0 | CE56: 0 | CF56: 0 | CG56: 0 | CH56: 0 | CI56: 0 | CJ56: 0 | CK56: No | CL56: =IFERROR(#REF!/AW56,0) -> 0 | CM56: TRA | CN56: 70 TRA A23 | CO56: Arterial
B57: Transport | E57: 1b TRA A23 WK subsidy | F57: GSR improvements - Waihoehoe Rd to Drury Interchange | G57: 4-lane urban- existing road layout with active modes on both sides + intersection improvements (TDM) | J57: Transport - Drury East IPA | P57: 0.9569224105 | Q57: 2060 | R57: Yes | AC57: 0 | AD57: 0 | AE57: 0 | AF57: 0 | AG57: 0 | AH57: 0 | AI57: 0 | AJ57: 0 | AK57: 0 | AL57: 0 | AM57: 0 | AN57: 0 | AO57: 0 | AP57: 0 | AQ57: 0 | AR57: 0 | AS57: 0 | AT57: 0 | AU57: 0 | AV57: 0 | AW57: 0 | AX57: 0 | AY57: 0 | AZ57: 0 | BB57: =IFERROR(VLOOKUP(J57,Funding_area_table!C:F,2,FALSE),"CHECK") -> TRA A23 | BC57: 0 | BE57: 0 | BF57: 0 | BG57: 0 | BH57: 0 | BI57: 0 | BJ57: 0 | BK57: 0 | BL57: 0 | BM57: 0 | BN57: 0 | BO57: 0 | BP57: 0 | BQ57: 0 | BR57: 0 | BS57: 0 | BT57: 0 | BU57: 0 | BV57: 0 | BW57: 0 | BX57: 0 | BY57: 0 | BZ57: 0 | CA57: 0 | CB57: 0 | CC57: 0 | CD57: 0 | CE57: 0 | CF57: 0 | CG57: 0 | CH57: 0 | CI57: 0 | CJ57: 0 | CK57: No | CL57: =IFERROR(#REF!/AW57,0) -> 0 | CM57: TRA | CN57: 1b TRA A23 | CO57: Arterial
B58: Transport | E58: 2b TRA A23 WK subsidy | F58: GSR improvements - From Drury School to Waihoehoe Rd | G58: 4-lane urban- existing road layout with active modes on both sides + intersection improvements (TDM) | J58: Transport - Drury East IPA | P58: 0.9569224105 | Q58: 2060 | R58: Yes | AC58: 0 | AD58: 0 | AE58: 0 | AF58: 0 | AG58: 0 | AH58: 0 | AI58: -6523766.746 | AJ58: -1505130.838 | AK58: -14953611.7 | AL58: 0 | AM58: 0 | AN58: 0 | AO58: 0 | AP58: 0 | AQ58: 0 | AR58: 0 | AS58: 0 | AT58: 0 | AU58: 0 | AV58: 0 | AW58: -22982509.29 | AX58: 0 | AY58: 0 | AZ58: 0 | BB58: =IFERROR(VLOOKUP(J58,Funding_area_table!C:F,2,FALSE),"CHECK") -> TRA A23 | BC58: -990031.1 | BE58: 0 | BF58: 0 | BG58: 0 | BH58: 0 | BI58: 0 | BJ58: 0 | BK58: 0 | BL58: 0 | BM58: 0 | BN58: 0 | BO58: 0 | BP58: 0 | BQ58: 0 | BR58: 0 | BS58: 0 | BT58: 0 | BU58: -6242738.6 | BV58: -1440293.429 | BW58: -14309446.16 | BX58: 0 | BY58: 0 | BZ58: 0 | CA58: 0 | CB58: 0 | CC58: 0 | CD58: 0 | CE58: 0 | CF58: 0 | CG58: 0 | CH58: 0 | CI58: -21992478.19 | CJ58: -21992478.19 | CK58: No | CL58: =IFERROR(#REF!/AW58,0) -> 0 | CM58: TRA | CN58: 2b TRA A23 | CO58: Arterial
B59: Transport | E59: 4b TRA A23 WK subsidy | F59: Waihoehoe Rd East upgrades- from Fitzgerald Rd to before Cossey Rd (development boundary) | G59: Expand to 24m cross section | J59: Transport - Drury East IPA | P59: 0.9569224105 | Q59: 2060 | R59: Yes | AC59: 0 | AD59: 0 | AE59: 0 | AF59: 0 | AG59: 0 | AH59: 0 | AI59: 0 | AJ59: 0 | AK59: 0 | AL59: 0 | AM59: 0 | AN59: 0 | AO59: 0 | AP59: 0 | AQ59: 0 | AR59: 0 | AS59: 0 | AT59: 0 | AU59: 0 | AV59: 0 | AW59: 0 | AX59: 0 | AY59: 0 | AZ59: 0 | BB59: =IFERROR(VLOOKUP(J59,Funding_area_table!C:F,2,FALSE),"CHECK") -> TRA A23 | BC59: 0 | BE59: 0 | BF59: 0 | BG59: 0 | BH59: 0 | BI59: 0 | BJ59: 0 | BK59: 0 | BL59: 0 | BM59: 0 | BN59: 0 | BO59: 0 | BP59: 0 | BQ59: 0 | BR59: 0 | BS59: 0 | BT59: 0 | BU59: 0 | BV59: 0 | BW59: 0 | BX59: 0 | BY59: 0 | BZ59: 0 | CA59: 0 | CB59: 0 | CC59: 0 | CD59: 0 | CE59: 0 | CF59: 0 | CG59: 0 | CH59: 0 | CI59: 0 | CJ59: 0 | CK59: No | CL59: =IFERROR(#REF!/AW59,0) -> 0 | CM59: TRA | CN59: 4b TRA A23 | CO59: Arterial
B60: Transport | E60: 9b TRA A23 WK subsidy | F60: Upgrade in Norrie Rd/GSR/Waihoehoe intersection | G60: multi-lane signalised intersection with active mode crossings, SGA design | J60: Transport - Drury East IPA | P60: 0.9569224105 | Q60: 2060 | R60: Yes | AC60: 0 | AD60: 0 | AE60: 0 | AF60: 0 | AG60: 0 | AH60: 0 | AI60: 0 | AJ60: 0 | AK60: 0 | AL60: 0 | AM60: 0 | AN60: 0 | AO60: 0 | AP60: 0 | AQ60: 0 | AR60: 0 | AS60: 0 | AT60: 0 | AU60: 0 | AV60: 0 | AW60: 0 | AX60: 0 | AY60: 0 | AZ60: 0 | BB60: =IFERROR(VLOOKUP(J60,Funding_area_table!C:F,2,FALSE),"CHECK") -> TRA A23 | BC60: 0 | BE60: 0 | BF60: 0 | BG60: 0 | BH60: 0 | BI60: 0 | BJ60: 0 | BK60: 0 | BL60: 0 | BM60: 0 | BN60: 0 | BO60: 0 | BP60: 0 | BQ60: 0 | BR60: 0 | BS60: 0 | BT60: 0 | BU60: 0 | BV60: 0 | BW60: 0 | BX60: 0 | BY60: 0 | BZ60: 0 | CA60: 0 | CB60: 0 | CC60: 0 | CD60: 0 | CE60: 0 | CF60: 0 | CG60: 0 | CH60: 0 | CI60: 0 | CJ60: 0 | CK60: No | CL60: =IFERROR(#REF!/AW60,0) -> 0 | CM60: TRA | CN60: 9b TRA A23 | CO60: Arterial
B61: Transport | E61: 10b TRA A23 WK subsidy | F61: New intersection on Waihoehoe Rd/Fitzgerald Rd( including approach cross-sections) | G61: multi-lane roundabout with active mode crossings, SGA design | J61: Transport - Drury East IPA | P61: 0.9569224105 | Q61: 2060 | R61: Yes | AC61: 0 | AD61: 0 | AE61: 0 | AF61: 0 | AG61: 0 | AH61: 0 | AI61: 0 | AJ61: 0 | AK61: 0 | AL61: 0 | AM61: 0 | AN61: 0 | AO61: 0 | AP61: 0 | AQ61: 0 | AR61: 0 | AS61: 0 | AT61: 0 | AU61: 0 | AV61: 0 | AW61: 0 | AX61: 0 | AY61: 0 | AZ61: 0 | BB61: =IFERROR(VLOOKUP(J61,Funding_area_table!C:F,2,FALSE),"CHECK") -> TRA A23 | BC61: 0 | BE61: 0 | BF61: 0 | BG61: 0 | BH61: 0 | BI61: 0 | BJ61: 0 | BK61: 0 | BL61: 0 | BM61: 0 | BN61: 0 | BO61: 0 | BP61: 0 | BQ61: 0 | BR61: 0 | BS61: 0 | BT61: 0 | BU61: 0 | BV61: 0 | BW61: 0 | BX61: 0 | BY61: 0 | BZ61: 0 | CA61: 0 | CB61: 0 | CC61: 0 | CD61: 0 | CE61: 0 | CF61: 0 | CG61: 0 | CH61: 0 | CI61: 0 | CJ61: 0 | CK61: No | CL61: =IFERROR(#REF!/AW61,0) -> 0 | CM61: TRA | CN61: 10b TRA A23 | CO61: Arterial
B62: Transport | E62: 13b TRA A23 WK subsidy | F62: N-S Opaheke Arterial across development (upto Waihoihoi Stream) | G62: 4-lane urban- upgrade 2-lane arterial with SGA design + intersection improvements (TDM) | J62: Transport - Drury East IPA | P62: 0.9569224105 | Q62: 2060 | R62: Yes | AC62: 0 | AD62: 0 | AE62: 0 | AF62: 0 | AG62: 0 | AH62: 0 | AI62: 0 | AJ62: 0 | AK62: 0 | AL62: 0 | AM62: 0 | AN62: 0 | AO62: 0 | AP62: 0 | AQ62: 0 | AR62: 0 | AS62: 0 | AT62: -560294.4269 | AU62: -5566576.067 | AV62: 0 | AW62: -6126870.493 | AX62: 0 | AY62: 0 | AZ62: 0 | BB62: =IFERROR(VLOOKUP(J62,Funding_area_table!C:F,2,FALSE),"CHECK") -> TRA A23 | BC62: -263930.8119 | BE62: 0 | BF62: 0 | BG62: 0 | BH62: 0 | BI62: 0 | BJ62: 0 | BK62: 0 | BL62: 0 | BM62: 0 | BN62: 0 | BO62: 0 | BP62: 0 | BQ62: 0 | BR62: 0 | BS62: 0 | BT62: 0 | BU62: 0 | BV62: 0 | BW62: 0 | BX62: 0 | BY62: 0 | BZ62: 0 | CA62: 0 | CB62: 0 | CC62: 0 | CD62: 0 | CE62: 0 | CF62: -536158.2935 | CG62: -5326781.388 | CH62: 0 | CI62: -5862939.682 | CJ62: -5862939.682 | CK62: No | CL62: =IFERROR(#REF!/AW62,0) -> 0 | CM62: TRA | CN62: 13b TRA A23 | CO62: Arterial
B63: Transport | E63: 16b TRA A23 WK subsidy | F63: Widen Bremner Road Bridge ove SH1 to 4-lanes | G63: 4-lane urban- upgrade 2-lane urban with active modes on both sides (SGA design) | J63: Transport - Drury East IPA | P63: 0.9569224105 | Q63: 2060 | R63: Yes | AC63: 0 | AD63: 0 | AE63: 0 | AF63: 0 | AG63: 0 | AH63: 0 | AI63: 0 | AJ63: 0 | AK63: 0 | AL63: 0 | AM63: 0 | AN63: 0 | AO63: 0 | AP63: 0 | AQ63: 0 | AR63: 0 | AS63: 0 | AT63: -233881.4418 | AU63: -2323633.386 | AV63: 0 | AW63: -2557514.828 | AX63: 0 | AY63: 0 | AZ63: 0 | BB63: =IFERROR(VLOOKUP(J63,Funding_area_table!C:F,2,FALSE),"CHECK") -> TRA A23 | BC63: -110171.5738 | BE63: 0 | BF63: 0 | BG63: 0 | BH63: 0 | BI63: 0 | BJ63: 0 | BK63: 0 | BL63: 0 | BM63: 0 | BN63: 0 | BO63: 0 | BP63: 0 | BQ63: 0 | BR63: 0 | BS63: 0 | BT63: 0 | BU63: 0 | BV63: 0 | BW63: 0 | BX63: 0 | BY63: 0 | BZ63: 0 | CA63: 0 | CB63: 0 | CC63: 0 | CD63: 0 | CE63: 0 | CF63: -223806.393 | CG63: -2223536.861 | CH63: 0 | CI63: -2447343.254 | CJ63: -2447343.254 | CK63: No | CL63: =IFERROR(#REF!/AW63,0) -> 0 | CM63: TRA | CN63: 16b TRA A23 | CO63: Arterial
B64: Transport | E64: 23b TRA A23 WK subsidy | F64: Waihoehoe Rd West upgrades- between GSR & Kath Henry Lane | G64: Final 4-lane - following interim option, upgrade Road corridor to provide four lanes with additional turning lanes at intersections where required (as indicated in SGA Design | J64: Transport - Drury East IPA | P64: 0.9569224105 | Q64: 2060 | R64: Yes | AC64: 0 | AD64: 0 | AE64: 0 | AF64: 0 | AG64: 0 | AH64: 0 | AI64: 0 | AJ64: 0 | AK64: 0 | AL64: 0 | AM64: 0 | AN64: 0 | AO64: 0 | AP64: 0 | AQ64: 0 | AR64: 0 | AS64: 0 | AT64: 0 | AU64: 0 | AV64: 0 | AW64: 0 | AX64: 0 | AY64: 0 | AZ64: 0 | BB64: =IFERROR(VLOOKUP(J64,Funding_area_table!C:F,2,FALSE),"CHECK") -> TRA A23 | BC64: 0 | BE64: 0 | BF64: 0 | BG64: 0 | BH64: 0 | BI64: 0 | BJ64: 0 | BK64: 0 | BL64: 0 | BM64: 0 | BN64: 0 | BO64: 0 | BP64: 0 | BQ64: 0 | BR64: 0 | BS64: 0 | BT64: 0 | BU64: 0 | BV64: 0 | BW64: 0 | BX64: 0 | BY64: 0 | BZ64: 0 | CA64: 0 | CB64: 0 | CC64: 0 | CD64: 0 | CE64: 0 | CF64: 0 | CG64: 0 | CH64: 0 | CI64: 0 | CJ64: 0 | CK64: No | CL64: =IFERROR(#REF!/AW64,0) -> 0 | CM64: TRA | CN64: 23b TRA A23 | CO64: Arterial
B65: Transport | E65: 24 TRA A23 WK subsidy | F65: Upgrades on Waihoehoe Rd east- from project 4 to Drury Hills + Drury Hills Intersection | G65: 2-lane urban - upgrade existing road layout with active modes on both sides, 20m cross-section | J65: Transport - Drury East IPA | P65: 0.9569224105 | Q65: 2060 | R65: Yes | AC65: 0 | AD65: 0 | AE65: 0 | AF65: 0 | AG65: -736462.6629 | AH65: -454512.3573 | AI65: -4515621.589 | AJ65: 0 | AK65: 0 | AL65: 0 | AM65: 0 | AN65: 0 | AO65: 0 | AP65: 0 | AQ65: 0 | AR65: 0 | AS65: 0 | AT65: 0 | AU65: 0 | AV65: 0 | AW65: -5706596.61 | AX65: 0 | AY65: 0 | AZ65: 0 | BB65: =IFERROR(VLOOKUP(J65,Funding_area_table!C:F,2,FALSE),"CHECK") -> TRA A23 | BC65: -245826.426 | BE65: 0 | BF65: 0 | BG65: 0 | BH65: 0 | BI65: 0 | BJ65: 0 | BK65: 0 | BL65: 0 | BM65: 0 | BN65: 0 | BO65: 0 | BP65: 0 | BQ65: 0 | BR65: 0 | BS65: -704737.6267 | BT65: -434933.0606 | BU65: -4321099.496 | BV65: 0 | BW65: 0 | BX65: 0 | BY65: 0 | BZ65: 0 | CA65: 0 | CB65: 0 | CC65: 0 | CD65: 0 | CE65: 0 | CF65: 0 | CG65: 0 | CH65: 0 | CI65: -5460770.184 | CJ65: -5460770.184 | CK65: No | CL65: =IFERROR(#REF!/AW65,0) -> 0 | CM65: TRA | CN65: 24 TRA A23 | CO65: Arterial
B66: Transport | E66: 32 TRA A23 WK subsidy | F66: New Intersection on Cossey Rd/Waihoehoe Rd | G66: Assume 1 simple roundabout intesection | J66: Transport - Drury East IPA | P66: 0.9569224105 | Q66: 2060 | R66: Yes | AC66: 0 | AD66: 0 | AE66: 0 | AF66: 0 | AG66: -118662.8856 | AH66: -447417.7124 | AI66: -50585.80031 | AJ66: -750689.7875 | AK66: 0 | AL66: 0 | AM66: 0 | AN66: 0 | AO66: 0 | AP66: 0 | AQ66: 0 | AR66: 0 | AS66: 0 | AT66: 0 | AU66: 0 | AV66: 0 | AW66: -1367356.186 | AX66: 0 | AY66: 0 | AZ66: 0 | BB66: =IFERROR(VLOOKUP(J66,Funding_area_table!C:F,2,FALSE),"CHECK") -> TRA A23 | BC66: -58902.40843 | BE66: 0 | BF66: 0 | BG66: 0 | BH66: 0 | BI66: 0 | BJ66: 0 | BK66: 0 | BL66: 0 | BM66: 0 | BN66: 0 | BO66: 0 | BP66: 0 | BQ66: 0 | BR66: 0 | BS66: -113551.1746 | BT66: -428144.0359 | BU66: -48406.68597 | BV66: -718351.881 | BW66: 0 | BX66: 0 | BY66: 0 | BZ66: 0 | CA66: 0 | CB66: 0 | CC66: 0 | CD66: 0 | CE66: 0 | CF66: 0 | CG66: 0 | CH66: 0 | CI66: -1308453.777 | CJ66: -1308453.777 | CK66: No | CL66: =IFERROR(#REF!/AW66,0) -> 0 | CM66: TRA | CN66: 32 TRA A23 | CO66: Arterial
B67: Transport | E67: 36a TRA A23 WK subsidy | F67: Bremner-Norrie Road east of SH1 up to GSR (overlap with project 12) | G67: 2-lane urban- upgrade existing road layout with active modes on both sides (Under construction) | J67: Transport - Drury East IPA | P67: 0.9569224105 | Q67: 2060 | R67: Yes | AC67: -807781.2676 | AD67: -8140147.78 | AE67: 0 | AF67: 0 | AG67: 0 | AH67: 0 | AI67: 0 | AJ67: 0 | AK67: 0 | AL67: 0 | AM67: 0 | AN67: 0 | AO67: 0 | AP67: 0 | AQ67: 0 | AR67: 0 | AS67: 0 | AT67: 0 | AU67: 0 | AV67: 0 | AW67: -8947929.048 | AX67: 0 | AY67: 0 | AZ67: 0 | BB67: =IFERROR(VLOOKUP(J67,Funding_area_table!C:F,2,FALSE),"CHECK") -> TRA A23 | BC67: -385455.2141 | BE67: 0 | BF67: 0 | BG67: 0 | BH67: 0 | BI67: 0 | BJ67: 0 | BK67: 0 | BL67: 0 | BM67: 0 | BN67: 0 | BO67: -772983.9978 | BP67: -7789489.836 | BQ67: 0 | BR67: 0 | BS67: 0 | BT67: 0 | BU67: 0 | BV67: 0 | BW67: 0 | BX67: 0 | BY67: 0 | BZ67: 0 | CA67: 0 | CB67: 0 | CC67: 0 | CD67: 0 | CE67: 0 | CF67: 0 | CG67: 0 | CH67: 0 | CI67: -8562473.834 | CJ67: -8562473.834 | CK67: No | CL67: =IFERROR(#REF!/AW67,0) -> 0 | CM67: TRA | CN67: 36a TRA A23 | CO67: Arterial
B68: Transport | E68: 36b TRA A23 WK subsidy | F68: Complete Bremner-Norrie Road connection from SH1 up to GSR excluding Bridge (overlap with project 12) | G68: 4-lane urban- upgrade interim 2-lane urban corridor to a 4-lane corridor with active modes on both sides (SGA design) | J68: Transport - Drury East IPA | P68: 0.9569224105 | Q68: 2060 | R68: Yes | AC68: 0 | AD68: 0 | AE68: 0 | AF68: 0 | AG68: 0 | AH68: 0 | AI68: 0 | AJ68: 0 | AK68: 0 | AL68: 0 | AM68: 0 | AN68: 0 | AO68: 0 | AP68: 0 | AQ68: 0 | AR68: 0 | AS68: -12778775.9 | AT68: -1307428.526 | AU68: -12989421.26 | AV68: 0 | AW68: -27075625.69 | AX68: 0 | AY68: 0 | AZ68: 0 | BB68: =IFERROR(VLOOKUP(J68,Funding_area_table!C:F,2,FALSE),"CHECK") -> TRA A23 | BC68: -1166352.688 | BE68: 0 | BF68: 0 | BG68: 0 | BH68: 0 | BI68: 0 | BJ68: 0 | BK68: 0 | BL68: 0 | BM68: 0 | BN68: 0 | BO68: 0 | BP68: 0 | BQ68: 0 | BR68: 0 | BS68: 0 | BT68: 0 | BU68: 0 | BV68: 0 | BW68: 0 | BX68: 0 | BY68: 0 | BZ68: 0 | CA68: 0 | CB68: 0 | CC68: 0 | CD68: 0 | CE68: -12228297.04 | CF68: -1251107.657 | CG68: -12429868.3 | CH68: 0 | CI68: -25909273 | CJ68: -25909273 | CK68: No | CL68: =IFERROR(#REF!/AW68,0) -> 0 | CM68: TRA | CN68: 36b TRA A23 | CO68: Arterial
B69: Transport | E69: 36c TRA A23 WK subsidy | F69: Complete Bremner-Norrie Road connection from SH1 up to GSR - Bridge structure (overlap with project 12) | G69: Upgrade interim 2-lane bridges (3No. to 4 lane bridges with active modes on both sides (SGA design) | J69: Transport - Drury East IPA | P69: 0.9569224105 | Q69: 2060 | R69: Yes | AC69: 0 | AD69: 0 | AE69: 0 | AF69: 0 | AG69: 0 | AH69: 0 | AI69: 0 | AJ69: 0 | AK69: 0 | AL69: 0 | AM69: 0 | AN69: 0 | AO69: 0 | AP69: 0 | AQ69: 0 | AR69: 0 | AS69: 0 | AT69: -1375847.199 | AU69: -13669167 | AV69: 0 | AW69: -15045014.2 | AX69: 0 | AY69: 0 | AZ69: 0 | BB69: =IFERROR(VLOOKUP(J69,Funding_area_table!C:F,2,FALSE),"CHECK") -> TRA A23 | BC69: -648102.9451 | BE69: 0 | BF69: 0 | BG69: 0 | BH69: 0 | BI69: 0 | BJ69: 0 | BK69: 0 | BL69: 0 | BM69: 0 | BN69: 0 | BO69: 0 | BP69: 0 | BQ69: 0 | BR69: 0 | BS69: 0 | BT69: 0 | BU69: 0 | BV69: 0 | BW69: 0 | BX69: 0 | BY69: 0 | BZ69: 0 | CA69: 0 | CB69: 0 | CC69: 0 | CD69: 0 | CE69: 0 | CF69: -1316579.018 | CG69: -13080332.23 | CH69: 0 | CI69: -14396911.25 | CJ69: -14396911.25 | CK69: No | CL69: =IFERROR(#REF!/AW69,0) -> 0 | CM69: TRA | CN69: 36c TRA A23 | CO69: Arterial
B70: Transport | E70: 37a(i) TRA A23 WK subsidy | F70: N-S Opaheke Arterial from development to Ponga Rd | G70: 2-lane urban- new road layout with active modes on both sides (TDM) | J70: Transport - Drury East IPA | P70: 0.9569224105 | Q70: 2060 | R70: Yes | AC70: 0 | AD70: 0 | AE70: 0 | AF70: 0 | AG70: 0 | AH70: 0 | AI70: 0 | AJ70: 0 | AK70: 0 | AL70: 0 | AM70: -19604529.16 | AN70: -533901.5204 | AO70: -6335490.37 | AP70: 0 | AQ70: 0 | AR70: 0 | AS70: 0 | AT70: 0 | AU70: 0 | AV70: 0 | AW70: -26473921.05 | AX70: 0 | AY70: 0 | AZ70: 0 | BB70: =IFERROR(VLOOKUP(J70,Funding_area_table!C:F,2,FALSE),"CHECK") -> TRA A23 | BC70: -1140432.703 | BE70: 0 | BF70: 0 | BG70: 0 | BH70: 0 | BI70: 0 | BJ70: 0 | BK70: 0 | BL70: 0 | BM70: 0 | BN70: 0 | BO70: 0 | BP70: 0 | BQ70: 0 | BR70: 0 | BS70: 0 | BT70: 0 | BU70: 0 | BV70: 0 | BW70: 0 | BX70: 0 | BY70: -18760013.3 | BZ70: -510902.3299 | CA70: -6062572.717 | CB70: 0 | CC70: 0 | CD70: 0 | CE70: 0 | CF70: 0 | CG70: 0 | CH70: 0 | CI70: -25333488.35 | CJ70: -25333488.35 | CK70: No | CL70: =IFERROR(#REF!/AW70,0) -> 0 | CM70: TRA | CN70: 37a(i) TRA A23 | CO70: Arterial
B71: Transport | E71: 37a(ii) TRA A23 WK subsidy | F71: N-S Opaheke Arterial from development to Ponga Rd | G71: 2-lane urban- bridge construction | J71: Transport - Drury East IPA | P71: 0.9569224105 | Q71: 2060 | R71: Yes | AC71: 0 | AD71: 0 | AE71: 0 | AF71: 0 | AG71: 0 | AH71: 0 | AI71: 0 | AJ71: 0 | AK71: 0 | AL71: 0 | AM71: 0 | AN71: -1465726.201 | AO71: -14562123.06 | AP71: 0 | AQ71: 0 | AR71: 0 | AS71: 0 | AT71: 0 | AU71: 0 | AV71: 0 | AW71: -16027849.26 | AX71: 0 | AY71: 0 | AZ71: 0 | BB71: =IFERROR(VLOOKUP(J71,Funding_area_table!C:F,2,FALSE),"CHECK") -> TRA A23 | BC71: -690441.1105 | BE71: 0 | BF71: 0 | BG71: 0 | BH71: 0 | BI71: 0 | BJ71: 0 | BK71: 0 | BL71: 0 | BM71: 0 | BN71: 0 | BO71: 0 | BP71: 0 | BQ71: 0 | BR71: 0 | BS71: 0 | BT71: 0 | BU71: 0 | BV71: 0 | BW71: 0 | BX71: 0 | BY71: 0 | BZ71: -1402586.25 | CA71: -13934821.9 | CB71: 0 | CC71: 0 | CD71: 0 | CE71: 0 | CF71: 0 | CG71: 0 | CH71: 0 | CI71: -15337408.15 | CJ71: -15337408.15 | CK71: No | CL71: =IFERROR(#REF!/AW71,0) -> 0 | CM71: TRA | CN71: 37a(ii) TRA A23 | CO71: Arterial
B72: Transport | E72: 37b(i) TRA A23 WK subsidy | F72: N-S Opaheke Arterial from development to Ponga Rd | G72: 4-lane urban- upgrade 2-lane urban with active modes on both sides (SGA design) | J72: Transport - Drury East IPA | P72: 0.9569224105 | Q72: 2060 | R72: Yes | AC72: 0 | AD72: 0 | AE72: 0 | AF72: 0 | AG72: 0 | AH72: 0 | AI72: 0 | AJ72: 0 | AK72: 0 | AL72: 0 | AM72: 0 | AN72: 0 | AO72: 0 | AP72: 0 | AQ72: 0 | AR72: 0 | AS72: -727040.1838 | AT72: -7223210.321 | AU72: 0 | AV72: 0 | AW72: =SUM(S72:AV72) -> -7950250.504 | AX72: 0 | AY72: 0 | AZ72: 0 | BB72: =IFERROR(VLOOKUP(J72,Funding_area_table!C:F,2,FALSE),"CHECK") -> TRA A23 | BC72: =$AW72*(1-P72) -> -342477.6274 | BE72: =S72*$P72*(1-$CL72) -> 0 | BF72: =T72*$P72*(1-$CL72) -> 0 | BG72: =U72*$P72*(1-$CL72) -> 0 | BH72: =V72*$P72*(1-$CL72) -> 0 | BI72: =W72*$P72*(1-$CL72) -> 0 | BJ72: =X72*$P72*(1-$CL72) -> 0 | BK72: =Y72*$P72*(1-$CL72) -> 0 | BL72: =Z72*$P72*(1-$CL72) -> 0 | BM72: =AA72*$P72*(1-$CL72) -> 0 | BN72: =AB72*$P72*(1-$CL72) -> 0 | BO72: =AC72*$P72*(1-$CL72) -> 0 | BP72: =AD72*$P72*(1-$CL72) -> 0 | BQ72: =AE72*$P72*(1-$CL72) -> 0 | BR72: =AF72*$P72*(1-$CL72) -> 0 | BS72: =AG72*$P72*(1-$CL72) -> 0 | BT72: =AH72*$P72*(1-$CL72) -> 0 | BU72: =AI72*$P72*(1-$CL72) -> 0 | BV72: =AJ72*$P72*(1-$CL72) -> 0 | BW72: =AK72*$P72*(1-$CL72) -> 0 | BX72: =AL72*$P72*(1-$CL72) -> 0 | BY72: =AM72*$P72*(1-$CL72) -> 0 | BZ72: =AN72*$P72*(1-$CL72) -> 0 | CA72: =AO72*$P72*(1-$CL72) -> 0 | CB72: =AP72*$P72*(1-$CL72) -> 0 | CC72: =AQ72*$P72*(1-$CL72) -> 0 | CD72: =AR72*$P72*(1-$CL72) -> 0 | CE72: =AS72*$P72*(1-$CL72) -> -695721.0452 | CF72: =AT72*$P72*(1-$CL72) -> -6912051.832 | CG72: =AU72*$P72*(1-$CL72) -> 0 | CH72: =AV72*$P72*(1-$CL72) -> 0 | CI72: =SUM(BE72:CH72) -> -7607772.877 | CJ72: =+CI72+AX72*P72 -> -7607772.877 | CK72: No | CL72: =IFERROR(#REF!/AW72,0) -> 0 | CM72: =TRIM(LEFT(BB72,3)) -> TRA | CN72: =IF(RIGHT(E72,11)=" WK subsidy",LEFT(E72,LEN(E72)-11),E72) -> 37b(i) TRA A23 | CO72: Arterial
B73: Transport | E73: 37b(ii) TRA A23 WK subsidy | F73: N-S Opaheke Arterial from development to Ponga Rd | G73: 4-lane urban- Bridge Widening | J73: Transport - Drury East IPA | P73: 0.9569224105 | Q73: 2060 | R73: Yes | AC73: 0 | AD73: 0 | AE73: 0 | AF73: 0 | AG73: 0 | AH73: 0 | AI73: 0 | AJ73: 0 | AK73: 0 | AL73: 0 | AM73: 0 | AN73: 0 | AO73: 0 | AP73: 0 | AQ73: 0 | AR73: 0 | AS73: -940608.2378 | AT73: -9345028.352 | AU73: 0 | AV73: 0 | AW73: -10285636.59 | AX73: 0 | AY73: 0 | AZ73: 0 | BB73: =IFERROR(VLOOKUP(J73,Funding_area_table!C:F,2,FALSE),"CHECK") -> TRA A23 | BC73: -443080.4305 | BE73: 0 | BF73: 0 | BG73: 0 | BH73: 0 | BI73: 0 | BJ73: 0 | BK73: 0 | BL73: 0 | BM73: 0 | BN73: 0 | BO73: 0 | BP73: 0 | BQ73: 0 | BR73: 0 | BS73: 0 | BT73: 0 | BU73: 0 | BV73: 0 | BW73: 0 | BX73: 0 | BY73: 0 | BZ73: 0 | CA73: 0 | CB73: 0 | CC73: 0 | CD73: 0 | CE73: -900089.1023 | CF73: -8942467.057 | CG73: 0 | CH73: 0 | CI73: -9842556.16 | CJ73: -9842556.16 | CK73: No | CL73: =IFERROR(#REF!/AW73,0) -> 0 | CM73: TRA | CN73: 37b(ii) TRA A23 | CO73: Arterial
B74: Transport | E74: 39b TRA A23 WK subsidy | F74: New Bremner Rd arterial from SH1 to Auranga development | G74: 4-lane urban- upgrade 2-lane urban excl bridge | J74: Transport - Drury East IPA | P74: 0.9569224105 | Q74: 2060 | R74: Yes | AC74: 0 | AD74: 0 | AE74: 0 | AF74: 0 | AG74: 0 | AH74: 0 | AI74: 0 | AJ74: 0 | AK74: 0 | AL74: 0 | AM74: 0 | AN74: 0 | AO74: 0 | AP74: 0 | AQ74: -22244.21745 | AR74: -220998.3226 | AS74: 0 | AT74: 0 | AU74: 0 | AV74: 0 | AW74: -243242.54 | AX74: 0 | AY74: 0 | AZ74: 0 | BB74: =IFERROR(VLOOKUP(J74,Funding_area_table!C:F,2,FALSE),"CHECK") -> TRA A23 | BC74: -10478.30228 | BE74: 0 | BF74: 0 | BG74: 0 | BH74: 0 | BI74: 0 | BJ74: 0 | BK74: 0 | BL74: 0 | BM74: 0 | BN74: 0 | BO74: 0 | BP74: 0 | BQ74: 0 | BR74: 0 | BS74: 0 | BT74: 0 | BU74: 0 | BV74: 0 | BW74: 0 | BX74: 0 | BY74: 0 | BZ74: 0 | CA74: 0 | CB74: 0 | CC74: -21285.99018 | CD74: -211478.2476 | CE74: 0 | CF74: 0 | CG74: 0 | CH74: 0 | CI74: -232764.2378 | CJ74: -232764.2378 | CK74: No | CL74: =IFERROR(#REF!/AW74,0) -> 0 | CM74: TRA | CN74: 39b TRA A23 | CO74: Arterial
B75: Transport | E75: 39c TRA A23 WK subsidy | F75: New Bremner Rd arterial from SH1 to Auranga development | G75: 4-lane urban- upgrade 2-lane bridge widening | J75: Transport - Drury East IPA | P75: 0.9569224105 | Q75: 2060 | R75: Yes | AC75: 0 | AD75: 0 | AE75: 0 | AF75: 0 | AG75: 0 | AH75: 0 | AI75: 0 | AJ75: 0 | AK75: 0 | AL75: 0 | AM75: 0 | AN75: 0 | AO75: 0 | AP75: 0 | AQ75: -15499.19668 | AR75: -153985.928 | AS75: 0 | AT75: 0 | AU75: 0 | AV75: 0 | AW75: -169485.1247 | AX75: 0 | AY75: 0 | AZ75: 0 | BB75: =IFERROR(VLOOKUP(J75,Funding_area_table!C:F,2,FALSE),"CHECK") -> TRA A23 | BC75: -7301.010622 | BE75: 0 | BF75: 0 | BG75: 0 | BH75: 0 | BI75: 0 | BJ75: 0 | BK75: 0 | BL75: 0 | BM75: 0 | BN75: 0 | BO75: 0 | BP75: 0 | BQ75: 0 | BR75: 0 | BS75: 0 | BT75: 0 | BU75: 0 | BV75: 0 | BW75: 0 | BX75: 0 | BY75: 0 | BZ75: 0 | CA75: 0 | CB75: 0 | CC75: -14831.52864 | CD75: -147352.5854 | CE75: 0 | CF75: 0 | CG75: 0 | CH75: 0 | CI75: -162184.1141 | CJ75: -162184.1141 | CK75: No | CL75: =IFERROR(#REF!/AW75,0) -> 0 | CM75: TRA | CN75: 39c TRA A23 | CO75: Arterial
B76: Transport | E76: 41b TRA A23 WK subsidy | F76: Jesmond Rd from SH22 to Waipupuke development boundary | G76: 4-lane urban- upgrade 2-lane urban to 4-lane with active modes on both sides, (TDM) | J76: Transport - Drury East IPA | P76: 0.9569224105 | Q76: 2060 | R76: Yes | AC76: 0 | AD76: 0 | AE76: 0 | AF76: 0 | AG76: 0 | AH76: 0 | AI76: 0 | AJ76: 0 | AK76: 0 | AL76: 0 | AM76: 0 | AN76: 0 | AO76: 0 | AP76: 0 | AQ76: 0 | AR76: 0 | AS76: 0 | AT76: 0 | AU76: 0 | AV76: 0 | AW76: 0 | AX76: 0 | AY76: 0 | AZ76: 0 | BB76: =IFERROR(VLOOKUP(J76,Funding_area_table!C:F,2,FALSE),"CHECK") -> TRA A23 | BC76: 0 | BE76: 0 | BF76: 0 | BG76: 0 | BH76: 0 | BI76: 0 | BJ76: 0 | BK76: 0 | BL76: 0 | BM76: 0 | BN76: 0 | BO76: 0 | BP76: 0 | BQ76: 0 | BR76: 0 | BS76: 0 | BT76: 0 | BU76: 0 | BV76: 0 | BW76: 0 | BX76: 0 | BY76: 0 | BZ76: 0 | CA76: 0 | CB76: 0 | CC76: 0 | CD76: 0 | CE76: 0 | CF76: 0 | CG76: 0 | CH76: 0 | CI76: 0 | CJ76: 0 | CK76: No | CL76: =IFERROR(#REF!/AW76,0) -> 0 | CM76: TRA | CN76: 41b TRA A23 | CO76: Arterial
B77: Transport | E77: 42c TRA A23 WK subsidy | F77: Jesmond Rd upgrades from project 41 to New Bremner Rd | G77: 4-lane urban FTN- upgrade 2-lane urban to 4-lane with active modes on both sides, (TDM) | J77: Transport - Drury East IPA | P77: 0.9569224105 | Q77: 2060 | R77: Yes | AC77: 0 | AD77: 0 | AE77: 0 | AF77: 0 | AG77: 0 | AH77: 0 | AI77: 0 | AJ77: 0 | AK77: 0 | AL77: 0 | AM77: 0 | AN77: 0 | AO77: 0 | AP77: 0 | AQ77: 0 | AR77: 0 | AS77: 0 | AT77: 0 | AU77: 0 | AV77: 0 | AW77: 0 | AX77: 0 | AY77: 0 | AZ77: 0 | BB77: =IFERROR(VLOOKUP(J77,Funding_area_table!C:F,2,FALSE),"CHECK") -> TRA A23 | BC77: 0 | BE77: 0 | BF77: 0 | BG77: 0 | BH77: 0 | BI77: 0 | BJ77: 0 | BK77: 0 | BL77: 0 | BM77: 0 | BN77: 0 | BO77: 0 | BP77: 0 | BQ77: 0 | BR77: 0 | BS77: 0 | BT77: 0 | BU77: 0 | BV77: 0 | BW77: 0 | BX77: 0 | BY77: 0 | BZ77: 0 | CA77: 0 | CB77: 0 | CC77: 0 | CD77: 0 | CE77: 0 | CF77: 0 | CG77: 0 | CH77: 0 | CI77: 0 | CJ77: 0 | CK77: No | CL77: =IFERROR(#REF!/AW77,0) -> 0 | CM77: TRA | CN77: 42c TRA A23 | CO77: Arterial
B78: Transport | E78: 65a(ii) TRA A23 WK subsidy | F78: New Bremner Rd arterial from Auranga development to Jesmond Rd (bridge only) | G78: 2-lane urban- new road layout with active modes on both sides (TDM) | J78: Transport - Drury East IPA | P78: 0.9569224105 | Q78: 2060 | R78: Yes | AC78: 0 | AD78: 0 | AE78: 0 | AF78: 0 | AG78: 0 | AH78: 0 | AI78: 0 | AJ78: 0 | AK78: 0 | AL78: 0 | AM78: 0 | AN78: 0 | AO78: 0 | AP78: 0 | AQ78: 0 | AR78: 0 | AS78: 0 | AT78: 0 | AU78: 0 | AV78: 0 | AW78: 0 | AX78: 0 | AY78: 0 | AZ78: 0 | BB78: =IFERROR(VLOOKUP(J78,Funding_area_table!C:F,2,FALSE),"CHECK") -> TRA A23 | BC78: 0 | BE78: 0 | BF78: 0 | BG78: 0 | BH78: 0 | BI78: 0 | BJ78: 0 | BK78: 0 | BL78: 0 | BM78: 0 | BN78: 0 | BO78: 0 | BP78: 0 | BQ78: 0 | BR78: 0 | BS78: 0 | BT78: 0 | BU78: 0 | BV78: 0 | BW78: 0 | BX78: 0 | BY78: 0 | BZ78: 0 | CA78: 0 | CB78: 0 | CC78: 0 | CD78: 0 | CE78: 0 | CF78: 0 | CG78: 0 | CH78: 0 | CI78: 0 | CJ78: 0 | CK78: No | CL78: =IFERROR(#REF!/AW78,0) -> 0 | CM78: TRA | CN78: 65a(ii) TRA A23 | CO78: Arterial
B79: Transport | E79: 65b(i) TRA A23 WK subsidy | F79: New Bremner Rd arterial from Auranga development to Jesmond Rd (excl bridge) | G79: 4-lane urban- upgrade 2-lane urban to 4-lane with active modes on both sides, (TDM) | J79: Transport - Drury East IPA | P79: 0.9569224105 | Q79: 2060 | R79: Yes | AC79: 0 | AD79: 0 | AE79: 0 | AF79: 0 | AG79: 0 | AH79: 0 | AI79: 0 | AJ79: 0 | AK79: 0 | AL79: 0 | AM79: 0 | AN79: 0 | AO79: 0 | AP79: 0 | AQ79: -23320.55055 | AR79: -231691.7898 | AS79: 0 | AT79: 0 | AU79: 0 | AV79: 0 | AW79: -255012.3404 | AX79: 0 | AY79: 0 | AZ79: 0 | BB79: =IFERROR(VLOOKUP(J79,Funding_area_table!C:F,2,FALSE),"CHECK") -> TRA A23 | BC79: -10985.31691 | BE79: 0 | BF79: 0 | BG79: 0 | BH79: 0 | BI79: 0 | BJ79: 0 | BK79: 0 | BL79: 0 | BM79: 0 | BN79: 0 | BO79: 0 | BP79: 0 | BQ79: 0 | BR79: 0 | BS79: 0 | BT79: 0 | BU79: 0 | BV79: 0 | BW79: 0 | BX79: 0 | BY79: 0 | BZ79: 0 | CA79: 0 | CB79: 0 | CC79: -22315.95745 | CD79: -221711.066 | CE79: 0 | CF79: 0 | CG79: 0 | CH79: 0 | CI79: -244027.0235 | CJ79: -244027.0235 | CK79: No | CL79: =IFERROR(#REF!/AW79,0) -> 0 | CM79: TRA | CN79: 65b(i) TRA A23 | CO79: Arterial
B80: Transport | E80: 65b(ii) TRA A23 WK subsidy | F80: New Bremner Rd arterial from Auranga development to Jesmond Rd (bridge widening) | G80: 4-lane urban- upgrade 2-lane urban to 4-lane with active modes on both sides, (TDM) | J80: Transport - Drury East IPA | P80: 0.9569224105 | Q80: 2060 | R80: Yes | AC80: 0 | AD80: 0 | AE80: 0 | AF80: 0 | AG80: 0 | AH80: 0 | AI80: 0 | AJ80: 0 | AK80: 0 | AL80: 0 | AM80: 0 | AN80: 0 | AO80: 0 | AP80: 0 | AQ80: -5812.198754 | AR80: -57744.723 | AS80: 0 | AT80: 0 | AU80: 0 | AV80: 0 | AW80: -63556.92175 | AX80: 0 | AY80: 0 | AZ80: 0 | BB80: =IFERROR(VLOOKUP(J80,Funding_area_table!C:F,2,FALSE),"CHECK") -> TRA A23 | BC80: -2737.878983 | BE80: 0 | BF80: 0 | BG80: 0 | BH80: 0 | BI80: 0 | BJ80: 0 | BK80: 0 | BL80: 0 | BM80: 0 | BN80: 0 | BO80: 0 | BP80: 0 | BQ80: 0 | BR80: 0 | BS80: 0 | BT80: 0 | BU80: 0 | BV80: 0 | BW80: 0 | BX80: 0 | BY80: 0 | BZ80: 0 | CA80: 0 | CB80: 0 | CC80: -5561.823242 | CD80: -55257.21953 | CE80: 0 | CF80: 0 | CG80: 0 | CH80: 0 | CI80: -60819.04277 | CJ80: -60819.04277 | CK80: No | CL80: =IFERROR(#REF!/AW80,0) -> 0 | CM80: TRA | CN80: 65b(ii) TRA A23 | CO80: Arterial
B81: Transport | E81: 67 TRA A23 WK subsidy | F81: Active Mode Corridor Drury Central to GSR | G81: 0 | J81: Transport - Drury East IPA | P81: 0.9569224105 | Q81: 2060 | R81: Yes | AC81: -638679.0201 | AD81: -6345334.127 | AE81: 0 | AF81: 0 | AG81: 0 | AH81: 0 | AI81: 0 | AJ81: 0 | AK81: 0 | AL81: 0 | AM81: 0 | AN81: 0 | AO81: 0 | AP81: 0 | AQ81: 0 | AR81: 0 | AS81: 0 | AT81: 0 | AU81: 0 | AV81: 0 | AW81: -6984013.147 | AX81: 0 | AY81: 0 | AZ81: 0 | BB81: =IFERROR(VLOOKUP(J81,Funding_area_table!C:F,2,FALSE),"CHECK") -> TRA A23 | BC81: -300854.4512 | BE81: 0 | BF81: 0 | BG81: 0 | BH81: 0 | BI81: 0 | BJ81: 0 | BK81: 0 | BL81: 0 | BM81: 0 | BN81: 0 | BO81: -611166.2675 | BP81: -6071992.428 | BQ81: 0 | BR81: 0 | BS81: 0 | BT81: 0 | BU81: 0 | BV81: 0 | BW81: 0 | BX81: 0 | BY81: 0 | BZ81: 0 | CA81: 0 | CB81: 0 | CC81: 0 | CD81: 0 | CE81: 0 | CF81: 0 | CG81: 0 | CH81: 0 | CI81: -6683158.695 | CJ81: -6683158.695 | CK81: No | CL81: =IFERROR(#REF!/AW81,0) -> 0 | CM81: TRA | CN81: 67 TRA A23 | CO81: Arterial
B82: Transport | E82: 68 TRA A23 WK subsidy | F82: Active Mode Corridor GSR to Drury West | G82: 0 | J82: Transport - Drury East IPA | P82: 0.9569224105 | Q82: 2060 | R82: Yes | AC82: 0 | AD82: 0 | AE82: 0 | AF82: 0 | AG82: 0 | AH82: 0 | AI82: 0 | AJ82: 0 | AK82: 0 | AL82: 0 | AM82: 0 | AN82: 0 | AO82: 0 | AP82: 0 | AQ82: 0 | AR82: 0 | AS82: 0 | AT82: 0 | AU82: 0 | AV82: 0 | AW82: 0 | AX82: 0 | AY82: 0 | AZ82: 0 | BB82: =IFERROR(VLOOKUP(J82,Funding_area_table!C:F,2,FALSE),"CHECK") -> TRA A23 | BC82: 0 | BE82: 0 | BF82: 0 | BG82: 0 | BH82: 0 | BI82: 0 | BJ82: 0 | BK82: 0 | BL82: 0 | BM82: 0 | BN82: 0 | BO82: 0 | BP82: 0 | BQ82: 0 | BR82: 0 | BS82: 0 | BT82: 0 | BU82: 0 | BV82: 0 | BW82: 0 | BX82: 0 | BY82: 0 | BZ82: 0 | CA82: 0 | CB82: 0 | CC82: 0 | CD82: 0 | CE82: 0 | CF82: 0 | CG82: 0 | CH82: 0 | CI82: 0 | CJ82: 0 | CK82: No | CL82: =IFERROR(#REF!/AW82,0) -> 0 | CM82: TRA | CN82: 68 TRA A23 | CO82: Arterial
B83: Transport | E83: 70 TRA A23 WK subsidy | F83: walk/cycle bridges on GSR Road bridge over the rail corridor | G83: New cycle bridge 5m wide, 80m long, approach lengths 270m total for both sides. No property required | J83: Transport - Drury East IPA | P83: 0.9569224105 | Q83: 2060 | R83: Yes | AC83: 0 | AD83: 0 | AE83: 0 | AF83: 0 | AG83: 0 | AH83: 0 | AI83: 0 | AJ83: 0 | AK83: 0 | AL83: 0 | AM83: 0 | AN83: 0 | AO83: 0 | AP83: 0 | AQ83: 0 | AR83: 0 | AS83: 0 | AT83: 0 | AU83: 0 | AV83: 0 | AW83: 0 | AX83: 0 | AY83: 0 | AZ83: 0 | BB83: =IFERROR(VLOOKUP(J83,Funding_area_table!C:F,2,FALSE),"CHECK") -> TRA A23 | BC83: 0 | BE83: 0 | BF83: 0 | BG83: 0 | BH83: 0 | BI83: 0 | BJ83: 0 | BK83: 0 | BL83: 0 | BM83: 0 | BN83: 0 | BO83: 0 | BP83: 0 | BQ83: 0 | BR83: 0 | BS83: 0 | BT83: 0 | BU83: 0 | BV83: 0 | BW83: 0 | BX83: 0 | BY83: 0 | BZ83: 0 | CA83: 0 | CB83: 0 | CC83: 0 | CD83: 0 | CE83: 0 | CF83: 0 | CG83: 0 | CH83: 0 | CI83: 0 | CJ83: 0 | CK83: No | CL83: =IFERROR(#REF!/AW83,0) -> 0 | CM83: TRA | CN83: 70 TRA A23 | CO83: Arterial
B84: Transport | E84: 7 TRA A24 | F84: Fitzgerald Rd upgrades (from Waihoehoe Rd to development boundary) | G84: 2-lane urban - upgrade existing road layout with active modes on both sides | J84: Transport - Drury West 1 IPA | P84: 0.9160560106 | Q84: 2060 | R84: No | AC84: 0 | AD84: 0 | AE84: 0 | AF84: 0 | AG84: 0 | AH84: 0 | AI84: 0 | AJ84: 0 | AK84: 0 | AL84: 0 | AM84: 0 | AN84: 0 | AO84: 0 | AP84: 0 | AQ84: 0 | AR84: 0 | AS84: 0 | AT84: 0 | AU84: 0 | AW84: 0 | AX84: 0 | AY84: 0 | AZ84: 0 | BB84: =IFERROR(VLOOKUP(J84,Funding_area_table!C:F,2,FALSE),"CHECK") -> TRA A24 | BC84: 0 | BE84: 0 | BF84: 0 | BG84: 0 | BH84: 0 | BI84: 0 | BJ84: 0 | BK84: 0 | BL84: 0 | BM84: 0 | BN84: 0 | BO84: 0 | BP84: 0 | BQ84: 0 | BR84: 0 | BS84: 0 | BT84: 0 | BU84: 0 | BV84: 0 | BW84: 0 | BX84: 0 | BY84: 0 | BZ84: 0 | CA84: 0 | CB84: 0 | CC84: 0 | CD84: 0 | CE84: 0 | CF84: 0 | CG84: 0 | CH84: 0 | CI84: 0 | CJ84: 0 | CK84: No | CL84: =IFERROR(#REF!/AW84,0) -> 0 | CM84: TRA | CN84: 7 TRA A24 | CO84: Collector
B85: Transport | E85: 8 TRA A24 | F85: Fielding Rd upgrades ( from Waihoehoe Rd to development boundary ) | G85: 2-lane urban - upgrade existing road layout with active modes on both sides | J85: Transport - Drury West 1 IPA | P85: 0.9160560106 | Q85: 2060 | R85: No | AC85: 0 | AD85: 0 | AE85: 0 | AF85: 0 | AG85: 0 | AH85: 0 | AI85: 0 | AJ85: 0 | AK85: 0 | AL85: 0 | AM85: 0 | AN85: 0 | AO85: 0 | AP85: 0 | AQ85: 0 | AR85: 0 | AS85: 0 | AT85: 0 | AU85: 0 | AW85: 0 | AX85: 0 | AY85: 0 | AZ85: 0 | BB85: =IFERROR(VLOOKUP(J85,Funding_area_table!C:F,2,FALSE),"CHECK") -> TRA A24 | BC85: 0 | BE85: 0 | BF85: 0 | BG85: 0 | BH85: 0 | BI85: 0 | BJ85: 0 | BK85: 0 | BL85: 0 | BM85: 0 | BN85: 0 | BO85: 0 | BP85: 0 | BQ85: 0 | BR85: 0 | BS85: 0 | BT85: 0 | BU85: 0 | BV85: 0 | BW85: 0 | BX85: 0 | BY85: 0 | BZ85: 0 | CA85: 0 | CB85: 0 | CC85: 0 | CD85: 0 | CE85: 0 | CF85: 0 | CG85: 0 | CH85: 0 | CI85: 0 | CJ85: 0 | CK85: No | CL85: =IFERROR(#REF!/AW85,0) -> 0 | CM85: TRA | CN85: 8 TRA A24 | CO85: Collector
B86: Transport | E86: 12 TRA A24 | F86: Interim walking, cycling and bus connections within Drury Centre (includes Bremner/Norrie/Firth Intersection upgrades, active mode on Norrie) -overlap with project 36 and 46 | G86: Intersection improvements on Bremner-Firth Rd, Norrie-Firth Rd, GSR-Firth Rd, Active mode facilities on both sides of Firth & Norrie Rd | J86: Transport - Drury West 1 IPA | P86: 0.9160560106 | Q86: 2060 | R86: No | AC86: 1158039.093 | AD86: 11505223.66 | AE86: 0 | AF86: 0 | AG86: 0 | AH86: 0 | AI86: 0 | AJ86: 0 | AK86: 0 | AL86: 0 | AM86: 0 | AN86: 0 | AO86: 0 | AP86: 0 | AQ86: 0 | AR86: 0 | AS86: 0 | AT86: 0 | AU86: 0 | AW86: 12663262.75 | AX86: 0 | AY86: 0 | AZ86: 0 | BB86: =IFERROR(VLOOKUP(J86,Funding_area_table!C:F,2,FALSE),"CHECK") -> TRA A24 | BC86: 1063004.795 | BE86: 0 | BF86: 0 | BG86: 0 | BH86: 0 | BI86: 0 | BJ86: 0 | BK86: 0 | BL86: 0 | BM86: 0 | BN86: 0 | BO86: 1060828.671 | BP86: 10539429.29 | BQ86: 0 | BR86: 0 | BS86: 0 | BT86: 0 | BU86: 0 | BV86: 0 | BW86: 0 | BX86: 0 | BY86: 0 | BZ86: 0 | CA86: 0 | CB86: 0 | CC86: 0 | CD86: 0 | CE86: 0 | CF86: 0 | CG86: 0 | CH86: 0 | CI86: 11600257.96 | CJ86: 11600257.96 | CK86: No | CL86: =IFERROR(#REF!/AW86,0) -> 0 | CM86: TRA | CN86: 12 TRA A24 | CO86: Collector
B87: Transport | E87: 14a TRA A24 | F87: Western end of Brookefield Road Extension tie in with Quarry Rd | G87: 2-lane urban (New Road connection to Quarry Road with active modes on both sides + intersection improvements) | J87: Transport - Drury West 1 IPA | P87: 0.9160560106 | Q87: 2060 | R87: No | AC87: 0 | AD87: 256040.2073 | AE87: 151914.5895 | AF87: 1509285.257 | AG87: 0 | AH87: 0 | AI87: 0 | AJ87: 0 | AK87: 0 | AL87: 0 | AM87: 0 | AN87: 0 | AO87: 0 | AP87: 0 | AQ87: 0 | AR87: 0 | AS87: 0 | AT87: 0 | AU87: 0 | AW87: 1917240.054 | AX87: 0 | AY87: 0 | AZ87: 0 | BB87: =IFERROR(VLOOKUP(J87,Funding_area_table!C:F,2,FALSE),"CHECK") -> TRA A24 | BC87: 160940.7788 | BE87: 0 | BF87: 0 | BG87: 0 | BH87: 0 | BI87: 0 | BJ87: 0 | BK87: 0 | BL87: 0 | BM87: 0 | BN87: 0 | BO87: 0 | BP87: 234547.1709 | BQ87: 139162.2728 | BR87: 1382589.831 | BS87: 0 | BT87: 0 | BU87: 0 | BV87: 0 | BW87: 0 | BX87: 0 | BY87: 0 | BZ87: 0 | CA87: 0 | CB87: 0 | CC87: 0 | CD87: 0 | CE87: 0 | CF87: 0 | CG87: 0 | CH87: 0 | CI87: 1756299.275 | CJ87: 1756299.275 | CK87: No | CL87: =IFERROR(#REF!/AW87,0) -> 0 | CM87: TRA | CN87: 14a TRA A24 | CO87: Collector
B88: Transport | E88: 14b TRA A24 | F88: Brookefield Road Upgrade | G88: 2-lane urban (upgrade existing road layout with active modes on both sides + intersection improvements) | J88: Transport - Drury West 1 IPA | P88: 0.9160560106 | Q88: 2060 | R88: No | AC88: 13610.8364 | AD88: 135224.8969 | AE88: 0 | AF88: 0 | AG88: 0 | AH88: 0 | AI88: 0 | AJ88: 0 | AK88: 0 | AL88: 0 | AM88: 0 | AN88: 0 | AO88: 0 | AP88: 0 | AQ88: 0 | AR88: 0 | AS88: 0 | AT88: 0 | AU88: 0 | AW88: 148835.7333 | AX88: 0 | AY88: 0 | AZ88: 0 | BB88: =IFERROR(VLOOKUP(J88,Funding_area_table!C:F,2,FALSE),"CHECK") -> TRA A24 | BC88: 12493.86523 | BE88: 0 | BF88: 0 | BG88: 0 | BH88: 0 | BI88: 0 | BJ88: 0 | BK88: 0 | BL88: 0 | BM88: 0 | BN88: 0 | BO88: 12468.28849 | BP88: 123873.5796 | BQ88: 0 | BR88: 0 | BS88: 0 | BT88: 0 | BU88: 0 | BV88: 0 | BW88: 0 | BX88: 0 | BY88: 0 | BZ88: 0 | CA88: 0 | CB88: 0 | CC88: 0 | CD88: 0 | CE88: 0 | CF88: 0 | CG88: 0 | CH88: 0 | CI88: 136341.8681 | CJ88: 136341.8681 | CK88: No | CL88: =IFERROR(#REF!/AW88,0) -> 0 | CM88: TRA | CN88: 14b TRA A24 | CO88: Collector
B89: Transport | E89: 20a TRA A24 | F89: Upgrade Fitzgerald Rd from Brookefield to Cossey Rd for active modes | G89: Active mode upgrades- existing road layout with active modes on both sides + intersection upgrades for active mode crossing | J89: Transport - Drury West 1 IPA | P89: 0.9160560106 | Q89: 2060 | R89: No | AC89: 0 | AD89: 0 | AE89: 0 | AF89: 0 | AG89: 0 | AH89: 0 | AI89: 0 | AJ89: 0 | AK89: 0 | AL89: 0 | AM89: 0 | AN89: 0 | AO89: 0 | AP89: 0 | AQ89: 0 | AR89: 0 | AS89: 0 | AT89: 0 | AU89: 0 | AW89: 0 | AX89: 0 | AY89: 0 | AZ89: 0 | BB89: =IFERROR(VLOOKUP(J89,Funding_area_table!C:F,2,FALSE),"CHECK") -> TRA A24 | BC89: 0 | BE89: 0 | BF89: 0 | BG89: 0 | BH89: 0 | BI89: 0 | BJ89: 0 | BK89: 0 | BL89: 0 | BM89: 0 | BN89: 0 | BO89: 0 | BP89: 0 | BQ89: 0 | BR89: 0 | BS89: 0 | BT89: 0 | BU89: 0 | BV89: 0 | BW89: 0 | BX89: 0 | BY89: 0 | BZ89: 0 | CA89: 0 | CB89: 0 | CC89: 0 | CD89: 0 | CE89: 0 | CF89: 0 | CG89: 0 | CH89: 0 | CI89: 0 | CJ89: 0 | CK89: No | CL89: =IFERROR(#REF!/AW89,0) -> 0 | CM89: TRA | CN89: 20a TRA A24 | CO89: Collector
B90: Transport | E90: 21 TRA A24 | F90: Fielding Rd upgrades for active modes ( from Fitzgerald Rd to development boundary ) | G90: Active mode upgrades- existing road layout with active modes on both sides + intersection upgrades for active mode crossing | J90: Transport - Drury West 1 IPA | P90: 0.9160560106 | Q90: 2060 | R90: No | AC90: 0 | AD90: 0 | AE90: 0 | AF90: 0 | AG90: 0 | AH90: 0 | AI90: 0 | AJ90: 0 | AK90: 0 | AL90: 0 | AM90: 0 | AN90: 0 | AO90: 0 | AP90: 0 | AQ90: 0 | AR90: 0 | AS90: 0 | AT90: 0 | AU90: 0 | AW90: 0 | AX90: 0 | AY90: 0 | AZ90: 0 | BB90: =IFERROR(VLOOKUP(J90,Funding_area_table!C:F,2,FALSE),"CHECK") -> TRA A24 | BC90: 0 | BE90: 0 | BF90: 0 | BG90: 0 | BH90: 0 | BI90: 0 | BJ90: 0 | BK90: 0 | BL90: 0 | BM90: 0 | BN90: 0 | BO90: 0 | BP90: 0 | BQ90: 0 | BR90: 0 | BS90: 0 | BT90: 0 | BU90: 0 | BV90: 0 | BW90: 0 | BX90: 0 | BY90: 0 | BZ90: 0 | CA90: 0 | CB90: 0 | CC90: 0 | CD90: 0 | CE90: 0 | CF90: 0 | CG90: 0 | CH90: 0 | CI90: 0 | CJ90: 0 | CK90: No | CL90: =IFERROR(#REF!/AW90,0) -> 0 | CM90: TRA | CN90: 21 TRA A24 | CO90: Collector
B91: Transport | E91: 22 TRA A24 | F91: Upgrade Intersection at Quarry/ GSR | G91: Upgrade intersection with active modes facilities(TDM) | J91: Transport - Drury West 1 IPA | P91: 0.9160560106 | Q91: 2060 | R91: No | AC91: 0 | AD91: 0 | AE91: 0 | AF91: 0 | AG91: 0 | AH91: 0 | AI91: 0 | AJ91: 0 | AK91: 0 | AL91: 0 | AM91: 0 | AN91: 0 | AO91: 0 | AP91: 0 | AQ91: 0 | AR91: 0 | AS91: 0 | AT91: 0 | AU91: 0 | AW91: 0 | AX91: 0 | AY91: 0 | AZ91: 0 | BB91: =IFERROR(VLOOKUP(J91,Funding_area_table!C:F,2,FALSE),"CHECK") -> TRA A24 | BC91: 0 | BE91: 0 | BF91: 0 | BG91: 0 | BH91: 0 | BI91: 0 | BJ91: 0 | BK91: 0 | BL91: 0 | BM91: 0 | BN91: 0 | BO91: 0 | BP91: 0 | BQ91: 0 | BR91: 0 | BS91: 0 | BT91: 0 | BU91: 0 | BV91: 0 | BW91: 0 | BX91: 0 | BY91: 0 | BZ91: 0 | CA91: 0 | CB91: 0 | CC91: 0 | CD91: 0 | CE91: 0 | CF91: 0 | CG91: 0 | CH91: 0 | CI91: 0 | CJ91: 0 | CK91: No | CL91: =IFERROR(#REF!/AW91,0) -> 0 | CM91: TRA | CN91: 22 TRA A24 | CO91: Collector
B92: Transport | E92: 25 TRA A24 | F92: Upgrades on Drury Hills from Waihoehoe Rd to Macwhinney Dr | G92: 2-lane urban- upgrade existing road layout to 2-lane urban with active modes on both sides | J92: Transport - Drury West 1 IPA | P92: 0.9160560106 | Q92: 2060 | R92: No | AC92: 0 | AD92: 0 | AE92: 0 | AF92: 0 | AG92: 0 | AH92: 0 | AI92: 0 | AJ92: 0 | AK92: 0 | AL92: 0 | AM92: 0 | AN92: 0 | AO92: 0 | AP92: 0 | AQ92: 0 | AR92: 0 | AS92: 0 | AT92: 0 | AU92: 0 | AW92: 0 | AX92: 0 | AY92: 0 | AZ92: 0 | BB92: =IFERROR(VLOOKUP(J92,Funding_area_table!C:F,2,FALSE),"CHECK") -> TRA A24 | BC92: 0 | BE92: 0 | BF92: 0 | BG92: 0 | BH92: 0 | BI92: 0 | BJ92: 0 | BK92: 0 | BL92: 0 | BM92: 0 | BN92: 0 | BO92: 0 | BP92: 0 | BQ92: 0 | BR92: 0 | BS92: 0 | BT92: 0 | BU92: 0 | BV92: 0 | BW92: 0 | BX92: 0 | BY92: 0 | BZ92: 0 | CA92: 0 | CB92: 0 | CC92: 0 | CD92: 0 | CE92: 0 | CF92: 0 | CG92: 0 | CH92: 0 | CI92: 0 | CJ92: 0 | CK92: No | CL92: =IFERROR(#REF!/AW92,0) -> 0 | CM92: TRA | CN92: 25 TRA A24 | CO92: Collector
B93: Transport | E93: 27a TRA A24 | F93: Active mode facilities from Drury hills and Fitzgerald to Quarry Rd (2 links and intersections) | G93: Active mode upgrades- existing road layout with active modes on both sides + intersection upgrades for active mode crossing | J93: Transport - Drury West 1 IPA | P93: 0.9160560106 | Q93: 2060 | R93: No | AC93: 0 | AD93: 0 | AE93: 0 | AF93: 0 | AG93: 0 | AH93: 0 | AI93: 0 | AJ93: 0 | AK93: 0 | AL93: 0 | AM93: 0 | AN93: 0 | AO93: 0 | AP93: 0 | AQ93: 0 | AR93: 0 | AS93: 0 | AT93: 0 | AU93: 0 | AW93: 0 | AX93: 0 | AY93: 0 | AZ93: 0 | BB93: =IFERROR(VLOOKUP(J93,Funding_area_table!C:F,2,FALSE),"CHECK") -> TRA A24 | BC93: 0 | BE93: 0 | BF93: 0 | BG93: 0 | BH93: 0 | BI93: 0 | BJ93: 0 | BK93: 0 | BL93: 0 | BM93: 0 | BN93: 0 | BO93: 0 | BP93: 0 | BQ93: 0 | BR93: 0 | BS93: 0 | BT93: 0 | BU93: 0 | BV93: 0 | BW93: 0 | BX93: 0 | BY93: 0 | BZ93: 0 | CA93: 0 | CB93: 0 | CC93: 0 | CD93: 0 | CE93: 0 | CF93: 0 | CG93: 0 | CH93: 0 | CI93: 0 | CJ93: 0 | CK93: No | CL93: =IFERROR(#REF!/AW93,0) -> 0 | CM93: TRA | CN93: 27a TRA A24 | CO93: Collector
B94: Transport | E94: 28a TRA A24 | F94: Northern Section of new collector in N-S direction parallel to Fitzgerald Rd | G94: 2-lane collector to connect with Drury Central Station, including bridge over streamM) | J94: Transport - Drury West 1 IPA | P94: 0.9160560106 | Q94: 2060 | R94: No | AC94: 0 | AD94: 0 | AE94: 0 | AF94: 0 | AG94: 0 | AH94: 0 | AI94: 0 | AJ94: 0 | AK94: 0 | AL94: 0 | AM94: 0 | AN94: 0 | AO94: 0 | AP94: 0 | AQ94: 0 | AR94: 0 | AS94: 0 | AT94: 0 | AU94: 0 | AW94: 0 | AX94: 0 | AY94: 0 | AZ94: 0 | BB94: =IFERROR(VLOOKUP(J94,Funding_area_table!C:F,2,FALSE),"CHECK") -> TRA A24 | BC94: 0 | BE94: 0 | BF94: 0 | BG94: 0 | BH94: 0 | BI94: 0 | BJ94: 0 | BK94: 0 | BL94: 0 | BM94: 0 | BN94: 0 | BO94: 0 | BP94: 0 | BQ94: 0 | BR94: 0 | BS94: 0 | BT94: 0 | BU94: 0 | BV94: 0 | BW94: 0 | BX94: 0 | BY94: 0 | BZ94: 0 | CA94: 0 | CB94: 0 | CC94: 0 | CD94: 0 | CE94: 0 | CF94: 0 | CG94: 0 | CH94: 0 | CI94: 0 | CJ94: 0 | CK94: No | CL94: =IFERROR(#REF!/AW94,0) -> 0 | CM94: TRA | CN94: 28a TRA A24 | CO94: Collector
B95: Transport | E95: 31 TRA A24 | F95: Upgrades on Cossey Rd between Fitzgerald & Waihoehoe Rd | G95: 2-lane urban - upgrade existing roadwith active modes on both sides / Mill Road design ? | J95: Transport - Drury West 1 IPA | P95: 0.9160560106 | Q95: 2060 | R95: No | AC95: 0 | AD95: 0 | AE95: 0 | AF95: 0 | AG95: 0 | AH95: 0 | AI95: 0 | AJ95: 0 | AK95: 0 | AL95: 0 | AM95: 0 | AN95: 0 | AO95: 0 | AP95: 0 | AQ95: 0 | AR95: 0 | AS95: 0 | AT95: 0 | AU95: 0 | AW95: 0 | AX95: 0 | AY95: 0 | AZ95: 0 | BB95: =IFERROR(VLOOKUP(J95,Funding_area_table!C:F,2,FALSE),"CHECK") -> TRA A24 | BC95: 0 | BE95: 0 | BF95: 0 | BG95: 0 | BH95: 0 | BI95: 0 | BJ95: 0 | BK95: 0 | BL95: 0 | BM95: 0 | BN95: 0 | BO95: 0 | BP95: 0 | BQ95: 0 | BR95: 0 | BS95: 0 | BT95: 0 | BU95: 0 | BV95: 0 | BW95: 0 | BX95: 0 | BY95: 0 | BZ95: 0 | CA95: 0 | CB95: 0 | CC95: 0 | CD95: 0 | CE95: 0 | CF95: 0 | CG95: 0 | CH95: 0 | CI95: 0 | CJ95: 0 | CK95: No | CL95: =IFERROR(#REF!/AW95,0) -> 0 | CM95: TRA | CN95: 31 TRA A24 | CO95: Collector
B96: Transport | E96: 33 TRA A24 | F96: Upgrade Fitzgerald Rd from project 7 to Brookefield Rd | G96: 2-lane urban- upgrade existing road layout to 2-lane urban with active modes on both sides (TDM ) | J96: Transport - Drury West 1 IPA | P96: 0.9160560106 | Q96: 2060 | R96: No | AC96: 0 | AD96: 0 | AE96: 0 | AF96: 0 | AG96: 0 | AH96: 0 | AI96: 0 | AJ96: 0 | AK96: 0 | AL96: 0 | AM96: 0 | AN96: 0 | AO96: 0 | AP96: 0 | AQ96: 0 | AR96: 0 | AS96: 0 | AT96: 0 | AU96: 0 | AW96: 0 | AX96: 0 | AY96: 0 | AZ96: 0 | BB96: =IFERROR(VLOOKUP(J96,Funding_area_table!C:F,2,FALSE),"CHECK") -> TRA A24 | BC96: 0 | BE96: 0 | BF96: 0 | BG96: 0 | BH96: 0 | BI96: 0 | BJ96: 0 | BK96: 0 | BL96: 0 | BM96: 0 | BN96: 0 | BO96: 0 | BP96: 0 | BQ96: 0 | BR96: 0 | BS96: 0 | BT96: 0 | BU96: 0 | BV96: 0 | BW96: 0 | BX96: 0 | BY96: 0 | BZ96: 0 | CA96: 0 | CB96: 0 | CC96: 0 | CD96: 0 | CE96: 0 | CF96: 0 | CG96: 0 | CH96: 0 | CI96: 0 | CJ96: 0 | CK96: No | CL96: =IFERROR(#REF!/AW96,0) -> 0 | CM96: TRA | CN96: 33 TRA A24 | CO96: Collector
B97: Transport | E97: 55a TRA A24 | F97: New E-W collector Jesmond Rd to Burberry Rd | G97: 2-lane urban- new collector with active mode on both sides + intersection improvements (TDM) | J97: Transport - Drury West 1 IPA | P97: 0.9160560106 | Q97: 2060 | R97: No | AC97: 10516118.61 | AD97: 3120925.481 | AE97: 31006678.38 | AF97: 0 | AG97: 0 | AH97: 0 | AI97: 0 | AJ97: 0 | AK97: 0 | AL97: 0 | AM97: 0 | AN97: 0 | AO97: 0 | AP97: 0 | AQ97: 0 | AR97: 0 | AS97: 0 | AT97: 0 | AU97: 0 | AW97: 44643722.47 | AX97: 0 | AY97: 0 | AZ97: 0 | BB97: =IFERROR(VLOOKUP(J97,Funding_area_table!C:F,2,FALSE),"CHECK") -> TRA A24 | BC97: 3747572.167 | BE97: 0 | BF97: 0 | BG97: 0 | BH97: 0 | BI97: 0 | BJ97: 0 | BK97: 0 | BL97: 0 | BM97: 0 | BN97: 0 | BO97: 9633353.66 | BP97: 2858942.546 | BQ97: 28403854.1 | BR97: 0 | BS97: 0 | BT97: 0 | BU97: 0 | BV97: 0 | BW97: 0 | BX97: 0 | BY97: 0 | BZ97: 0 | CA97: 0 | CB97: 0 | CC97: 0 | CD97: 0 | CE97: 0 | CF97: 0 | CG97: 0 | CH97: 0 | CI97: 40896150.3 | CJ97: 40896150.3 | CK97: No | CL97: =IFERROR(#REF!/AW97,0) -> 0 | CM97: TRA | CN97: 55a TRA A24 | CO97: Collector
B98: Transport | E98: 58 TRA A24 | F98: Oira Rd upgrades from SH22 to proposed east-west collector | G98: 2-lane urban- upgrade existing road layout with active modes on both sides + intersection improvements (TDM) | J98: Transport - Drury West 1 IPA | P98: 0.9160560106 | Q98: 2060 | R98: No | AC98: 671164.1337 | AD98: 6668076.683 | AE98: 0 | AF98: 0 | AG98: 0 | AH98: 0 | AI98: 0 | AJ98: 0 | AK98: 0 | AL98: 0 | AM98: 0 | AN98: 0 | AO98: 0 | AP98: 0 | AQ98: 0 | AR98: 0 | AS98: 0 | AT98: 0 | AU98: 0 | AW98: 7339240.817 | AX98: 0 | AY98: 0 | AZ98: 0 | BB98: =IFERROR(VLOOKUP(J98,Funding_area_table!C:F,2,FALSE),"CHECK") -> TRA A24 | BC98: 616085.1536 | BE98: 0 | BF98: 0 | BG98: 0 | BH98: 0 | BI98: 0 | BJ98: 0 | BK98: 0 | BL98: 0 | BM98: 0 | BN98: 0 | BO98: 614823.9387 | BP98: 6108331.724 | BQ98: 0 | BR98: 0 | BS98: 0 | BT98: 0 | BU98: 0 | BV98: 0 | BW98: 0 | BX98: 0 | BY98: 0 | BZ98: 0 | CA98: 0 | CB98: 0 | CC98: 0 | CD98: 0 | CE98: 0 | CF98: 0 | CG98: 0 | CH98: 0 | CI98: 6723155.663 | CJ98: 6723155.663 | CK98: No | CL98: =IFERROR(#REF!/AW98,0) -> 0 | CM98: TRA | CN98: 58 TRA A24 | CO98: Collector
B99: Transport | E99: 59 TRA A24 | F99: New Intersection on Jesmond Rd/collector (PC61) | G99: 2-lane intersection (new intersection + active mode crossings) | J99: Transport - Drury West 1 IPA | P99: 0.9160560106 | Q99: 2060 | R99: No | AC99: 917622.2764 | AD99: 9116660.736 | AE99: 0 | AF99: 0 | AG99: 0 | AH99: 0 | AI99: 0 | AJ99: 0 | AK99: 0 | AL99: 0 | AM99: 0 | AN99: 0 | AO99: 0 | AP99: 0 | AQ99: 0 | AR99: 0 | AS99: 0 | AT99: 0 | AU99: 0 | AW99: 10034283.01 | AX99: 0 | AY99: 0 | AZ99: 0 | BB99: =IFERROR(VLOOKUP(J99,Funding_area_table!C:F,2,FALSE),"CHECK") -> TRA A24 | BC99: 842317.7472 | BE99: 0 | BF99: 0 | BG99: 0 | BH99: 0 | BI99: 0 | BJ99: 0 | BK99: 0 | BL99: 0 | BM99: 0 | BN99: 0 | BO99: 840593.4017 | BP99: 8351371.864 | BQ99: 0 | BR99: 0 | BS99: 0 | BT99: 0 | BU99: 0 | BV99: 0 | BW99: 0 | BX99: 0 | BY99: 0 | BZ99: 0 | CA99: 0 | CB99: 0 | CC99: 0 | CD99: 0 | CE99: 0 | CF99: 0 | CG99: 0 | CH99: 0 | CI99: 9191965.265 | CJ99: 9191965.265 | CK99: No | CL99: =IFERROR(#REF!/AW99,0) -> 0 | CM99: TRA | CN99: 59 TRA A24 | CO99: Collector
B100: Transport | E100: 69 TRA A24 | F100: walk/cycle bridges on Quarry Road bridge (oiver SH1) | G100: New cycle bridge 5m wide, 90m long, approach lengths 200m total for both sides. No property required | J100: Transport - Drury West 1 IPA | P100: 0.9160560106 | Q100: 2060 | R100: No | AC100: 0 | AD100: 0 | AE100: 39033.23999 | AF100: 387798.7878 | AG100: 0 | AH100: 0 | AI100: 0 | AJ100: 0 | AK100: 0 | AL100: 0 | AM100: 0 | AN100: 0 | AO100: 0 | AP100: 0 | AQ100: 0 | AR100: 0 | AS100: 0 | AT100: 0 | AU100: 0 | AW100: 426832.0278 | AX100: 0 | AY100: 0 | AZ100: 0 | BB100: =IFERROR(VLOOKUP(J100,Funding_area_table!C:F,2,FALSE),"CHECK") -> TRA A24 | BC100: 35829.98323 | BE100: 0 | BF100: 0 | BG100: 0 | BH100: 0 | BI100: 0 | BJ100: 0 | BK100: 0 | BL100: 0 | BM100: 0 | BN100: 0 | BO100: 0 | BP100: 0 | BQ100: 35756.63411 | BR100: 355245.4104 | BS100: 0 | BT100: 0 | BU100: 0 | BV100: 0 | BW100: 0 | BX100: 0 | BY100: 0 | BZ100: 0 | CA100: 0 | CB100: 0 | CC100: 0 | CD100: 0 | CE100: 0 | CF100: 0 | CG100: 0 | CH100: 0 | CI100: 391002.0446 | CJ100: 391002.0446 | CK100: No | CL100: =IFERROR(#REF!/AW100,0) -> 0 | CM100: TRA | CN100: 69 TRA A24 | CO100: Collector
B101: Transport | E101: 1b TRA A24 | F101: GSR improvements - Waihoehoe Rd to Drury Interchange | G101: 4-lane urban- existing road layout with active modes on both sides + intersection improvements (TDM) | J101: Transport - Drury West 1 IPA | P101: 0.9160560106 | Q101: 2060 | R101: Yes | AC101: 0 | AD101: 0 | AE101: 0 | AF101: 0 | AG101: 0 | AH101: 0 | AI101: 0 | AJ101: 0 | AK101: 0 | AL101: 0 | AM101: 0 | AN101: 0 | AO101: 0 | AP101: 0 | AQ101: 0 | AR101: 0 | AS101: 0 | AT101: 0 | AU101: 0 | AW101: 0 | AX101: 0 | AY101: 0 | AZ101: 0 | BB101: =IFERROR(VLOOKUP(J101,Funding_area_table!C:F,2,FALSE),"CHECK") -> TRA A24 | BC101: 0 | BE101: 0 | BF101: 0 | BG101: 0 | BH101: 0 | BI101: 0 | BJ101: 0 | BK101: 0 | BL101: 0 | BM101: 0 | BN101: 0 | BO101: 0 | BP101: 0 | BQ101: 0 | BR101: 0 | BS101: 0 | BT101: 0 | BU101: 0 | BV101: 0 | BW101: 0 | BX101: 0 | BY101: 0 | BZ101: 0 | CA101: 0 | CB101: 0 | CC101: 0 | CD101: 0 | CE101: 0 | CF101: 0 | CG101: 0 | CH101: 0 | CI101: 0 | CJ101: 0 | CK101: No | CL101: =IFERROR(#REF!/AW101,0) -> 0 | CM101: TRA | CN101: 1b TRA A24 | CO101: Arterial
B102: Transport | E102: 2b TRA A24 | F102: GSR improvements - From Drury School to Waihoehoe Rd | G102: 4-lane urban- existing road layout with active modes on both sides + intersection improvements (TDM) | J102: Transport - Drury West 1 IPA | P102: 0.9160560106 | Q102: 2060 | R102: Yes | AC102: 0 | AD102: 0 | AE102: 0 | AF102: 0 | AG102: 0 | AH102: 0 | AI102: 1668482.544 | AJ102: 384943.9483 | AK102: 3824453.121 | AL102: 0 | AM102: 0 | AN102: 0 | AO102: 0 | AP102: 0 | AQ102: 0 | AR102: 0 | AS102: 0 | AT102: 0 | AU102: 0 | AW102: 5877879.613 | AX102: 0 | AY102: 0 | AZ102: 0 | BB102: =IFERROR(VLOOKUP(J102,Funding_area_table!C:F,2,FALSE),"CHECK") -> TRA A24 | BC102: 493412.6641 | BE102: 0 | BF102: 0 | BG102: 0 | BH102: 0 | BI102: 0 | BJ102: 0 | BK102: 0 | BL102: 0 | BM102: 0 | BN102: 0 | BO102: 0 | BP102: 0 | BQ102: 0 | BR102: 0 | BS102: 0 | BT102: 0 | BU102: 1528423.463 | BV102: 352630.2175 | BW102: 3503413.268 | BX102: 0 | BY102: 0 | BZ102: 0 | CA102: 0 | CB102: 0 | CC102: 0 | CD102: 0 | CE102: 0 | CF102: 0 | CG102: 0 | CH102: 0 | CI102: 5384466.949 | CJ102: 5384466.949 | CK102: No | CL102: =IFERROR(#REF!/AW102,0) -> 0 | CM102: TRA | CN102: 2b TRA A24 | CO102: Arterial
B103: Transport | E103: 4b TRA A24 | F103: Waihoehoe Rd East upgrades- from Fitzgerald Rd to before Cossey Rd (development boundary) | G103: Expand to 24m cross section | J103: Transport - Drury West 1 IPA | P103: 0.9160560106 | Q103: 2060 | R103: Yes | AC103: 0 | AD103: 0 | AE103: 0 | AF103: 0 | AG103: 0 | AH103: 0 | AI103: 0 | AJ103: 0 | AK103: 0 | AL103: 0 | AM103: 0 | AN103: 0 | AO103: 0 | AP103: 0 | AQ103: 0 | AR103: 0 | AS103: 0 | AT103: 0 | AU103: 0 | AW103: 0 | AX103: 0 | AY103: 0 | AZ103: 0 | BB103: =IFERROR(VLOOKUP(J103,Funding_area_table!C:F,2,FALSE),"CHECK") -> TRA A24 | BC103: 0 | BE103: 0 | BF103: 0 | BG103: 0 | BH103: 0 | BI103: 0 | BJ103: 0 | BK103: 0 | BL103: 0 | BM103: 0 | BN103: 0 | BO103: 0 | BP103: 0 | BQ103: 0 | BR103: 0 | BS103: 0 | BT103: 0 | BU103: 0 | BV103: 0 | BW103: 0 | BX103: 0 | BY103: 0 | BZ103: 0 | CA103: 0 | CB103: 0 | CC103: 0 | CD103: 0 | CE103: 0 | CF103: 0 | CG103: 0 | CH103: 0 | CI103: 0 | CJ103: 0 | CK103: No | CL103: =IFERROR(#REF!/AW103,0) -> 0 | CM103: TRA | CN103: 4b TRA A24 | CO103: Arterial
B104: Transport | E104: 9b TRA A24 | F104: Upgrade in Norrie Rd/GSR/Waihoehoe intersection | G104: multi-lane signalised intersection with active mode crossings, SGA design | J104: Transport - Drury West 1 IPA | P104: 0.9160560106 | Q104: 2060 | R104: Yes | AC104: 0 | AD104: 0 | AE104: 0 | AF104: 0 | AG104: 0 | AH104: 0 | AI104: 0 | AJ104: 0 | AK104: 0 | AL104: 0 | AM104: 0 | AN104: 0 | AO104: 0 | AP104: 0 | AQ104: 0 | AR104: 0 | AS104: 0 | AT104: 0 | AU104: 0 | AW104: 0 | AX104: 0 | AY104: 0 | AZ104: 0 | BB104: =IFERROR(VLOOKUP(J104,Funding_area_table!C:F,2,FALSE),"CHECK") -> TRA A24 | BC104: 0 | BE104: 0 | BF104: 0 | BG104: 0 | BH104: 0 | BI104: 0 | BJ104: 0 | BK104: 0 | BL104: 0 | BM104: 0 | BN104: 0 | BO104: 0 | BP104: 0 | BQ104: 0 | BR104: 0 | BS104: 0 | BT104: 0 | BU104: 0 | BV104: 0 | BW104: 0 | BX104: 0 | BY104: 0 | BZ104: 0 | CA104: 0 | CB104: 0 | CC104: 0 | CD104: 0 | CE104: 0 | CF104: 0 | CG104: 0 | CH104: 0 | CI104: 0 | CJ104: 0 | CK104: No | CL104: =IFERROR(#REF!/AW104,0) -> 0 | CM104: TRA | CN104: 9b TRA A24 | CO104: Arterial
B105: Transport | E105: 10b TRA A24 | F105: New intersection on Waihoehoe Rd/Fitzgerald Rd( including approach cross-sections) | G105: multi-lane roundabout with active mode crossings, SGA design | J105: Transport - Drury West 1 IPA | P105: 0.9160560106 | Q105: 2060 | R105: Yes | AC105: 0 | AD105: 0 | AE105: 0 | AF105: 0 | AG105: 0 | AH105: 0 | AI105: 0 | AJ105: 0 | AK105: 0 | AL105: 0 | AM105: 0 | AN105: 0 | AO105: 0 | AP105: 0 | AQ105: 0 | AR105: 0 | AS105: 0 | AT105: 0 | AU105: 0 | AW105: 0 | AX105: 0 | AY105: 0 | AZ105: 0 | BB105: =IFERROR(VLOOKUP(J105,Funding_area_table!C:F,2,FALSE),"CHECK") -> TRA A24 | BC105: 0 | BE105: 0 | BF105: 0 | BG105: 0 | BH105: 0 | BI105: 0 | BJ105: 0 | BK105: 0 | BL105: 0 | BM105: 0 | BN105: 0 | BO105: 0 | BP105: 0 | BQ105: 0 | BR105: 0 | BS105: 0 | BT105: 0 | BU105: 0 | BV105: 0 | BW105: 0 | BX105: 0 | BY105: 0 | BZ105: 0 | CA105: 0 | CB105: 0 | CC105: 0 | CD105: 0 | CE105: 0 | CF105: 0 | CG105: 0 | CH105: 0 | CI105: 0 | CJ105: 0 | CK105: No | CL105: =IFERROR(#REF!/AW105,0) -> 0 | CM105: TRA | CN105: 10b TRA A24 | CO105: Arterial
B106: Transport | E106: 13b TRA A24 | F106: N-S Opaheke Arterial across development (upto Waihoihoi Stream) | G106: 4-lane urban- upgrade 2-lane arterial with SGA design + intersection improvements (TDM) | J106: Transport - Drury West 1 IPA | P106: 0.9160560106 | Q106: 2060 | R106: Yes | AC106: 0 | AD106: 0 | AE106: 0 | AF106: 0 | AG106: 0 | AH106: 0 | AI106: 0 | AJ106: 0 | AK106: 0 | AL106: 0 | AM106: 0 | AN106: 0 | AO106: 0 | AP106: 0 | AQ106: 0 | AR106: 0 | AS106: 0 | AT106: 109861.6523 | AU106: 1091485.503 | AW106: 1201347.156 | AX106: 0 | AY106: 0 | AZ106: 0 | BB106: =IFERROR(VLOOKUP(J106,Funding_area_table!C:F,2,FALSE),"CHECK") -> TRA A24 | BC106: 100845.8729 | BE106: 0 | BF106: 0 | BG106: 0 | BH106: 0 | BI106: 0 | BJ106: 0 | BK106: 0 | BL106: 0 | BM106: 0 | BN106: 0 | BO106: 0 | BP106: 0 | BQ106: 0 | BR106: 0 | BS106: 0 | BT106: 0 | BU106: 0 | BV106: 0 | BW106: 0 | BX106: 0 | BY106: 0 | BZ106: 0 | CA106: 0 | CB106: 0 | CC106: 0 | CD106: 0 | CE106: 0 | CF106: 100639.4269 | CG106: 999861.8557 | CH106: 0 | CI106: 1100501.283 | CJ106: 1100501.283 | CK106: No | CL106: =IFERROR(#REF!/AW106,0) -> 0 | CM106: TRA | CN106: 13b TRA A24 | CO106: Arterial
B107: Transport | E107: 16b TRA A24 | F107: Widen Bremner Road Bridge ove SH1 to 4-lanes | G107: 4-lane urban- upgrade 2-lane urban with active modes on both sides (SGA design) | J107: Transport - Drury West 1 IPA | P107: 0.9160560106 | Q107: 2060 | R107: Yes | AC107: 0 | AD107: 0 | AE107: 0 | AF107: 0 | AG107: 0 | AH107: 0 | AI107: 0 | AJ107: 0 | AK107: 0 | AL107: 0 | AM107: 0 | AN107: 0 | AO107: 0 | AP107: 0 | AQ107: 0 | AR107: 0 | AS107: 0 | AT107: 1375773.187 | AU107: 13668431.68 | AW107: 15044204.87 | AX107: 0 | AY107: 0 | AZ107: 0 | BB107: =IFERROR(VLOOKUP(J107,Funding_area_table!C:F,2,FALSE),"CHECK") -> TRA A24 | BC107: 1262870.575 | BE107: 0 | BF107: 0 | BG107: 0 | BH107: 0 | BI107: 0 | BJ107: 0 | BK107: 0 | BL107: 0 | BM107: 0 | BN107: 0 | BO107: 0 | BP107: 0 | BQ107: 0 | BR107: 0 | BS107: 0 | BT107: 0 | BU107: 0 | BV107: 0 | BW107: 0 | BX107: 0 | BY107: 0 | BZ107: 0 | CA107: 0 | CB107: 0 | CC107: 0 | CD107: 0 | CE107: 0 | CF107: 1260285.297 | CG107: 12521049 | CH107: 0 | CI107: 13781334.29 | CJ107: 13781334.29 | CK107: No | CL107: =IFERROR(#REF!/AW107,0) -> 0 | CM107: TRA | CN107: 16b TRA A24 | CO107: Arterial
B108: Transport | E108: 23b TRA A24 | F108: Waihoehoe Rd West upgrades- between GSR & Kath Henry Lane | G108: Final 4-lane - following interim option, upgrade Road corridor to provide four lanes with additional turning lanes at intersections where required (as indicated in SGA Design | J108: Transport - Drury West 1 IPA | P108: 0.9160560106 | Q108: 2060 | R108: Yes | AC108: 0 | AD108: 0 | AE108: 0 | AF108: 0 | AG108: 0 | AH108: 0 | AI108: 0 | AJ108: 0 | AK108: 0 | AL108: 0 | AM108: 0 | AN108: 0 | AO108: 0 | AP108: 0 | AQ108: 0 | AR108: 0 | AS108: 0 | AT108: 0 | AU108: 0 | AW108: 0 | AX108: 0 | AY108: 0 | AZ108: 0 | BB108: =IFERROR(VLOOKUP(J108,Funding_area_table!C:F,2,FALSE),"CHECK") -> TRA A24 | BC108: 0 | BE108: 0 | BF108: 0 | BG108: 0 | BH108: 0 | BI108: 0 | BJ108: 0 | BK108: 0 | BL108: 0 | BM108: 0 | BN108: 0 | BO108: 0 | BP108: 0 | BQ108: 0 | BR108: 0 | BS108: 0 | BT108: 0 | BU108: 0 | BV108: 0 | BW108: 0 | BX108: 0 | BY108: 0 | BZ108: 0 | CA108: 0 | CB108: 0 | CC108: 0 | CD108: 0 | CE108: 0 | CF108: 0 | CG108: 0 | CH108: 0 | CI108: 0 | CJ108: 0 | CK108: No | CL108: =IFERROR(#REF!/AW108,0) -> 0 | CM108: TRA | CN108: 23b TRA A24 | CO108: Arterial
B109: Transport | E109: 24 TRA A24 | F109: Upgrades on Waihoehoe Rd east- from project 4 to Drury Hills + Drury Hills Intersection | G109: 2-lane urban - upgrade existing road layout with active modes on both sides, 20m cross-section | J109: Transport - Drury West 1 IPA | P109: 0.9160560106 | Q109: 2060 | R109: Yes | AC109: 0 | AD109: 0 | AE109: 0 | AF109: 0 | AG109: 0 | AH109: 0 | AI109: 0 | AJ109: 0 | AK109: 0 | AL109: 0 | AM109: 0 | AN109: 0 | AO109: 0 | AP109: 0 | AQ109: 0 | AR109: 0 | AS109: 0 | AT109: 0 | AU109: 0 | AW109: 0 | AX109: 0 | AY109: 0 | AZ109: 0 | BB109: =IFERROR(VLOOKUP(J109,Funding_area_table!C:F,2,FALSE),"CHECK") -> TRA A24 | BC109: 0 | BE109: 0 | BF109: 0 | BG109: 0 | BH109: 0 | BI109: 0 | BJ109: 0 | BK109: 0 | BL109: 0 | BM109: 0 | BN109: 0 | BO109: 0 | BP109: 0 | BQ109: 0 | BR109: 0 | BS109: 0 | BT109: 0 | BU109: 0 | BV109: 0 | BW109: 0 | BX109: 0 | BY109: 0 | BZ109: 0 | CA109: 0 | CB109: 0 | CC109: 0 | CD109: 0 | CE109: 0 | CF109: 0 | CG109: 0 | CH109: 0 | CI109: 0 | CJ109: 0 | CK109: No | CL109: =IFERROR(#REF!/AW109,0) -> 0 | CM109: TRA | CN109: 24 TRA A24 | CO109: Arterial
B110: Transport | E110: 32 TRA A24 | F110: New Intersection on Cossey Rd/Waihoehoe Rd | G110: Assume 1 simple roundabout intesection | J110: Transport - Drury West 1 IPA | P110: 0.9160560106 | Q110: 2060 | R110: Yes | AC110: 0 | AD110: 0 | AE110: 0 | AF110: 0 | AG110: 0 | AH110: 0 | AI110: 0 | AJ110: 0 | AK110: 0 | AL110: 0 | AM110: 0 | AN110: 0 | AO110: 0 | AP110: 0 | AQ110: 0 | AR110: 0 | AS110: 0 | AT110: 0 | AU110: 0 | AW110: 0 | AX110: 0 | AY110: 0 | AZ110: 0 | BB110: =IFERROR(VLOOKUP(J110,Funding_area_table!C:F,2,FALSE),"CHECK") -> TRA A24 | BC110: 0 | BE110: 0 | BF110: 0 | BG110: 0 | BH110: 0 | BI110: 0 | BJ110: 0 | BK110: 0 | BL110: 0 | BM110: 0 | BN110: 0 | BO110: 0 | BP110: 0 | BQ110: 0 | BR110: 0 | BS110: 0 | BT110: 0 | BU110: 0 | BV110: 0 | BW110: 0 | BX110: 0 | BY110: 0 | BZ110: 0 | CA110: 0 | CB110: 0 | CC110: 0 | CD110: 0 | CE110: 0 | CF110: 0 | CG110: 0 | CH110: 0 | CI110: 0 | CJ110: 0 | CK110: No | CL110: =IFERROR(#REF!/AW110,0) -> 0 | CM110: TRA | CN110: 32 TRA A24 | CO110: Arterial
B111: Transport | E111: 36a TRA A24 | F111: Bremner-Norrie Road east of SH1 up to GSR (overlap with project 12) | G111: 2-lane urban- upgrade existing road layout with active modes on both sides (Under construction) | J111: Transport - Drury West 1 IPA | P111: 0.9160560106 | Q111: 2060 | R111: Yes | AC111: 1671878.441 | AD111: 16847800.42 | AE111: 0 | AF111: 0 | AG111: 0 | AH111: 0 | AI111: 0 | AJ111: 0 | AK111: 0 | AL111: 0 | AM111: 0 | AN111: 0 | AO111: 0 | AP111: 0 | AQ111: 0 | AR111: 0 | AS111: 0 | AT111: 0 | AU111: 0 | AW111: 18519678.86 | AX111: 0 | AY111: 0 | AZ111: 0 | BB111: =IFERROR(VLOOKUP(J111,Funding_area_table!C:F,2,FALSE),"CHECK") -> TRA A24 | BC111: 1554615.726 | BE111: 0 | BF111: 0 | BG111: 0 | BH111: 0 | BI111: 0 | BJ111: 0 | BK111: 0 | BL111: 0 | BM111: 0 | BN111: 0 | BO111: 1531534.294 | BP111: 15433528.84 | BQ111: 0 | BR111: 0 | BS111: 0 | BT111: 0 | BU111: 0 | BV111: 0 | BW111: 0 | BX111: 0 | BY111: 0 | BZ111: 0 | CA111: 0 | CB111: 0 | CC111: 0 | CD111: 0 | CE111: 0 | CF111: 0 | CG111: 0 | CH111: 0 | CI111: 16965063.13 | CJ111: 16965063.13 | CK111: No | CL111: =IFERROR(#REF!/AW111,0) -> 0 | CM111: TRA | CN111: 36a TRA A24 | CO111: Arterial
B112: Transport | E112: 36b TRA A24 | F112: Complete Bremner-Norrie Road connection from SH1 up to GSR excluding Bridge (overlap with project 12) | G112: 4-lane urban- upgrade interim 2-lane urban corridor to a 4-lane corridor with active modes on both sides (SGA design) | J112: Transport - Drury West 1 IPA | P112: 0.9160560106 | Q112: 2060 | R112: Yes | AC112: 0 | AD112: 0 | AE112: 0 | AF112: 0 | AG112: 0 | AH112: 0 | AI112: 0 | AJ112: 0 | AK112: 0 | AL112: 0 | AM112: 0 | AN112: 0 | AO112: 0 | AP112: 0 | AQ112: 0 | AR112: 0 | AS112: 20880352.77 | AT112: 2136321.121 | AU112: 21224544.54 | AW112: 44241218.44 | AX112: 0 | AY112: 0 | AZ112: 0 | BB112: =IFERROR(VLOOKUP(J112,Funding_area_table!C:F,2,FALSE),"CHECK") -> TRA A24 | BC112: 3713784.373 | BE112: 0 | BF112: 0 | BG112: 0 | BH112: 0 | BI112: 0 | BJ112: 0 | BK112: 0 | BL112: 0 | BM112: 0 | BN112: 0 | BO112: 0 | BP112: 0 | BQ112: 0 | BR112: 0 | BS112: 0 | BT112: 0 | BU112: 0 | BV112: 0 | BW112: 0 | BX112: 0 | BY112: 0 | BZ112: 0 | CA112: 0 | CB112: 0 | CC112: 0 | CD112: 0 | CE112: 19127572.66 | CF112: 1956989.803 | CG112: 19442871.6 | CH112: 0 | CI112: 40527434.07 | CJ112: 40527434.07 | CK112: No | CL112: =IFERROR(#REF!/AW112,0) -> 0 | CM112: TRA | CN112: 36b TRA A24 | CO112: Arterial
B113: Transport | E113: 36c TRA A24 | F113: Complete Bremner-Norrie Road connection from SH1 up to GSR - Bridge structure (overlap with project 12) | G113: Upgrade interim 2-lane bridges (3No. to 4 lane bridges with active modes on both sides (SGA design) | J113: Transport - Drury West 1 IPA | P113: 0.9160560106 | Q113: 2060 | R113: Yes | AC113: 0 | AD113: 0 | AE113: 0 | AF113: 0 | AG113: 0 | AH113: 0 | AI113: 0 | AJ113: 0 | AK113: 0 | AL113: 0 | AM113: 0 | AN113: 0 | AO113: 0 | AP113: 0 | AQ113: 0 | AR113: 0 | AS113: 0 | AT113: 2248116.338 | AU113: 22335240.19 | AW113: 24583356.53 | AX113: 0 | AY113: 0 | AZ113: 0 | BB113: =IFERROR(VLOOKUP(J113,Funding_area_table!C:F,2,FALSE),"CHECK") -> TRA A24 | BC113: 2063625.021 | BE113: 0 | BF113: 0 | BG113: 0 | BH113: 0 | BI113: 0 | BJ113: 0 | BK113: 0 | BL113: 0 | BM113: 0 | BN113: 0 | BO113: 0 | BP113: 0 | BQ113: 0 | BR113: 0 | BS113: 0 | BT113: 0 | BU113: 0 | BV113: 0 | BW113: 0 | BX113: 0 | BY113: 0 | BZ113: 0 | CA113: 0 | CB113: 0 | CC113: 0 | CD113: 0 | CE113: 0 | CF113: 2059400.484 | CG113: 20460331.03 | CH113: 0 | CI113: 22519731.51 | CJ113: 22519731.51 | CK113: No | CL113: =IFERROR(#REF!/AW113,0) -> 0 | CM113: TRA | CN113: 36c TRA A24 | CO113: Arterial
B114: Transport | E114: 37a(i) TRA A24 | F114: N-S Opaheke Arterial from development to Ponga Rd | G114: 2-lane urban- new road layout with active modes on both sides (TDM) | J114: Transport - Drury West 1 IPA | P114: 0.9160560106 | Q114: 2060 | R114: Yes | AC114: 0 | AD114: 0 | AE114: 0 | AF114: 0 | AG114: 0 | AH114: 0 | AI114: 0 | AJ114: 0 | AK114: 0 | AL114: 0 | AM114: 3203354.437 | AN114: 87238.81053 | AO114: 1035210.845 | AP114: 0 | AQ114: 0 | AR114: 0 | AS114: 0 | AT114: 0 | AU114: 0 | AW114: 4325804.093 | AX114: 0 | AY114: 0 | AZ114: 0 | BB114: =IFERROR(VLOOKUP(J114,Funding_area_table!C:F,2,FALSE),"CHECK") -> TRA A24 | BC114: 363125.2531 | BE114: 0 | BF114: 0 | BG114: 0 | BH114: 0 | BI114: 0 | BJ114: 0 | BK114: 0 | BL114: 0 | BM114: 0 | BN114: 0 | BO114: 0 | BP114: 0 | BQ114: 0 | BR114: 0 | BS114: 0 | BT114: 0 | BU114: 0 | BV114: 0 | BW114: 0 | BX114: 0 | BY114: 2934452.086 | BZ114: 79915.63674 | CA114: 948311.1166 | CB114: 0 | CC114: 0 | CD114: 0 | CE114: 0 | CF114: 0 | CG114: 0 | CH114: 0 | CI114: 3962678.84 | CJ114: 3962678.84 | CK114: No | CL114: =IFERROR(#REF!/AW114,0) -> 0 | CM114: TRA | CN114: 37a(i) TRA A24 | CO114: Arterial
B115: Transport | E115: 37a(ii) TRA A24 | F115: N-S Opaheke Arterial from development to Ponga Rd | G115: 2-lane urban- bridge construction | J115: Transport - Drury West 1 IPA | P115: 0.9160560106 | Q115: 2060 | R115: Yes | AC115: 0 | AD115: 0 | AE115: 0 | AF115: 0 | AG115: 0 | AH115: 0 | AI115: 0 | AJ115: 0 | AK115: 0 | AL115: 0 | AM115: 0 | AN115: 239497.7453 | AO115: 2379431.872 | AP115: 0 | AQ115: 0 | AR115: 0 | AS115: 0 | AT115: 0 | AU115: 0 | AW115: 2618929.617 | AX115: 0 | AY115: 0 | AZ115: 0 | BB115: =IFERROR(VLOOKUP(J115,Funding_area_table!C:F,2,FALSE),"CHECK") -> TRA A24 | BC115: 219843.4001 | BE115: 0 | BF115: 0 | BG115: 0 | BH115: 0 | BI115: 0 | BJ115: 0 | BK115: 0 | BL115: 0 | BM115: 0 | BN115: 0 | BO115: 0 | BP115: 0 | BQ115: 0 | BR115: 0 | BS115: 0 | BT115: 0 | BU115: 0 | BV115: 0 | BW115: 0 | BX115: 0 | BY115: 0 | BZ115: 219393.3491 | CA115: 2179692.868 | CB115: 0 | CC115: 0 | CD115: 0 | CE115: 0 | CF115: 0 | CG115: 0 | CH115: 0 | CI115: 2399086.217 | CJ115: 2399086.217 | CK115: No | CL115: =IFERROR(#REF!/AW115,0) -> 0 | CM115: TRA | CN115: 37a(ii) TRA A24 | CO115: Arterial
B116: Transport | E116: 37b(i) TRA A24 | F116: N-S Opaheke Arterial from development to Ponga Rd | G116: 4-lane urban- upgrade 2-lane urban with active modes on both sides (SGA design) | J116: Transport - Drury West 1 IPA | P116: 0.9160560106 | Q116: 2060 | R116: Yes | AC116: 0 | AD116: 0 | AE116: 0 | AF116: 0 | AG116: 0 | AH116: 0 | AI116: 0 | AJ116: 0 | AK116: 0 | AL116: 0 | AM116: 0 | AN116: 0 | AO116: 0 | AP116: 0 | AQ116: 0 | AR116: 0 | AS116: 259194.3614 | AT116: 2575119.544 | AU116: 0 | AW116: 2834313.905 | AX116: 0 | AY116: 0 | AZ116: 0 | BB116: =IFERROR(VLOOKUP(J116,Funding_area_table!C:F,2,FALSE),"CHECK") -> TRA A24 | BC116: 237923.6165 | BE116: 0 | BF116: 0 | BG116: 0 | BH116: 0 | BI116: 0 | BJ116: 0 | BK116: 0 | BL116: 0 | BM116: 0 | BN116: 0 | BO116: 0 | BP116: 0 | BQ116: 0 | BR116: 0 | BS116: 0 | BT116: 0 | BU116: 0 | BV116: 0 | BW116: 0 | BX116: 0 | BY116: 0 | BZ116: 0 | CA116: 0 | CB116: 0 | CC116: 0 | CD116: 0 | CE116: 237436.5527 | CF116: 2358953.736 | CG116: 0 | CH116: 0 | CI116: 2596390.289 | CJ116: 2596390.289 | CK116: No | CL116: =IFERROR(#REF!/AW116,0) -> 0 | CM116: TRA | CN116: 37b(i) TRA A24 | CO116: Arterial
B117: Transport | E117: 37b(ii) TRA A24 | F117: N-S Opaheke Arterial from development to Ponga Rd | G117: 4-lane urban- Bridge Widening | J117: Transport - Drury West 1 IPA | P117: 0.9160560106 | Q117: 2060 | R117: Yes | AC117: 0 | AD117: 0 | AE117: 0 | AF117: 0 | AG117: 0 | AH117: 0 | AI117: 0 | AJ117: 0 | AK117: 0 | AL117: 0 | AM117: 0 | AN117: 0 | AO117: 0 | AP117: 0 | AQ117: 0 | AR117: 0 | AS117: 335332.7051 | AT117: 3331560.91 | AU117: 0 | AW117: 3666893.615 | AX117: 0 | AY117: 0 | AZ117: 0 | BB117: =IFERROR(VLOOKUP(J117,Funding_area_table!C:F,2,FALSE),"CHECK") -> TRA A24 | BC117: 307813.6789 | BE117: 0 | BF117: 0 | BG117: 0 | BH117: 0 | BI117: 0 | BJ117: 0 | BK117: 0 | BL117: 0 | BM117: 0 | BN117: 0 | BO117: 0 | BP117: 0 | BQ117: 0 | BR117: 0 | BS117: 0 | BT117: 0 | BU117: 0 | BV117: 0 | BW117: 0 | BX117: 0 | BY117: 0 | BZ117: 0 | CA117: 0 | CB117: 0 | CC117: 0 | CD117: 0 | CE117: 307183.54 | CF117: 3051896.396 | CG117: 0 | CH117: 0 | CI117: 3359079.936 | CJ117: 3359079.936 | CK117: No | CL117: =IFERROR(#REF!/AW117,0) -> 0 | CM117: TRA | CN117: 37b(ii) TRA A24 | CO117: Arterial
B118: Transport | E118: 39b TRA A24 | F118: New Bremner Rd arterial from SH1 to Auranga development | G118: 4-lane urban- upgrade 2-lane urban excl bridge | J118: Transport - Drury West 1 IPA | P118: 0.9160560106 | Q118: 2060 | R118: Yes | AC118: 0 | AD118: 0 | AE118: 0 | AF118: 0 | AG118: 0 | AH118: 0 | AI118: 0 | AJ118: 0 | AK118: 0 | AL118: 0 | AM118: 0 | AN118: 0 | AO118: 0 | AP118: 0 | AQ118: 1090402.816 | AR118: 10833251.11 | AS118: 0 | AT118: 0 | AU118: 0 | AW118: 11923653.92 | AX118: 0 | AY118: 0 | AZ118: 0 | BB118: =IFERROR(VLOOKUP(J118,Funding_area_table!C:F,2,FALSE),"CHECK") -> TRA A24 | BC118: 1000919.079 | BE118: 0 | BF118: 0 | BG118: 0 | BH118: 0 | BI118: 0 | BJ118: 0 | BK118: 0 | BL118: 0 | BM118: 0 | BN118: 0 | BO118: 0 | BP118: 0 | BQ118: 0 | BR118: 0 | BS118: 0 | BT118: 0 | BU118: 0 | BV118: 0 | BW118: 0 | BX118: 0 | BY118: 0 | BZ118: 0 | CA118: 0 | CB118: 0 | CC118: 998870.0538 | CD118: 9923864.791 | CE118: 0 | CF118: 0 | CG118: 0 | CH118: 0 | CI118: 10922734.84 | CJ118: 10922734.84 | CK118: No | CL118: =IFERROR(#REF!/AW118,0) -> 0 | CM118: TRA | CN118: 39b TRA A24 | CO118: Arterial
B119: Transport | E119: 39c TRA A24 | F119: New Bremner Rd arterial from SH1 to Auranga development | G119: 4-lane urban- upgrade 2-lane bridge widening | J119: Transport - Drury West 1 IPA | P119: 0.9160560106 | Q119: 2060 | R119: Yes | AC119: 0 | AD119: 0 | AE119: 0 | AF119: 0 | AG119: 0 | AH119: 0 | AI119: 0 | AJ119: 0 | AK119: 0 | AL119: 0 | AM119: 0 | AN119: 0 | AO119: 0 | AP119: 0 | AQ119: 759764.543 | AR119: 7548329.804 | AS119: 0 | AT119: 0 | AU119: 0 | AW119: 8308094.347 | AX119: 0 | AY119: 0 | AZ119: 0 | BB119: =IFERROR(VLOOKUP(J119,Funding_area_table!C:F,2,FALSE),"CHECK") -> TRA A24 | BC119: 697414.5841 | BE119: 0 | BF119: 0 | BG119: 0 | BH119: 0 | BI119: 0 | BJ119: 0 | BK119: 0 | BL119: 0 | BM119: 0 | BN119: 0 | BO119: 0 | BP119: 0 | BQ119: 0 | BR119: 0 | BS119: 0 | BT119: 0 | BU119: 0 | BV119: 0 | BW119: 0 | BX119: 0 | BY119: 0 | BZ119: 0 | CA119: 0 | CB119: 0 | CC119: 695986.8762 | CD119: 6914692.886 | CE119: 0 | CF119: 0 | CG119: 0 | CH119: 0 | CI119: 7610679.763 | CJ119: 7610679.763 | CK119: No | CL119: =IFERROR(#REF!/AW119,0) -> 0 | CM119: TRA | CN119: 39c TRA A24 | CO119: Arterial
B120: Transport | E120: 41b TRA A24 | F120: Jesmond Rd from SH22 to Waipupuke development boundary | G120: 4-lane urban- upgrade 2-lane urban to 4-lane with active modes on both sides, (TDM) | J120: Transport - Drury West 1 IPA | P120: 0.9160560106 | Q120: 2060 | R120: Yes | AC120: 0 | AD120: 0 | AE120: 0 | AF120: 0 | AG120: 0 | AH120: 0 | AI120: 0 | AJ120: 0 | AK120: 0 | AL120: 0 | AM120: 0 | AN120: 0 | AO120: 0 | AP120: 28363342.54 | AQ120: 1212753.047 | AR120: 14788707.74 | AS120: 0 | AT120: 0 | AU120: 0 | AW120: 44364803.32 | AX120: 0 | AY120: 0 | AZ120: 0 | BB120: =IFERROR(VLOOKUP(J120,Funding_area_table!C:F,2,FALSE),"CHECK") -> TRA A24 | BC120: 3724158.581 | BE120: 0 | BF120: 0 | BG120: 0 | BH120: 0 | BI120: 0 | BJ120: 0 | BK120: 0 | BL120: 0 | BM120: 0 | BN120: 0 | BO120: 0 | BP120: 0 | BQ120: 0 | BR120: 0 | BS120: 0 | BT120: 0 | BU120: 0 | BV120: 0 | BW120: 0 | BX120: 0 | BY120: 0 | BZ120: 0 | CA120: 0 | CB120: 25982410.41 | CC120: 1110949.718 | CD120: 13547284.61 | CE120: 0 | CF120: 0 | CG120: 0 | CH120: 0 | CI120: 40640644.74 | CJ120: 40640644.74 | CK120: No | CL120: =IFERROR(#REF!/AW120,0) -> 0 | CM120: TRA | CN120: 41b TRA A24 | CO120: Arterial
B121: Transport | E121: 42c TRA A24 | F121: Jesmond Rd upgrades from project 41 to New Bremner Rd | G121: 4-lane urban FTN- upgrade 2-lane urban to 4-lane with active modes on both sides, (TDM) | J121: Transport - Drury West 1 IPA | P121: 0.9160560106 | Q121: 2060 | R121: Yes | AC121: 0 | AD121: 0 | AE121: 0 | AF121: 0 | AG121: 0 | AH121: 0 | AI121: 0 | AJ121: 0 | AK121: 0 | AL121: 0 | AM121: 0 | AN121: 0 | AO121: 0 | AP121: 72277448.81 | AQ121: 987693.9058 | AR121: 16676095.6 | AS121: 0 | AT121: 0 | AU121: 0 | AW121: 89941238.32 | AX121: 0 | AY121: 0 | AZ121: 0 | BB121: =IFERROR(VLOOKUP(J121,Funding_area_table!C:F,2,FALSE),"CHECK") -> TRA A24 | BC121: 7550026.359 | BE121: 0 | BF121: 0 | BG121: 0 | BH121: 0 | BI121: 0 | BJ121: 0 | BK121: 0 | BL121: 0 | BM121: 0 | BN121: 0 | BO121: 0 | BP121: 0 | BQ121: 0 | BR121: 0 | BS121: 0 | BT121: 0 | BU121: 0 | BV121: 0 | BW121: 0 | BX121: 0 | BY121: 0 | BZ121: 0 | CA121: 0 | CB121: 66210191.41 | CC121: 904782.939 | CD121: 15276237.6 | CE121: 0 | CF121: 0 | CG121: 0 | CH121: 0 | CI121: 82391211.96 | CJ121: 82391211.96 | CK121: No | CL121: =IFERROR(#REF!/AW121,0) -> 0 | CM121: TRA | CN121: 42c TRA A24 | CO121: Arterial
B122: Transport | E122: 65a(ii) TRA A24 | F122: New Bremner Rd arterial from Auranga development to Jesmond Rd (bridge only) | G122: 2-lane urban- new road layout with active modes on both sides (TDM) | J122: Transport - Drury West 1 IPA | P122: 0.9160560106 | Q122: 2060 | R122: Yes | AC122: 0 | AD122: 0 | AE122: 0 | AF122: 705858.9473 | AG122: 7012772.81 | AH122: 0 | AI122: 0 | AJ122: 0 | AK122: 0 | AL122: 0 | AM122: 0 | AN122: 0 | AO122: 0 | AP122: 0 | AQ122: 0 | AR122: 0 | AS122: 0 | AT122: 0 | AU122: 0 | AW122: 7718631.758 | AX122: 0 | AY122: 0 | AZ122: 0 | BB122: =IFERROR(VLOOKUP(J122,Funding_area_table!C:F,2,FALSE),"CHECK") -> TRA A24 | BC122: 647932.7427 | BE122: 0 | BF122: 0 | BG122: 0 | BH122: 0 | BI122: 0 | BJ122: 0 | BK122: 0 | BL122: 0 | BM122: 0 | BN122: 0 | BO122: 0 | BP122: 0 | BQ122: 0 | BR122: 646606.3313 | BS122: 6424092.684 | BT122: 0 | BU122: 0 | BV122: 0 | BW122: 0 | BX122: 0 | BY122: 0 | BZ122: 0 | CA122: 0 | CB122: 0 | CC122: 0 | CD122: 0 | CE122: 0 | CF122: 0 | CG122: 0 | CH122: 0 | CI122: 7070699.015 | CJ122: 7070699.015 | CK122: No | CL122: =IFERROR(#REF!/AW122,0) -> 0 | CM122: TRA | CN122: 65a(ii) TRA A24 | CO122: Arterial
B123: Transport | E123: 65b(i) TRA A24 | F123: New Bremner Rd arterial from Auranga development to Jesmond Rd (excl bridge) | G123: 4-lane urban- upgrade 2-lane urban to 4-lane with active modes on both sides, (TDM) | J123: Transport - Drury West 1 IPA | P123: 0.9160560106 | Q123: 2060 | R123: Yes | AC123: 0 | AD123: 0 | AE123: 0 | AF123: 0 | AG123: 0 | AH123: 0 | AI123: 0 | AJ123: 0 | AK123: 0 | AL123: 0 | AM123: 0 | AN123: 0 | AO123: 0 | AP123: 0 | AQ123: 1097437.673 | AR123: 10903143.05 | AS123: 0 | AT123: 0 | AU123: 0 | AW123: 12000580.72 | AX123: 0 | AY123: 0 | AZ123: 0 | BB123: =IFERROR(VLOOKUP(J123,Funding_area_table!C:F,2,FALSE),"CHECK") -> TRA A24 | BC123: 1007376.621 | BE123: 0 | BF123: 0 | BG123: 0 | BH123: 0 | BI123: 0 | BJ123: 0 | BK123: 0 | BL123: 0 | BM123: 0 | BN123: 0 | BO123: 0 | BP123: 0 | BQ123: 0 | BR123: 0 | BS123: 0 | BT123: 0 | BU123: 0 | BV123: 0 | BW123: 0 | BX123: 0 | BY123: 0 | BZ123: 0 | CA123: 0 | CB123: 0 | CC123: 1005314.377 | CD123: 9987889.725 | CE123: 0 | CF123: 0 | CG123: 0 | CH123: 0 | CI123: 10993204.1 | CJ123: 10993204.1 | CK123: No | CL123: =IFERROR(#REF!/AW123,0) -> 0 | CM123: TRA | CN123: 65b(i) TRA A24 | CO123: Arterial
B124: Transport | E124: 65b(ii) TRA A24 | F124: New Bremner Rd arterial from Auranga development to Jesmond Rd (bridge widening) | G124: 4-lane urban- upgrade 2-lane urban to 4-lane with active modes on both sides, (TDM) | J124: Transport - Drury West 1 IPA | P124: 0.9160560106 | Q124: 2060 | R124: Yes | AC124: 0 | AD124: 0 | AE124: 0 | AF124: 0 | AG124: 0 | AH124: 0 | AI124: 0 | AJ124: 0 | AK124: 0 | AL124: 0 | AM124: 0 | AN124: 0 | AO124: 0 | AP124: 0 | AQ124: 273515.2355 | AR124: 2717398.729 | AS124: 0 | AT124: 0 | AU124: 0 | AW124: 2990913.965 | AX124: 0 | AY124: 0 | AZ124: 0 | BB124: =IFERROR(VLOOKUP(J124,Funding_area_table!C:F,2,FALSE),"CHECK") -> TRA A24 | BC124: 251069.2503 | BE124: 0 | BF124: 0 | BG124: 0 | BH124: 0 | BI124: 0 | BJ124: 0 | BK124: 0 | BL124: 0 | BM124: 0 | BN124: 0 | BO124: 0 | BP124: 0 | BQ124: 0 | BR124: 0 | BS124: 0 | BT124: 0 | BU124: 0 | BV124: 0 | BW124: 0 | BX124: 0 | BY124: 0 | BZ124: 0 | CA124: 0 | CB124: 0 | CC124: 250555.2754 | CD124: 2489289.439 | CE124: 0 | CF124: 0 | CG124: 0 | CH124: 0 | CI124: 2739844.715 | CJ124: 2739844.715 | CK124: No | CL124: =IFERROR(#REF!/AW124,0) -> 0 | CM124: TRA | CN124: 65b(ii) TRA A24 | CO124: Arterial
B125: Transport | E125: 67 TRA A24 | F125: Active Mode Corridor Drury Central to GSR | G125: 0 | J125: Transport - Drury West 1 IPA | P125: 0.9160560106 | Q125: 2060 | R125: Yes | AC125: 626155.9021 | AD125: 6220915.81 | AE125: 0 | AF125: 0 | AG125: 0 | AH125: 0 | AI125: 0 | AJ125: 0 | AK125: 0 | AL125: 0 | AM125: 0 | AN125: 0 | AO125: 0 | AP125: 0 | AQ125: 0 | AR125: 0 | AS125: 0 | AT125: 0 | AU125: 0 | AW125: 6847071.712 | AX125: 0 | AY125: 0 | AZ125: 0 | BB125: =IFERROR(VLOOKUP(J125,Funding_area_table!C:F,2,FALSE),"CHECK") -> TRA A24 | BC125: 574770.5155 | BE125: 0 | BF125: 0 | BG125: 0 | BH125: 0 | BI125: 0 | BJ125: 0 | BK125: 0 | BL125: 0 | BM125: 0 | BN125: 0 | BO125: 573593.8776 | BP125: 5698707.319 | BQ125: 0 | BR125: 0 | BS125: 0 | BT125: 0 | BU125: 0 | BV125: 0 | BW125: 0 | BX125: 0 | BY125: 0 | BZ125: 0 | CA125: 0 | CB125: 0 | CC125: 0 | CD125: 0 | CE125: 0 | CF125: 0 | CG125: 0 | CH125: 0 | CI125: 6272301.197 | CJ125: 6272301.197 | CK125: No | CL125: =IFERROR(#REF!/AW125,0) -> 0 | CM125: TRA | CN125: 67 TRA A24 | CO125: Arterial
B126: Transport | E126: 68 TRA A24 | F126: Active Mode Corridor GSR to Drury West | G126: 0 | J126: Transport - Drury West 1 IPA | P126: 0.9160560106 | Q126: 2060 | R126: Yes | AC126: 0 | AD126: 0 | AE126: 0 | AF126: 7867807.918 | AG126: 290461.9476 | AH126: 2885765.855 | AI126: 0 | AJ126: 0 | AK126: 0 | AL126: 0 | AM126: 0 | AN126: 0 | AO126: 0 | AP126: 0 | AQ126: 0 | AR126: 0 | AS126: 0 | AT126: 0 | AU126: 0 | AW126: 11044035.72 | AX126: 0 | AY126: 0 | AZ126: 0 | BB126: =IFERROR(VLOOKUP(J126,Funding_area_table!C:F,2,FALSE),"CHECK") -> TRA A24 | BC126: 927080.4178 | BE126: 0 | BF126: 0 | BG126: 0 | BH126: 0 | BI126: 0 | BJ126: 0 | BK126: 0 | BL126: 0 | BM126: 0 | BN126: 0 | BO126: 0 | BP126: 0 | BQ126: 0 | BR126: 7207352.733 | BS126: 266079.4129 | BT126: 2643523.156 | BU126: 0 | BV126: 0 | BW126: 0 | BX126: 0 | BY126: 0 | BZ126: 0 | CA126: 0 | CB126: 0 | CC126: 0 | CD126: 0 | CE126: 0 | CF126: 0 | CG126: 0 | CH126: 0 | CI126: 10116955.3 | CJ126: 10116955.3 | CK126: No | CL126: =IFERROR(#REF!/AW126,0) -> 0 | CM126: TRA | CN126: 68 TRA A24 | CO126: Arterial
B127: Transport | E127: 70 TRA A24 | F127: walk/cycle bridges on GSR Road bridge over the rail corridor | G127: New cycle bridge 5m wide, 80m long, approach lengths 270m total for both sides. No property required | J127: Transport - Drury West 1 IPA | P127: 0.9160560106 | Q127: 2060 | R127: Yes | AC127: 0 | AD127: 0 | AE127: 0 | AF127: 0 | AG127: 0 | AH127: 0 | AI127: 0 | AJ127: 0 | AK127: 0 | AL127: 0 | AM127: 0 | AN127: 0 | AO127: 0 | AP127: 0 | AQ127: 0 | AR127: 0 | AS127: 0 | AT127: 0 | AU127: 0 | AW127: 0 | AX127: 0 | AY127: 0 | AZ127: 0 | BB127: =IFERROR(VLOOKUP(J127,Funding_area_table!C:F,2,FALSE),"CHECK") -> TRA A24 | BC127: 0 | BE127: 0 | BF127: 0 | BG127: 0 | BH127: 0 | BI127: 0 | BJ127: 0 | BK127: 0 | BL127: 0 | BM127: 0 | BN127: 0 | BO127: 0 | BP127: 0 | BQ127: 0 | BR127: 0 | BS127: 0 | BT127: 0 | BU127: 0 | BV127: 0 | BW127: 0 | BX127: 0 | BY127: 0 | BZ127: 0 | CA127: 0 | CB127: 0 | CC127: 0 | CD127: 0 | CE127: 0 | CF127: 0 | CG127: 0 | CH127: 0 | CI127: 0 | CJ127: 0 | CK127: No | CL127: =IFERROR(#REF!/AW127,0) -> 0 | CM127: TRA | CN127: 70 TRA A24 | CO127: Arterial
B128: Transport | E128: 1b TRA A24 WK subsidy | F128: GSR improvements - Waihoehoe Rd to Drury Interchange | G128: 4-lane urban- existing road layout with active modes on both sides + intersection improvements (TDM) | J128: Transport - Drury West 1 IPA | P128: 0.9160560106 | Q128: 2060 | R128: Yes | AC128: 0 | AD128: 0 | AE128: 0 | AF128: 0 | AG128: 0 | AH128: 0 | AI128: 0 | AJ128: 0 | AK128: 0 | AL128: 0 | AM128: 0 | AN128: 0 | AO128: 0 | AP128: 0 | AQ128: 0 | AR128: 0 | AS128: 0 | AT128: 0 | AU128: 0 | AV128: 0 | AW128: 0 | AX128: 0 | AY128: 0 | AZ128: 0 | BB128: =IFERROR(VLOOKUP(J128,Funding_area_table!C:F,2,FALSE),"CHECK") -> TRA A24 | BC128: 0 | BE128: 0 | BF128: 0 | BG128: 0 | BH128: 0 | BI128: 0 | BJ128: 0 | BK128: 0 | BL128: 0 | BM128: 0 | BN128: 0 | BO128: 0 | BP128: 0 | BQ128: 0 | BR128: 0 | BS128: 0 | BT128: 0 | BU128: 0 | BV128: 0 | BW128: 0 | BX128: 0 | BY128: 0 | BZ128: 0 | CA128: 0 | CB128: 0 | CC128: 0 | CD128: 0 | CE128: 0 | CF128: 0 | CG128: 0 | CH128: 0 | CI128: 0 | CJ128: 0 | CK128: No | CL128: =IFERROR(#REF!/AW128,0) -> 0 | CM128: TRA | CN128: 1b TRA A24 | CO128: Arterial
B129: Transport | E129: 2b TRA A24 WK subsidy | F129: GSR improvements - From Drury School to Waihoehoe Rd | G129: 4-lane urban- existing road layout with active modes on both sides + intersection improvements (TDM) | J129: Transport - Drury West 1 IPA | P129: 0.9160560106 | Q129: 2060 | R129: Yes | AC129: 0 | AD129: 0 | AE129: 0 | AF129: 0 | AG129: 0 | AH129: 0 | AI129: -850926.0973 | AJ129: -196321.4136 | AK129: -1950471.092 | AL129: 0 | AM129: 0 | AN129: 0 | AO129: 0 | AP129: 0 | AQ129: 0 | AR129: 0 | AS129: 0 | AT129: 0 | AU129: 0 | AV129: 0 | AW129: -2997718.602 | AX129: 0 | AY129: 0 | AZ129: 0 | BB129: =IFERROR(VLOOKUP(J129,Funding_area_table!C:F,2,FALSE),"CHECK") -> TRA A24 | BC129: -251640.4587 | BE129: 0 | BF129: 0 | BG129: 0 | BH129: 0 | BI129: 0 | BJ129: 0 | BK129: 0 | BL129: 0 | BM129: 0 | BN129: 0 | BO129: 0 | BP129: 0 | BQ129: 0 | BR129: 0 | BS129: 0 | BT129: 0 | BU129: -779495.966 | BV129: -179841.4109 | BW129: -1786740.767 | BX129: 0 | BY129: 0 | BZ129: 0 | CA129: 0 | CB129: 0 | CC129: 0 | CD129: 0 | CE129: 0 | CF129: 0 | CG129: 0 | CH129: 0 | CI129: -2746078.144 | CJ129: -2746078.144 | CK129: No | CL129: =IFERROR(#REF!/AW129,0) -> 0 | CM129: TRA | CN129: 2b TRA A24 | CO129: Arterial
B130: Transport | E130: 4b TRA A24 WK subsidy | F130: Waihoehoe Rd East upgrades- from Fitzgerald Rd to before Cossey Rd (development boundary) | G130: Expand to 24m cross section | J130: Transport - Drury West 1 IPA | P130: 0.9160560106 | Q130: 2060 | R130: Yes | AC130: 0 | AD130: 0 | AE130: 0 | AF130: 0 | AG130: 0 | AH130: 0 | AI130: 0 | AJ130: 0 | AK130: 0 | AL130: 0 | AM130: 0 | AN130: 0 | AO130: 0 | AP130: 0 | AQ130: 0 | AR130: 0 | AS130: 0 | AT130: 0 | AU130: 0 | AV130: 0 | AW130: 0 | AX130: 0 | AY130: 0 | AZ130: 0 | BB130: =IFERROR(VLOOKUP(J130,Funding_area_table!C:F,2,FALSE),"CHECK") -> TRA A24 | BC130: 0 | BE130: 0 | BF130: 0 | BG130: 0 | BH130: 0 | BI130: 0 | BJ130: 0 | BK130: 0 | BL130: 0 | BM130: 0 | BN130: 0 | BO130: 0 | BP130: 0 | BQ130: 0 | BR130: 0 | BS130: 0 | BT130: 0 | BU130: 0 | BV130: 0 | BW130: 0 | BX130: 0 | BY130: 0 | BZ130: 0 | CA130: 0 | CB130: 0 | CC130: 0 | CD130: 0 | CE130: 0 | CF130: 0 | CG130: 0 | CH130: 0 | CI130: 0 | CJ130: 0 | CK130: No | CL130: =IFERROR(#REF!/AW130,0) -> 0 | CM130: TRA | CN130: 4b TRA A24 | CO130: Arterial
B131: Transport | E131: 9b TRA A24 WK subsidy | F131: Upgrade in Norrie Rd/GSR/Waihoehoe intersection | G131: multi-lane signalised intersection with active mode crossings, SGA design | J131: Transport - Drury West 1 IPA | P131: 0.9160560106 | Q131: 2060 | R131: Yes | AC131: 0 | AD131: 0 | AE131: 0 | AF131: 0 | AG131: 0 | AH131: 0 | AI131: 0 | AJ131: 0 | AK131: 0 | AL131: 0 | AM131: 0 | AN131: 0 | AO131: 0 | AP131: 0 | AQ131: 0 | AR131: 0 | AS131: 0 | AT131: 0 | AU131: 0 | AV131: 0 | AW131: 0 | AX131: 0 | AY131: 0 | AZ131: 0 | BB131: =IFERROR(VLOOKUP(J131,Funding_area_table!C:F,2,FALSE),"CHECK") -> TRA A24 | BC131: 0 | BE131: 0 | BF131: 0 | BG131: 0 | BH131: 0 | BI131: 0 | BJ131: 0 | BK131: 0 | BL131: 0 | BM131: 0 | BN131: 0 | BO131: 0 | BP131: 0 | BQ131: 0 | BR131: 0 | BS131: 0 | BT131: 0 | BU131: 0 | BV131: 0 | BW131: 0 | BX131: 0 | BY131: 0 | BZ131: 0 | CA131: 0 | CB131: 0 | CC131: 0 | CD131: 0 | CE131: 0 | CF131: 0 | CG131: 0 | CH131: 0 | CI131: 0 | CJ131: 0 | CK131: No | CL131: =IFERROR(#REF!/AW131,0) -> 0 | CM131: TRA | CN131: 9b TRA A24 | CO131: Arterial
B132: Transport | E132: 10b TRA A24 WK subsidy | F132: New intersection on Waihoehoe Rd/Fitzgerald Rd( including approach cross-sections) | G132: multi-lane roundabout with active mode crossings, SGA design | J132: Transport - Drury West 1 IPA | P132: 0.9160560106 | Q132: 2060 | R132: Yes | AC132: 0 | AD132: 0 | AE132: 0 | AF132: 0 | AG132: 0 | AH132: 0 | AI132: 0 | AJ132: 0 | AK132: 0 | AL132: 0 | AM132: 0 | AN132: 0 | AO132: 0 | AP132: 0 | AQ132: 0 | AR132: 0 | AS132: 0 | AT132: 0 | AU132: 0 | AV132: 0 | AW132: 0 | AX132: 0 | AY132: 0 | AZ132: 0 | BB132: =IFERROR(VLOOKUP(J132,Funding_area_table!C:F,2,FALSE),"CHECK") -> TRA A24 | BC132: 0 | BE132: 0 | BF132: 0 | BG132: 0 | BH132: 0 | BI132: 0 | BJ132: 0 | BK132: 0 | BL132: 0 | BM132: 0 | BN132: 0 | BO132: 0 | BP132: 0 | BQ132: 0 | BR132: 0 | BS132: 0 | BT132: 0 | BU132: 0 | BV132: 0 | BW132: 0 | BX132: 0 | BY132: 0 | BZ132: 0 | CA132: 0 | CB132: 0 | CC132: 0 | CD132: 0 | CE132: 0 | CF132: 0 | CG132: 0 | CH132: 0 | CI132: 0 | CJ132: 0 | CK132: No | CL132: =IFERROR(#REF!/AW132,0) -> 0 | CM132: TRA | CN132: 10b TRA A24 | CO132: Arterial
B133: Transport | E133: 13b TRA A24 WK subsidy | F133: N-S Opaheke Arterial across development (upto Waihoihoi Stream) | G133: 4-lane urban- upgrade 2-lane arterial with SGA design + intersection improvements (TDM) | J133: Transport - Drury West 1 IPA | P133: 0.9160560106 | Q133: 2060 | R133: Yes | AC133: 0 | AD133: 0 | AE133: 0 | AF133: 0 | AG133: 0 | AH133: 0 | AI133: 0 | AJ133: 0 | AK133: 0 | AL133: 0 | AM133: 0 | AN133: 0 | AO133: 0 | AP133: 0 | AQ133: 0 | AR133: 0 | AS133: 0 | AT133: -56029.44269 | AU133: -556657.6067 | AV133: 0 | AW133: -612687.0493 | AX133: 0 | AY133: 0 | AZ133: 0 | BB133: =IFERROR(VLOOKUP(J133,Funding_area_table!C:F,2,FALSE),"CHECK") -> TRA A24 | BC133: -51431.3952 | BE133: 0 | BF133: 0 | BG133: 0 | BH133: 0 | BI133: 0 | BJ133: 0 | BK133: 0 | BL133: 0 | BM133: 0 | BN133: 0 | BO133: 0 | BP133: 0 | BQ133: 0 | BR133: 0 | BS133: 0 | BT133: 0 | BU133: 0 | BV133: 0 | BW133: 0 | BX133: 0 | BY133: 0 | BZ133: 0 | CA133: 0 | CB133: 0 | CC133: 0 | CD133: 0 | CE133: 0 | CF133: -51326.10774 | CG133: -509929.5464 | CH133: 0 | CI133: -561255.6541 | CJ133: -561255.6541 | CK133: No | CL133: =IFERROR(#REF!/AW133,0) -> 0 | CM133: TRA | CN133: 13b TRA A24 | CO133: Arterial
B134: Transport | E134: 16b TRA A24 WK subsidy | F134: Widen Bremner Road Bridge ove SH1 to 4-lanes | G134: 4-lane urban- upgrade 2-lane urban with active modes on both sides (SGA design) | J134: Transport - Drury West 1 IPA | P134: 0.9160560106 | Q134: 2060 | R134: Yes | AC134: 0 | AD134: 0 | AE134: 0 | AF134: 0 | AG134: 0 | AH134: 0 | AI134: 0 | AJ134: 0 | AK134: 0 | AL134: 0 | AM134: 0 | AN134: 0 | AO134: 0 | AP134: 0 | AQ134: 0 | AR134: 0 | AS134: 0 | AT134: -701644.3253 | AU134: -6970900.158 | AV134: 0 | AW134: -7672544.483 | AX134: 0 | AY134: 0 | AZ134: 0 | BB134: =IFERROR(VLOOKUP(J134,Funding_area_table!C:F,2,FALSE),"CHECK") -> TRA A24 | BC134: -644063.993 | BE134: 0 | BF134: 0 | BG134: 0 | BH134: 0 | BI134: 0 | BJ134: 0 | BK134: 0 | BL134: 0 | BM134: 0 | BN134: 0 | BO134: 0 | BP134: 0 | BQ134: 0 | BR134: 0 | BS134: 0 | BT134: 0 | BU134: 0 | BV134: 0 | BW134: 0 | BX134: 0 | BY134: 0 | BZ134: 0 | CA134: 0 | CB134: 0 | CC134: 0 | CD134: 0 | CE134: 0 | CF134: -642745.5015 | CG134: -6385734.988 | CH134: 0 | CI134: -7028480.49 | CJ134: -7028480.49 | CK134: No | CL134: =IFERROR(#REF!/AW134,0) -> 0 | CM134: TRA | CN134: 16b TRA A24 | CO134: Arterial
B135: Transport | E135: 23b TRA A24 WK subsidy | F135: Waihoehoe Rd West upgrades- between GSR & Kath Henry Lane | G135: Final 4-lane - following interim option, upgrade Road corridor to provide four lanes with additional turning lanes at intersections where required (as indicated in SGA Design | J135: Transport - Drury West 1 IPA | P135: 0.9160560106 | Q135: 2060 | R135: Yes | AC135: 0 | AD135: 0 | AE135: 0 | AF135: 0 | AG135: 0 | AH135: 0 | AI135: 0 | AJ135: 0 | AK135: 0 | AL135: 0 | AM135: 0 | AN135: 0 | AO135: 0 | AP135: 0 | AQ135: 0 | AR135: 0 | AS135: 0 | AT135: 0 | AU135: 0 | AV135: 0 | AW135: 0 | AX135: 0 | AY135: 0 | AZ135: 0 | BB135: =IFERROR(VLOOKUP(J135,Funding_area_table!C:F,2,FALSE),"CHECK") -> TRA A24 | BC135: 0 | BE135: 0 | BF135: 0 | BG135: 0 | BH135: 0 | BI135: 0 | BJ135: 0 | BK135: 0 | BL135: 0 | BM135: 0 | BN135: 0 | BO135: 0 | BP135: 0 | BQ135: 0 | BR135: 0 | BS135: 0 | BT135: 0 | BU135: 0 | BV135: 0 | BW135: 0 | BX135: 0 | BY135: 0 | BZ135: 0 | CA135: 0 | CB135: 0 | CC135: 0 | CD135: 0 | CE135: 0 | CF135: 0 | CG135: 0 | CH135: 0 | CI135: 0 | CJ135: 0 | CK135: No | CL135: =IFERROR(#REF!/AW135,0) -> 0 | CM135: TRA | CN135: 23b TRA A24 | CO135: Arterial
B136: Transport | E136: 24 TRA A24 WK subsidy | F136: Upgrades on Waihoehoe Rd east- from project 4 to Drury Hills + Drury Hills Intersection | G136: 2-lane urban - upgrade existing road layout with active modes on both sides, 20m cross-section | J136: Transport - Drury West 1 IPA | P136: 0.9160560106 | Q136: 2060 | R136: Yes | AC136: 0 | AD136: 0 | AE136: 0 | AF136: 0 | AG136: 0 | AH136: 0 | AI136: 0 | AJ136: 0 | AK136: 0 | AL136: 0 | AM136: 0 | AN136: 0 | AO136: 0 | AP136: 0 | AQ136: 0 | AR136: 0 | AS136: 0 | AT136: 0 | AU136: 0 | AV136: 0 | AW136: =SUM(S136:AV136) -> 0 | AX136: 0 | AY136: 0 | AZ136: 0 | BB136: =IFERROR(VLOOKUP(J136,Funding_area_table!C:F,2,FALSE),"CHECK") -> TRA A24 | BC136: =$AW136*(1-P136) -> 0 | BE136: =S136*$P136*(1-$CL136) -> 0 | BF136: =T136*$P136*(1-$CL136) -> 0 | BG136: =U136*$P136*(1-$CL136) -> 0 | BH136: =V136*$P136*(1-$CL136) -> 0 | BI136: =W136*$P136*(1-$CL136) -> 0 | BJ136: =X136*$P136*(1-$CL136) -> 0 | BK136: =Y136*$P136*(1-$CL136) -> 0 | BL136: =Z136*$P136*(1-$CL136) -> 0 | BM136: =AA136*$P136*(1-$CL136) -> 0 | BN136: =AB136*$P136*(1-$CL136) -> 0 | BO136: =AC136*$P136*(1-$CL136) -> 0 | BP136: =AD136*$P136*(1-$CL136) -> 0 | BQ136: =AE136*$P136*(1-$CL136) -> 0 | BR136: =AF136*$P136*(1-$CL136) -> 0 | BS136: =AG136*$P136*(1-$CL136) -> 0 | BT136: =AH136*$P136*(1-$CL136) -> 0 | BU136: =AI136*$P136*(1-$CL136) -> 0 | BV136: =AJ136*$P136*(1-$CL136) -> 0 | BW136: =AK136*$P136*(1-$CL136) -> 0 | BX136: =AL136*$P136*(1-$CL136) -> 0 | BY136: =AM136*$P136*(1-$CL136) -> 0 | BZ136: =AN136*$P136*(1-$CL136) -> 0 | CA136: =AO136*$P136*(1-$CL136) -> 0 | CB136: =AP136*$P136*(1-$CL136) -> 0 | CC136: =AQ136*$P136*(1-$CL136) -> 0 | CD136: =AR136*$P136*(1-$CL136) -> 0 | CE136: =AS136*$P136*(1-$CL136) -> 0 | CF136: =AT136*$P136*(1-$CL136) -> 0 | CG136: =AU136*$P136*(1-$CL136) -> 0 | CH136: =AV136*$P136*(1-$CL136) -> 0 | CI136: =SUM(BE136:CH136) -> 0 | CJ136: =+CI136+AX136*P136 -> 0 | CK136: No | CL136: =IFERROR(#REF!/AW136,0) -> 0 | CM136: =TRIM(LEFT(BB136,3)) -> TRA | CN136: =IF(RIGHT(E136,11)=" WK subsidy",LEFT(E136,LEN(E136)-11),E136) -> 24 TRA A24 | CO136: Arterial
B137: Transport | E137: 32 TRA A24 WK subsidy | F137: New Intersection on Cossey Rd/Waihoehoe Rd | G137: Assume 1 simple roundabout intesection | J137: Transport - Drury West 1 IPA | P137: 0.9160560106 | Q137: 2060 | R137: Yes | AC137: 0 | AD137: 0 | AE137: 0 | AF137: 0 | AG137: 0 | AH137: 0 | AI137: 0 | AJ137: 0 | AK137: 0 | AL137: 0 | AM137: 0 | AN137: 0 | AO137: 0 | AP137: 0 | AQ137: 0 | AR137: 0 | AS137: 0 | AT137: 0 | AU137: 0 | AV137: 0 | AW137: 0 | AX137: 0 | AY137: 0 | AZ137: 0 | BB137: =IFERROR(VLOOKUP(J137,Funding_area_table!C:F,2,FALSE),"CHECK") -> TRA A24 | BC137: 0 | BE137: 0 | BF137: 0 | BG137: 0 | BH137: 0 | BI137: 0 | BJ137: 0 | BK137: 0 | BL137: 0 | BM137: 0 | BN137: 0 | BO137: 0 | BP137: 0 | BQ137: 0 | BR137: 0 | BS137: 0 | BT137: 0 | BU137: 0 | BV137: 0 | BW137: 0 | BX137: 0 | BY137: 0 | BZ137: 0 | CA137: 0 | CB137: 0 | CC137: 0 | CD137: 0 | CE137: 0 | CF137: 0 | CG137: 0 | CH137: 0 | CI137: 0 | CJ137: 0 | CK137: No | CL137: =IFERROR(#REF!/AW137,0) -> 0 | CM137: TRA | CN137: 32 TRA A24 | CO137: Arterial
B138: Transport | E138: 36a TRA A24 WK subsidy | F138: Bremner-Norrie Road east of SH1 up to GSR (overlap with project 12) | G138: 2-lane urban- upgrade existing road layout with active modes on both sides (Under construction) | J138: Transport - Drury West 1 IPA | P138: 0.9160560106 | Q138: 2060 | R138: Yes | AC138: -852658.0047 | AD138: -8592378.213 | AE138: 0 | AF138: 0 | AG138: 0 | AH138: 0 | AI138: 0 | AJ138: 0 | AK138: 0 | AL138: 0 | AM138: 0 | AN138: 0 | AO138: 0 | AP138: 0 | AQ138: 0 | AR138: 0 | AS138: 0 | AT138: 0 | AU138: 0 | AV138: 0 | AW138: -9445036.217 | AX138: 0 | AY138: 0 | AZ138: 0 | BB138: =IFERROR(VLOOKUP(J138,Funding_area_table!C:F,2,FALSE),"CHECK") -> TRA A24 | BC138: -792854.0204 | BE138: 0 | BF138: 0 | BG138: 0 | BH138: 0 | BI138: 0 | BJ138: 0 | BK138: 0 | BL138: 0 | BM138: 0 | BN138: 0 | BO138: -781082.4901 | BP138: -7871099.707 | BQ138: 0 | BR138: 0 | BS138: 0 | BT138: 0 | BU138: 0 | BV138: 0 | BW138: 0 | BX138: 0 | BY138: 0 | BZ138: 0 | CA138: 0 | CB138: 0 | CC138: 0 | CD138: 0 | CE138: 0 | CF138: 0 | CG138: 0 | CH138: 0 | CI138: -8652182.197 | CJ138: -8652182.197 | CK138: No | CL138: =IFERROR(#REF!/AW138,0) -> 0 | CM138: TRA | CN138: 36a TRA A24 | CO138: Arterial
B139: Transport | E139: 36b TRA A24 WK subsidy | F139: Complete Bremner-Norrie Road connection from SH1 up to GSR excluding Bridge (overlap with project 12) | G139: 4-lane urban- upgrade interim 2-lane urban corridor to a 4-lane corridor with active modes on both sides (SGA design) | J139: Transport - Drury West 1 IPA | P139: 0.9160560106 | Q139: 2060 | R139: Yes | AC139: 0 | AD139: 0 | AE139: 0 | AF139: 0 | AG139: 0 | AH139: 0 | AI139: 0 | AJ139: 0 | AK139: 0 | AL139: 0 | AM139: 0 | AN139: 0 | AO139: 0 | AP139: 0 | AQ139: 0 | AR139: 0 | AS139: -10648979.91 | AT139: -1089523.772 | AU139: -10824517.72 | AV139: 0 | AW139: -22563021.4 | AX139: 0 | AY139: 0 | AZ139: 0 | BB139: =IFERROR(VLOOKUP(J139,Funding_area_table!C:F,2,FALSE),"CHECK") -> TRA A24 | BC139: -1894030.03 | BE139: 0 | BF139: 0 | BG139: 0 | BH139: 0 | BI139: 0 | BJ139: 0 | BK139: 0 | BL139: 0 | BM139: 0 | BN139: 0 | BO139: 0 | BP139: 0 | BQ139: 0 | BR139: 0 | BS139: 0 | BT139: 0 | BU139: 0 | BV139: 0 | BW139: 0 | BX139: 0 | BY139: 0 | BZ139: 0 | CA139: 0 | CB139: 0 | CC139: 0 | CD139: 0 | CE139: -9755062.057 | CF139: -998064.7996 | CG139: -9915864.517 | CH139: 0 | CI139: -20668991.37 | CJ139: -20668991.37 | CK139: No | CL139: =IFERROR(#REF!/AW139,0) -> 0 | CM139: TRA | CN139: 36b TRA A24 | CO139: Arterial
B140: Transport | E140: 36c TRA A24 WK subsidy | F140: Complete Bremner-Norrie Road connection from SH1 up to GSR - Bridge structure (overlap with project 12) | G140: Upgrade interim 2-lane bridges (3No. to 4 lane bridges with active modes on both sides (SGA design) | J140: Transport - Drury West 1 IPA | P140: 0.9160560106 | Q140: 2060 | R140: Yes | AC140: 0 | AD140: 0 | AE140: 0 | AF140: 0 | AG140: 0 | AH140: 0 | AI140: 0 | AJ140: 0 | AK140: 0 | AL140: 0 | AM140: 0 | AN140: 0 | AO140: 0 | AP140: 0 | AQ140: 0 | AR140: 0 | AS140: 0 | AT140: -1146539.332 | AU140: -11390972.5 | AV140: 0 | AW140: -12537511.83 | AX140: 0 | AY140: 0 | AZ140: 0 | BB140: =IFERROR(VLOOKUP(J140,Funding_area_table!C:F,2,FALSE),"CHECK") -> TRA A24 | BC140: -1052448.761 | BE140: 0 | BF140: 0 | BG140: 0 | BH140: 0 | BI140: 0 | BJ140: 0 | BK140: 0 | BL140: 0 | BM140: 0 | BN140: 0 | BO140: 0 | BP140: 0 | BQ140: 0 | BR140: 0 | BS140: 0 | BT140: 0 | BU140: 0 | BV140: 0 | BW140: 0 | BX140: 0 | BY140: 0 | BZ140: 0 | CA140: 0 | CB140: 0 | CC140: 0 | CD140: 0 | CE140: 0 | CF140: -1050294.247 | CG140: -10434768.82 | CH140: 0 | CI140: -11485063.07 | CJ140: -11485063.07 | CK140: No | CL140: =IFERROR(#REF!/AW140,0) -> 0 | CM140: TRA | CN140: 36c TRA A24 | CO140: Arterial
B141: Transport | E141: 37a(i) TRA A24 WK subsidy | F141: N-S Opaheke Arterial from development to Ponga Rd | G141: 2-lane urban- new road layout with active modes on both sides (TDM) | J141: Transport - Drury West 1 IPA | P141: 0.9160560106 | Q141: 2060 | R141: Yes | AC141: 0 | AD141: 0 | AE141: 0 | AF141: 0 | AG141: 0 | AH141: 0 | AI141: 0 | AJ141: 0 | AK141: 0 | AL141: 0 | AM141: -1633710.763 | AN141: -44491.79337 | AO141: -527957.5309 | AP141: 0 | AQ141: 0 | AR141: 0 | AS141: 0 | AT141: 0 | AU141: 0 | AV141: 0 | AW141: -2206160.087 | AX141: 0 | AY141: 0 | AZ141: 0 | BB141: =IFERROR(VLOOKUP(J141,Funding_area_table!C:F,2,FALSE),"CHECK") -> TRA A24 | BC141: -185193.8791 | BE141: 0 | BF141: 0 | BG141: 0 | BH141: 0 | BI141: 0 | BJ141: 0 | BK141: 0 | BL141: 0 | BM141: 0 | BN141: 0 | BO141: 0 | BP141: 0 | BQ141: 0 | BR141: 0 | BS141: 0 | BT141: 0 | BU141: 0 | BV141: 0 | BW141: 0 | BX141: 0 | BY141: -1496570.564 | BZ141: -40756.97474 | CA141: -483638.6695 | CB141: 0 | CC141: 0 | CD141: 0 | CE141: 0 | CF141: 0 | CG141: 0 | CH141: 0 | CI141: -2020966.208 | CJ141: -2020966.208 | CK141: No | CL141: =IFERROR(#REF!/AW141,0) -> 0 | CM141: TRA | CN141: 37a(i) TRA A24 | CO141: Arterial
B142: Transport | E142: 37a(ii) TRA A24 WK subsidy | F142: N-S Opaheke Arterial from development to Ponga Rd | G142: 2-lane urban- bridge construction | J142: Transport - Drury West 1 IPA | P142: 0.9160560106 | Q142: 2060 | R142: Yes | AC142: 0 | AD142: 0 | AE142: 0 | AF142: 0 | AG142: 0 | AH142: 0 | AI142: 0 | AJ142: 0 | AK142: 0 | AL142: 0 | AM142: 0 | AN142: -122143.8501 | AO142: -1213510.255 | AP142: 0 | AQ142: 0 | AR142: 0 | AS142: 0 | AT142: 0 | AU142: 0 | AV142: 0 | AW142: -1335654.105 | AX142: 0 | AY142: 0 | AZ142: 0 | BB142: =IFERROR(VLOOKUP(J142,Funding_area_table!C:F,2,FALSE),"CHECK") -> TRA A24 | BC142: -112120.1341 | BE142: 0 | BF142: 0 | BG142: 0 | BH142: 0 | BI142: 0 | BJ142: 0 | BK142: 0 | BL142: 0 | BM142: 0 | BN142: 0 | BO142: 0 | BP142: 0 | BQ142: 0 | BR142: 0 | BS142: 0 | BT142: 0 | BU142: 0 | BV142: 0 | BW142: 0 | BX142: 0 | BY142: 0 | BZ142: -111890.608 | CA142: -1111643.363 | CB142: 0 | CC142: 0 | CD142: 0 | CE142: 0 | CF142: 0 | CG142: 0 | CH142: 0 | CI142: -1223533.971 | CJ142: -1223533.971 | CK142: No | CL142: =IFERROR(#REF!/AW142,0) -> 0 | CM142: TRA | CN142: 37a(ii) TRA A24 | CO142: Arterial
B143: Transport | E143: 37b(i) TRA A24 WK subsidy | F143: N-S Opaheke Arterial from development to Ponga Rd | G143: 4-lane urban- upgrade 2-lane urban with active modes on both sides (SGA design) | J143: Transport - Drury West 1 IPA | P143: 0.9160560106 | Q143: 2060 | R143: Yes | AC143: 0 | AD143: 0 | AE143: 0 | AF143: 0 | AG143: 0 | AH143: 0 | AI143: 0 | AJ143: 0 | AK143: 0 | AL143: 0 | AM143: 0 | AN143: 0 | AO143: 0 | AP143: 0 | AQ143: 0 | AR143: 0 | AS143: -132189.1243 | AT143: -1313310.967 | AU143: 0 | AV143: 0 | AW143: -1445500.092 | AX143: 0 | AY143: 0 | AZ143: 0 | BB143: =IFERROR(VLOOKUP(J143,Funding_area_table!C:F,2,FALSE),"CHECK") -> TRA A24 | BC143: -121341.0444 | BE143: 0 | BF143: 0 | BG143: 0 | BH143: 0 | BI143: 0 | BJ143: 0 | BK143: 0 | BL143: 0 | BM143: 0 | BN143: 0 | BO143: 0 | BP143: 0 | BQ143: 0 | BR143: 0 | BS143: 0 | BT143: 0 | BU143: 0 | BV143: 0 | BW143: 0 | BX143: 0 | BY143: 0 | BZ143: 0 | CA143: 0 | CB143: 0 | CC143: 0 | CD143: 0 | CE143: -121092.6419 | CF143: -1203066.405 | CG143: 0 | CH143: 0 | CI143: -1324159.047 | CJ143: -1324159.047 | CK143: No | CL143: =IFERROR(#REF!/AW143,0) -> 0 | CM143: TRA | CN143: 37b(i) TRA A24 | CO143: Arterial
B144: Transport | E144: 37b(ii) TRA A24 WK subsidy | F144: N-S Opaheke Arterial from development to Ponga Rd | G144: 4-lane urban- Bridge Widening | J144: Transport - Drury West 1 IPA | P144: 0.9160560106 | Q144: 2060 | R144: Yes | AC144: 0 | AD144: 0 | AE144: 0 | AF144: 0 | AG144: 0 | AH144: 0 | AI144: 0 | AJ144: 0 | AK144: 0 | AL144: 0 | AM144: 0 | AN144: 0 | AO144: 0 | AP144: 0 | AQ144: 0 | AR144: 0 | AS144: -171019.6796 | AT144: -1699096.064 | AU144: 0 | AV144: 0 | AW144: -1870115.744 | AX144: 0 | AY144: 0 | AZ144: 0 | BB144: =IFERROR(VLOOKUP(J144,Funding_area_table!C:F,2,FALSE),"CHECK") -> TRA A24 | BC144: -156984.9762 | BE144: 0 | BF144: 0 | BG144: 0 | BH144: 0 | BI144: 0 | BJ144: 0 | BK144: 0 | BL144: 0 | BM144: 0 | BN144: 0 | BO144: 0 | BP144: 0 | BQ144: 0 | BR144: 0 | BS144: 0 | BT144: 0 | BU144: 0 | BV144: 0 | BW144: 0 | BX144: 0 | BY144: 0 | BZ144: 0 | CA144: 0 | CB144: 0 | CC144: 0 | CD144: 0 | CE144: -156663.6054 | CF144: -1556467.162 | CG144: 0 | CH144: 0 | CI144: -1713130.767 | CJ144: -1713130.767 | CK144: No | CL144: =IFERROR(#REF!/AW144,0) -> 0 | CM144: TRA | CN144: 37b(ii) TRA A24 | CO144: Arterial
B145: Transport | E145: 39b TRA A24 WK subsidy | F145: New Bremner Rd arterial from SH1 to Auranga development | G145: 4-lane urban- upgrade 2-lane urban excl bridge | J145: Transport - Drury West 1 IPA | P145: 0.9160560106 | Q145: 2060 | R145: Yes | AC145: 0 | AD145: 0 | AE145: 0 | AF145: 0 | AG145: 0 | AH145: 0 | AI145: 0 | AJ145: 0 | AK145: 0 | AL145: 0 | AM145: 0 | AN145: 0 | AO145: 0 | AP145: 0 | AQ145: -556105.4363 | AR145: -5524958.065 | AS145: 0 | AT145: 0 | AU145: 0 | AV145: 0 | AW145: -6081063.501 | AX145: 0 | AY145: 0 | AZ145: 0 | BB145: =IFERROR(VLOOKUP(J145,Funding_area_table!C:F,2,FALSE),"CHECK") -> TRA A24 | BC145: -510468.7303 | BE145: 0 | BF145: 0 | BG145: 0 | BH145: 0 | BI145: 0 | BJ145: 0 | BK145: 0 | BL145: 0 | BM145: 0 | BN145: 0 | BO145: 0 | BP145: 0 | BQ145: 0 | BR145: 0 | BS145: 0 | BT145: 0 | BU145: 0 | BV145: 0 | BW145: 0 | BX145: 0 | BY145: 0 | BZ145: 0 | CA145: 0 | CB145: 0 | CC145: -509423.7274 | CD145: -5061171.043 | CE145: 0 | CF145: 0 | CG145: 0 | CH145: 0 | CI145: -5570594.771 | CJ145: -5570594.771 | CK145: No | CL145: =IFERROR(#REF!/AW145,0) -> 0 | CM145: TRA | CN145: 39b TRA A24 | CO145: Arterial
B146: Transport | E146: 39c TRA A24 WK subsidy | F146: New Bremner Rd arterial from SH1 to Auranga development | G146: 4-lane urban- upgrade 2-lane bridge widening | J146: Transport - Drury West 1 IPA | P146: 0.9160560106 | Q146: 2060 | R146: Yes | AC146: 0 | AD146: 0 | AE146: 0 | AF146: 0 | AG146: 0 | AH146: 0 | AI146: 0 | AJ146: 0 | AK146: 0 | AL146: 0 | AM146: 0 | AN146: 0 | AO146: 0 | AP146: 0 | AQ146: -387479.9169 | AR146: -3849648.2 | AS146: 0 | AT146: 0 | AU146: 0 | AV146: 0 | AW146: -4237128.117 | AX146: 0 | AY146: 0 | AZ146: 0 | BB146: =IFERROR(VLOOKUP(J146,Funding_area_table!C:F,2,FALSE),"CHECK") -> TRA A24 | BC146: -355681.4379 | BE146: 0 | BF146: 0 | BG146: 0 | BH146: 0 | BI146: 0 | BJ146: 0 | BK146: 0 | BL146: 0 | BM146: 0 | BN146: 0 | BO146: 0 | BP146: 0 | BQ146: 0 | BR146: 0 | BS146: 0 | BT146: 0 | BU146: 0 | BV146: 0 | BW146: 0 | BX146: 0 | BY146: 0 | BZ146: 0 | CA146: 0 | CB146: 0 | CC146: -354953.3069 | CD146: -3526493.372 | CE146: 0 | CF146: 0 | CG146: 0 | CH146: 0 | CI146: -3881446.679 | CJ146: -3881446.679 | CK146: No | CL146: =IFERROR(#REF!/AW146,0) -> 0 | CM146: TRA | CN146: 39c TRA A24 | CO146: Arterial
B147: Transport | E147: 41b TRA A24 WK subsidy | F147: Jesmond Rd from SH22 to Waipupuke development boundary | G147: 4-lane urban- upgrade 2-lane urban to 4-lane with active modes on both sides, (TDM) | J147: Transport - Drury West 1 IPA | P147: 0.9160560106 | Q147: 2060 | R147: Yes | AC147: 0 | AD147: 0 | AE147: 0 | AF147: 0 | AG147: 0 | AH147: 0 | AI147: 0 | AJ147: 0 | AK147: 0 | AL147: 0 | AM147: 0 | AN147: 0 | AO147: 0 | AP147: -14465304.69 | AQ147: -618504.054 | AR147: -7542240.946 | AS147: 0 | AT147: 0 | AU147: 0 | AV147: 0 | AW147: -22626049.69 | AX147: 0 | AY147: 0 | AZ147: 0 | BB147: =IFERROR(VLOOKUP(J147,Funding_area_table!C:F,2,FALSE),"CHECK") -> TRA A24 | BC147: -1899320.876 | BE147: 0 | BF147: 0 | BG147: 0 | BH147: 0 | BI147: 0 | BJ147: 0 | BK147: 0 | BL147: 0 | BM147: 0 | BN147: 0 | BO147: 0 | BP147: 0 | BQ147: 0 | BR147: 0 | BS147: 0 | BT147: 0 | BU147: 0 | BV147: 0 | BW147: 0 | BX147: 0 | BY147: 0 | BZ147: 0 | CA147: 0 | CB147: -13251029.31 | CC147: -566584.3563 | CD147: -6909115.152 | CE147: 0 | CF147: 0 | CG147: 0 | CH147: 0 | CI147: -20726728.82 | CJ147: -20726728.82 | CK147: No | CL147: =IFERROR(#REF!/AW147,0) -> 0 | CM147: TRA | CN147: 41b TRA A24 | CO147: Arterial
B148: Transport | E148: 42c TRA A24 WK subsidy | F148: Jesmond Rd upgrades from project 41 to New Bremner Rd | G148: 4-lane urban FTN- upgrade 2-lane urban to 4-lane with active modes on both sides, (TDM) | J148: Transport - Drury West 1 IPA | P148: 0.9160560106 | Q148: 2060 | R148: Yes | AC148: 0 | AD148: 0 | AE148: 0 | AF148: 0 | AG148: 0 | AH148: 0 | AI148: 0 | AJ148: 0 | AK148: 0 | AL148: 0 | AM148: 0 | AN148: 0 | AO148: 0 | AP148: -36861498.89 | AQ148: -503723.892 | AR148: -8504808.755 | AS148: 0 | AT148: 0 | AU148: 0 | AV148: 0 | AW148: -45870031.54 | AX148: 0 | AY148: 0 | AZ148: 0 | BB148: =IFERROR(VLOOKUP(J148,Funding_area_table!C:F,2,FALSE),"CHECK") -> TRA A24 | BC148: -3850513.443 | BE148: 0 | BF148: 0 | BG148: 0 | BH148: 0 | BI148: 0 | BJ148: 0 | BK148: 0 | BL148: 0 | BM148: 0 | BN148: 0 | BO148: 0 | BP148: 0 | BQ148: 0 | BR148: 0 | BS148: 0 | BT148: 0 | BU148: 0 | BV148: 0 | BW148: 0 | BX148: 0 | BY148: 0 | BZ148: 0 | CA148: 0 | CB148: -33767197.62 | CC148: -461439.2989 | CD148: -7790881.178 | CE148: 0 | CF148: 0 | CG148: 0 | CH148: 0 | CI148: -42019518.1 | CJ148: -42019518.1 | CK148: No | CL148: =IFERROR(#REF!/AW148,0) -> 0 | CM148: TRA | CN148: 42c TRA A24 | CO148: Arterial
B149: Transport | E149: 65a(ii) TRA A24 WK subsidy | F149: New Bremner Rd arterial from Auranga development to Jesmond Rd (bridge only) | G149: 2-lane urban- new road layout with active modes on both sides (TDM) | J149: Transport - Drury West 1 IPA | P149: 0.9160560106 | Q149: 2060 | R149: Yes | AC149: 0 | AD149: 0 | AE149: 0 | AF149: -359988.0631 | AG149: -3576514.133 | AH149: 0 | AI149: 0 | AJ149: 0 | AK149: 0 | AL149: 0 | AM149: 0 | AN149: 0 | AO149: 0 | AP149: 0 | AQ149: 0 | AR149: 0 | AS149: 0 | AT149: 0 | AU149: 0 | AV149: 0 | AW149: -3936502.196 | AX149: 0 | AY149: 0 | AZ149: 0 | BB149: =IFERROR(VLOOKUP(J149,Funding_area_table!C:F,2,FALSE),"CHECK") -> TRA A24 | BC149: -330445.6988 | BE149: 0 | BF149: 0 | BG149: 0 | BH149: 0 | BI149: 0 | BJ149: 0 | BK149: 0 | BL149: 0 | BM149: 0 | BN149: 0 | BO149: 0 | BP149: 0 | BQ149: 0 | BR149: -329769.2289 | BS149: -3276287.269 | BT149: 0 | BU149: 0 | BV149: 0 | BW149: 0 | BX149: 0 | BY149: 0 | BZ149: 0 | CA149: 0 | CB149: 0 | CC149: 0 | CD149: 0 | CE149: 0 | CF149: 0 | CG149: 0 | CH149: 0 | CI149: -3606056.498 | CJ149: -3606056.498 | CK149: No | CL149: =IFERROR(#REF!/AW149,0) -> 0 | CM149: TRA | CN149: 65a(ii) TRA A24 | CO149: Arterial
B150: Transport | E150: 65b(i) TRA A24 WK subsidy | F150: New Bremner Rd arterial from Auranga development to Jesmond Rd (excl bridge) | G150: 4-lane urban- upgrade 2-lane urban to 4-lane with active modes on both sides, (TDM) | J150: Transport - Drury West 1 IPA | P150: 0.9160560106 | Q150: 2060 | R150: Yes | AC150: 0 | AD150: 0 | AE150: 0 | AF150: 0 | AG150: 0 | AH150: 0 | AI150: 0 | AJ150: 0 | AK150: 0 | AL150: 0 | AM150: 0 | AN150: 0 | AO150: 0 | AP150: 0 | AQ150: -559693.2133 | AR150: -5560602.955 | AS150: 0 | AT150: 0 | AU150: 0 | AV150: 0 | AW150: -6120296.169 | AX150: 0 | AY150: 0 | AZ150: 0 | BB150: =IFERROR(VLOOKUP(J150,Funding_area_table!C:F,2,FALSE),"CHECK") -> TRA A24 | BC150: -513762.0769 | BE150: 0 | BF150: 0 | BG150: 0 | BH150: 0 | BI150: 0 | BJ150: 0 | BK150: 0 | BL150: 0 | BM150: 0 | BN150: 0 | BO150: 0 | BP150: 0 | BQ150: 0 | BR150: 0 | BS150: 0 | BT150: 0 | BU150: 0 | BV150: 0 | BW150: 0 | BX150: 0 | BY150: 0 | BZ150: 0 | CA150: 0 | CB150: 0 | CC150: -512710.3321 | CD150: -5093823.76 | CE150: 0 | CF150: 0 | CG150: 0 | CH150: 0 | CI150: -5606534.092 | CJ150: -5606534.092 | CK150: No | CL150: =IFERROR(#REF!/AW150,0) -> 0 | CM150: TRA | CN150: 65b(i) TRA A24 | CO150: Arterial
B151: Transport | E151: 65b(ii) TRA A24 WK subsidy | F151: New Bremner Rd arterial from Auranga development to Jesmond Rd (bridge widening) | G151: 4-lane urban- upgrade 2-lane urban to 4-lane with active modes on both sides, (TDM) | J151: Transport - Drury West 1 IPA | P151: 0.9160560106 | Q151: 2060 | R151: Yes | AC151: 0 | AD151: 0 | AE151: 0 | AF151: 0 | AG151: 0 | AH151: 0 | AI151: 0 | AJ151: 0 | AK151: 0 | AL151: 0 | AM151: 0 | AN151: 0 | AO151: 0 | AP151: 0 | AQ151: -139492.7701 | AR151: -1385873.352 | AS151: 0 | AT151: 0 | AU151: 0 | AV151: 0 | AW151: -1525366.122 | AX151: 0 | AY151: 0 | AZ151: 0 | BB151: =IFERROR(VLOOKUP(J151,Funding_area_table!C:F,2,FALSE),"CHECK") -> TRA A24 | BC151: -128045.3176 | BE151: 0 | BF151: 0 | BG151: 0 | BH151: 0 | BI151: 0 | BJ151: 0 | BK151: 0 | BL151: 0 | BM151: 0 | BN151: 0 | BO151: 0 | BP151: 0 | BQ151: 0 | BR151: 0 | BS151: 0 | BT151: 0 | BU151: 0 | BV151: 0 | BW151: 0 | BX151: 0 | BY151: 0 | BZ151: 0 | CA151: 0 | CB151: 0 | CC151: -127783.1905 | CD151: -1269537.614 | CE151: 0 | CF151: 0 | CG151: 0 | CH151: 0 | CI151: -1397320.804 | CJ151: -1397320.804 | CK151: No | CL151: =IFERROR(#REF!/AW151,0) -> 0 | CM151: TRA | CN151: 65b(ii) TRA A24 | CO151: Arterial
B152: Transport | E152: 67 TRA A24 WK subsidy | F152: Active Mode Corridor Drury Central to GSR | G152: 0 | J152: Transport - Drury West 1 IPA | P152: 0.9160560106 | Q152: 2060 | R152: Yes | AC152: -319339.5101 | AD152: -3172667.063 | AE152: 0 | AF152: 0 | AG152: 0 | AH152: 0 | AI152: 0 | AJ152: 0 | AK152: 0 | AL152: 0 | AM152: 0 | AN152: 0 | AO152: 0 | AP152: 0 | AQ152: 0 | AR152: 0 | AS152: 0 | AT152: 0 | AU152: 0 | AV152: 0 | AW152: -3492006.573 | AX152: 0 | AY152: 0 | AZ152: 0 | BB152: =IFERROR(VLOOKUP(J152,Funding_area_table!C:F,2,FALSE),"CHECK") -> TRA A24 | BC152: -293132.9629 | BE152: 0 | BF152: 0 | BG152: 0 | BH152: 0 | BI152: 0 | BJ152: 0 | BK152: 0 | BL152: 0 | BM152: 0 | BN152: 0 | BO152: -292532.8776 | BP152: -2906340.733 | BQ152: 0 | BR152: 0 | BS152: 0 | BT152: 0 | BU152: 0 | BV152: 0 | BW152: 0 | BX152: 0 | BY152: 0 | BZ152: 0 | CA152: 0 | CB152: 0 | CC152: 0 | CD152: 0 | CE152: 0 | CF152: 0 | CG152: 0 | CH152: 0 | CI152: -3198873.61 | CJ152: -3198873.61 | CK152: No | CL152: =IFERROR(#REF!/AW152,0) -> 0 | CM152: TRA | CN152: 67 TRA A24 | CO152: Arterial
B153: Transport | E153: 68 TRA A24 WK subsidy | F153: Active Mode Corridor GSR to Drury West | G153: 0 | J153: Transport - Drury West 1 IPA | P153: 0.9160560106 | Q153: 2060 | R153: Yes | AC153: 0 | AD153: 0 | AE153: 0 | AF153: -4012582.038 | AG153: -148135.5933 | AH153: -1471740.586 | AI153: 0 | AJ153: 0 | AK153: 0 | AL153: 0 | AM153: 0 | AN153: 0 | AO153: 0 | AP153: 0 | AQ153: 0 | AR153: 0 | AS153: 0 | AT153: 0 | AU153: 0 | AV153: 0 | AW153: -5632458.217 | AX153: 0 | AY153: 0 | AZ153: 0 | BB153: =IFERROR(VLOOKUP(J153,Funding_area_table!C:F,2,FALSE),"CHECK") -> TRA A24 | BC153: -472811.0131 | BE153: 0 | BF153: 0 | BG153: 0 | BH153: 0 | BI153: 0 | BJ153: 0 | BK153: 0 | BL153: 0 | BM153: 0 | BN153: 0 | BO153: 0 | BP153: 0 | BQ153: 0 | BR153: -3675749.894 | BS153: -135700.5006 | BT153: -1348196.81 | BU153: 0 | BV153: 0 | BW153: 0 | BX153: 0 | BY153: 0 | BZ153: 0 | CA153: 0 | CB153: 0 | CC153: 0 | CD153: 0 | CE153: 0 | CF153: 0 | CG153: 0 | CH153: 0 | CI153: -5159647.204 | CJ153: -5159647.204 | CK153: No | CL153: =IFERROR(#REF!/AW153,0) -> 0 | CM153: TRA | CN153: 68 TRA A24 | CO153: Arterial
B154: Transport | E154: 70 TRA A24 WK subsidy | F154: walk/cycle bridges on GSR Road bridge over the rail corridor | G154: New cycle bridge 5m wide, 80m long, approach lengths 270m total for both sides. No property required | J154: Transport - Drury West 1 IPA | P154: 0.9160560106 | Q154: 2060 | R154: Yes | AC154: 0 | AD154: 0 | AE154: 0 | AF154: 0 | AG154: 0 | AH154: 0 | AI154: 0 | AJ154: 0 | AK154: 0 | AL154: 0 | AM154: 0 | AN154: 0 | AO154: 0 | AP154: 0 | AQ154: 0 | AR154: 0 | AS154: 0 | AT154: 0 | AU154: 0 | AV154: 0 | AW154: 0 | AX154: 0 | AY154: 0 | AZ154: 0 | BB154: =IFERROR(VLOOKUP(J154,Funding_area_table!C:F,2,FALSE),"CHECK") -> TRA A24 | BC154: 0 | BE154: 0 | BF154: 0 | BG154: 0 | BH154: 0 | BI154: 0 | BJ154: 0 | BK154: 0 | BL154: 0 | BM154: 0 | BN154: 0 | BO154: 0 | BP154: 0 | BQ154: 0 | BR154: 0 | BS154: 0 | BT154: 0 | BU154: 0 | BV154: 0 | BW154: 0 | BX154: 0 | BY154: 0 | BZ154: 0 | CA154: 0 | CB154: 0 | CC154: 0 | CD154: 0 | CE154: 0 | CF154: 0 | CG154: 0 | CH154: 0 | CI154: 0 | CJ154: 0 | CK154: No | CL154: =IFERROR(#REF!/AW154,0) -> 0 | CM154: TRA | CN154: 70 TRA A24 | CO154: Arterial
B155: Transport | E155: 7 TRA A25 | F155: Fitzgerald Rd upgrades (from Waihoehoe Rd to development boundary) | G155: 2-lane urban - upgrade existing road layout with active modes on both sides | J155: Transport - Drury West 2 IPA | P155: 0.9359051828 | Q155: 2060 | R155: No | AC155: 0 | AD155: 0 | AE155: 0 | AF155: 0 | AG155: 0 | AH155: 0 | AI155: 0 | AJ155: 0 | AK155: 0 | AL155: 0 | AM155: 0 | AN155: 0 | AO155: 0 | AP155: 0 | AQ155: 0 | AR155: 0 | AS155: 0 | AT155: 0 | AU155: 0 | AW155: 0 | AX155: 0 | AY155: 0 | AZ155: 0 | BB155: =IFERROR(VLOOKUP(J155,Funding_area_table!C:F,2,FALSE),"CHECK") -> TRA A25 | BC155: 0 | BE155: 0 | BF155: 0 | BG155: 0 | BH155: 0 | BI155: 0 | BJ155: 0 | BK155: 0 | BL155: 0 | BM155: 0 | BN155: 0 | BO155: 0 | BP155: 0 | BQ155: 0 | BR155: 0 | BS155: 0 | BT155: 0 | BU155: 0 | BV155: 0 | BW155: 0 | BX155: 0 | BY155: 0 | BZ155: 0 | CA155: 0 | CB155: 0 | CC155: 0 | CD155: 0 | CE155: 0 | CF155: 0 | CG155: 0 | CH155: 0 | CI155: 0 | CJ155: 0 | CK155: No | CL155: =IFERROR(#REF!/AW155,0) -> 0 | CM155: TRA | CN155: 7 TRA A25 | CO155: Collector
B156: Transport | E156: 8 TRA A25 | F156: Fielding Rd upgrades ( from Waihoehoe Rd to development boundary ) | G156: 2-lane urban - upgrade existing road layout with active modes on both sides | J156: Transport - Drury West 2 IPA | P156: 0.9359051828 | Q156: 2060 | R156: No | AC156: 0 | AD156: 0 | AE156: 0 | AF156: 0 | AG156: 0 | AH156: 0 | AI156: 0 | AJ156: 0 | AK156: 0 | AL156: 0 | AM156: 0 | AN156: 0 | AO156: 0 | AP156: 0 | AQ156: 0 | AR156: 0 | AS156: 0 | AT156: 0 | AU156: 0 | AW156: 0 | AX156: 0 | AY156: 0 | AZ156: 0 | BB156: =IFERROR(VLOOKUP(J156,Funding_area_table!C:F,2,FALSE),"CHECK") -> TRA A25 | BC156: 0 | BE156: 0 | BF156: 0 | BG156: 0 | BH156: 0 | BI156: 0 | BJ156: 0 | BK156: 0 | BL156: 0 | BM156: 0 | BN156: 0 | BO156: 0 | BP156: 0 | BQ156: 0 | BR156: 0 | BS156: 0 | BT156: 0 | BU156: 0 | BV156: 0 | BW156: 0 | BX156: 0 | BY156: 0 | BZ156: 0 | CA156: 0 | CB156: 0 | CC156: 0 | CD156: 0 | CE156: 0 | CF156: 0 | CG156: 0 | CH156: 0 | CI156: 0 | CJ156: 0 | CK156: No | CL156: =IFERROR(#REF!/AW156,0) -> 0 | CM156: TRA | CN156: 8 TRA A25 | CO156: Collector
B157: Transport | E157: 12 TRA A25 | F157: Interim walking, cycling and bus connections within Drury Centre (includes Bremner/Norrie/Firth Intersection upgrades, active mode on Norrie) -overlap with project 36 and 46 | G157: Intersection improvements on Bremner-Firth Rd, Norrie-Firth Rd, GSR-Firth Rd, Active mode facilities on both sides of Firth & Norrie Rd | J157: Transport - Drury West 2 IPA | P157: 0.9359051828 | Q157: 2060 | R157: No | AC157: 0 | AD157: 0 | AE157: 0 | AF157: 0 | AG157: 0 | AH157: 0 | AI157: 0 | AJ157: 0 | AK157: 0 | AL157: 0 | AM157: 0 | AN157: 0 | AO157: 0 | AP157: 0 | AQ157: 0 | AR157: 0 | AS157: 0 | AT157: 0 | AU157: 0 | AW157: 0 | AX157: 0 | AY157: 0 | AZ157: 0 | BB157: =IFERROR(VLOOKUP(J157,Funding_area_table!C:F,2,FALSE),"CHECK") -> TRA A25 | BC157: 0 | BE157: 0 | BF157: 0 | BG157: 0 | BH157: 0 | BI157: 0 | BJ157: 0 | BK157: 0 | BL157: 0 | BM157: 0 | BN157: 0 | BO157: 0 | BP157: 0 | BQ157: 0 | BR157: 0 | BS157: 0 | BT157: 0 | BU157: 0 | BV157: 0 | BW157: 0 | BX157: 0 | BY157: 0 | BZ157: 0 | CA157: 0 | CB157: 0 | CC157: 0 | CD157: 0 | CE157: 0 | CF157: 0 | CG157: 0 | CH157: 0 | CI157: 0 | CJ157: 0 | CK157: No | CL157: =IFERROR(#REF!/AW157,0) -> 0 | CM157: TRA | CN157: 12 TRA A25 | CO157: Collector
B158: Transport | E158: 14a TRA A25 | F158: Western end of Brookefield Road Extension tie in with Quarry Rd | G158: 2-lane urban (New Road connection to Quarry Road with active modes on both sides + intersection improvements) | J158: Transport - Drury West 2 IPA | P158: 0.9359051828 | Q158: 2060 | R158: No | AC158: 0 | AD158: 640100.5183 | AE158: 379786.4737 | AF158: 3773213.143 | AG158: 0 | AH158: 0 | AI158: 0 | AJ158: 0 | AK158: 0 | AL158: 0 | AM158: 0 | AN158: 0 | AO158: 0 | AP158: 0 | AQ158: 0 | AR158: 0 | AS158: 0 | AT158: 0 | AU158: 0 | AW158: 4793100.135 | AX158: 0 | AY158: 0 | AZ158: 0 | BB158: =IFERROR(VLOOKUP(J158,Funding_area_table!C:F,2,FALSE),"CHECK") -> TRA A25 | BC158: 307212.8769 | BE158: 0 | BF158: 0 | BG158: 0 | BH158: 0 | BI158: 0 | BJ158: 0 | BK158: 0 | BL158: 0 | BM158: 0 | BN158: 0 | BO158: 0 | BP158: 599073.3926 | BQ158: 355444.1291 | BR158: 3531369.736 | BS158: 0 | BT158: 0 | BU158: 0 | BV158: 0 | BW158: 0 | BX158: 0 | BY158: 0 | BZ158: 0 | CA158: 0 | CB158: 0 | CC158: 0 | CD158: 0 | CE158: 0 | CF158: 0 | CG158: 0 | CH158: 0 | CI158: 4485887.258 | CJ158: 4485887.258 | CK158: No | CL158: =IFERROR(#REF!/AW158,0) -> 0 | CM158: TRA | CN158: 14a TRA A25 | CO158: Collector
B159: Transport | E159: 14b TRA A25 | F159: Brookefield Road Upgrade | G159: 2-lane urban (upgrade existing road layout with active modes on both sides + intersection improvements) | J159: Transport - Drury West 2 IPA | P159: 0.9359051828 | Q159: 2060 | R159: No | AC159: 34027.09099 | AD159: 338062.2424 | AE159: 0 | AF159: 0 | AG159: 0 | AH159: 0 | AI159: 0 | AJ159: 0 | AK159: 0 | AL159: 0 | AM159: 0 | AN159: 0 | AO159: 0 | AP159: 0 | AQ159: 0 | AR159: 0 | AS159: 0 | AT159: 0 | AU159: 0 | AW159: 372089.3333 | AX159: 0 | AY159: 0 | AZ159: 0 | BB159: =IFERROR(VLOOKUP(J159,Funding_area_table!C:F,2,FALSE),"CHECK") -> TRA A25 | BC159: 23848.99779 | BE159: 0 | BF159: 0 | BG159: 0 | BH159: 0 | BI159: 0 | BJ159: 0 | BK159: 0 | BL159: 0 | BM159: 0 | BN159: 0 | BO159: 31846.13081 | BP159: 316394.2047 | BQ159: 0 | BR159: 0 | BS159: 0 | BT159: 0 | BU159: 0 | BV159: 0 | BW159: 0 | BX159: 0 | BY159: 0 | BZ159: 0 | CA159: 0 | CB159: 0 | CC159: 0 | CD159: 0 | CE159: 0 | CF159: 0 | CG159: 0 | CH159: 0 | CI159: 348240.3355 | CJ159: 348240.3355 | CK159: No | CL159: =IFERROR(#REF!/AW159,0) -> 0 | CM159: TRA | CN159: 14b TRA A25 | CO159: Collector
B160: Transport | E160: 20a TRA A25 | F160: Upgrade Fitzgerald Rd from Brookefield to Cossey Rd for active modes | G160: Active mode upgrades- existing road layout with active modes on both sides + intersection upgrades for active mode crossing | J160: Transport - Drury West 2 IPA | P160: 0.9359051828 | Q160: 2060 | R160: No | AC160: 0 | AD160: 0 | AE160: 0 | AF160: 0 | AG160: 0 | AH160: 0 | AI160: 0 | AJ160: 0 | AK160: 0 | AL160: 0 | AM160: 0 | AN160: 0 | AO160: 0 | AP160: 0 | AQ160: 0 | AR160: 0 | AS160: 0 | AT160: 0 | AU160: 0 | AW160: 0 | AX160: 0 | AY160: 0 | AZ160: 0 | BB160: =IFERROR(VLOOKUP(J160,Funding_area_table!C:F,2,FALSE),"CHECK") -> TRA A25 | BC160: 0 | BE160: 0 | BF160: 0 | BG160: 0 | BH160: 0 | BI160: 0 | BJ160: 0 | BK160: 0 | BL160: 0 | BM160: 0 | BN160: 0 | BO160: 0 | BP160: 0 | BQ160: 0 | BR160: 0 | BS160: 0 | BT160: 0 | BU160: 0 | BV160: 0 | BW160: 0 | BX160: 0 | BY160: 0 | BZ160: 0 | CA160: 0 | CB160: 0 | CC160: 0 | CD160: 0 | CE160: 0 | CF160: 0 | CG160: 0 | CH160: 0 | CI160: 0 | CJ160: 0 | CK160: No | CL160: =IFERROR(#REF!/AW160,0) -> 0 | CM160: TRA | CN160: 20a TRA A25 | CO160: Collector
B161: Transport | E161: 21 TRA A25 | F161: Fielding Rd upgrades for active modes ( from Fitzgerald Rd to development boundary ) | G161: Active mode upgrades- existing road layout with active modes on both sides + intersection upgrades for active mode crossing | J161: Transport - Drury West 2 IPA | P161: 0.9359051828 | Q161: 2060 | R161: No | AC161: 0 | AD161: 0 | AE161: 0 | AF161: 0 | AG161: 0 | AH161: 0 | AI161: 0 | AJ161: 0 | AK161: 0 | AL161: 0 | AM161: 0 | AN161: 0 | AO161: 0 | AP161: 0 | AQ161: 0 | AR161: 0 | AS161: 0 | AT161: 0 | AU161: 0 | AW161: 0 | AX161: 0 | AY161: 0 | AZ161: 0 | BB161: =IFERROR(VLOOKUP(J161,Funding_area_table!C:F,2,FALSE),"CHECK") -> TRA A25 | BC161: 0 | BE161: 0 | BF161: 0 | BG161: 0 | BH161: 0 | BI161: 0 | BJ161: 0 | BK161: 0 | BL161: 0 | BM161: 0 | BN161: 0 | BO161: 0 | BP161: 0 | BQ161: 0 | BR161: 0 | BS161: 0 | BT161: 0 | BU161: 0 | BV161: 0 | BW161: 0 | BX161: 0 | BY161: 0 | BZ161: 0 | CA161: 0 | CB161: 0 | CC161: 0 | CD161: 0 | CE161: 0 | CF161: 0 | CG161: 0 | CH161: 0 | CI161: 0 | CJ161: 0 | CK161: No | CL161: =IFERROR(#REF!/AW161,0) -> 0 | CM161: TRA | CN161: 21 TRA A25 | CO161: Collector
B162: Transport | E162: 22 TRA A25 | F162: Upgrade Intersection at Quarry/ GSR | G162: Upgrade intersection with active modes facilities(TDM) | J162: Transport - Drury West 2 IPA | P162: 0.9359051828 | Q162: 2060 | R162: No | AC162: 367048.9106 | AD162: 3646664.294 | AE162: 0 | AF162: 0 | AG162: 0 | AH162: 0 | AI162: 0 | AJ162: 0 | AK162: 0 | AL162: 0 | AM162: 0 | AN162: 0 | AO162: 0 | AP162: 0 | AQ162: 0 | AR162: 0 | AS162: 0 | AT162: 0 | AU162: 0 | AW162: 4013713.205 | AX162: 0 | AY162: 0 | AZ162: 0 | BB162: =IFERROR(VLOOKUP(J162,Funding_area_table!C:F,2,FALSE),"CHECK") -> TRA A25 | BC162: 257258.2141 | BE162: 0 | BF162: 0 | BG162: 0 | BH162: 0 | BI162: 0 | BJ162: 0 | BK162: 0 | BL162: 0 | BM162: 0 | BN162: 0 | BO162: 343522.9777 | BP162: 3412932.013 | BQ162: 0 | BR162: 0 | BS162: 0 | BT162: 0 | BU162: 0 | BV162: 0 | BW162: 0 | BX162: 0 | BY162: 0 | BZ162: 0 | CA162: 0 | CB162: 0 | CC162: 0 | CD162: 0 | CE162: 0 | CF162: 0 | CG162: 0 | CH162: 0 | CI162: 3756454.991 | CJ162: 3756454.991 | CK162: No | CL162: =IFERROR(#REF!/AW162,0) -> 0 | CM162: TRA | CN162: 22 TRA A25 | CO162: Collector
B163: Transport | E163: 25 TRA A25 | F163: Upgrades on Drury Hills from Waihoehoe Rd to Macwhinney Dr | G163: 2-lane urban- upgrade existing road layout to 2-lane urban with active modes on both sides | J163: Transport - Drury West 2 IPA | P163: 0.9359051828 | Q163: 2060 | R163: No | AC163: 0 | AD163: 0 | AE163: 0 | AF163: 0 | AG163: 0 | AH163: 0 | AI163: 0 | AJ163: 0 | AK163: 0 | AL163: 0 | AM163: 0 | AN163: 0 | AO163: 0 | AP163: 0 | AQ163: 0 | AR163: 0 | AS163: 0 | AT163: 0 | AU163: 0 | AW163: 0 | AX163: 0 | AY163: 0 | AZ163: 0 | BB163: =IFERROR(VLOOKUP(J163,Funding_area_table!C:F,2,FALSE),"CHECK") -> TRA A25 | BC163: 0 | BE163: 0 | BF163: 0 | BG163: 0 | BH163: 0 | BI163: 0 | BJ163: 0 | BK163: 0 | BL163: 0 | BM163: 0 | BN163: 0 | BO163: 0 | BP163: 0 | BQ163: 0 | BR163: 0 | BS163: 0 | BT163: 0 | BU163: 0 | BV163: 0 | BW163: 0 | BX163: 0 | BY163: 0 | BZ163: 0 | CA163: 0 | CB163: 0 | CC163: 0 | CD163: 0 | CE163: 0 | CF163: 0 | CG163: 0 | CH163: 0 | CI163: 0 | CJ163: 0 | CK163: No | CL163: =IFERROR(#REF!/AW163,0) -> 0 | CM163: TRA | CN163: 25 TRA A25 | CO163: Collector
B164: Transport | E164: 27a TRA A25 | F164: Active mode facilities from Drury hills and Fitzgerald to Quarry Rd (2 links and intersections) | G164: Active mode upgrades- existing road layout with active modes on both sides + intersection upgrades for active mode crossing | J164: Transport - Drury West 2 IPA | P164: 0.9359051828 | Q164: 2060 | R164: No | AC164: 0 | AD164: 0 | AE164: 0 | AF164: 0 | AG164: 0 | AH164: 0 | AI164: 0 | AJ164: 0 | AK164: 0 | AL164: 0 | AM164: 0 | AN164: 0 | AO164: 0 | AP164: 0 | AQ164: 0 | AR164: 0 | AS164: 0 | AT164: 0 | AU164: 0 | AW164: 0 | AX164: 0 | AY164: 0 | AZ164: 0 | BB164: =IFERROR(VLOOKUP(J164,Funding_area_table!C:F,2,FALSE),"CHECK") -> TRA A25 | BC164: 0 | BE164: 0 | BF164: 0 | BG164: 0 | BH164: 0 | BI164: 0 | BJ164: 0 | BK164: 0 | BL164: 0 | BM164: 0 | BN164: 0 | BO164: 0 | BP164: 0 | BQ164: 0 | BR164: 0 | BS164: 0 | BT164: 0 | BU164: 0 | BV164: 0 | BW164: 0 | BX164: 0 | BY164: 0 | BZ164: 0 | CA164: 0 | CB164: 0 | CC164: 0 | CD164: 0 | CE164: 0 | CF164: 0 | CG164: 0 | CH164: 0 | CI164: 0 | CJ164: 0 | CK164: No | CL164: =IFERROR(#REF!/AW164,0) -> 0 | CM164: TRA | CN164: 27a TRA A25 | CO164: Collector
B165: Transport | E165: 28a TRA A25 | F165: Northern Section of new collector in N-S direction parallel to Fitzgerald Rd | G165: 2-lane collector to connect with Drury Central Station, including bridge over streamM) | J165: Transport - Drury West 2 IPA | P165: 0.9359051828 | Q165: 2060 | R165: No | AC165: 0 | AD165: 0 | AE165: 0 | AF165: 0 | AG165: 0 | AH165: 0 | AI165: 0 | AJ165: 0 | AK165: 0 | AL165: 0 | AM165: 0 | AN165: 0 | AO165: 0 | AP165: 0 | AQ165: 0 | AR165: 0 | AS165: 0 | AT165: 0 | AU165: 0 | AW165: 0 | AX165: 0 | AY165: 0 | AZ165: 0 | BB165: =IFERROR(VLOOKUP(J165,Funding_area_table!C:F,2,FALSE),"CHECK") -> TRA A25 | BC165: 0 | BE165: 0 | BF165: 0 | BG165: 0 | BH165: 0 | BI165: 0 | BJ165: 0 | BK165: 0 | BL165: 0 | BM165: 0 | BN165: 0 | BO165: 0 | BP165: 0 | BQ165: 0 | BR165: 0 | BS165: 0 | BT165: 0 | BU165: 0 | BV165: 0 | BW165: 0 | BX165: 0 | BY165: 0 | BZ165: 0 | CA165: 0 | CB165: 0 | CC165: 0 | CD165: 0 | CE165: 0 | CF165: 0 | CG165: 0 | CH165: 0 | CI165: 0 | CJ165: 0 | CK165: No | CL165: =IFERROR(#REF!/AW165,0) -> 0 | CM165: TRA | CN165: 28a TRA A25 | CO165: Collector
B166: Transport | E166: 31 TRA A25 | F166: Upgrades on Cossey Rd between Fitzgerald & Waihoehoe Rd | G166: 2-lane urban - upgrade existing roadwith active modes on both sides / Mill Road design ? | J166: Transport - Drury West 2 IPA | P166: 0.9359051828 | Q166: 2060 | R166: No | AC166: 0 | AD166: 0 | AE166: 0 | AF166: 0 | AG166: 0 | AH166: 0 | AI166: 0 | AJ166: 0 | AK166: 0 | AL166: 0 | AM166: 0 | AN166: 0 | AO166: 0 | AP166: 0 | AQ166: 0 | AR166: 0 | AS166: 0 | AT166: 0 | AU166: 0 | AW166: 0 | AX166: 0 | AY166: 0 | AZ166: 0 | BB166: =IFERROR(VLOOKUP(J166,Funding_area_table!C:F,2,FALSE),"CHECK") -> TRA A25 | BC166: 0 | BE166: 0 | BF166: 0 | BG166: 0 | BH166: 0 | BI166: 0 | BJ166: 0 | BK166: 0 | BL166: 0 | BM166: 0 | BN166: 0 | BO166: 0 | BP166: 0 | BQ166: 0 | BR166: 0 | BS166: 0 | BT166: 0 | BU166: 0 | BV166: 0 | BW166: 0 | BX166: 0 | BY166: 0 | BZ166: 0 | CA166: 0 | CB166: 0 | CC166: 0 | CD166: 0 | CE166: 0 | CF166: 0 | CG166: 0 | CH166: 0 | CI166: 0 | CJ166: 0 | CK166: No | CL166: =IFERROR(#REF!/AW166,0) -> 0 | CM166: TRA | CN166: 31 TRA A25 | CO166: Collector
B167: Transport | E167: 33 TRA A25 | F167: Upgrade Fitzgerald Rd from project 7 to Brookefield Rd | G167: 2-lane urban- upgrade existing road layout to 2-lane urban with active modes on both sides (TDM ) | J167: Transport - Drury West 2 IPA | P167: 0.9359051828 | Q167: 2060 | R167: No | AC167: 0 | AD167: 0 | AE167: 0 | AF167: 0 | AG167: 0 | AH167: 0 | AI167: 0 | AJ167: 0 | AK167: 0 | AL167: 0 | AM167: 0 | AN167: 0 | AO167: 0 | AP167: 0 | AQ167: 0 | AR167: 0 | AS167: 0 | AT167: 0 | AU167: 0 | AW167: 0 | AX167: 0 | AY167: 0 | AZ167: 0 | BB167: =IFERROR(VLOOKUP(J167,Funding_area_table!C:F,2,FALSE),"CHECK") -> TRA A25 | BC167: 0 | BE167: 0 | BF167: 0 | BG167: 0 | BH167: 0 | BI167: 0 | BJ167: 0 | BK167: 0 | BL167: 0 | BM167: 0 | BN167: 0 | BO167: 0 | BP167: 0 | BQ167: 0 | BR167: 0 | BS167: 0 | BT167: 0 | BU167: 0 | BV167: 0 | BW167: 0 | BX167: 0 | BY167: 0 | BZ167: 0 | CA167: 0 | CB167: 0 | CC167: 0 | CD167: 0 | CE167: 0 | CF167: 0 | CG167: 0 | CH167: 0 | CI167: 0 | CJ167: 0 | CK167: No | CL167: =IFERROR(#REF!/AW167,0) -> 0 | CM167: TRA | CN167: 33 TRA A25 | CO167: Collector
B168: Transport | E168: 55a TRA A25 | F168: New E-W collector Jesmond Rd to Burberry Rd | G168: 2-lane urban- new collector with active mode on both sides + intersection improvements (TDM) | J168: Transport - Drury West 2 IPA | P168: 0.9359051828 | Q168: 2060 | R168: No | AC168: 0 | AD168: 0 | AE168: 0 | AF168: 0 | AG168: 0 | AH168: 0 | AI168: 0 | AJ168: 0 | AK168: 0 | AL168: 0 | AM168: 0 | AN168: 0 | AO168: 0 | AP168: 0 | AQ168: 0 | AR168: 0 | AS168: 0 | AT168: 0 | AU168: 0 | AW168: 0 | AX168: 0 | AY168: 0 | AZ168: 0 | BB168: =IFERROR(VLOOKUP(J168,Funding_area_table!C:F,2,FALSE),"CHECK") -> TRA A25 | BC168: 0 | BE168: 0 | BF168: 0 | BG168: 0 | BH168: 0 | BI168: 0 | BJ168: 0 | BK168: 0 | BL168: 0 | BM168: 0 | BN168: 0 | BO168: 0 | BP168: 0 | BQ168: 0 | BR168: 0 | BS168: 0 | BT168: 0 | BU168: 0 | BV168: 0 | BW168: 0 | BX168: 0 | BY168: 0 | BZ168: 0 | CA168: 0 | CB168: 0 | CC168: 0 | CD168: 0 | CE168: 0 | CF168: 0 | CG168: 0 | CH168: 0 | CI168: 0 | CJ168: 0 | CK168: No | CL168: =IFERROR(#REF!/AW168,0) -> 0 | CM168: TRA | CN168: 55a TRA A25 | CO168: Collector
B169: Transport | E169: 58 TRA A25 | F169: Oira Rd upgrades from SH22 to proposed east-west collector | G169: 2-lane urban- upgrade existing road layout with active modes on both sides + intersection improvements (TDM) | J169: Transport - Drury West 2 IPA | P169: 0.9359051828 | Q169: 2060 | R169: No | AC169: 0 | AD169: 0 | AE169: 0 | AF169: 0 | AG169: 0 | AH169: 0 | AI169: 0 | AJ169: 0 | AK169: 0 | AL169: 0 | AM169: 0 | AN169: 0 | AO169: 0 | AP169: 0 | AQ169: 0 | AR169: 0 | AS169: 0 | AT169: 0 | AU169: 0 | AW169: 0 | AX169: 0 | AY169: 0 | AZ169: 0 | BB169: =IFERROR(VLOOKUP(J169,Funding_area_table!C:F,2,FALSE),"CHECK") -> TRA A25 | BC169: 0 | BE169: 0 | BF169: 0 | BG169: 0 | BH169: 0 | BI169: 0 | BJ169: 0 | BK169: 0 | BL169: 0 | BM169: 0 | BN169: 0 | BO169: 0 | BP169: 0 | BQ169: 0 | BR169: 0 | BS169: 0 | BT169: 0 | BU169: 0 | BV169: 0 | BW169: 0 | BX169: 0 | BY169: 0 | BZ169: 0 | CA169: 0 | CB169: 0 | CC169: 0 | CD169: 0 | CE169: 0 | CF169: 0 | CG169: 0 | CH169: 0 | CI169: 0 | CJ169: 0 | CK169: No | CL169: =IFERROR(#REF!/AW169,0) -> 0 | CM169: TRA | CN169: 58 TRA A25 | CO169: Collector
B170: Transport | E170: 59 TRA A25 | F170: New Intersection on Jesmond Rd/collector (PC61) | G170: 2-lane intersection (new intersection + active mode crossings) | J170: Transport - Drury West 2 IPA | P170: 0.9359051828 | Q170: 2060 | R170: No | AC170: 0 | AD170: 0 | AE170: 0 | AF170: 0 | AG170: 0 | AH170: 0 | AI170: 0 | AJ170: 0 | AK170: 0 | AL170: 0 | AM170: 0 | AN170: 0 | AO170: 0 | AP170: 0 | AQ170: 0 | AR170: 0 | AS170: 0 | AT170: 0 | AU170: 0 | AW170: 0 | AX170: 0 | AY170: 0 | AZ170: 0 | BB170: =IFERROR(VLOOKUP(J170,Funding_area_table!C:F,2,FALSE),"CHECK") -> TRA A25 | BC170: 0 | BE170: 0 | BF170: 0 | BG170: 0 | BH170: 0 | BI170: 0 | BJ170: 0 | BK170: 0 | BL170: 0 | BM170: 0 | BN170: 0 | BO170: 0 | BP170: 0 | BQ170: 0 | BR170: 0 | BS170: 0 | BT170: 0 | BU170: 0 | BV170: 0 | BW170: 0 | BX170: 0 | BY170: 0 | BZ170: 0 | CA170: 0 | CB170: 0 | CC170: 0 | CD170: 0 | CE170: 0 | CF170: 0 | CG170: 0 | CH170: 0 | CI170: 0 | CJ170: 0 | CK170: No | CL170: =IFERROR(#REF!/AW170,0) -> 0 | CM170: TRA | CN170: 59 TRA A25 | CO170: Collector
B171: Transport | E171: 69 TRA A25 | F171: walk/cycle bridges on Quarry Road bridge (oiver SH1) | G171: New cycle bridge 5m wide, 90m long, approach lengths 200m total for both sides. No property required | J171: Transport - Drury West 2 IPA | P171: 0.9359051828 | Q171: 2060 | R171: No | AC171: 0 | AD171: 0 | AE171: 117099.72 | AF171: 1163396.363 | AG171: 0 | AH171: 0 | AI171: 0 | AJ171: 0 | AK171: 0 | AL171: 0 | AM171: 0 | AN171: 0 | AO171: 0 | AP171: 0 | AQ171: 0 | AR171: 0 | AS171: 0 | AT171: 0 | AU171: 0 | AW171: 1280496.083 | AX171: 0 | AY171: 0 | AZ171: 0 | BB171: =IFERROR(VLOOKUP(J171,Funding_area_table!C:F,2,FALSE),"CHECK") -> TRA A25 | BC171: 82073.16236 | BE171: 0 | BF171: 0 | BG171: 0 | BH171: 0 | BI171: 0 | BJ171: 0 | BK171: 0 | BL171: 0 | BM171: 0 | BN171: 0 | BO171: 0 | BP171: 0 | BQ171: 109594.2348 | BR171: 1088828.686 | BS171: 0 | BT171: 0 | BU171: 0 | BV171: 0 | BW171: 0 | BX171: 0 | BY171: 0 | BZ171: 0 | CA171: 0 | CB171: 0 | CC171: 0 | CD171: 0 | CE171: 0 | CF171: 0 | CG171: 0 | CH171: 0 | CI171: 1198422.921 | CJ171: 1198422.921 | CK171: No | CL171: =IFERROR(#REF!/AW171,0) -> 0 | CM171: TRA | CN171: 69 TRA A25 | CO171: Collector
B172: Transport | E172: 1b TRA A25 | F172: GSR improvements - Waihoehoe Rd to Drury Interchange | G172: 4-lane urban- existing road layout with active modes on both sides + intersection improvements (TDM) | J172: Transport - Drury West 2 IPA | P172: 0.9359051828 | Q172: 2060 | R172: Yes | AC172: 0 | AD172: 0 | AE172: 0 | AF172: 0 | AG172: 0 | AH172: 0 | AI172: 0 | AJ172: 0 | AK172: 0 | AL172: 0 | AM172: 0 | AN172: 0 | AO172: 0 | AP172: 0 | AQ172: 0 | AR172: 0 | AS172: 0 | AT172: 0 | AU172: 0 | AW172: 0 | AX172: 0 | AY172: 0 | AZ172: 0 | BB172: =IFERROR(VLOOKUP(J172,Funding_area_table!C:F,2,FALSE),"CHECK") -> TRA A25 | BC172: 0 | BE172: 0 | BF172: 0 | BG172: 0 | BH172: 0 | BI172: 0 | BJ172: 0 | BK172: 0 | BL172: 0 | BM172: 0 | BN172: 0 | BO172: 0 | BP172: 0 | BQ172: 0 | BR172: 0 | BS172: 0 | BT172: 0 | BU172: 0 | BV172: 0 | BW172: 0 | BX172: 0 | BY172: 0 | BZ172: 0 | CA172: 0 | CB172: 0 | CC172: 0 | CD172: 0 | CE172: 0 | CF172: 0 | CG172: 0 | CH172: 0 | CI172: 0 | CJ172: 0 | CK172: No | CL172: =IFERROR(#REF!/AW172,0) -> 0 | CM172: TRA | CN172: 1b TRA A25 | CO172: Arterial
B173: Transport | E173: 2b TRA A25 | F173: GSR improvements - From Drury School to Waihoehoe Rd | G173: 4-lane urban- existing road layout with active modes on both sides + intersection improvements (TDM) | J173: Transport - Drury West 2 IPA | P173: 0.9359051828 | Q173: 2060 | R173: Yes | AC173: 0 | AD173: 0 | AE173: 0 | AF173: 0 | AG173: 0 | AH173: 0 | AI173: 1668482.544 | AJ173: 384943.9483 | AK173: 3824453.121 | AL173: 0 | AM173: 0 | AN173: 0 | AO173: 0 | AP173: 0 | AQ173: 0 | AR173: 0 | AS173: 0 | AT173: 0 | AU173: 0 | AW173: 5877879.613 | AX173: 0 | AY173: 0 | AZ173: 0 | BB173: =IFERROR(VLOOKUP(J173,Funding_area_table!C:F,2,FALSE),"CHECK") -> TRA A25 | BC173: 376741.6192 | BE173: 0 | BF173: 0 | BG173: 0 | BH173: 0 | BI173: 0 | BJ173: 0 | BK173: 0 | BL173: 0 | BM173: 0 | BN173: 0 | BO173: 0 | BP173: 0 | BQ173: 0 | BR173: 0 | BS173: 0 | BT173: 0 | BU173: 1561541.46 | BV173: 360271.0363 | BW173: 3579325.497 | BX173: 0 | BY173: 0 | BZ173: 0 | CA173: 0 | CB173: 0 | CC173: 0 | CD173: 0 | CE173: 0 | CF173: 0 | CG173: 0 | CH173: 0 | CI173: 5501137.994 | CJ173: 5501137.994 | CK173: No | CL173: =IFERROR(#REF!/AW173,0) -> 0 | CM173: TRA | CN173: 2b TRA A25 | CO173: Arterial
B174: Transport | E174: 4b TRA A25 | F174: Waihoehoe Rd East upgrades- from Fitzgerald Rd to before Cossey Rd (development boundary) | G174: Expand to 24m cross section | J174: Transport - Drury West 2 IPA | P174: 0.9359051828 | Q174: 2060 | R174: Yes | AC174: 0 | AD174: 0 | AE174: 0 | AF174: 0 | AG174: 0 | AH174: 0 | AI174: 0 | AJ174: 0 | AK174: 0 | AL174: 0 | AM174: 0 | AN174: 0 | AO174: 0 | AP174: 0 | AQ174: 0 | AR174: 0 | AS174: 0 | AT174: 0 | AU174: 0 | AW174: 0 | AX174: 0 | AY174: 0 | AZ174: 0 | BB174: =IFERROR(VLOOKUP(J174,Funding_area_table!C:F,2,FALSE),"CHECK") -> TRA A25 | BC174: 0 | BE174: 0 | BF174: 0 | BG174: 0 | BH174: 0 | BI174: 0 | BJ174: 0 | BK174: 0 | BL174: 0 | BM174: 0 | BN174: 0 | BO174: 0 | BP174: 0 | BQ174: 0 | BR174: 0 | BS174: 0 | BT174: 0 | BU174: 0 | BV174: 0 | BW174: 0 | BX174: 0 | BY174: 0 | BZ174: 0 | CA174: 0 | CB174: 0 | CC174: 0 | CD174: 0 | CE174: 0 | CF174: 0 | CG174: 0 | CH174: 0 | CI174: 0 | CJ174: 0 | CK174: No | CL174: =IFERROR(#REF!/AW174,0) -> 0 | CM174: TRA | CN174: 4b TRA A25 | CO174: Arterial
B175: Transport | E175: 9b TRA A25 | F175: Upgrade in Norrie Rd/GSR/Waihoehoe intersection | G175: multi-lane signalised intersection with active mode crossings, SGA design | J175: Transport - Drury West 2 IPA | P175: 0.9359051828 | Q175: 2060 | R175: Yes | AC175: 0 | AD175: 0 | AE175: 0 | AF175: 0 | AG175: 0 | AH175: 0 | AI175: 0 | AJ175: 0 | AK175: 0 | AL175: 0 | AM175: 0 | AN175: 0 | AO175: 0 | AP175: 0 | AQ175: 0 | AR175: 0 | AS175: 0 | AT175: 0 | AU175: 0 | AW175: 0 | AX175: 0 | AY175: 0 | AZ175: 0 | BB175: =IFERROR(VLOOKUP(J175,Funding_area_table!C:F,2,FALSE),"CHECK") -> TRA A25 | BC175: 0 | BE175: 0 | BF175: 0 | BG175: 0 | BH175: 0 | BI175: 0 | BJ175: 0 | BK175: 0 | BL175: 0 | BM175: 0 | BN175: 0 | BO175: 0 | BP175: 0 | BQ175: 0 | BR175: 0 | BS175: 0 | BT175: 0 | BU175: 0 | BV175: 0 | BW175: 0 | BX175: 0 | BY175: 0 | BZ175: 0 | CA175: 0 | CB175: 0 | CC175: 0 | CD175: 0 | CE175: 0 | CF175: 0 | CG175: 0 | CH175: 0 | CI175: 0 | CJ175: 0 | CK175: No | CL175: =IFERROR(#REF!/AW175,0) -> 0 | CM175: TRA | CN175: 9b TRA A25 | CO175: Arterial
B176: Transport | E176: 10b TRA A25 | F176: New intersection on Waihoehoe Rd/Fitzgerald Rd( including approach cross-sections) | G176: multi-lane roundabout with active mode crossings, SGA design | J176: Transport - Drury West 2 IPA | P176: 0.9359051828 | Q176: 2060 | R176: Yes | AC176: 0 | AD176: 0 | AE176: 0 | AF176: 0 | AG176: 0 | AH176: 0 | AI176: 0 | AJ176: 0 | AK176: 0 | AL176: 0 | AM176: 0 | AN176: 0 | AO176: 0 | AP176: 0 | AQ176: 0 | AR176: 0 | AS176: 0 | AT176: 0 | AU176: 0 | AW176: 0 | AX176: 0 | AY176: 0 | AZ176: 0 | BB176: =IFERROR(VLOOKUP(J176,Funding_area_table!C:F,2,FALSE),"CHECK") -> TRA A25 | BC176: 0 | BE176: 0 | BF176: 0 | BG176: 0 | BH176: 0 | BI176: 0 | BJ176: 0 | BK176: 0 | BL176: 0 | BM176: 0 | BN176: 0 | BO176: 0 | BP176: 0 | BQ176: 0 | BR176: 0 | BS176: 0 | BT176: 0 | BU176: 0 | BV176: 0 | BW176: 0 | BX176: 0 | BY176: 0 | BZ176: 0 | CA176: 0 | CB176: 0 | CC176: 0 | CD176: 0 | CE176: 0 | CF176: 0 | CG176: 0 | CH176: 0 | CI176: 0 | CJ176: 0 | CK176: No | CL176: =IFERROR(#REF!/AW176,0) -> 0 | CM176: TRA | CN176: 10b TRA A25 | CO176: Arterial
B177: Transport | E177: 13b TRA A25 | F177: N-S Opaheke Arterial across development (upto Waihoihoi Stream) | G177: 4-lane urban- upgrade 2-lane arterial with SGA design + intersection improvements (TDM) | J177: Transport - Drury West 2 IPA | P177: 0.9359051828 | Q177: 2060 | R177: Yes | AC177: 0 | AD177: 0 | AE177: 0 | AF177: 0 | AG177: 0 | AH177: 0 | AI177: 0 | AJ177: 0 | AK177: 0 | AL177: 0 | AM177: 0 | AN177: 0 | AO177: 0 | AP177: 0 | AQ177: 0 | AR177: 0 | AS177: 0 | AT177: 109861.6523 | AU177: 1091485.503 | AW177: 1201347.156 | AX177: 0 | AY177: 0 | AZ177: 0 | BB177: =IFERROR(VLOOKUP(J177,Funding_area_table!C:F,2,FALSE),"CHECK") -> TRA A25 | BC177: 77000.1263 | BE177: 0 | BF177: 0 | BG177: 0 | BH177: 0 | BI177: 0 | BJ177: 0 | BK177: 0 | BL177: 0 | BM177: 0 | BN177: 0 | BO177: 0 | BP177: 0 | BQ177: 0 | BR177: 0 | BS177: 0 | BT177: 0 | BU177: 0 | BV177: 0 | BW177: 0 | BX177: 0 | BY177: 0 | BZ177: 0 | CA177: 0 | CB177: 0 | CC177: 0 | CD177: 0 | CE177: 0 | CF177: 102820.0898 | CG177: 1021526.939 | CH177: 0 | CI177: 1124347.029 | CJ177: 1124347.029 | CK177: No | CL177: =IFERROR(#REF!/AW177,0) -> 0 | CM177: TRA | CN177: 13b TRA A25 | CO177: Arterial
B178: Transport | E178: 16b TRA A25 | F178: Widen Bremner Road Bridge ove SH1 to 4-lanes | G178: 4-lane urban- upgrade 2-lane urban with active modes on both sides (SGA design) | J178: Transport - Drury West 2 IPA | P178: 0.9359051828 | Q178: 2060 | R178: Yes | AC178: 0 | AD178: 0 | AE178: 0 | AF178: 0 | AG178: 0 | AH178: 0 | AI178: 0 | AJ178: 0 | AK178: 0 | AL178: 0 | AM178: 0 | AN178: 0 | AO178: 0 | AP178: 0 | AQ178: 0 | AR178: 0 | AS178: 0 | AT178: 524104.0712 | AU178: 5207021.593 | AW178: 5731125.664 | AX178: 0 | AY178: 0 | AZ178: 0 | BB178: =IFERROR(VLOOKUP(J178,Funding_area_table!C:F,2,FALSE),"CHECK") -> TRA A25 | BC178: 367335.4517 | BE178: 0 | BF178: 0 | BG178: 0 | BH178: 0 | BI178: 0 | BJ178: 0 | BK178: 0 | BL178: 0 | BM178: 0 | BN178: 0 | BO178: 0 | BP178: 0 | BQ178: 0 | BR178: 0 | BS178: 0 | BT178: 0 | BU178: 0 | BV178: 0 | BW178: 0 | BX178: 0 | BY178: 0 | BZ178: 0 | CA178: 0 | CB178: 0 | CC178: 0 | CD178: 0 | CE178: 0 | CF178: 490511.7166 | CG178: 4873278.496 | CH178: 0 | CI178: 5363790.212 | CJ178: 5363790.212 | CK178: No | CL178: =IFERROR(#REF!/AW178,0) -> 0 | CM178: TRA | CN178: 16b TRA A25 | CO178: Arterial
B179: Transport | E179: 23b TRA A25 | F179: Waihoehoe Rd West upgrades- between GSR & Kath Henry Lane | G179: Final 4-lane - following interim option, upgrade Road corridor to provide four lanes with additional turning lanes at intersections where required (as indicated in SGA Design | J179: Transport - Drury West 2 IPA | P179: 0.9359051828 | Q179: 2060 | R179: Yes | AC179: 0 | AD179: 0 | AE179: 0 | AF179: 0 | AG179: 0 | AH179: 0 | AI179: 0 | AJ179: 0 | AK179: 0 | AL179: 0 | AM179: 0 | AN179: 0 | AO179: 0 | AP179: 0 | AQ179: 0 | AR179: 0 | AS179: 0 | AT179: 0 | AU179: 0 | AW179: 0 | AX179: 0 | AY179: 0 | AZ179: 0 | BB179: =IFERROR(VLOOKUP(J179,Funding_area_table!C:F,2,FALSE),"CHECK") -> TRA A25 | BC179: 0 | BE179: 0 | BF179: 0 | BG179: 0 | BH179: 0 | BI179: 0 | BJ179: 0 | BK179: 0 | BL179: 0 | BM179: 0 | BN179: 0 | BO179: 0 | BP179: 0 | BQ179: 0 | BR179: 0 | BS179: 0 | BT179: 0 | BU179: 0 | BV179: 0 | BW179: 0 | BX179: 0 | BY179: 0 | BZ179: 0 | CA179: 0 | CB179: 0 | CC179: 0 | CD179: 0 | CE179: 0 | CF179: 0 | CG179: 0 | CH179: 0 | CI179: 0 | CJ179: 0 | CK179: No | CL179: =IFERROR(#REF!/AW179,0) -> 0 | CM179: TRA | CN179: 23b TRA A25 | CO179: Arterial
B180: Transport | E180: 24 TRA A25 | F180: Upgrades on Waihoehoe Rd east- from project 4 to Drury Hills + Drury Hills Intersection | G180: 2-lane urban - upgrade existing road layout with active modes on both sides, 20m cross-section | J180: Transport - Drury West 2 IPA | P180: 0.9359051828 | Q180: 2060 | R180: Yes | AC180: 0 | AD180: 0 | AE180: 0 | AF180: 0 | AG180: 0 | AH180: 0 | AI180: 0 | AJ180: 0 | AK180: 0 | AL180: 0 | AM180: 0 | AN180: 0 | AO180: 0 | AP180: 0 | AQ180: 0 | AR180: 0 | AS180: 0 | AT180: 0 | AU180: 0 | AW180: 0 | AX180: 0 | AY180: 0 | AZ180: 0 | BB180: =IFERROR(VLOOKUP(J180,Funding_area_table!C:F,2,FALSE),"CHECK") -> TRA A25 | BC180: 0 | BE180: 0 | BF180: 0 | BG180: 0 | BH180: 0 | BI180: 0 | BJ180: 0 | BK180: 0 | BL180: 0 | BM180: 0 | BN180: 0 | BO180: 0 | BP180: 0 | BQ180: 0 | BR180: 0 | BS180: 0 | BT180: 0 | BU180: 0 | BV180: 0 | BW180: 0 | BX180: 0 | BY180: 0 | BZ180: 0 | CA180: 0 | CB180: 0 | CC180: 0 | CD180: 0 | CE180: 0 | CF180: 0 | CG180: 0 | CH180: 0 | CI180: 0 | CJ180: 0 | CK180: No | CL180: =IFERROR(#REF!/AW180,0) -> 0 | CM180: TRA | CN180: 24 TRA A25 | CO180: Arterial
B181: Transport | E181: 32 TRA A25 | F181: New Intersection on Cossey Rd/Waihoehoe Rd | G181: Assume 1 simple roundabout intesection | J181: Transport - Drury West 2 IPA | P181: 0.9359051828 | Q181: 2060 | R181: Yes | AC181: 0 | AD181: 0 | AE181: 0 | AF181: 0 | AG181: 0 | AH181: 0 | AI181: 0 | AJ181: 0 | AK181: 0 | AL181: 0 | AM181: 0 | AN181: 0 | AO181: 0 | AP181: 0 | AQ181: 0 | AR181: 0 | AS181: 0 | AT181: 0 | AU181: 0 | AW181: 0 | AX181: 0 | AY181: 0 | AZ181: 0 | BB181: =IFERROR(VLOOKUP(J181,Funding_area_table!C:F,2,FALSE),"CHECK") -> TRA A25 | BC181: 0 | BE181: 0 | BF181: 0 | BG181: 0 | BH181: 0 | BI181: 0 | BJ181: 0 | BK181: 0 | BL181: 0 | BM181: 0 | BN181: 0 | BO181: 0 | BP181: 0 | BQ181: 0 | BR181: 0 | BS181: 0 | BT181: 0 | BU181: 0 | BV181: 0 | BW181: 0 | BX181: 0 | BY181: 0 | BZ181: 0 | CA181: 0 | CB181: 0 | CC181: 0 | CD181: 0 | CE181: 0 | CF181: 0 | CG181: 0 | CH181: 0 | CI181: 0 | CJ181: 0 | CK181: No | CL181: =IFERROR(#REF!/AW181,0) -> 0 | CM181: TRA | CN181: 32 TRA A25 | CO181: Arterial
B182: Transport | E182: 36a TRA A25 | F182: Bremner-Norrie Road east of SH1 up to GSR (overlap with project 12) | G182: 2-lane urban- upgrade existing road layout with active modes on both sides (Under construction) | J182: Transport - Drury West 2 IPA | P182: 0.9359051828 | Q182: 2060 | R182: Yes | AC182: 87993.60213 | AD182: 886726.3377 | AE182: 0 | AF182: 0 | AG182: 0 | AH182: 0 | AI182: 0 | AJ182: 0 | AK182: 0 | AL182: 0 | AM182: 0 | AN182: 0 | AO182: 0 | AP182: 0 | AQ182: 0 | AR182: 0 | AS182: 0 | AT182: 0 | AU182: 0 | AW182: 974719.9399 | AX182: 0 | AY182: 0 | AZ182: 0 | BB182: =IFERROR(VLOOKUP(J182,Funding_area_table!C:F,2,FALSE),"CHECK") -> TRA A25 | BC182: 62474.49635 | BE182: 0 | BF182: 0 | BG182: 0 | BH182: 0 | BI182: 0 | BJ182: 0 | BK182: 0 | BL182: 0 | BM182: 0 | BN182: 0 | BO182: 82353.66829 | BP182: 829891.7752 | BQ182: 0 | BR182: 0 | BS182: 0 | BT182: 0 | BU182: 0 | BV182: 0 | BW182: 0 | BX182: 0 | BY182: 0 | BZ182: 0 | CA182: 0 | CB182: 0 | CC182: 0 | CD182: 0 | CE182: 0 | CF182: 0 | CG182: 0 | CH182: 0 | CI182: 912245.4435 | CJ182: 912245.4435 | CK182: No | CL182: =IFERROR(#REF!/AW182,0) -> 0 | CM182: TRA | CN182: 36a TRA A25 | CO182: Arterial
B183: Transport | E183: 36b TRA A25 | F183: Complete Bremner-Norrie Road connection from SH1 up to GSR excluding Bridge (overlap with project 12) | G183: 4-lane urban- upgrade interim 2-lane urban corridor to a 4-lane corridor with active modes on both sides (SGA design) | J183: Transport - Drury West 2 IPA | P183: 0.9359051828 | Q183: 2060 | R183: Yes | AC183: 0 | AD183: 0 | AE183: 0 | AF183: 0 | AG183: 0 | AH183: 0 | AI183: 0 | AJ183: 0 | AK183: 0 | AL183: 0 | AM183: 0 | AN183: 0 | AO183: 0 | AP183: 0 | AQ183: 0 | AR183: 0 | AS183: 2784047.037 | AT183: 284842.8161 | AU183: 2829939.273 | AW183: 5898829.125 | AX183: 0 | AY183: 0 | AZ183: 0 | BB183: =IFERROR(VLOOKUP(J183,Funding_area_table!C:F,2,FALSE),"CHECK") -> TRA A25 | BC183: 378084.3743 | BE183: 0 | BF183: 0 | BG183: 0 | BH183: 0 | BI183: 0 | BJ183: 0 | BK183: 0 | BL183: 0 | BM183: 0 | BN183: 0 | BO183: 0 | BP183: 0 | BQ183: 0 | BR183: 0 | BS183: 0 | BT183: 0 | BU183: 0 | BV183: 0 | BW183: 0 | BX183: 0 | BY183: 0 | BZ183: 0 | CA183: 0 | CB183: 0 | CC183: 0 | CD183: 0 | CE183: 2605604.051 | CF183: 266585.8679 | CG183: 2648554.832 | CH183: 0 | CI183: 5520744.751 | CJ183: 5520744.751 | CK183: No | CL183: =IFERROR(#REF!/AW183,0) -> 0 | CM183: TRA | CN183: 36b TRA A25 | CO183: Arterial
B184: Transport | E184: 36c TRA A25 | F184: Complete Bremner-Norrie Road connection from SH1 up to GSR - Bridge structure (overlap with project 12) | G184: Upgrade interim 2-lane bridges (3No. to 4 lane bridges with active modes on both sides (SGA design) | J184: Transport - Drury West 2 IPA | P184: 0.9359051828 | Q184: 2060 | R184: Yes | AC184: 0 | AD184: 0 | AE184: 0 | AF184: 0 | AG184: 0 | AH184: 0 | AI184: 0 | AJ184: 0 | AK184: 0 | AL184: 0 | AM184: 0 | AN184: 0 | AO184: 0 | AP184: 0 | AQ184: 0 | AR184: 0 | AS184: 0 | AT184: 299748.8451 | AU184: 2978032.026 | AW184: 3277780.871 | AX184: 0 | AY184: 0 | AZ184: 0 | BB184: =IFERROR(VLOOKUP(J184,Funding_area_table!C:F,2,FALSE),"CHECK") -> TRA A25 | BC184: 210088.7657 | BE184: 0 | BF184: 0 | BG184: 0 | BH184: 0 | BI184: 0 | BJ184: 0 | BK184: 0 | BL184: 0 | BM184: 0 | BN184: 0 | BO184: 0 | BP184: 0 | BQ184: 0 | BR184: 0 | BS184: 0 | BT184: 0 | BU184: 0 | BV184: 0 | BW184: 0 | BX184: 0 | BY184: 0 | BZ184: 0 | CA184: 0 | CB184: 0 | CC184: 0 | CD184: 0 | CE184: 0 | CF184: 280536.4977 | CG184: 2787155.607 | CH184: 0 | CI184: 3067692.105 | CJ184: 3067692.105 | CK184: No | CL184: =IFERROR(#REF!/AW184,0) -> 0 | CM184: TRA | CN184: 36c TRA A25 | CO184: Arterial
B185: Transport | E185: 37a(i) TRA A25 | F185: N-S Opaheke Arterial from development to Ponga Rd | G185: 2-lane urban- new road layout with active modes on both sides (TDM) | J185: Transport - Drury West 2 IPA | P185: 0.9359051828 | Q185: 2060 | R185: Yes | AC185: 0 | AD185: 0 | AE185: 0 | AF185: 0 | AG185: 0 | AH185: 0 | AI185: 0 | AJ185: 0 | AK185: 0 | AL185: 0 | AM185: 3203354.437 | AN185: 87238.81053 | AO185: 1035210.845 | AP185: 0 | AQ185: 0 | AR185: 0 | AS185: 0 | AT185: 0 | AU185: 0 | AW185: 4325804.093 | AX185: 0 | AY185: 0 | AZ185: 0 | BB185: =IFERROR(VLOOKUP(J185,Funding_area_table!C:F,2,FALSE),"CHECK") -> TRA A25 | BC185: 277261.6225 | BE185: 0 | BF185: 0 | BG185: 0 | BH185: 0 | BI185: 0 | BJ185: 0 | BK185: 0 | BL185: 0 | BM185: 0 | BN185: 0 | BO185: 0 | BP185: 0 | BQ185: 0 | BR185: 0 | BS185: 0 | BT185: 0 | BU185: 0 | BV185: 0 | BW185: 0 | BX185: 0 | BY185: 2998036.02 | BZ185: 81647.25492 | CA185: 968859.195 | CB185: 0 | CC185: 0 | CD185: 0 | CE185: 0 | CF185: 0 | CG185: 0 | CH185: 0 | CI185: 4048542.47 | CJ185: 4048542.47 | CK185: No | CL185: =IFERROR(#REF!/AW185,0) -> 0 | CM185: TRA | CN185: 37a(i) TRA A25 | CO185: Arterial
B186: Transport | E186: 37a(ii) TRA A25 | F186: N-S Opaheke Arterial from development to Ponga Rd | G186: 2-lane urban- bridge construction | J186: Transport - Drury West 2 IPA | P186: 0.9359051828 | Q186: 2060 | R186: Yes | AC186: 0 | AD186: 0 | AE186: 0 | AF186: 0 | AG186: 0 | AH186: 0 | AI186: 0 | AJ186: 0 | AK186: 0 | AL186: 0 | AM186: 0 | AN186: 239497.7453 | AO186: 2379431.872 | AP186: 0 | AQ186: 0 | AR186: 0 | AS186: 0 | AT186: 0 | AU186: 0 | AW186: 2618929.617 | AX186: 0 | AY186: 0 | AZ186: 0 | BB186: =IFERROR(VLOOKUP(J186,Funding_area_table!C:F,2,FALSE),"CHECK") -> TRA A25 | BC186: 167859.815 | BE186: 0 | BF186: 0 | BG186: 0 | BH186: 0 | BI186: 0 | BJ186: 0 | BK186: 0 | BL186: 0 | BM186: 0 | BN186: 0 | BO186: 0 | BP186: 0 | BQ186: 0 | BR186: 0 | BS186: 0 | BT186: 0 | BU186: 0 | BV186: 0 | BW186: 0 | BX186: 0 | BY186: 0 | BZ186: 224147.1811 | CA186: 2226922.621 | CB186: 0 | CC186: 0 | CD186: 0 | CE186: 0 | CF186: 0 | CG186: 0 | CH186: 0 | CI186: 2451069.802 | CJ186: 2451069.802 | CK186: No | CL186: =IFERROR(#REF!/AW186,0) -> 0 | CM186: TRA | CN186: 37a(ii) TRA A25 | CO186: Arterial
B187: Transport | E187: 37b(i) TRA A25 | F187: N-S Opaheke Arterial from development to Ponga Rd | G187: 4-lane urban- upgrade 2-lane urban with active modes on both sides (SGA design) | J187: Transport - Drury West 2 IPA | P187: 0.9359051828 | Q187: 2060 | R187: Yes | AC187: 0 | AD187: 0 | AE187: 0 | AF187: 0 | AG187: 0 | AH187: 0 | AI187: 0 | AJ187: 0 | AK187: 0 | AL187: 0 | AM187: 0 | AN187: 0 | AO187: 0 | AP187: 0 | AQ187: 0 | AR187: 0 | AS187: 259194.3614 | AT187: 2575119.544 | AU187: 0 | AW187: 2834313.905 | AX187: 0 | AY187: 0 | AZ187: 0 | BB187: =IFERROR(VLOOKUP(J187,Funding_area_table!C:F,2,FALSE),"CHECK") -> TRA A25 | BC187: 181664.8316 | BE187: 0 | BF187: 0 | BG187: 0 | BH187: 0 | BI187: 0 | BJ187: 0 | BK187: 0 | BL187: 0 | BM187: 0 | BN187: 0 | BO187: 0 | BP187: 0 | BQ187: 0 | BR187: 0 | BS187: 0 | BT187: 0 | BU187: 0 | BV187: 0 | BW187: 0 | BX187: 0 | BY187: 0 | BZ187: 0 | CA187: 0 | CB187: 0 | CC187: 0 | CD187: 0 | CE187: 242581.3462 | CF187: 2410067.728 | CG187: 0 | CH187: 0 | CI187: 2652649.074 | CJ187: 2652649.074 | CK187: No | CL187: =IFERROR(#REF!/AW187,0) -> 0 | CM187: TRA | CN187: 37b(i) TRA A25 | CO187: Arterial
B188: Transport | E188: 37b(ii) TRA A25 | F188: N-S Opaheke Arterial from development to Ponga Rd | G188: 4-lane urban- Bridge Widening | J188: Transport - Drury West 2 IPA | P188: 0.9359051828 | Q188: 2060 | R188: Yes | AC188: 0 | AD188: 0 | AE188: 0 | AF188: 0 | AG188: 0 | AH188: 0 | AI188: 0 | AJ188: 0 | AK188: 0 | AL188: 0 | AM188: 0 | AN188: 0 | AO188: 0 | AP188: 0 | AQ188: 0 | AR188: 0 | AS188: 335332.7051 | AT188: 3331560.91 | AU188: 0 | AW188: 3666893.615 | AX188: 0 | AY188: 0 | AZ188: 0 | BB188: =IFERROR(VLOOKUP(J188,Funding_area_table!C:F,2,FALSE),"CHECK") -> TRA A25 | BC188: 235028.8759 | BE188: 0 | BF188: 0 | BG188: 0 | BH188: 0 | BI188: 0 | BJ188: 0 | BK188: 0 | BL188: 0 | BM188: 0 | BN188: 0 | BO188: 0 | BP188: 0 | BQ188: 0 | BR188: 0 | BS188: 0 | BT188: 0 | BU188: 0 | BV188: 0 | BW188: 0 | BX188: 0 | BY188: 0 | BZ188: 0 | CA188: 0 | CB188: 0 | CC188: 0 | CD188: 0 | CE188: 313839.6167 | CF188: 3118025.122 | CG188: 0 | CH188: 0 | CI188: 3431864.739 | CJ188: 3431864.739 | CK188: No | CL188: =IFERROR(#REF!/AW188,0) -> 0 | CM188: TRA | CN188: 37b(ii) TRA A25 | CO188: Arterial
B189: Transport | E189: 39b TRA A25 | F189: New Bremner Rd arterial from SH1 to Auranga development | G189: 4-lane urban- upgrade 2-lane urban excl bridge | J189: Transport - Drury West 2 IPA | P189: 0.9359051828 | Q189: 2060 | R189: Yes | AC189: 0 | AD189: 0 | AE189: 0 | AF189: 0 | AG189: 0 | AH189: 0 | AI189: 0 | AJ189: 0 | AK189: 0 | AL189: 0 | AM189: 0 | AN189: 0 | AO189: 0 | AP189: 0 | AQ189: 392545.0139 | AR189: 3899970.399 | AS189: 0 | AT189: 0 | AU189: 0 | AW189: 4292515.412 | AX189: 0 | AY189: 0 | AZ189: 0 | BB189: =IFERROR(VLOOKUP(J189,Funding_area_table!C:F,2,FALSE),"CHECK") -> TRA A25 | BC189: 275127.9906 | BE189: 0 | BF189: 0 | BG189: 0 | BH189: 0 | BI189: 0 | BJ189: 0 | BK189: 0 | BL189: 0 | BM189: 0 | BN189: 0 | BO189: 0 | BP189: 0 | BQ189: 0 | BR189: 0 | BS189: 0 | BT189: 0 | BU189: 0 | BV189: 0 | BW189: 0 | BX189: 0 | BY189: 0 | BZ189: 0 | CA189: 0 | CB189: 0 | CC189: 367384.913 | CD189: 3650002.509 | CE189: 0 | CF189: 0 | CG189: 0 | CH189: 0 | CI189: 4017387.422 | CJ189: 4017387.422 | CK189: No | CL189: =IFERROR(#REF!/AW189,0) -> 0 | CM189: TRA | CN189: 39b TRA A25 | CO189: Arterial
B190: Transport | E190: 39c TRA A25 | F190: New Bremner Rd arterial from SH1 to Auranga development | G190: 4-lane urban- upgrade 2-lane bridge widening | J190: Transport - Drury West 2 IPA | P190: 0.9359051828 | Q190: 2060 | R190: Yes | AC190: 0 | AD190: 0 | AE190: 0 | AF190: 0 | AG190: 0 | AH190: 0 | AI190: 0 | AJ190: 0 | AK190: 0 | AL190: 0 | AM190: 0 | AN190: 0 | AO190: 0 | AP190: 0 | AQ190: 273515.2355 | AR190: 2717398.729 | AS190: 0 | AT190: 0 | AU190: 0 | AW190: 2990913.965 | AX190: 0 | AY190: 0 | AZ190: 0 | BB190: =IFERROR(VLOOKUP(J190,Funding_area_table!C:F,2,FALSE),"CHECK") -> TRA A25 | BC190: 191702.0838 | BE190: 0 | BF190: 0 | BG190: 0 | BH190: 0 | BI190: 0 | BJ190: 0 | BK190: 0 | BL190: 0 | BM190: 0 | BN190: 0 | BO190: 0 | BP190: 0 | BQ190: 0 | BR190: 0 | BS190: 0 | BT190: 0 | BU190: 0 | BV190: 0 | BW190: 0 | BX190: 0 | BY190: 0 | BZ190: 0 | CA190: 0 | CB190: 0 | CC190: 255984.3264 | CD190: 2543227.555 | CE190: 0 | CF190: 0 | CG190: 0 | CH190: 0 | CI190: 2799211.881 | CJ190: 2799211.881 | CK190: No | CL190: =IFERROR(#REF!/AW190,0) -> 0 | CM190: TRA | CN190: 39c TRA A25 | CO190: Arterial
B191: Transport | E191: 41b TRA A25 | F191: Jesmond Rd from SH22 to Waipupuke development boundary | G191: 4-lane urban- upgrade 2-lane urban to 4-lane with active modes on both sides, (TDM) | J191: Transport - Drury West 2 IPA | P191: 0.9359051828 | Q191: 2060 | R191: Yes | AC191: 0 | AD191: 0 | AE191: 0 | AF191: 0 | AG191: 0 | AH191: 0 | AI191: 0 | AJ191: 0 | AK191: 0 | AL191: 0 | AM191: 0 | AN191: 0 | AO191: 0 | AP191: 8509002.761 | AQ191: 363825.9141 | AR191: 4436612.321 | AS191: 0 | AT191: 0 | AU191: 0 | AW191: 13309441 | AX191: 0 | AY191: 0 | AZ191: 0 | BB191: =IFERROR(VLOOKUP(J191,Funding_area_table!C:F,2,FALSE),"CHECK") -> TRA A25 | BC191: 853066.1874 | BE191: 0 | BF191: 0 | BG191: 0 | BH191: 0 | BI191: 0 | BJ191: 0 | BK191: 0 | BL191: 0 | BM191: 0 | BN191: 0 | BO191: 0 | BP191: 0 | BQ191: 0 | BR191: 0 | BS191: 0 | BT191: 0 | BU191: 0 | BV191: 0 | BW191: 0 | BX191: 0 | BY191: 0 | BZ191: 0 | CA191: 0 | CB191: 7963619.785 | CC191: 340506.5587 | CD191: 4152248.466 | CE191: 0 | CF191: 0 | CG191: 0 | CH191: 0 | CI191: 12456374.81 | CJ191: 12456374.81 | CK191: No | CL191: =IFERROR(#REF!/AW191,0) -> 0 | CM191: TRA | CN191: 41b TRA A25 | CO191: Arterial
B192: Transport | E192: 42c TRA A25 | F192: Jesmond Rd upgrades from project 41 to New Bremner Rd | G192: 4-lane urban FTN- upgrade 2-lane urban to 4-lane with active modes on both sides, (TDM) | J192: Transport - Drury West 2 IPA | P192: 0.9359051828 | Q192: 2060 | R192: Yes | AC192: 0 | AD192: 0 | AE192: 0 | AF192: 0 | AG192: 0 | AH192: 0 | AI192: 0 | AJ192: 0 | AK192: 0 | AL192: 0 | AM192: 0 | AN192: 0 | AO192: 0 | AP192: 21683234.64 | AQ192: 296308.1718 | AR192: 5002828.679 | AS192: 0 | AT192: 0 | AU192: 0 | AW192: 26982371.49 | AX192: 0 | AY192: 0 | AZ192: 0 | BB192: =IFERROR(VLOOKUP(J192,Funding_area_table!C:F,2,FALSE),"CHECK") -> TRA A25 | BC192: 1729430.168 | BE192: 0 | BF192: 0 | BG192: 0 | BH192: 0 | BI192: 0 | BJ192: 0 | BK192: 0 | BL192: 0 | BM192: 0 | BN192: 0 | BO192: 0 | BP192: 0 | BQ192: 0 | BR192: 0 | BS192: 0 | BT192: 0 | BU192: 0 | BV192: 0 | BW192: 0 | BX192: 0 | BY192: 0 | BZ192: 0 | CA192: 0 | CB192: 20293451.68 | CC192: 277316.3537 | CD192: 4682173.29 | CE192: 0 | CF192: 0 | CG192: 0 | CH192: 0 | CI192: 25252941.33 | CJ192: 25252941.33 | CK192: No | CL192: =IFERROR(#REF!/AW192,0) -> 0 | CM192: TRA | CN192: 42c TRA A25 | CO192: Arterial
B193: Transport | E193: 65a(ii) TRA A25 | F193: New Bremner Rd arterial from Auranga development to Jesmond Rd (bridge only) | G193: 2-lane urban- new road layout with active modes on both sides (TDM) | J193: Transport - Drury West 2 IPA | P193: 0.9359051828 | Q193: 2060 | R193: Yes | AC193: 0 | AD193: 0 | AE193: 0 | AF193: 132348.5526 | AG193: 1314894.902 | AH193: 0 | AI193: 0 | AJ193: 0 | AK193: 0 | AL193: 0 | AM193: 0 | AN193: 0 | AO193: 0 | AP193: 0 | AQ193: 0 | AR193: 0 | AS193: 0 | AT193: 0 | AU193: 0 | AW193: 1447243.455 | AX193: 0 | AY193: 0 | AZ193: 0 | BB193: =IFERROR(VLOOKUP(J193,Funding_area_table!C:F,2,FALSE),"CHECK") -> TRA A25 | BC193: 92760.80463 | BE193: 0 | BF193: 0 | BG193: 0 | BH193: 0 | BI193: 0 | BJ193: 0 | BK193: 0 | BL193: 0 | BM193: 0 | BN193: 0 | BO193: 0 | BP193: 0 | BQ193: 0 | BR193: 123865.6963 | BS193: 1230616.954 | BT193: 0 | BU193: 0 | BV193: 0 | BW193: 0 | BX193: 0 | BY193: 0 | BZ193: 0 | CA193: 0 | CB193: 0 | CC193: 0 | CD193: 0 | CE193: 0 | CF193: 0 | CG193: 0 | CH193: 0 | CI193: 1354482.65 | CJ193: 1354482.65 | CK193: No | CL193: =IFERROR(#REF!/AW193,0) -> 0 | CM193: TRA | CN193: 65a(ii) TRA A25 | CO193: Arterial
B194: Transport | E194: 65b(i) TRA A25 | F194: New Bremner Rd arterial from Auranga development to Jesmond Rd (excl bridge) | G194: 4-lane urban- upgrade 2-lane urban to 4-lane with active modes on both sides, (TDM) | J194: Transport - Drury West 2 IPA | P194: 0.9359051828 | Q194: 2060 | R194: Yes | AC194: 0 | AD194: 0 | AE194: 0 | AF194: 0 | AG194: 0 | AH194: 0 | AI194: 0 | AJ194: 0 | AK194: 0 | AL194: 0 | AM194: 0 | AN194: 0 | AO194: 0 | AP194: 0 | AQ194: 411539.1274 | AR194: 4088678.644 | AS194: 0 | AT194: 0 | AU194: 0 | AW194: 4500217.771 | AX194: 0 | AY194: 0 | AZ194: 0 | BB194: =IFERROR(VLOOKUP(J194,Funding_area_table!C:F,2,FALSE),"CHECK") -> TRA A25 | BC194: 288440.6353 | BE194: 0 | BF194: 0 | BG194: 0 | BH194: 0 | BI194: 0 | BJ194: 0 | BK194: 0 | BL194: 0 | BM194: 0 | BN194: 0 | BO194: 0 | BP194: 0 | BQ194: 0 | BR194: 0 | BS194: 0 | BT194: 0 | BU194: 0 | BV194: 0 | BW194: 0 | BX194: 0 | BY194: 0 | BZ194: 0 | CA194: 0 | CB194: 0 | CC194: 385161.6023 | CD194: 3826615.534 | CE194: 0 | CF194: 0 | CG194: 0 | CH194: 0 | CI194: 4211777.136 | CJ194: 4211777.136 | CK194: No | CL194: =IFERROR(#REF!/AW194,0) -> 0 | CM194: TRA | CN194: 65b(i) TRA A25 | CO194: Arterial
B195: Transport | E195: 65b(ii) TRA A25 | F195: New Bremner Rd arterial from Auranga development to Jesmond Rd (bridge widening) | G195: 4-lane urban- upgrade 2-lane urban to 4-lane with active modes on both sides, (TDM) | J195: Transport - Drury West 2 IPA | P195: 0.9359051828 | Q195: 2060 | R195: Yes | AC195: 0 | AD195: 0 | AE195: 0 | AF195: 0 | AG195: 0 | AH195: 0 | AI195: 0 | AJ195: 0 | AK195: 0 | AL195: 0 | AM195: 0 | AN195: 0 | AO195: 0 | AP195: 0 | AQ195: 102568.2133 | AR195: 1019024.524 | AS195: 0 | AT195: 0 | AU195: 0 | AW195: 1121592.737 | AX195: 0 | AY195: 0 | AZ195: 0 | BB195: =IFERROR(VLOOKUP(J195,Funding_area_table!C:F,2,FALSE),"CHECK") -> TRA A25 | BC195: 71888.28141 | BE195: 0 | BF195: 0 | BG195: 0 | BH195: 0 | BI195: 0 | BJ195: 0 | BK195: 0 | BL195: 0 | BM195: 0 | BN195: 0 | BO195: 0 | BP195: 0 | BQ195: 0 | BR195: 0 | BS195: 0 | BT195: 0 | BU195: 0 | BV195: 0 | BW195: 0 | BX195: 0 | BY195: 0 | BZ195: 0 | CA195: 0 | CB195: 0 | CC195: 95994.12242 | CD195: 953710.333 | CE195: 0 | CF195: 0 | CG195: 0 | CH195: 0 | CI195: 1049704.455 | CJ195: 1049704.455 | CK195: No | CL195: =IFERROR(#REF!/AW195,0) -> 0 | CM195: TRA | CN195: 65b(ii) TRA A25 | CO195: Arterial
B196: Transport | E196: 67 TRA A25 | F196: Active Mode Corridor Drury Central to GSR | G196: 0 | J196: Transport - Drury West 2 IPA | P196: 0.9359051828 | Q196: 2060 | R196: Yes | AC196: 417437.268 | AD196: 4147277.207 | AE196: 0 | AF196: 0 | AG196: 0 | AH196: 0 | AI196: 0 | AJ196: 0 | AK196: 0 | AL196: 0 | AM196: 0 | AN196: 0 | AO196: 0 | AP196: 0 | AQ196: 0 | AR196: 0 | AS196: 0 | AT196: 0 | AU196: 0 | AW196: 4564714.475 | AX196: 0 | AY196: 0 | AZ196: 0 | BB196: =IFERROR(VLOOKUP(J196,Funding_area_table!C:F,2,FALSE),"CHECK") -> TRA A25 | BC196: 292574.5397 | BE196: 0 | BF196: 0 | BG196: 0 | BH196: 0 | BI196: 0 | BJ196: 0 | BK196: 0 | BL196: 0 | BM196: 0 | BN196: 0 | BO196: 390681.7027 | BP196: 3881458.233 | BQ196: 0 | BR196: 0 | BS196: 0 | BT196: 0 | BU196: 0 | BV196: 0 | BW196: 0 | BX196: 0 | BY196: 0 | BZ196: 0 | CA196: 0 | CB196: 0 | CC196: 0 | CD196: 0 | CE196: 0 | CF196: 0 | CG196: 0 | CH196: 0 | CI196: 4272139.935 | CJ196: 4272139.935 | CK196: No | CL196: =IFERROR(#REF!/AW196,0) -> 0 | CM196: TRA | CN196: 67 TRA A25 | CO196: Arterial
B197: Transport | E197: 68 TRA A25 | F197: Active Mode Corridor GSR to Drury West | G197: 0 | J197: Transport - Drury West 2 IPA | P197: 0.9359051828 | Q197: 2060 | R197: Yes | AC197: 0 | AD197: 0 | AE197: 0 | AF197: 35405135.63 | AG197: 1307078.764 | AH197: 12985946.35 | AI197: 0 | AJ197: 0 | AK197: 0 | AL197: 0 | AM197: 0 | AN197: 0 | AO197: 0 | AP197: 0 | AQ197: 0 | AR197: 0 | AS197: 0 | AT197: 0 | AU197: 0 | AW197: 49698160.74 | AX197: 0 | AY197: 0 | AZ197: 0 | BB197: =IFERROR(VLOOKUP(J197,Funding_area_table!C:F,2,FALSE),"CHECK") -> TRA A25 | BC197: 3185394.527 | BE197: 0 | BF197: 0 | BG197: 0 | BH197: 0 | BI197: 0 | BJ197: 0 | BK197: 0 | BL197: 0 | BM197: 0 | BN197: 0 | BO197: 0 | BP197: 0 | BQ197: 0 | BR197: 33135849.94 | BS197: 1223301.79 | BT197: 12153614.49 | BU197: 0 | BV197: 0 | BW197: 0 | BX197: 0 | BY197: 0 | BZ197: 0 | CA197: 0 | CB197: 0 | CC197: 0 | CD197: 0 | CE197: 0 | CF197: 0 | CG197: 0 | CH197: 0 | CI197: 46512766.21 | CJ197: 46512766.21 | CK197: No | CL197: =IFERROR(#REF!/AW197,0) -> 0 | CM197: TRA | CN197: 68 TRA A25 | CO197: Arterial
B198: Transport | E198: 70 TRA A25 | F198: walk/cycle bridges on GSR Road bridge over the rail corridor | G198: New cycle bridge 5m wide, 80m long, approach lengths 270m total for both sides. No property required | J198: Transport - Drury West 2 IPA | P198: 0.9359051828 | Q198: 2060 | R198: Yes | AC198: 0 | AD198: 0 | AE198: 0 | AF198: 0 | AG198: 0 | AH198: 0 | AI198: 0 | AJ198: 0 | AK198: 0 | AL198: 0 | AM198: 0 | AN198: 0 | AO198: 0 | AP198: 0 | AQ198: 0 | AR198: 0 | AS198: 0 | AT198: 0 | AU198: 0 | AW198: 0 | AX198: 0 | AY198: 0 | AZ198: 0 | BB198: =IFERROR(VLOOKUP(J198,Funding_area_table!C:F,2,FALSE),"CHECK") -> TRA A25 | BC198: 0 | BE198: 0 | BF198: 0 | BG198: 0 | BH198: 0 | BI198: 0 | BJ198: 0 | BK198: 0 | BL198: 0 | BM198: 0 | BN198: 0 | BO198: 0 | BP198: 0 | BQ198: 0 | BR198: 0 | BS198: 0 | BT198: 0 | BU198: 0 | BV198: 0 | BW198: 0 | BX198: 0 | BY198: 0 | BZ198: 0 | CA198: 0 | CB198: 0 | CC198: 0 | CD198: 0 | CE198: 0 | CF198: 0 | CG198: 0 | CH198: 0 | CI198: 0 | CJ198: 0 | CK198: No | CL198: =IFERROR(#REF!/AW198,0) -> 0 | CM198: TRA | CN198: 70 TRA A25 | CO198: Arterial
B199: Transport | E199: 1b TRA A25 WK subsidy | F199: GSR improvements - Waihoehoe Rd to Drury Interchange | G199: 4-lane urban- existing road layout with active modes on both sides + intersection improvements (TDM) | J199: Transport - Drury West 2 IPA | P199: 0.9359051828 | Q199: 2060 | R199: Yes | AC199: 0 | AD199: 0 | AE199: 0 | AF199: 0 | AG199: 0 | AH199: 0 | AI199: 0 | AJ199: 0 | AK199: 0 | AL199: 0 | AM199: 0 | AN199: 0 | AO199: 0 | AP199: 0 | AQ199: 0 | AR199: 0 | AS199: 0 | AT199: 0 | AU199: 0 | AV199: 0 | AW199: 0 | AX199: 0 | AY199: 0 | AZ199: 0 | BB199: =IFERROR(VLOOKUP(J199,Funding_area_table!C:F,2,FALSE),"CHECK") -> TRA A25 | BC199: 0 | BE199: 0 | BF199: 0 | BG199: 0 | BH199: 0 | BI199: 0 | BJ199: 0 | BK199: 0 | BL199: 0 | BM199: 0 | BN199: 0 | BO199: 0 | BP199: 0 | BQ199: 0 | BR199: 0 | BS199: 0 | BT199: 0 | BU199: 0 | BV199: 0 | BW199: 0 | BX199: 0 | BY199: 0 | BZ199: 0 | CA199: 0 | CB199: 0 | CC199: 0 | CD199: 0 | CE199: 0 | CF199: 0 | CG199: 0 | CH199: 0 | CI199: 0 | CJ199: 0 | CK199: No | CL199: =IFERROR(#REF!/AW199,0) -> 0 | CM199: TRA | CN199: 1b TRA A25 | CO199: Arterial
B200: Transport | E200: 2b TRA A25 WK subsidy | F200: GSR improvements - From Drury School to Waihoehoe Rd | G200: 4-lane urban- existing road layout with active modes on both sides + intersection improvements (TDM) | J200: Transport - Drury West 2 IPA | P200: 0.9359051828 | Q200: 2060 | R200: Yes | AC200: 0 | AD200: 0 | AE200: 0 | AF200: 0 | AG200: 0 | AH200: 0 | AI200: -850926.0973 | AJ200: -196321.4136 | AK200: -1950471.092 | AL200: 0 | AM200: 0 | AN200: 0 | AO200: 0 | AP200: 0 | AQ200: 0 | AR200: 0 | AS200: 0 | AT200: 0 | AU200: 0 | AV200: 0 | AW200: =SUM(S200:AV200) -> -2997718.602 | AX200: 0 | AY200: 0 | AZ200: 0 | BB200: =IFERROR(VLOOKUP(J200,Funding_area_table!C:F,2,FALSE),"CHECK") -> TRA A25 | BC200: =$AW200*(1-P200) -> -192138.2258 | BE200: =S200*$P200*(1-$CL200) -> 0 | BF200: =T200*$P200*(1-$CL200) -> 0 | BG200: =U200*$P200*(1-$CL200) -> 0 | BH200: =V200*$P200*(1-$CL200) -> 0 | BI200: =W200*$P200*(1-$CL200) -> 0 | BJ200: =X200*$P200*(1-$CL200) -> 0 | BK200: =Y200*$P200*(1-$CL200) -> 0 | BL200: =Z200*$P200*(1-$CL200) -> 0 | BM200: =AA200*$P200*(1-$CL200) -> 0 | BN200: =AB200*$P200*(1-$CL200) -> 0 | BO200: =AC200*$P200*(1-$CL200) -> 0 | BP200: =AD200*$P200*(1-$CL200) -> 0 | BQ200: =AE200*$P200*(1-$CL200) -> 0 | BR200: =AF200*$P200*(1-$CL200) -> 0 | BS200: =AG200*$P200*(1-$CL200) -> 0 | BT200: =AH200*$P200*(1-$CL200) -> 0 | BU200: =AI200*$P200*(1-$CL200) -> -796386.1446 | BV200: =AJ200*$P200*(1-$CL200) -> -183738.2285 | BW200: =AK200*$P200*(1-$CL200) -> -1825456.004 | BX200: =AL200*$P200*(1-$CL200) -> 0 | BY200: =AM200*$P200*(1-$CL200) -> 0 | BZ200: =AN200*$P200*(1-$CL200) -> 0 | CA200: =AO200*$P200*(1-$CL200) -> 0 | CB200: =AP200*$P200*(1-$CL200) -> 0 | CC200: =AQ200*$P200*(1-$CL200) -> 0 | CD200: =AR200*$P200*(1-$CL200) -> 0 | CE200: =AS200*$P200*(1-$CL200) -> 0 | CF200: =AT200*$P200*(1-$CL200) -> 0 | CG200: =AU200*$P200*(1-$CL200) -> 0 | CH200: =AV200*$P200*(1-$CL200) -> 0 | CI200: =SUM(BE200:CH200) -> -2805580.377 | CJ200: =+CI200+AX200*P200 -> -2805580.377 | CK200: No | CL200: =IFERROR(#REF!/AW200,0) -> 0 | CM200: =TRIM(LEFT(BB200,3)) -> TRA | CN200: =IF(RIGHT(E200,11)=" WK subsidy",LEFT(E200,LEN(E200)-11),E200) -> 2b TRA A25 | CO200: Arterial
B201: Transport | E201: 4b TRA A25 WK subsidy | F201: Waihoehoe Rd East upgrades- from Fitzgerald Rd to before Cossey Rd (development boundary) | G201: Expand to 24m cross section | J201: Transport - Drury West 2 IPA | P201: 0.9359051828 | Q201: 2060 | R201: Yes | AC201: 0 | AD201: 0 | AE201: 0 | AF201: 0 | AG201: 0 | AH201: 0 | AI201: 0 | AJ201: 0 | AK201: 0 | AL201: 0 | AM201: 0 | AN201: 0 | AO201: 0 | AP201: 0 | AQ201: 0 | AR201: 0 | AS201: 0 | AT201: 0 | AU201: 0 | AV201: 0 | AW201: 0 | AX201: 0 | AY201: 0 | AZ201: 0 | BB201: =IFERROR(VLOOKUP(J201,Funding_area_table!C:F,2,FALSE),"CHECK") -> TRA A25 | BC201: 0 | BE201: 0 | BF201: 0 | BG201: 0 | BH201: 0 | BI201: 0 | BJ201: 0 | BK201: 0 | BL201: 0 | BM201: 0 | BN201: 0 | BO201: 0 | BP201: 0 | BQ201: 0 | BR201: 0 | BS201: 0 | BT201: 0 | BU201: 0 | BV201: 0 | BW201: 0 | BX201: 0 | BY201: 0 | BZ201: 0 | CA201: 0 | CB201: 0 | CC201: 0 | CD201: 0 | CE201: 0 | CF201: 0 | CG201: 0 | CH201: 0 | CI201: 0 | CJ201: 0 | CK201: No | CL201: =IFERROR(#REF!/AW201,0) -> 0 | CM201: TRA | CN201: 4b TRA A25 | CO201: Arterial
B202: Transport | E202: 9b TRA A25 WK subsidy | F202: Upgrade in Norrie Rd/GSR/Waihoehoe intersection | G202: multi-lane signalised intersection with active mode crossings, SGA design | J202: Transport - Drury West 2 IPA | P202: 0.9359051828 | Q202: 2060 | R202: Yes | AC202: 0 | AD202: 0 | AE202: 0 | AF202: 0 | AG202: 0 | AH202: 0 | AI202: 0 | AJ202: 0 | AK202: 0 | AL202: 0 | AM202: 0 | AN202: 0 | AO202: 0 | AP202: 0 | AQ202: 0 | AR202: 0 | AS202: 0 | AT202: 0 | AU202: 0 | AV202: 0 | AW202: 0 | AX202: 0 | AY202: 0 | AZ202: 0 | BB202: =IFERROR(VLOOKUP(J202,Funding_area_table!C:F,2,FALSE),"CHECK") -> TRA A25 | BC202: 0 | BE202: 0 | BF202: 0 | BG202: 0 | BH202: 0 | BI202: 0 | BJ202: 0 | BK202: 0 | BL202: 0 | BM202: 0 | BN202: 0 | BO202: 0 | BP202: 0 | BQ202: 0 | BR202: 0 | BS202: 0 | BT202: 0 | BU202: 0 | BV202: 0 | BW202: 0 | BX202: 0 | BY202: 0 | BZ202: 0 | CA202: 0 | CB202: 0 | CC202: 0 | CD202: 0 | CE202: 0 | CF202: 0 | CG202: 0 | CH202: 0 | CI202: 0 | CJ202: 0 | CK202: No | CL202: =IFERROR(#REF!/AW202,0) -> 0 | CM202: TRA | CN202: 9b TRA A25 | CO202: Arterial
... 406 more rows

Sheet DC_price_calc
A1: DC price, revenue and interest calculation
A3: A goalseek will calculate the DC price, revenue forecast and interest forecast for each project from the Project_and_capex_costs tab and populate the relevant tables.
A4: Balance by capcity/recovery year will be zero. For the Drury projects this will be year 40.
A5: The capacity is required so the growth beyond the capacity year is not included in the charge/price calculation
A6: Capex phasing adjustment assuming capex is weighted slightly to the second half of the financial year (from Static data tab) | D6: =+Static_data!$C$4 -> 0.4
A7: Annually increase DC price | D7: No
A8: Sentient ID / unique identifier (from Poject_and_capex_costs tab) | B8: 70 TRA A1 WK subsidy
A9: Project name (from Poject_and_capex_costs tab) | B9: walk/cycle bridges on GSR Road bridge over the rail corridor
C10: Year | D10: 1 | E10: =D10+1 -> 2 | F10: =E10+1 -> 3 | G10: 4 | H10: 5 | I10: 6 | J10: 7 | K10: 8 | L10: 9 | M10: 10 | N10: 11 | O10: 12 | P10: 13 | Q10: 14 | R10: 15 | S10: 16 | T10: 17 | U10: 18 | V10: 19 | W10: 20 | X10: 21 | Y10: 22 | Z10: 23 | AA10: 24 | AB10: 25 | AC10: 26 | AD10: 27 | AE10: 28 | AF10: 29 | AG10: 30 | AH10: 31 | AI10: 32 | AJ10: 33 | AK10: 34 | AL10: 35 | AM10: 36 | AN10: 37 | AO10: 38 | AP10: 39 | AQ10: 40 | AR10: Total
D11: 2022 | E11: =+D11+1 -> 2023 | F11: =+E11+1 -> 2024 | G11: 2025 | H11: 2026 | I11: 2027 | J11: 2028 | K11: 2029 | L11: 2030 | M11: 2031 | N11: 2032 | O11: 2033 | P11: 2034 | Q11: 2035 | R11: 2036 | S11: 2037 | T11: 2038 | U11: 2039 | V11: 2040 | W11: 2041 | X11: 2042 | Y11: 2043 | Z11: 2044 | AA11: 2045 | AB11: 2046 | AC11: 2047 | AD11: 2048 | AE11: 2049 | AF11: 2050 | AG11: 2051 | AH11: 2052 | AI11: 2053 | AJ11: 2054 | AK11: 2055 | AL11: 2056 | AM11: 2057 | AN11: 2058 | AO11: 2059 | AP11: 2060 | AQ11: 2061
A13: From Static data tab | B13: Need to get interest rates confirmed | C13: Interest Rate | D13: =+Static_data!C11 -> 0.0426 | E13: =+Static_data!D11 -> 0.0455 | F13: =+Static_data!E11 -> 0.0456 | G13: =+Static_data!F11 -> 0.0457 | H13: =+Static_data!G11 -> 0.0459 | I13: =+Static_data!H11 -> 0.0463 | J13: =+Static_data!I11 -> 0.0469 | K13: =+Static_data!J11 -> 0.0472 | L13: =+Static_data!K11 -> 0.0479 | M13: =+Static_data!L11 -> 0.0484 | N13: =+Static_data!M11 -> 0.0484 | O13: =+Static_data!N11 -> 0.0484 | P13: =+Static_data!O11 -> 0.0484 | Q13: =+Static_data!P11 -> 0.0484 | R13: =+Static_data!Q11 -> 0.0484 | S13: =+Static_data!R11 -> 0.0484 | T13: =+Static_data!S11 -> 0.0484 | U13: =+Static_data!T11 -> 0.0484 | V13: =+Static_data!U11 -> 0.0484 | W13: =+Static_data!V11 -> 0.0484 | X13: =+Static_data!W11 -> 0.0484 | Y13: =+Static_data!X11 -> 0.0484 | Z13: =+Static_data!Y11 -> 0.0484 | AA13: =+Static_data!Z11 -> 0.0484 | AB13: =+Static_data!AA11 -> 0.0484 | AC13: =+Static_data!AB11 -> 0.0484 | AD13: =+Static_data!AC11 -> 0.0484 | AE13: =+Static_data!AD11 -> 0.0484 | AF13: =+Static_data!AE11 -> 0.0484 | AG13: =+Static_data!AF11 -> 0.0484 | AH13: =+Static_data!AG11 -> 0.0484 | AI13: =+Static_data!AH11 -> 0.0484 | AJ13: =+Static_data!AI11 -> 0.0484 | AK13: =+Static_data!AJ11 -> 0.0484 | AL13: =+Static_data!AK11 -> 0.0484 | AM13: =+Static_data!AL11 -> 0.0484 | AN13: =+Static_data!AM11 -> 0.0484 | AO13: =+Static_data!AN11 -> 0.0484 | AP13: =+Static_data!AO11 -> 0.0484 | AQ13: =+Static_data!AP11 -> 0.0484
A14: From Static data tab | B14: (may not be required) | C14: Incremental DC price increase factor (compounded) | D14: =IF($D$7="No",+Static_data!C16,+Static_data!C14) -> 1 | E14: =IF($D$7="No",+Static_data!D16,+Static_data!D14) -> 1 | F14: =IF($D$7="No",+Static_data!E16,+Static_data!E14) -> 1 | G14: =IF($D$7="No",+Static_data!F16,+Static_data!F14) -> 1 | H14: =IF($D$7="No",+Static_data!G16,+Static_data!G14) -> 1 | I14: =IF($D$7="No",+Static_data!H16,+Static_data!H14) -> 1 | J14: =IF($D$7="No",+Static_data!I16,+Static_data!I14) -> 1 | K14: =IF($D$7="No",+Static_data!J16,+Static_data!J14) -> 1 | L14: =IF($D$7="No",+Static_data!K16,+Static_data!K14) -> 1 | M14: =IF($D$7="No",+Static_data!L16,+Static_data!L14) -> 1 | N14: =IF($D$7="No",+Static_data!M16,+Static_data!M14) -> 1 | O14: =IF($D$7="No",+Static_data!N16,+Static_data!N14) -> 1 | P14: =IF($D$7="No",+Static_data!O16,+Static_data!O14) -> 1 | Q14: =IF($D$7="No",+Static_data!P16,+Static_data!P14) -> 1 | R14: =IF($D$7="No",+Static_data!Q16,+Static_data!Q14) -> 1 | S14: =IF($D$7="No",+Static_data!R16,+Static_data!R14) -> 1 | T14: =IF($D$7="No",+Static_data!S16,+Static_data!S14) -> 1 | U14: =IF($D$7="No",+Static_data!T16,+Static_data!T14) -> 1 | V14: =IF($D$7="No",+Static_data!U16,+Static_data!U14) -> 1 | W14: =IF($D$7="No",+Static_data!V16,+Static_data!V14) -> 1 | X14: =IF($D$7="No",+Static_data!W16,+Static_data!W14) -> 1 | Y14: =IF($D$7="No",+Static_data!X16,+Static_data!X14) -> 1 | Z14: =IF($D$7="No",+Static_data!Y16,+Static_data!Y14) -> 1 | AA14: =IF($D$7="No",+Static_data!Z16,+Static_data!Z14) -> 1 | AB14: =IF($D$7="No",+Static_data!AA16,+Static_data!AA14) -> 1 | AC14: =IF($D$7="No",+Static_data!AB16,+Static_data!AB14) -> 1 | AD14: =IF($D$7="No",+Static_data!AC16,+Static_data!AC14) -> 1 | AE14: =IF($D$7="No",+Static_data!AD16,+Static_data!AD14) -> 1 | AF14: =IF($D$7="No",+Static_data!AE16,+Static_data!AE14) -> 1 | AG14: =IF($D$7="No",+Static_data!AF16,+Static_data!AF14) -> 1 | AH14: =IF($D$7="No",+Static_data!AG16,+Static_data!AG14) -> 1 | AI14: =IF($D$7="No",+Static_data!AH16,+Static_data!AH14) -> 1 | AJ14: =IF($D$7="No",+Static_data!AI16,+Static_data!AI14) -> 1 | AK14: =IF($D$7="No",+Static_data!AJ16,+Static_data!AJ14) -> 1 | AL14: =IF($D$7="No",+Static_data!AK16,+Static_data!AK14) -> 1 | AM14: =IF($D$7="No",+Static_data!AL16,+Static_data!AL14) -> 1 | AN14: =IF($D$7="No",+Static_data!AM16,+Static_data!AM14) -> 1 | AO14: =IF($D$7="No",+Static_data!AN16,+Static_data!AN14) -> 1 | AP14: =IF($D$7="No",+Static_data!AO16,+Static_data!AO14) -> 1 | AQ14: =IF($D$7="No",+Static_data!AP16,+Static_data!AP14) -> 1
A15: Infrastructure type and funding area code for project | B15: Capacity year for project
A16: TRA A1 | B16: 2060 | C16: Annual Growth (HUE) | D16: =IF($B16+1>D$11,SUMIF(HUEs_by_funding_area!$C$8:$C$249,$A16,HUEs_by_funding_area!G$8:G$249),0) -> 8542 | E16: =IF($B16+1>E$11,SUMIF(HUEs_by_funding_area!$C$8:$C$249,$A16,HUEs_by_funding_area!H$8:H$249),0) -> 8427 | F16: =IF($B16+1>F$11,SUMIF(HUEs_by_funding_area!$C$8:$C$249,$A16,HUEs_by_funding_area!I$8:I$249),0) -> 8531 | G16: =IF($B16+1>G$11,SUMIF(HUEs_by_funding_area!$C$8:$C$249,$A16,HUEs_by_funding_area!J$8:J$249),0) -> 8679 | H16: =IF($B16+1>H$11,SUMIF(HUEs_by_funding_area!$C$8:$C$249,$A16,HUEs_by_funding_area!K$8:K$249),0) -> 9460 | I16: =IF($B16+1>I$11,SUMIF(HUEs_by_funding_area!$C$8:$C$249,$A16,HUEs_by_funding_area!L$8:L$249),0) -> 10103 | J16: =IF($B16+1>J$11,SUMIF(HUEs_by_funding_area!$C$8:$C$249,$A16,HUEs_by_funding_area!M$8:M$249),0) -> 10200 | K16: =IF($B16+1>K$11,SUMIF(HUEs_by_funding_area!$C$8:$C$249,$A16,HUEs_by_funding_area!N$8:N$249),0) -> 9538 | L16: =IF($B16+1>L$11,SUMIF(HUEs_by_funding_area!$C$8:$C$249,$A16,HUEs_by_funding_area!O$8:O$249),0) -> 9229 | M16: =IF($B16+1>M$11,SUMIF(HUEs_by_funding_area!$C$8:$C$249,$A16,HUEs_by_funding_area!P$8:P$249),0) -> 8514 | N16: =IF($B16+1>N$11,SUMIF(HUEs_by_funding_area!$C$8:$C$249,$A16,HUEs_by_funding_area!Q$8:Q$249),0) -> 7380 | O16: =IF($B16+1>O$11,SUMIF(HUEs_by_funding_area!$C$8:$C$249,$A16,HUEs_by_funding_area!R$8:R$249),0) -> 7961 | P16: =IF($B16+1>P$11,SUMIF(HUEs_by_funding_area!$C$8:$C$249,$A16,HUEs_by_funding_area!S$8:S$249),0) -> 8641 | Q16: =IF($B16+1>Q$11,SUMIF(HUEs_by_funding_area!$C$8:$C$249,$A16,HUEs_by_funding_area!T$8:T$249),0) -> 9396 | R16: =IF($B16+1>R$11,SUMIF(HUEs_by_funding_area!$C$8:$C$249,$A16,HUEs_by_funding_area!U$8:U$249),0) -> 8858 | S16: =IF($B16+1>S$11,SUMIF(HUEs_by_funding_area!$C$8:$C$249,$A16,HUEs_by_funding_area!V$8:V$249),0) -> 7841 | T16: =IF($B16+1>T$11,SUMIF(HUEs_by_funding_area!$C$8:$C$249,$A16,HUEs_by_funding_area!W$8:W$249),0) -> 8173 | U16: =IF($B16+1>U$11,SUMIF(HUEs_by_funding_area!$C$8:$C$249,$A16,HUEs_by_funding_area!X$8:X$249),0) -> 8492 | V16: =IF($B16+1>V$11,SUMIF(HUEs_by_funding_area!$C$8:$C$249,$A16,HUEs_by_funding_area!Y$8:Y$249),0) -> 9076 | W16: =IF($B16+1>W$11,SUMIF(HUEs_by_funding_area!$C$8:$C$249,$A16,HUEs_by_funding_area!Z$8:Z$249),0) -> 8668 | X16: =IF($B16+1>X$11,SUMIF(HUEs_by_funding_area!$C$8:$C$249,$A16,HUEs_by_funding_area!AA$8:AA$249),0) -> 7744 | Y16: =IF($B16+1>Y$11,SUMIF(HUEs_by_funding_area!$C$8:$C$249,$A16,HUEs_by_funding_area!AB$8:AB$249),0) -> 7910 | Z16: =IF($B16+1>Z$11,SUMIF(HUEs_by_funding_area!$C$8:$C$249,$A16,HUEs_by_funding_area!AC$8:AC$249),0) -> 8084 | AA16: =IF($B16+1>AA$11,SUMIF(HUEs_by_funding_area!$C$8:$C$249,$A16,HUEs_by_funding_area!AD$8:AD$249),0) -> 8294 | AB16: =IF($B16+1>AB$11,SUMIF(HUEs_by_funding_area!$C$8:$C$249,$A16,HUEs_by_funding_area!AE$8:AE$249),0) -> 7400 | AC16: =IF($B16+1>AC$11,SUMIF(HUEs_by_funding_area!$C$8:$C$249,$A16,HUEs_by_funding_area!AF$8:AF$249),0) -> 6517 | AD16: =IF($B16+1>AD$11,SUMIF(HUEs_by_funding_area!$C$8:$C$249,$A16,HUEs_by_funding_area!AG$8:AG$249),0) -> 6713 | AE16: =IF($B16+1>AE$11,SUMIF(HUEs_by_funding_area!$C$8:$C$249,$A16,HUEs_by_funding_area!AH$8:AH$249),0) -> 6908 | AF16: =IF($B16+1>AF$11,SUMIF(HUEs_by_funding_area!$C$8:$C$249,$A16,HUEs_by_funding_area!AI$8:AI$249),0) -> 7094 | AG16: =IF($B16+1>AG$11,SUMIF(HUEs_by_funding_area!$C$8:$C$249,$A16,HUEs_by_funding_area!AJ$8:AJ$249),0) -> 6333 | AH16: =IF($B16+1>AH$11,SUMIF(HUEs_by_funding_area!$C$8:$C$249,$A16,HUEs_by_funding_area!AK$8:AK$249),0) -> 4887 | AI16: =IF($B16+1>AI$11,SUMIF(HUEs_by_funding_area!$C$8:$C$249,$A16,HUEs_by_funding_area!AL$8:AL$249),0) -> 5194 | AJ16: =IF($B16+1>AJ$11,SUMIF(HUEs_by_funding_area!$C$8:$C$249,$A16,HUEs_by_funding_area!AM$8:AM$249),0) -> 5534 | AK16: =IF($B16+1>AK$11,SUMIF(HUEs_by_funding_area!$C$8:$C$249,$A16,HUEs_by_funding_area!AN$8:AN$249),0) -> 5936 | AL16: =IF($B16+1>AL$11,SUMIF(HUEs_by_funding_area!$C$8:$C$249,$A16,HUEs_by_funding_area!AO$8:AO$249),0) -> 6374 | AM16: =IF($B16+1>AM$11,SUMIF(HUEs_by_funding_area!$C$8:$C$249,$A16,HUEs_by_funding_area!AP$8:AP$249),0) -> 6858 | AN16: =IF($B16+1>AN$11,SUMIF(HUEs_by_funding_area!$C$8:$C$249,$A16,HUEs_by_funding_area!AQ$8:AQ$249),0) -> 7446 | AO16: =IF($B16+1>AO$11,SUMIF(HUEs_by_funding_area!$C$8:$C$249,$A16,HUEs_by_funding_area!AR$8:AR$249),0) -> 8153 | AP16: =IF($B16+1>AP$11,SUMIF(HUEs_by_funding_area!$C$8:$C$249,$A16,HUEs_by_funding_area!AS$8:AS$249),0) -> 4304 | AQ16: =IF($B16+1>AQ$11,SUMIF(HUEs_by_funding_area!$C$8:$C$249,$A16,HUEs_by_funding_area!AT$8:AT$249),0) -> 0 | AR16: =SUM(D16:AQ16) -> 303392
C18: Opening balance | D18: 0 | E18: =+D30 -> 0 | F18: =+E30 -> 0 | G18: 0 | H18: 0 | I18: 0 | J18: 0 | K18: 0 | L18: 0 | M18: 0 | N18: 0 | O18: 0 | P18: 0 | Q18: 0 | R18: 0 | S18: 0 | T18: 0 | U18: 0 | V18: 0 | W18: 0 | X18: 0 | Y18: 0 | Z18: 0 | AA18: 0 | AB18: 0 | AC18: 0 | AD18: 0 | AE18: 0 | AF18: 0 | AG18: 0 | AH18: 0 | AI18: 0 | AJ18: 0 | AK18: 0 | AL18: 0 | AM18: 0 | AN18: 0 | AO18: 0 | AP18: 0 | AQ18: 0 | AR18: =+D18 -> 0
C19: Capital expenditure costs to be recovered | D19: 0 | E19: 0 | F19: 0 | G19: 0 | H19: 0 | I19: 0 | J19: 0 | K19: 0 | L19: 0 | M19: 0 | N19: 0 | O19: 0 | P19: 0 | Q19: 0 | R19: 0 | S19: 0 | T19: 0 | U19: 0 | V19: 0 | W19: 0 | X19: 0 | Y19: 0 | Z19: 0 | AA19: 0 | AB19: 0 | AC19: 0 | AD19: 0 | AE19: 0 | AF19: 0 | AG19: 0 | AH19: 0 | AI19: 0 | AJ19: 0 | AK19: 0 | AL19: 0 | AM19: 0 | AN19: 0 | AO19: 0 | AP19: 0 | AQ19: 0 | AR19: =SUM(D19:AQ19) -> 0
C20: Plus: Interest cost forecast | D20: =SUM(D21:D28) -> 0 | E20: =SUM(E21:E28) -> 0 | F20: 0 | G20: 0 | H20: 0 | I20: 0 | J20: 0 | K20: 0 | L20: 0 | M20: 0 | N20: 0 | O20: 0 | P20: 0 | Q20: 0 | R20: 0 | S20: 0 | T20: 0 | U20: 0 | V20: 0 | W20: 0 | X20: 0 | Y20: 0 | Z20: 0 | AA20: 0 | AB20: 0 | AC20: 0 | AD20: 0 | AE20: 0 | AF20: 0 | AG20: 0 | AH20: 0 | AI20: 0 | AJ20: 0 | AK20: 0 | AL20: 0 | AM20: 0 | AN20: 0 | AO20: 0 | AP20: 0 | AQ20: 0 | AR20: =SUM(D20:AQ20) -> 0
C21: Main interest calc | D21: =(D18)*D$13+(D19-D29)*D$13*$D$6 -> 0 | E21: =(E18)*E$13+(E19-E29)*E$13*$D$6 -> 0 | F21: 0 | G21: 0 | H21: 0 | I21: 0 | J21: 0 | K21: 0 | L21: 0 | M21: 0 | N21: 0 | O21: 0 | P21: 0 | Q21: 0 | R21: 0 | S21: 0 | T21: 0 | U21: 0 | V21: 0 | W21: 0 | X21: 0 | Y21: 0 | Z21: 0 | AA21: 0 | AB21: 0 | AC21: 0 | AD21: 0 | AE21: 0 | AF21: 0 | AG21: 0 | AH21: 0 | AI21: 0 | AJ21: 0 | AK21: 0 | AL21: 0 | AM21: 0 | AN21: 0 | AO21: 0 | AP21: 0 | AQ21: 0 | AR21: 0
C22: Interest on interest 1 | D22: =D21*D$13*$D$6 -> 0 | E22: 0 | F22: 0 | G22: 0 | H22: 0 | I22: 0 | J22: 0 | K22: 0 | L22: 0 | M22: 0 | N22: =N21*N$13*$D$6 -> 0 | O22: 0 | P22: 0 | Q22: 0 | R22: 0 | S22: 0 | T22: 0 | U22: 0 | V22: 0 | W22: 0 | X22: =X21*X$13*$D$6 -> 0 | Y22: 0 | Z22: 0 | AA22: 0 | AB22: 0 | AC22: 0 | AD22: 0 | AE22: 0 | AF22: 0 | AG22: 0 | AH22: =AH21*AH$13*$D$6 -> 0 | AI22: 0 | AJ22: 0 | AK22: 0 | AL22: 0 | AM22: 0 | AN22: 0 | AO22: 0 | AP22: 0 | AQ22: 0 | AR22: 0
C23: Interest on interest 2 | D23: 0 | E23: 0 | F23: 0 | G23: 0 | H23: 0 | I23: 0 | J23: 0 | K23: 0 | L23: 0 | M23: 0 | N23: 0 | O23: 0 | P23: 0 | Q23: 0 | R23: 0 | S23: 0 | T23: 0 | U23: 0 | V23: 0 | W23: 0 | X23: 0 | Y23: 0 | Z23: 0 | AA23: 0 | AB23: 0 | AC23: 0 | AD23: 0 | AE23: 0 | AF23: 0 | AG23: 0 | AH23: 0 | AI23: 0 | AJ23: 0 | AK23: 0 | AL23: 0 | AM23: 0 | AN23: 0 | AO23: 0 | AP23: 0 | AQ23: 0 | AR23: 0
C24: Interest on interest 3 | D24: 0 | E24: 0 | F24: 0 | G24: 0 | H24: 0 | I24: 0 | J24: 0 | K24: 0 | L24: 0 | M24: 0 | N24: 0 | O24: 0 | P24: 0 | Q24: 0 | R24: 0 | S24: 0 | T24: 0 | U24: 0 | V24: 0 | W24: 0 | X24: 0 | Y24: 0 | Z24: 0 | AA24: 0 | AB24: 0 | AC24: 0 | AD24: 0 | AE24: 0 | AF24: 0 | AG24: 0 | AH24: 0 | AI24: 0 | AJ24: 0 | AK24: 0 | AL24: 0 | AM24: 0 | AN24: 0 | AO24: 0 | AP24: 0 | AQ24: 0 | AR24: 0
B25: ` | C25: Interest on interest 4 | D25: 0 | E25: 0 | F25: 0 | G25: 0 | H25: 0 | I25: 0 | J25: 0 | K25: 0 | L25: 0 | M25: 0 | N25: 0 | O25: 0 | P25: 0 | Q25: 0 | R25: 0 | S25: 0 | T25: 0 | U25: 0 | V25: 0 | W25: 0 | X25: 0 | Y25: 0 | Z25: 0 | AA25: 0 | AB25: 0 | AC25: 0 | AD25: 0 | AE25: 0 | AF25: 0 | AG25: 0 | AH25: 0 | AI25: 0 | AJ25: 0 | AK25: 0 | AL25: 0 | AM25: 0 | AN25: 0 | AO25: 0 | AP25: 0 | AQ25: 0 | AR25: 0
C26: Interest on interest 5 | D26: 0 | E26: 0 | F26: 0 | G26: 0 | H26: 0 | I26: 0 | J26: 0 | K26: 0 | L26: 0 | M26: 0 | N26: 0 | O26: 0 | P26: 0 | Q26: 0 | R26: 0 | S26: 0 | T26: 0 | U26: 0 | V26: 0 | W26: 0 | X26: 0 | Y26: 0 | Z26: 0 | AA26: 0 | AB26: 0 | AC26: 0 | AD26: 0 | AE26: 0 | AF26: 0 | AG26: 0 | AH26: 0 | AI26: 0 | AJ26: 0 | AK26: 0 | AL26: 0 | AM26: 0 | AN26: 0 | AO26: 0 | AP26: 0 | AQ26: 0 | AR26: 0
C27: Interest on interest 6 | D27: 0 | E27: 0 | F27: 0 | G27: 0 | H27: 0 | I27: 0 | J27: 0 | K27: 0 | L27: 0 | M27: 0 | N27: 0 | O27: 0 | P27: 0 | Q27: 0 | R27: 0 | S27: 0 | T27: 0 | U27: 0 | V27: 0 | W27: 0 | X27: 0 | Y27: 0 | Z27: 0 | AA27: 0 | AB27: 0 | AC27: 0 | AD27: 0 | AE27: 0 | AF27: 0 | AG27: 0 | AH27: 0 | AI27: 0 | AJ27: 0 | AK27: 0 | AL27: 0 | AM27: 0 | AN27: 0 | AO27: 0 | AP27: 0 | AQ27: 0 | AR27: 0
C28: Interest on interest 7 | D28: 0 | E28: 0 | F28: 0 | G28: 0 | H28: 0 | I28: 0 | J28: 0 | K28: 0 | L28: 0 | M28: 0 | N28: 0 | O28: 0 | P28: 0 | Q28: 0 | R28: 0 | S28: 0 | T28: 0 | U28: 0 | V28: 0 | W28: 0 | X28: 0 | Y28: 0 | Z28: 0 | AA28: 0 | AB28: 0 | AC28: 0 | AD28: 0 | AE28: 0 | AF28: 0 | AG28: 0 | AH28: 0 | AI28: 0 | AJ28: 0 | AK28: 0 | AL28: 0 | AM28: 0 | AN28: 0 | AO28: 0 | AP28: 0 | AQ28: 0 | AR28: 0
C29: Less: DC revenue forecast | D29: =+D16*$G$32*D$14 -> 0 | E29: 0 | F29: 0 | G29: 0 | H29: 0 | I29: 0 | J29: 0 | K29: 0 | L29: 0 | M29: 0 | N29: 0 | O29: 0 | P29: 0 | Q29: 0 | R29: 0 | S29: 0 | T29: 0 | U29: 0 | V29: 0 | W29: 0 | X29: 0 | Y29: 0 | Z29: 0 | AA29: 0 | AB29: 0 | AC29: 0 | AD29: 0 | AE29: 0 | AF29: 0 | AG29: 0 | AH29: 0 | AI29: 0 | AJ29: 0 | AK29: 0 | AL29: 0 | AM29: 0 | AN29: 0 | AO29: 0 | AP29: 0 | AQ29: 0 | AR29: =SUM(D29:AQ29) -> 0
C30: Closing balance | D30: =SUM(D18:D20)-D29 -> 0 | E30: 0 | F30: 0 | G30: 0 | H30: 0 | I30: 0 | J30: 0 | K30: 0 | L30: 0 | M30: 0 | N30: 0 | O30: 0 | P30: 0 | Q30: 0 | R30: 0 | S30: 0 | T30: 0 | U30: 0 | V30: 0 | W30: 0 | X30: 0 | Y30: 0 | Z30: 0 | AA30: 0 | AB30: 0 | AC30: 0 | AD30: 0 | AE30: 0 | AF30: 0 | AG30: 0 | AH30: 0 | AI30: 0 | AJ30: 0 | AK30: 0 | AL30: 0 | AM30: 0 | AN30: 0 | AO30: 0 | AP30: 0 | AQ30: 0 | AR30: 0
F32: DC Price | G32: 0
A34: Colour key
B35: Information imported from other tabs within the spreadsheet
B36: Calculation within the template and this data is copied to the relevant tables
B37: Calculation within the template and the data was copied from dark orange DC_price_calc_tab. This data is then used to produce the schedules and summaries. | AS37: 5678Z e
B38: Calculation within the template but not used elsewhere, at this stage.
A40: Data information
A41: Capex phasing adjustment (D6) - Capex phasing adjustment assuming capex is weighted slightly to the second half of the financial year. Comes from cell C4 in the Static_data tab.
A42: Indicator whether the DC price increases each year or is a single set price (cell D7). This is from column CK in the Project_and_capex_costs tab.
A43: Sentient ID / unique project identifier (cell B8). This is from column E in the Project_and_capex_costs tab.
A44: Project name (cell B9). This is from column F in the Project_and_capex_costs tab.
A45: Interest rates line 13. This is from either lines 11 or 12 (columns C to AP) in the Static_data tab.
A46: Incremental DC price increase factor (compounded) line 14. This is from either lines 14 or 16 (columns C to AP) in the Static_data tab. This is built in as a conditional statement in line 14 in the tempalate above based on the Annually increase DC price indicator in cell D7.
A47: Infrastructure type and funding area code (cell A16). This from column BB in the "Project_and_capex_costs" tab. This code is used to bring in the relevant Annual Growth (HUEs) in line 16 in the template above. It also allows the project information to be aggregated by Infrastructure type and funding area.
A48: Capacity year( cell B16). This from column Q in the "Project_and_capex_costs" tab. This code is used to bring in the relevant Annual Growth (HUEs) in line 16 in the template above. The conditional statement in line 16 of the template means the annual HUEs after the capcity year are zero.
A49: Opening balance (first year only), (cell D18). This is fzero for the Drury projects.
A50: Capital expenditure costs to be recovered by DCs (line 19 and columns D to AQ) . This comes from columns BE to CH in the "Project_and_capex_costs" tab.
A53: DC price, revenue and interst calculation
A54: For each project in "Project_and_capex_costs" tab a goalseek is performed so the DC price (cell G32) will generate the DC revenue (line 29) and DC interest (line 20) to fund the Capex expenditure costs to be recovered (line 19 columns D to AQ), so the balance at the end of the capacity period line 30 columns AQ and AR are zero .
A55: The following information for each project is copied from the "Project_and_capex_costs"tab:
A56: - Indicator whether the DC price increases each year or is a single set price (cell D7). This is from column CK in the Project_and_capex_costs tab.
A57: - Sentient ID / unique project identifier (cell B8). This is from column E in the Project_and_capex_costs tab.
A58: - Project name (cell B9). This is from column F in the Project_and_capex_costs tab.
A59: - Infrastructure type and funding area code (cell A16). This from column BB in the "Project_and_capex_costs" tab. This code is used to bring in the relevant Annual Growth (HUEs) in line 16 in the template above. It also allows the project information to be aggregated by Infrastructure type and funding area.
A60: - Capacity year( cell B16). This from column Q in the "Project_and_capex_costs" tab. This code is used to bring in the relevant Annual Growth (HUEs) in line 16 in the template above. The conditional statement in line 16 of the template means the annual HUEs after the capcity year are zero.
A61: - Opening balance (first year only), (cell D18). This is fzero for the Drury projects.
A62: - Capital expenditure costs to be recovered by DCs (line 19 and columns D to AQ) . This comes from columns BE to CH in the "Project_and_capex_costs" tab.
A63: The goalseek is run by changing the DC price so the balance is zero by the end of the capcity period.
A64: The following results for each goalseek are copied to the data tables (DC_price_table, Revenue_forecast_table or Interest_froecast_table)
A65: - Sentient ID / unique project identifier (cell B8), Project name (cell B9), Infrastructure type and funding area code (cell A16), Capacity year( cell B16), Indicator whether the DC price increases each year or is a single set price (cell D7), and DC price (cell G32) are copied to the DC_Price Table
A66: - Sentient ID / unique project identifier (cell B8), Project name (cell B9), Infrastructure type and funding area code (cell A16), Capacity year( cell B16), and DC revenue (line 29, columns D to AQ) are copied to the Revenue_forecast_table
A67: - Sentient ID / unique project identifier (cell B8), Project name (cell B9), Infrastructure type and funding area code (cell A16), Capacity year( cell B16), and DC interest (line 20, columns D to AQ) are copied to the Revenue_forecast_table
A69: The template has a conditional statement in the Annual Growth (HUE) line 16, so the growth does not go beyond the capcity year (cell B16 less than year (line 11) then growth for that year is zero).
A70: The temaplate has conditional statements for the interest rate and Incremental DC price increase factor. If the Indicator whether the DC price increases each year or is a single set price (cell D7) is "Yes", then the incremental increase compound factor from the Static_data tab will be applied.
A71: Sumif or pivots can then performed on the tables to produce the DC price per infrastructure type and funding area, financials, scdules and summaries.

Sheet DC_Price_table
A1: This data is populated by the goal seek function in the DC_price_calc sheet. This information is aggregated to calculate the DC price per infrastructure type and data checks
F3: 2022 | G3: =+F3+1 -> 2023 | H3: =+G3+1 -> 2024 | I3: 2025
A4: Project unique identifier | B4: Project Name | C4: Activity and funding area | D4: Capacity | E4: Indicator for project calculations to be based on LTP factors (Yes / No) | F4: DC charge / price for project (year one) | G4: DC charge / price for project (year two) | H4: DC charge / price for project (year three) | I4: DC charge / price for project (year four) | K4: Check of calc
A5: OS 1 | B5: Acquisition of neighbourhood, suburb, and civic parks for Drury | C5: OSL A28 | D5: 2060 | E5: No | F5: 8713.500215 | G5: =IF($D5<G$3,0,+IF($E5="No",$F5*Static_data!D$16,$F5*Static_data!D$14)) -> 8713.500215 | H5: =IF($D5<H$3,0,+IF($E5="No",$F5*Static_data!E$16,$F5*Static_data!E$14)) -> 8713.500215 | I5: =IF($D5<I$3,0,+IF($E5="No",$F5*Static_data!F$16,$F5*Static_data!F$14)) -> 8713.500215 | K5: =SUMIF(Project_and_capex_costs!$E$8:$E$580,A5,Project_and_capex_costs!$CI$8:$CI$580)+SUMIF(Interest_forecast_table!$A$5:$A$797,$A5,Interest_forecast_table!$AS$5:$AS$797)-SUMIF(Revenue_forecast_table!$A$5:$A$777,$A5,Revenue_forecast_table!$AS$5:$AS777) -> 0
A6: OD 1 | B6: Development of neighbourhood, suburb, and civic parks for Drury | C6: OSD A28 | D6: 2060 | E6: No | F6: 8176.985239 | G6: =IF($D6<G$3,0,+IF($E6="No",$F6*Static_data!D$16,$F6*Static_data!D$14)) -> 8176.985239 | H6: =IF($D6<H$3,0,+IF($E6="No",$F6*Static_data!E$16,$F6*Static_data!E$14)) -> 8176.985239 | I6: =IF($D6<I$3,0,+IF($E6="No",$F6*Static_data!F$16,$F6*Static_data!F$14)) -> 8176.985239 | K6: =SUMIF(Project_and_capex_costs!$E$8:$E$580,A6,Project_and_capex_costs!$CI$8:$CI$580)+SUMIF(Interest_forecast_table!$A$5:$A$797,$A6,Interest_forecast_table!$AS$5:$AS$797)-SUMIF(Revenue_forecast_table!$A$5:$A$777,$A6,Revenue_forecast_table!$AS$5:$AS778) -> 0
A7: CI 1 | B7: Llibrary | C7: CI A1 | D7: 2060 | E7: No | F7: 48.38851854 | G7: =IF($D7<G$3,0,+IF($E7="No",$F7*Static_data!D$16,$F7*Static_data!D$14)) -> 48.38851854 | H7: =IF($D7<H$3,0,+IF($E7="No",$F7*Static_data!E$16,$F7*Static_data!E$14)) -> 48.38851854 | I7: =IF($D7<I$3,0,+IF($E7="No",$F7*Static_data!F$16,$F7*Static_data!F$14)) -> 48.38851854 | K7: =SUMIF(Project_and_capex_costs!$E$8:$E$580,A7,Project_and_capex_costs!$CI$8:$CI$580)+SUMIF(Interest_forecast_table!$A$5:$A$797,$A7,Interest_forecast_table!$AS$5:$AS$797)-SUMIF(Revenue_forecast_table!$A$5:$A$777,$A7,Revenue_forecast_table!$AS$5:$AS779) -> -1.676380634e-08
A8: CI 2 | B8: Community venue | C8: CI A34 | D8: 2060 | E8: No | F8: 743.8524988 | G8: =IF($D8<G$3,0,+IF($E8="No",$F8*Static_data!D$16,$F8*Static_data!D$14)) -> 743.8524988 | H8: =IF($D8<H$3,0,+IF($E8="No",$F8*Static_data!E$16,$F8*Static_data!E$14)) -> 743.8524988 | I8: =IF($D8<I$3,0,+IF($E8="No",$F8*Static_data!F$16,$F8*Static_data!F$14)) -> 743.8524988 | K8: =SUMIF(Project_and_capex_costs!$E$8:$E$580,A8,Project_and_capex_costs!$CI$8:$CI$580)+SUMIF(Interest_forecast_table!$A$5:$A$797,$A8,Interest_forecast_table!$AS$5:$AS$797)-SUMIF(Revenue_forecast_table!$A$5:$A$777,$A8,Revenue_forecast_table!$AS$5:$AS780) -> 0
A9: CI 3 | B9: Pool and leisure | C9: CI A34 | D9: 2060 | E9: No | F9: 7354.7693 | G9: =IF($D9<G$3,0,+IF($E9="No",$F9*Static_data!D$16,$F9*Static_data!D$14)) -> 7354.7693 | H9: =IF($D9<H$3,0,+IF($E9="No",$F9*Static_data!E$16,$F9*Static_data!E$14)) -> 7354.7693 | I9: =IF($D9<I$3,0,+IF($E9="No",$F9*Static_data!F$16,$F9*Static_data!F$14)) -> 7354.7693 | K9: =SUMIF(Project_and_capex_costs!$E$8:$E$580,A9,Project_and_capex_costs!$CI$8:$CI$580)+SUMIF(Interest_forecast_table!$A$5:$A$797,$A9,Interest_forecast_table!$AS$5:$AS$797)-SUMIF(Revenue_forecast_table!$A$5:$A$777,$A9,Revenue_forecast_table!$AS$5:$AS781) -> 0
A10: 7 TRA A23 | B10: Fitzgerald Rd upgrades (from Waihoehoe Rd to development boundary) | C10: TRA A23 | D10: 2060 | E10: No | F10: 105.0451956 | G10: =IF($D10<G$3,0,+IF($E10="No",$F10*Static_data!D$16,$F10*Static_data!D$14)) -> 105.0451956 | H10: =IF($D10<H$3,0,+IF($E10="No",$F10*Static_data!E$16,$F10*Static_data!E$14)) -> 105.0451956 | I10: =IF($D10<I$3,0,+IF($E10="No",$F10*Static_data!F$16,$F10*Static_data!F$14)) -> 105.0451956 | K10: =SUMIF(Project_and_capex_costs!$E$8:$E$580,A10,Project_and_capex_costs!$CI$8:$CI$580)+SUMIF(Interest_forecast_table!$A$5:$A$797,$A10,Interest_forecast_table!$AS$5:$AS$797)-SUMIF(Revenue_forecast_table!$A$5:$A$777,$A10,Revenue_forecast_table!$AS$5:$AS782) -> 0
A11: 8 TRA A23 | B11: Fielding Rd upgrades ( from Waihoehoe Rd to development boundary ) | C11: TRA A23 | D11: 2060 | E11: No | F11: 107.7386622 | G11: =IF($D11<G$3,0,+IF($E11="No",$F11*Static_data!D$16,$F11*Static_data!D$14)) -> 107.7386622 | H11: =IF($D11<H$3,0,+IF($E11="No",$F11*Static_data!E$16,$F11*Static_data!E$14)) -> 107.7386622 | I11: =IF($D11<I$3,0,+IF($E11="No",$F11*Static_data!F$16,$F11*Static_data!F$14)) -> 107.7386622 | K11: =SUMIF(Project_and_capex_costs!$E$8:$E$580,A11,Project_and_capex_costs!$CI$8:$CI$580)+SUMIF(Interest_forecast_table!$A$5:$A$797,$A11,Interest_forecast_table!$AS$5:$AS$797)-SUMIF(Revenue_forecast_table!$A$5:$A$777,$A11,Revenue_forecast_table!$AS$5:$AS783) -> 0
A12: 12 TRA A23 | B12: Interim walking, cycling and bus connections within Drury Centre (includes Bremner/Norrie/Firth Intersection upgrades, active mode on Norrie) -overlap with project 36 and 46 | C12: TRA A23 | D12: 2060 | E12: No | F12: 3105.952253 | G12: =IF($D12<G$3,0,+IF($E12="No",$F12*Static_data!D$16,$F12*Static_data!D$14)) -> 3105.952253 | H12: =IF($D12<H$3,0,+IF($E12="No",$F12*Static_data!E$16,$F12*Static_data!E$14)) -> 3105.952253 | I12: =IF($D12<I$3,0,+IF($E12="No",$F12*Static_data!F$16,$F12*Static_data!F$14)) -> 3105.952253 | K12: =SUMIF(Project_and_capex_costs!$E$8:$E$580,A12,Project_and_capex_costs!$CI$8:$CI$580)+SUMIF(Interest_forecast_table!$A$5:$A$797,$A12,Interest_forecast_table!$AS$5:$AS$797)-SUMIF(Revenue_forecast_table!$A$5:$A$777,$A12,Revenue_forecast_table!$AS$5:$AS784) -> -1.11758709e-07
A13: 14a TRA A23 | B13: Western end of Brookefield Road Extension tie in with Quarry Rd | C13: TRA A23 | D13: 2060 | E13: No | F13: 6261.501728 | G13: =IF($D13<G$3,0,+IF($E13="No",$F13*Static_data!D$16,$F13*Static_data!D$14)) -> 6261.501728 | H13: =IF($D13<H$3,0,+IF($E13="No",$F13*Static_data!E$16,$F13*Static_data!E$14)) -> 6261.501728 | I13: =IF($D13<I$3,0,+IF($E13="No",$F13*Static_data!F$16,$F13*Static_data!F$14)) -> 6261.501728 | K13: =SUMIF(Project_and_capex_costs!$E$8:$E$580,A13,Project_and_capex_costs!$CI$8:$CI$580)+SUMIF(Interest_forecast_table!$A$5:$A$797,$A13,Interest_forecast_table!$AS$5:$AS$797)-SUMIF(Revenue_forecast_table!$A$5:$A$777,$A13,Revenue_forecast_table!$AS$5:$AS785) -> 0
A14: 14b TRA A23 | B14: Brookefield Road Upgrade | C14: TRA A23 | D14: 2060 | E14: No | F14: 528.4582198 | G14: =IF($D14<G$3,0,+IF($E14="No",$F14*Static_data!D$16,$F14*Static_data!D$14)) -> 528.4582198 | H14: =IF($D14<H$3,0,+IF($E14="No",$F14*Static_data!E$16,$F14*Static_data!E$14)) -> 528.4582198 | I14: =IF($D14<I$3,0,+IF($E14="No",$F14*Static_data!F$16,$F14*Static_data!F$14)) -> 528.4582198 | K14: =SUMIF(Project_and_capex_costs!$E$8:$E$580,A14,Project_and_capex_costs!$CI$8:$CI$580)+SUMIF(Interest_forecast_table!$A$5:$A$797,$A14,Interest_forecast_table!$AS$5:$AS$797)-SUMIF(Revenue_forecast_table!$A$5:$A$777,$A14,Revenue_forecast_table!$AS$5:$AS786) -> 0
A15: 20a TRA A23 | B15: Upgrade Fitzgerald Rd from Brookefield to Cossey Rd for active modes | C15: TRA A23 | D15: 2060 | E15: No | F15: 1665.311846 | G15: =IF($D15<G$3,0,+IF($E15="No",$F15*Static_data!D$16,$F15*Static_data!D$14)) -> 1665.311846 | H15: =IF($D15<H$3,0,+IF($E15="No",$F15*Static_data!E$16,$F15*Static_data!E$14)) -> 1665.311846 | I15: =IF($D15<I$3,0,+IF($E15="No",$F15*Static_data!F$16,$F15*Static_data!F$14)) -> 1665.311846 | K15: =SUMIF(Project_and_capex_costs!$E$8:$E$580,A15,Project_and_capex_costs!$CI$8:$CI$580)+SUMIF(Interest_forecast_table!$A$5:$A$797,$A15,Interest_forecast_table!$AS$5:$AS$797)-SUMIF(Revenue_forecast_table!$A$5:$A$777,$A15,Revenue_forecast_table!$AS$5:$AS787) -> 0
A16: 21 TRA A23 | B16: Fielding Rd upgrades for active modes ( from Fitzgerald Rd to development boundary ) | C16: TRA A23 | D16: 2060 | E16: No | F16: 58.93472624 | G16: =IF($D16<G$3,0,+IF($E16="No",$F16*Static_data!D$16,$F16*Static_data!D$14)) -> 58.93472624 | H16: =IF($D16<H$3,0,+IF($E16="No",$F16*Static_data!E$16,$F16*Static_data!E$14)) -> 58.93472624 | I16: =IF($D16<I$3,0,+IF($E16="No",$F16*Static_data!F$16,$F16*Static_data!F$14)) -> 58.93472624 | K16: =SUMIF(Project_and_capex_costs!$E$8:$E$580,A16,Project_and_capex_costs!$CI$8:$CI$580)+SUMIF(Interest_forecast_table!$A$5:$A$797,$A16,Interest_forecast_table!$AS$5:$AS$797)-SUMIF(Revenue_forecast_table!$A$5:$A$777,$A16,Revenue_forecast_table!$AS$5:$AS788) -> 0
A17: 22 TRA A23 | B17: Upgrade Intersection at Quarry/ GSR | C17: TRA A23 | D17: 2060 | E17: No | F17: 356.2786448 | G17: =IF($D17<G$3,0,+IF($E17="No",$F17*Static_data!D$16,$F17*Static_data!D$14)) -> 356.2786448 | H17: =IF($D17<H$3,0,+IF($E17="No",$F17*Static_data!E$16,$F17*Static_data!E$14)) -> 356.2786448 | I17: =IF($D17<I$3,0,+IF($E17="No",$F17*Static_data!F$16,$F17*Static_data!F$14)) -> 356.2786448 | K17: =SUMIF(Project_and_capex_costs!$E$8:$E$580,A17,Project_and_capex_costs!$CI$8:$CI$580)+SUMIF(Interest_forecast_table!$A$5:$A$797,$A17,Interest_forecast_table!$AS$5:$AS$797)-SUMIF(Revenue_forecast_table!$A$5:$A$777,$A17,Revenue_forecast_table!$AS$5:$AS789) -> 0
A18: 25 TRA A23 | B18: Upgrades on Drury Hills from Waihoehoe Rd to Macwhinney Dr | C18: TRA A23 | D18: 2060 | E18: No | F18: 920.6854075 | G18: =IF($D18<G$3,0,+IF($E18="No",$F18*Static_data!D$16,$F18*Static_data!D$14)) -> 920.6854075 | H18: =IF($D18<H$3,0,+IF($E18="No",$F18*Static_data!E$16,$F18*Static_data!E$14)) -> 920.6854075 | I18: =IF($D18<I$3,0,+IF($E18="No",$F18*Static_data!F$16,$F18*Static_data!F$14)) -> 920.6854075 | K18: =SUMIF(Project_and_capex_costs!$E$8:$E$580,A18,Project_and_capex_costs!$CI$8:$CI$580)+SUMIF(Interest_forecast_table!$A$5:$A$797,$A18,Interest_forecast_table!$AS$5:$AS$797)-SUMIF(Revenue_forecast_table!$A$5:$A$777,$A18,Revenue_forecast_table!$AS$5:$AS790) -> 0
A19: 27a TRA A23 | B19: Active mode facilities from Drury hills and Fitzgerald to Quarry Rd (2 links and intersections) | C19: TRA A23 | D19: 2060 | E19: No | F19: 1600.295007 | G19: =IF($D19<G$3,0,+IF($E19="No",$F19*Static_data!D$16,$F19*Static_data!D$14)) -> 1600.295007 | H19: =IF($D19<H$3,0,+IF($E19="No",$F19*Static_data!E$16,$F19*Static_data!E$14)) -> 1600.295007 | I19: =IF($D19<I$3,0,+IF($E19="No",$F19*Static_data!F$16,$F19*Static_data!F$14)) -> 1600.295007 | K19: =SUMIF(Project_and_capex_costs!$E$8:$E$580,A19,Project_and_capex_costs!$CI$8:$CI$580)+SUMIF(Interest_forecast_table!$A$5:$A$797,$A19,Interest_forecast_table!$AS$5:$AS$797)-SUMIF(Revenue_forecast_table!$A$5:$A$777,$A19,Revenue_forecast_table!$AS$5:$AS791) -> -3.725290298e-08
A20: 28a TRA A23 | B20: Northern Section of new collector in N-S direction parallel to Fitzgerald Rd | C20: TRA A23 | D20: 2060 | E20: No | F20: 4666.329461 | G20: =IF($D20<G$3,0,+IF($E20="No",$F20*Static_data!D$16,$F20*Static_data!D$14)) -> 4666.329461 | H20: =IF($D20<H$3,0,+IF($E20="No",$F20*Static_data!E$16,$F20*Static_data!E$14)) -> 4666.329461 | I20: =IF($D20<I$3,0,+IF($E20="No",$F20*Static_data!F$16,$F20*Static_data!F$14)) -> 4666.329461 | K20: =SUMIF(Project_and_capex_costs!$E$8:$E$580,A20,Project_and_capex_costs!$CI$8:$CI$580)+SUMIF(Interest_forecast_table!$A$5:$A$797,$A20,Interest_forecast_table!$AS$5:$AS$797)-SUMIF(Revenue_forecast_table!$A$5:$A$777,$A20,Revenue_forecast_table!$AS$5:$AS792) -> -5.587935448e-08
A21: 31 TRA A23 | B21: Upgrades on Cossey Rd between Fitzgerald & Waihoehoe Rd | C21: TRA A23 | D21: 2060 | E21: No | F21: 150.2170928 | G21: =IF($D21<G$3,0,+IF($E21="No",$F21*Static_data!D$16,$F21*Static_data!D$14)) -> 150.2170928 | H21: =IF($D21<H$3,0,+IF($E21="No",$F21*Static_data!E$16,$F21*Static_data!E$14)) -> 150.2170928 | I21: =IF($D21<I$3,0,+IF($E21="No",$F21*Static_data!F$16,$F21*Static_data!F$14)) -> 150.2170928 | K21: =SUMIF(Project_and_capex_costs!$E$8:$E$580,A21,Project_and_capex_costs!$CI$8:$CI$580)+SUMIF(Interest_forecast_table!$A$5:$A$797,$A21,Interest_forecast_table!$AS$5:$AS$797)-SUMIF(Revenue_forecast_table!$A$5:$A$777,$A21,Revenue_forecast_table!$AS$5:$AS793) -> 0
A22: 33 TRA A23 | B22: Upgrade Fitzgerald Rd from project 7 to Brookefield Rd | C22: TRA A23 | D22: 2060 | E22: No | F22: 68.23448606 | G22: =IF($D22<G$3,0,+IF($E22="No",$F22*Static_data!D$16,$F22*Static_data!D$14)) -> 68.23448606 | H22: =IF($D22<H$3,0,+IF($E22="No",$F22*Static_data!E$16,$F22*Static_data!E$14)) -> 68.23448606 | I22: =IF($D22<I$3,0,+IF($E22="No",$F22*Static_data!F$16,$F22*Static_data!F$14)) -> 68.23448606 | K22: =SUMIF(Project_and_capex_costs!$E$8:$E$580,A22,Project_and_capex_costs!$CI$8:$CI$580)+SUMIF(Interest_forecast_table!$A$5:$A$797,$A22,Interest_forecast_table!$AS$5:$AS$797)-SUMIF(Revenue_forecast_table!$A$5:$A$777,$A22,Revenue_forecast_table!$AS$5:$AS794) -> 0
A23: 55a TRA A23 | B23: New E-W collector Jesmond Rd to Burberry Rd | C23: TRA A23 | D23: 2060 | E23: No | F23: 0 | G23: =IF($D23<G$3,0,+IF($E23="No",$F23*Static_data!D$16,$F23*Static_data!D$14)) -> 0 | H23: =IF($D23<H$3,0,+IF($E23="No",$F23*Static_data!E$16,$F23*Static_data!E$14)) -> 0 | I23: =IF($D23<I$3,0,+IF($E23="No",$F23*Static_data!F$16,$F23*Static_data!F$14)) -> 0 | K23: =SUMIF(Project_and_capex_costs!$E$8:$E$580,A23,Project_and_capex_costs!$CI$8:$CI$580)+SUMIF(Interest_forecast_table!$A$5:$A$797,$A23,Interest_forecast_table!$AS$5:$AS$797)-SUMIF(Revenue_forecast_table!$A$5:$A$777,$A23,Revenue_forecast_table!$AS$5:$AS795) -> 0
A24: 58 TRA A23 | B24: Oira Rd upgrades from SH22 to proposed east-west collector | C24: TRA A23 | D24: 2060 | E24: No | F24: 0 | G24: =IF($D24<G$3,0,+IF($E24="No",$F24*Static_data!D$16,$F24*Static_data!D$14)) -> 0 | H24: =IF($D24<H$3,0,+IF($E24="No",$F24*Static_data!E$16,$F24*Static_data!E$14)) -> 0 | I24: =IF($D24<I$3,0,+IF($E24="No",$F24*Static_data!F$16,$F24*Static_data!F$14)) -> 0 | K24: =SUMIF(Project_and_capex_costs!$E$8:$E$580,A24,Project_and_capex_costs!$CI$8:$CI$580)+SUMIF(Interest_forecast_table!$A$5:$A$797,$A24,Interest_forecast_table!$AS$5:$AS$797)-SUMIF(Revenue_forecast_table!$A$5:$A$777,$A24,Revenue_forecast_table!$AS$5:$AS796) -> 0
A25: 59 TRA A23 | B25: New Intersection on Jesmond Rd/collector (PC61) | C25: TRA A23 | D25: 2060 | E25: No | F25: 0 | G25: =IF($D25<G$3,0,+IF($E25="No",$F25*Static_data!D$16,$F25*Static_data!D$14)) -> 0 | H25: =IF($D25<H$3,0,+IF($E25="No",$F25*Static_data!E$16,$F25*Static_data!E$14)) -> 0 | I25: =IF($D25<I$3,0,+IF($E25="No",$F25*Static_data!F$16,$F25*Static_data!F$14)) -> 0 | K25: =SUMIF(Project_and_capex_costs!$E$8:$E$580,A25,Project_and_capex_costs!$CI$8:$CI$580)+SUMIF(Interest_forecast_table!$A$5:$A$797,$A25,Interest_forecast_table!$AS$5:$AS$797)-SUMIF(Revenue_forecast_table!$A$5:$A$777,$A25,Revenue_forecast_table!$AS$5:$AS797) -> 0
A26: 69 TRA A23 | B26: walk/cycle bridges on Quarry Road bridge (oiver SH1) | C26: TRA A23 | D26: 2060 | E26: No | F26: 1376.306434 | G26: =IF($D26<G$3,0,+IF($E26="No",$F26*Static_data!D$16,$F26*Static_data!D$14)) -> 1376.306434 | H26: =IF($D26<H$3,0,+IF($E26="No",$F26*Static_data!E$16,$F26*Static_data!E$14)) -> 1376.306434 | I26: =IF($D26<I$3,0,+IF($E26="No",$F26*Static_data!F$16,$F26*Static_data!F$14)) -> 1376.306434 | K26: =SUMIF(Project_and_capex_costs!$E$8:$E$580,A26,Project_and_capex_costs!$CI$8:$CI$580)+SUMIF(Interest_forecast_table!$A$5:$A$797,$A26,Interest_forecast_table!$AS$5:$AS$797)-SUMIF(Revenue_forecast_table!$A$5:$A$777,$A26,Revenue_forecast_table!$AS$5:$AS798) -> 0
